{"text_format":"1","workbook":"xlsx","n_sheets":13,"sheets":["Introducción","Instrucciones","Preguntas frecuentes","Guía para poblaciones clave","TS ","HSH ","Personas transgénero","Reclusos ","PID ","Resumen de calificaciones ","Siguientes pasos","Bibliografía","Acrónimos"],"not_rendered":{"charts":10,"images":0,"macros":1,"external_links":0,"defined_names":29,"comments":0,"pivot_tables":0},"unopened":[],"bounds":{"document_bytes":16777216,"sheet_cells":100000,"rows_first":2000,"rows_last":500,"rows_between":2000,"halvings":0,"cell_chars":16384,"cell_head_chars":4096},"cells_cut":0,"cells_raw":0,"read":"whole","date_system":"1900"}

{"sheet":"Introducción","index":0,"n_rows":2,"n_cols":3,"rows_kept":2,"cut":false,"hidden":false,"merged":[[1,2,1,22]]}
[]
[null,null,"¿Cuáles son las herramientas de autoevaluación para la prevención del VIH (PSAT)?"]

{"sheet":"Instrucciones","index":1,"n_rows":3,"n_cols":3,"rows_kept":3,"cut":false,"hidden":false,"merged":[[2,2,2,17]]}
[]
[]
[null,null,"Cómo completar el PSAT"]

{"sheet":"Preguntas frecuentes","index":2,"n_rows":2,"n_cols":3,"rows_kept":2,"cut":false,"hidden":false,"merged":[[1,2,1,22]]}
[]
[null,null,"Preguntas frecuentes"]

{"sheet":"Guía para poblaciones clave","index":3,"n_rows":2,"n_cols":3,"rows_kept":2,"cut":false,"hidden":false,"merged":[[1,2,1,22]]}
[]
[null,null,"Programas de prevención combinada para todos los grupos de población clave "]

{"sheet":"TS ","index":4,"n_rows":381,"n_cols":16,"rows_kept":381,"cut":false,"hidden":false,"merged":[[68,2,71,2],[75,2,82,2],[83,2,89,2],[90,2,93,2],[94,2,102,2],[105,2,109,2],[110,2,119,2],[120,2,126,2],[127,2,137,2],[138,2,142,2],[145,2,153,2],[154,2,160,2],[161,2,167,2],[170,2,173,2],[174,2,186,2],[187,2,192,2],[193,2,199,2],[200,2,204,2],[145,9,153,9],[154,9,160,9],[161,9,167,9],[170,9,173,9],[174,9,186,9],[187,9,192,9],[220,3,220,4],[222,3,222,4],[104,3,104,4],[205,9,209,9],[210,9,219,9],[220,9,221,9],[222,9,228,9],[105,3,105,4],[110,3,110,4],[120,3,120,4],[127,3,127,4],[138,3,138,4],[144,3,144,4],[145,3,145,4],[154,3,154,4],[75,9,82,9],[83,9,89,9],[90,9,93,9],[94,9,102,9],[105,9,109,9],[110,9,119,9],[120,9,126,9],[127,9,137,9],[138,9,142,9],[283,2,290,2],[291,2,300,2],[301,2,311,2],[314,2,321,2],[322,2,329,2],[330,2,335,2],[336,2,340,2],[205,2,209,2],[210,2,219,2],[220,2,221,2],[222,2,228,2],[229,2,233,2],[234,2,236,2],[237,2,239,2],[242,2,247,2],[250,2,257,2],[258,2,265,2],[266,2,269,2],[271,2,273,2],[274,2,278,2],[279,2,282,2],[229,9,233,9],[234,9,236,9],[237,9,239,9],[242,9,247,9],[250,9,257,9],[258,9,265,9],[266,9,269,9],[271,9,273,9],[274,9,278,9],[279,9,282,9],[205,3,205,4],[210,3,210,4],[283,9,290,9],[346,9,354,9],[355,9,359,9],[360,9,363,9],[291,9,300,9],[301,9,311,9],[314,9,321,9],[322,9,329,9],[330,9,335,9],[336,9,340,9],[341,9,345,9],[229,3,229,4],[234,3,234,4],[237,3,237,4],[241,3,241,4],[242,3,242,4],[249,3,249,4],[258,3,258,4],[266,3,266,4],[270,3,270,4],[271,3,271,4],[274,3,274,4],[279,3,279,4],[283,3,283,4],[291,3,291,4],[301,3,301,4],[313,3,313,4],[314,3,314,4],[322,3,322,4],[330,3,330,4],[336,3,336,4],[341,3,341,4],[346,3,346,4],[355,3,355,4],[360,3,360,4],[375,2,375,4],[376,2,376,4],[367,3,367,4],[368,2,368,4],[369,2,369,4],[371,2,371,4],[372,2,372,4],[373,2,373,4],[374,2,374,4],[341,2,345,2],[346,2,354,2],[355,2,359,2],[360,2,363,2],[1,2,1,9],[4,3,4,4],[5,2,15,2],[5,3,5,4],[5,9,15,9],[16,3,16,4],[22,3,22,4],[16,2,21,2],[22,2,27,2],[16,9,21,9],[22,9,27,9],[28,2,34,2],[28,3,28,4],[35,2,41,2],[35,3,35,4],[42,3,42,4],[57,0,59,0],[57,1,59,1],[60,0,63,0],[60,1,63,1],[42,2,46,2],[47,2,47,4],[48,3,48,4],[49,2,52,2],[49,3,49,4],[53,3,53,4],[59,3,59,4],[53,2,57,2],[60,2,61,2],[62,2,65,2],[83,3,83,4],[90,3,90,4],[94,3,94,4],[193,3,193,4],[200,3,200,4],[28,9,34,9],[35,9,41,9],[42,9,46,9],[49,9,52,9],[53,9,57,9],[60,3,60,4],[62,3,62,4],[74,3,74,4],[75,3,75,4],[161,3,161,4],[169,3,169,4],[170,3,170,4],[174,3,174,4],[187,3,187,4],[193,9,199,9],[200,9,204,9],[60,9,61,9],[62,9,65,9],[68,9,71,9]]}
[]
[null,null,"Gestión del programa"]
[]
[null,null,"Liderazgo y coordinación"]
[null,null,"Elemento","Criterios",null,"N/A","Ausente","Presente pero no óptimo","Presente y funcionando bien","Promedio del elemento","Comentarios (si procede)","Absent","Present","Optimal","Average","Sustainability Single Figure"]
[null,null,"Estrategia nacional para grupos de población clave","Se incluye a los TS en las estrategias nacionales de grupos de población clave y de prevención del VIH:",null,null,null,null,null,{"$f":"O6","v":"-"},null,null,null,null,{"$f":"IFERROR(ROUND(AVERAGEIF(L7:N16,\"<>0\",L7:N16),0),\"-\")","v":"-"}]
[null,null,null,"○","Los TS han participado en el desarrollo del plan estratégico ",null,null,null,null,null,null,{"$f":"IF(ISBLANK(G7),0,1)","v":0},{"$f":"IF(ISBLANK(H7),0,3)","v":0},{"$f":"IF(ISBLANK(I7),0,5)","v":0}]
[null,null,null,"○","Se han definido claramente las metas y objetivos del programa de TS ",null,null,null,null,null,null,0,0,0]
[null,null,null,"○","El término TS se ha definido claramente de acuerdo con las directrices de la Organización Mundial de la Salud (OMS) ",null,null,null,null,null,null,0,0,0]
[null,null,null,"○","El plan reconoce las vulnerabilidades específicas de los TS por el género y la edad",null,null,null,null,null,null,0,0,0,null,{"$f":"IF(MAX(L10:N10)=0,\"\",MAX(L10:N10))","v":""}]
[null,null,null,"○","Se ha articulado un modelo lógico claro o una teoría del cambio  ",null,null,null,null,null,null,0,0,0]
[null,null,null,"○","El plan incluye un paquete integral de intervenciones y actividades basadas en la evidencia que están en línea con las herramientas de implementación para TS. Estas herramientas, identificadas por TS, incluyen las intervenciones del sector no sanitario (ej.: empoderamiento comunitario, tratamiento de la violencia, reducción del estigma, etc.) y están adaptadas para abordar vulnerabilidades específicas.",null,null,null,null,null,null,0,0,0]
[null,null,null,"○","Se ha definido claramente el proceso de escalado y se han asignado responsabilidades ",null,null,null,null,null,null,0,0,0]
[null,null,null,"○","Hay planes de financiación ",null,null,null,null,null,null,0,0,0]
[null,null,null,"○","Se ha definido un marco de seguimiento y evaluación con indicadores y objetivos básicos",null,null,null,null,null,null,0,0,0]
[null,null,null,"○","Se ha definido claramente el mecanismo de implementación",null,null,null,null,null,null,0,0,0]
[null,null,"Rendición de cuentas","El departamento/ministerio responsable del éxito del programa de TS ejerce un sólido liderazgo/autoridad:",null,null,null,null,null,{"$f":"O17","v":"-"},null,null,null,null,{"$f":"IFERROR(ROUND(AVERAGEIF(L18:N22,\"<>0\",L18:N22),0),\"-\")","v":"-"}]
[null,null,null,"○","Todos los proyectos de TS del país envían información sobre indicadores clave de forma rutinaria al gobierno, tanto central como regional, e incluyen indicadores comunes ",null,null,null,null,null,null,{"$f":"IF(ISBLANK(G18),0,1)","v":0},{"$f":"IF(ISBLANK(H18),0,3)","v":0},{"$f":"IF(ISBLANK(I18),0,5)","v":0}]
[null,null,null,"○","Al generar informes, los datos se anonimizan y protegen para proteger a los TS ",null,null,null,null,null,null,0,0,0]
[null,null,null,"○","Se realizan revisiones programáticas periódicas utilizando datos programáticos",null,null,null,null,null,null,0,0,0]
[null,null,null,"○","El ministerio responsable del programa asiste a las reuniones de coordinación pertinentes",null,null,null,null,null,null,0,0,0]
[null,null,null,"○","El grupo técnico de trabajo (GTT) para este grupo de población clave (con representantes de los TS) participa para asegurar la rendición de cuentas ",null,null,null,null,null,null,0,0,0]
[null,null,"Grupo técnico de trabajo (GTT) para TS","Se ha establecido un grupo técnico de trabajo (los países pueden tener diferentes GTT para todos los grupos de población clave en los que se incluyen TS), tanto a nivel nacional como regional, y:",null,null,null,null,null,{"$f":"O23","v":"-"},null,null,null,null,{"$f":"IFERROR(ROUND(AVERAGEIF(L24:N28,\"<>0\",L24:N28),0),\"-\")","v":"-"}]
[null,null,null,"○","Se reúnen regularmente ",null,null,null,null,null,null,{"$f":"IF(ISBLANK(G24),0,1)","v":0},{"$f":"IF(ISBLANK(H24),0,3)","v":0},{"$f":"IF(ISBLANK(I24),0,5)","v":0}]
[null,null,null,"○","El grupo técnico de trabajo está completo e incluye a las Organizaciones de la Sociedad Civil (OSC), a los colaboradores en la implementación y a miembros del colectivo de TS",null,null,null,null,null,null,0,0,0]
[null,null,null,"○","El grupo técnico de trabajo dispone de mecanismos de comunicación para garantizar la coordinación",null,null,null,null,null,null,0,0,0]
[null,null,null,"○","Tiene una lista de términos de referencia o ha definido su ámbito de trabajo ",null,null,null,null,null,null,0,0,0]
[null,null,null,"○","Incluye a los miembros de la comunidad de TS en toda su diversidad (género, edad, tipología)",null,null,null,null,null,null,0,0,0]
[null,null,"Coordinación de los organismos interesados","Existen mecanismos para garantizar que se logre una buena coordinación a todos los niveles, y que sea coherente con: ",null,null,null,null,null,{"$f":"O29","v":"-"},null,null,null,null,{"$f":"IFERROR(ROUND(AVERAGEIF(L30:N35,\"<>0\",L30:N35),0),\"-\")","v":"-"}]
[null,null,null,"○","Socios financiadores (a nivel nacional)",null,null,null,null,null,null,{"$f":"IF(ISBLANK(G30),0,1)","v":0},{"$f":"IF(ISBLANK(H30),0,3)","v":0},{"$f":"IF(ISBLANK(I30),0,5)","v":0}]
[null,null,null,"○","Programas locales con iniciativas más grandes a nivel nacional ",null,null,null,null,null,null,0,0,0]
[null,null,null,"○","Comunidades de TS",null,null,null,null,null,null,0,0,0]
[null,null,null,"○","Colaboradores en la implementación ",null,null,null,null,null,null,0,0,0]
[null,null,null,"○","El Ministerio de Sanidad o las Consejerías de Sanidad (a nivel nacional y regional)",null,null,null,null,null,null,0,0,0]
[null,null,null,"○","Se ha logrado una coordinación multisectorial con otros ministerios/departamentos (por ejemplo, de finanzas o de las fuerzas del orden)",null,null,null,null,null,null,0,0,0]
[null,null,"Desarrollo de las capacidades y plan de asistencia técnica","Existe un plan de asistencia técnica que: ",null,null,null,null,null,{"$f":"O36","v":"-"},null,null,null,null,{"$f":"IFERROR(ROUND(AVERAGEIF(L37:N42,\"<>0\",L37:N42),0),\"-\")","v":"-"},{"$f":"IF(MAX(L36:N36)=0,\"\",MAX(L36:N36))","v":""}]
[null,null,null,"○","Se ha desarrollado sobre la base de algunas evaluaciones ",null,null,null,null,null,null,{"$f":"IF(ISBLANK(G37),0,1)","v":0},{"$f":"IF(ISBLANK(H37),0,3)","v":0},{"$f":"IF(ISBLANK(I37),0,5)","v":0},null,""]
[null,null,null,"○","Involucra a expertos técnicos nacionales e internacionales, incluyéndose el desarrollo de capacidades y la asistencia técnica entre pares",null,null,null,null,null,null,0,0,0,null,""]
[null,null,null,"○","Ha priorizado los componentes del programa y las cuestiones políticas ",null,null,null,null,null,null,0,0,0,null,""]
[null,null,null,"○","Facilita el establecimiento y fortalecimiento de redes de implementadores ",null,null,null,null,null,null,0,0,0,null,""]
[null,null,null,"○","Identifica las lagunas y desarrolla solicitudes consolidadas de asistencia en los casos en los que falta experiencia a nivel nacional ",null,null,null,null,null,null,0,0,0,null,""]
[null,null,null,"○","Facilita el desarrollo de la capacidad de la comunidad de TS para hacerse cargo de los programas para TS ",null,null,null,null,null,null,0,0,0,null,""]
[null,null,"Plan de sostenibilidad y hoja de ruta de la transición","Se ha establecido un plan completo de sostenibilidad y una hoja de ruta de la transición, que dan cuenta de la transición de intervenciones apoyadas por donantes a intervenciones con apoyo a nivel nacional. Incluyen datos como: ",null,null,null,null,null,{"$f":"O43","v":"-"},null,null,null,null,{"$f":"IFERROR(ROUND(AVERAGEIF(L44:N47,\"<>0\",L44:N47),0),\"-\")","v":"-"},""]
[null,null,null,"○","Cálculo de costes unitarios para el grupo de población clave",null,null,null,null,null,null,{"$f":"IF(ISBLANK(G44),0,1)","v":0},{"$f":"IF(ISBLANK(H44),0,3)","v":0},{"$f":"IF(ISBLANK(I44),0,5)","v":0},null,""]
[null,null,null,"○","Análisis general de la financiación para el grupo de población clave",null,null,null,null,null,null,0,0,0,null,""]
[null,null,null,"○","Planificación hacia la integración de los servicios para PC en la atención primaria",null,null,null,null,null,null,0,0,0]
[null,null,null,"○","Consideraciones sobre las necesidades financieras, de infraestructura y de personal",null,null,null,null,null,null,0,0,0,null,{"$f":"IF(MAX(L47:N47)=0,\"\",MAX(L47:N47))","v":""}]
[null,null,"Leyes, políticas y normativas"]
[null,null,"Elemento","Criterios",null,"N/A","Ausente","Presente pero no óptimo","Presente y funcionando bien","Promedio del elemento","Comentarios (si procede)"]
[null,null,"Leyes y políticas ","Políticas vigentes que promueven activamente el buen funcionamiento del programa de TS: ",null,null,null,null,null,{"$f":"O50","v":"-"},null,null,null,null,{"$f":"IFERROR(ROUND(AVERAGEIF(L51:N53,\"<>0\",L51:N53),0),\"-\")","v":"-"}]
[null,null,null,"○","Políticas que promueven activamente el acceso de los TS a los servicios, incluyendo TS en toda su diversidad (género, edad, tipología)  ",null,null,null,null,null,null,{"$f":"IF(ISBLANK(G51),0,1)","v":0},{"$f":"IF(ISBLANK(H51),0,3)","v":0},{"$f":"IF(ISBLANK(I51),0,5)","v":0}]
[null,null,null,"○","Existen políticas que apoyan la despenalización del trabajo sexual",null,null,null,null,null,null,0,0,0]
[null,null,null,"○","Existen políticas para reducir el estigma, la discriminación y la violencia contra los TS ",null,null,null,null,null,null,0,0,0]
[null,null,"Directrices","Las siguientes directrices existen y articulan claramente los pasos a seguir para implementar con éxito el programa para TS:",null,null,null,null,null,{"$f":"O54","v":"-"},null,null,null,null,{"$f":"IFERROR(ROUND(AVERAGEIF(L55:N58,\"<>0\",L55:N58),0),\"-\")","v":"-"}]
[null,null,null,"○","Existen directrices nacionales para cada una de las intervenciones y servicios conductuales, biomédicos y estructurales, y están en línea con las directrices a nivel mundial ",null,null,null,null,null,null,{"$f":"IF(ISBLANK(G55),0,1)","v":0},{"$f":"IF(ISBLANK(H55),0,3)","v":0},{"$f":"IF(ISBLANK(I55),0,5)","v":0}]
[null,null,null,"○","Las directrices se desarrollaron en colaboración con TS",null,null,null,null,null,null,0,0,0]
[null,null,null,"○","Las directrices nacionales para los servicios de pruebas del VIH e infecciones de transmisión sexual, de profilaxis preexposición y de acceso a preservativos tiene en cuenta las necesidades y prioridades de los TS ",null,null,null,null,null,null,0,0,0]
[null,null,null,"○","Las medidas de prevención y control de la COVID-19 se han incorporado a todas las estrategias, planes y directrices de prevención del VIH o dirigidos a TS",null,null,null,null,null,null,0,0,0]
[null,null,"Financiación"]
[null,null,"Elemento","Criterios",null,"N/A","Ausente","Presente pero no óptimo","Presente y funcionando bien","Promedio del elemento","Comentarios (si procede)"]
[null,null,"Cálculo de costes ","Hay un presupuesto nacional:",null,null,null,null,null,{"$f":"O61","v":"-"},null,null,null,null,{"$f":"IFERROR(ROUND(AVERAGEIF(L62:N62,\"<>0\",L62:N62),0),\"-\")","v":"-"}]
[null,null,null,"○","Se ha llevado a cabo un ejercicio de cálculo de costes y el programa nacional es consciente del coste promedio de alcanzar a un TS con un paquete estándar de servicios, según directrices",null,null,null,null,null,null,{"$f":"IF(ISBLANK(G62),0,1)","v":0},{"$f":"IF(ISBLANK(H62),0,3)","v":0},{"$f":"IF(ISBLANK(I62),0,5)","v":0}]
[null,null,"Planificación de presupuestos","Hay un proceso de planificación presupuestaria para el programa de TS y está bien gestionado ",null,null,null,null,null,{"$f":"O63","v":"-"},null,null,null,null,{"$f":"IFERROR(ROUND(AVERAGEIF(L64:N66,\"<>0\",L64:N66),0),\"-\")","v":"-"}]
[null,null,null,"○","Se está realizando una evaluación de los recursos disponibles para tratar de identificar las lagunas y asignar partidas presupuestarias al programa de TS",null,null,null,null,null,null,{"$f":"IF(ISBLANK(G64),0,1)","v":0},{"$f":"IF(ISBLANK(H64),0,3)","v":0},{"$f":"IF(ISBLANK(I64),0,5)","v":0}]
[null,null,null,"○","Se ha desarrollado una estrategia para eliminar las faltas de financiación",null,null,null,null,null,null,{"$f":"IF(ISBLANK(G65),0,1)","v":0},0,0]
[null,null,null,"○","Los presupuestos están vinculados a las necesidades de recursos de los planes operativos para las unidades a nivel nacional y regional",null,null,null,null,null,null,0,0,0]
[null,null,"Movilización de recursos y financiación","○","Hay fondos suficientes para abordar las necesidades holísticas del programa ",null,null,null,null,{"$f":"O67","v":"-"},null,0,0,0,{"$f":"IFERROR(ROUND(AVERAGEIF(L67:N67,\"<>0\",L67:N67),0),\"-\")","v":"-"},{"$f":"IF(MAX(L67:N67)=0,\"\",MAX(L67:N67))","v":""}]
[null,null,"Recursos nacionales","○","Más del 50 % de los recursos que sustentan el programa (tanto humanos como financieros) son de original nacional",null,null,null,null,"-",null,0,0,0,"-",""]
[null,null,"Contratación social","○","Se han desarrollado y se están implementando mecanismos de contratación social",null,null,null,null,"-",null,0,0,0,{"$f":"IFERROR(ROUND(AVERAGEIF(L69:N72,\"<>0\",L69:N72),0),\"-\")","v":"-"}]
[null,null,null,"○","La información se hace circular ampliamente para que los socios implementadores locales y las organizaciones lideradas por trabajadores sexuales tengan acceso a financiación",null,null,null,null,null,null,0,0,0]
[null,null,null,"○","Existe un mecanismo que permite que las organizaciones lideradas por la comunidad reciban financiación",null,null,null,null,null,null,0,0,0]
[null,null,null,"○","Los fondos se conceden a las organizaciones lideradas por la comunidad ",null,null,null,null,null,null,0,0,0,null,{"$f":"IF(MAX(L72:N72)=0,\"\",MAX(L72:N72))","v":""}]
[null,null,"Implementación del programa"]
[null,null,"Definición de objetivos y planificación"]
[null,null,"Elemento","Criterios",null,"N/A","Ausente","Presente pero no óptimo","Presente y funcionando bien","Promedio del elemento","Comentarios (si procede)"]
[null,null,"Evaluación demográfica (estimación del tamaño de la población y microplanificación)","Se ha realizado una estimación del tamaño de la población y una microplanificación, y:",null,null,null,null,null,{"$f":"O76","v":"-"},null,null,null,null,{"$f":"IFERROR(ROUND(AVERAGEIF(L77:N83,\"<>0\",L77:N83),0),\"-\")","v":"-"}]
[null,null,null,"○","Se han basado en cada lugar (a nivel local, no de país o región)",null,null,null,null,null,null,{"$f":"IF(ISBLANK(G77),0,1)","v":0},{"$f":"IF(ISBLANK(H77),0,3)","v":0},{"$f":"IF(ISBLANK(I77),0,5)","v":0}]
[null,null,null,"○","Garantizan la confidencialidad de los centros de actividad y el anonimato de las personas, y no se comparten datos con las fuerzas del orden",null,null,null,null,null,null,0,0,0]
[null,null,null,"○","Se actualizan anualmente o cada vez que se realiza una encuesta bioconductual",null,null,null,null,null,null,0,0,0]
[null,null,null,"○","Se ha involucrado y contratado a miembros del colectivo de TS con formación o a redes de TS para llevar a cabo la estimación del tamaño de la población y la microplanificación",null,null,null,null,null,null,0,0,0]
[null,null,null,"○","Las estimaciones del tamaño de la población son precisas y están actualizadas ",null,null,null,null,null,null,0,0,0]
[null,null,null,"○","La información se utiliza para argumentar la necesidad de intervenciones conductuales, biomédicas y estructurales  ",null,null,null,null,null,null,0,0,0]
[null,null,null,"○","Esta información también se utiliza para estimar la necesidad de fondos y para determinar los objetivos",null,null,null,null,null,null,0,0,0]
[null,null,"Evaluación epidemiológica (encuesta de seroprevalencia y factores de riesgo)","Se dispone de estimaciones de seroprevalencia, y:",null,null,null,null,null,{"$f":"O84","v":"-"},null,null,null,null,{"$f":"IFERROR(ROUND(AVERAGEIF(L85:N90,\"<>0\",L85:N90),0),\"-\")","v":"-"}]
[null,null,null,"○","Se han basado en los estudios de vigilancia recientes o continuos (estimaciones modeladas actualizadas anualmente o datos de encuestas actualizados cada 3-5 años)",null,null,null,null,null,null,{"$f":"IF(ISBLANK(G85),0,1)","v":0},{"$f":"IF(ISBLANK(H85),0,3)","v":0},{"$f":"IF(ISBLANK(I85),0,5)","v":0}]
[null,null,null,"○","Son específicas para TS",null,null,null,null,null,null,0,0,0]
[null,null,null,"○","Los resultados son precisos: el tamaño de la muestra es estadísticamente representativo (y se ha determinado adecuadamente), y el método de muestreo es apropiado para TS (muestreo de ubicación temporal y muestreo de conveniencia)",null,null,null,null,null,null,0,0,0]
[null,null,null,"○","Se han realizado regularmente evaluaciones de los factores de riesgo para TS, a fin de recabar información para el programa, y:",null,null,null,null,null,null,0,0,0]
[null,null,null,null,"> Son específicas para TS y tienen en cuenta los comportamientos específicos en función de la edad y del género ",null,null,null,null,null,null,0,0,0]
[null,null,null,null,"> Los estudios son de buena calidad y proporcionan información exhaustiva  ",null,null,null,null,null,null,0,0,0]
[null,null,"Evaluación de necesidades","Se ha realizado una evaluación de necesidades de los TS a nivel de implementación o local:",null,null,null,null,null,{"$f":"O91","v":"-"},null,null,null,null,{"$f":"IFERROR(ROUND(AVERAGEIF(L92:N94,\"<>0\",L92:N94),0),\"-\")","v":"-"}]
[null,null,null,"○","Se han determinado las necesidades con la participación de TS y redes u organizaciones lideradas por TS",null,null,null,null,null,null,{"$f":"IF(ISBLANK(G92),0,1)","v":0},{"$f":"IF(ISBLANK(H92),0,3)","v":0},{"$f":"IF(ISBLANK(I92),0,5)","v":0}]
[null,null,null,"○","Hay suficiente información sobre los servicios que los TS necesitan, cómo preferirían acceder a los servicios y quién debería proporcionarlos ",null,null,null,null,null,null,0,0,0]
[null,null,null,"○","Hay información detallada sobre las áreas que presentan lagunas en la prestación de servicios o barreras de acceso",null,null,null,null,null,null,0,0,0]
[null,null,"Determinación de objetivos","Se han definido claramente los objetivos para TS, y:",null,null,null,null,null,{"$f":"O95","v":"-"},null,null,null,null,{"$f":"IFERROR(ROUND(AVERAGEIF(L96:N103,\"<>0\",L96:N103),0),\"-\")","v":"-"}]
[null,null,null,"○","Se basan en la estimación del tamaño y los datos de evaluación de riesgos",null,null,null,null,null,null,{"$f":"IF(ISBLANK(G96),0,1)","v":0},{"$f":"IF(ISBLANK(H96),0,3)","v":0},{"$f":"IF(ISBLANK(I96),0,5)","v":0}]
[null,null,null,"○","Se han desarrollado para los TS en toda su diversidad (género, edad, tipología) ",null,null,null,null,null,null,0,0,0]
[null,null,null,"○","Incluyen especificaciones a nivel nacional y regional ",null,null,null,null,null,null,0,0,0]
[null,null,null,"○","Incluyen los logros ya alcanzados y los logros que se espera alcanzar al final ",null,null,null,null,null,null,0,0,0]
[null,null,null,"○","Se han desarrollado en colaboración con implementadores y redes de trabajadores sexuales para garantizar que sean realistas",null,null,null,null,null,null,0,0,0]
[null,null,null,"○","Están en línea con los presupuestos y los acuerdos formales con los implementadores a nivel local",null,null,null,null,null,null,0,0,0]
[null,null,null,"○","Están divididos por edad y sexo",null,null,null,null,null,null,0,0,0]
[null,null,null,"○","Los objetivos del Fondo mundial para la lucha contra el VIH/SIDA, la tuberculosis y la malaria y del Plan de Emergencia del Presidente de los Estados Unidos para el Alivio del Sida (PEPFAR) se refieren a las estimaciones de tamaño y objetivos nacionales",null,null,null,null,null,null,0,0,0]
[null,null,"Acuerdo de implementación "]
[null,null,"Elemento","Criterios",null,"N/A","Ausente","Presente pero no óptimo","Presente y funcionando bien","Promedio del elemento","Comentarios (si procede)"]
[null,null,"Mantener una plataforma de acceso ","Hay una plataforma de acceso que promueve los esfuerzos coordinados de la comunidad y y de los servicios sanitarios, y que:",null,null,null,null,null,{"$f":"O106","v":"-"},null,null,null,null,{"$f":"IFERROR(ROUND(AVERAGEIF(L107:N115,\"<>0\",L107:N115),0),\"-\")","v":"-"}]
[null,null,null,"○","Genera confianza en toda la comunidad a través de los trabajadores de asistencia social entre iguales ",null,null,null,null,null,null,{"$f":"IF(ISBLANK(G107),0,1)","v":0},{"$f":"IF(ISBLANK(H107),0,3)","v":0},{"$f":"IF(ISBLANK(I107),0,5)","v":0}]
[null,null,null,"○","Llega a un gran número de TS, y fomenta su aceptación, fidelización y participación activa en el programa",null,null,null,null,null,null,0,0,0]
[null,null,null,"○","Fomenta la captación y fidelización de TS",null,null,null,null,null,null,0,0,0]
[null,null,null,"○","Fomenta la participación activa de TS",null,null,null,null,null,null,0,0,0]
[null,null,"Estructura de gestión","Se ha definido el proceso de estructura de gestión, y:  ",null,null,null,null,null,{"$f":"O111","v":"-"},null,null,null,null,{"$f":"IFERROR(ROUND(AVERAGEIF(L112:N120,\"<>0\",L112:N120),0),\"-\")","v":"-"}]
[null,null,null,"○","Existen unos términos de referencia (TR) claros que describen los roles y responsabilidades de cada puesto, incluidos los del personal de instalaciones y a nivel comunitario",null,null,null,null,null,null,{"$f":"IF(ISBLANK(G112),0,1)","v":0},{"$f":"IF(ISBLANK(H112),0,3)","v":0},{"$f":"IF(ISBLANK(I112),0,5)","v":0}]
[null,null,null,"○","Hay una ratio adecuada entre trabajadores de asistencia social entre iguales y miembros de la comunidad",null,null,null,null,null,null,0,0,0]
[null,null,null,"○","Hay unas directrices para reclutar, retener, evaluar y promover el trabajo de asistencia social entre iguales ",null,null,null,null,null,null,0,0,0]
[null,null,null,"○","Todas las personas que trabajan en el proyecto reciben remuneración ",null,null,null,null,null,null,0,0,0]
[null,null,null,"○","Los supervisores entre pares garantizan el adecuado seguimiento de los trabajadores de asistencia social entre iguales (TASEI)",null,null,null,null,null,null,0,0,0]
[null,null,null,"○","Se ha definido una estrategia de promoción y un plan de progresión de carrera para los TASEI y los profesionales de la comunicación para el cambio conductual y social (CCCS) ",null,null,null,null,null,null,0,0,0]
[null,null,null,"○","Se ha establecido un mecanismo formal de referencias ",null,null,null,null,null,null,0,0,0]
[null,null,null,"○","Los sitios de destino están equipados para recibir servicios (los sitios de destino son los puntos en los que se proporcionarán servicios, como clínicas, hospitales, centros comunitarios, etc.)",null,null,null,null,null,null,0,0,0]
[null,null,null,"○","La microplanificación se utiliza para priorizar y gestionar el alcance, y para identificar a los beneficiarios que están más en riesgo",null,null,null,null,null,null,0,0,0]
[null,null,"Flujo de datos ","Se han definido flujos de datos para cada nivel, y:",null,null,null,null,null,{"$f":"O121","v":"-"},null,null,null,null,{"$f":"IFERROR(ROUND(AVERAGEIF(L122:N127,\"<>0\",L122:N127),0),\"-\")","v":"-"}]
[null,null,null,"○","Se han desarrollado y probado los sistemas de datos ",null,null,null,null,null,null,{"$f":"IF(ISBLANK(G122),0,1)","v":0},{"$f":"IF(ISBLANK(H122),0,3)","v":0},{"$f":"IF(ISBLANK(I122),0,5)","v":0}]
[null,null,null,"○","Se han definido claramente los indicadores estándar para el seguimiento del programa de PC",null,null,null,null,null,null,0,0,0]
[null,null,null,"○","Se han desarrollado herramientas estandarizadas para generar informes ",null,null,null,null,null,null,0,0,0]
[null,null,null,"○","Los datos programáticos se comunican y revisan mensualmente ",null,null,null,null,null,null,0,0,0]
[null,null,null,"○","Hay sistemas para mantener la confidencialidad de los datos ",null,null,null,null,null,null,0,0,0]
[null,null,null,"○","Se ha desarrollado un sistema de códigos de identificación únicos (CIU) ",null,null,null,null,null,null,0,0,0]
[null,null,"Trabajadores de asistencia social entre iguales (TASEI)","El programa emplea trabajadores de asistencia social entre iguales de manera efectiva:\n",null,null,null,null,null,{"$f":"O128","v":"-"},null,null,null,null,{"$f":"IFERROR(ROUND(AVERAGEIF(L129:N138,\"<>0\",L129:N138),0),\"-\")","v":"-"}]
[null,null,null,"○","Los TASEI forman parte de la comunidad de TS a la que representan o sirven",null,null,null,null,null,null,{"$f":"IF(ISBLANK(G129),0,1)","v":0},{"$f":"IF(ISBLANK(H129),0,3)","v":0},{"$f":"IF(ISBLANK(I129),0,5)","v":0}]
[null,null,null,"○","Hay un plan de formación disponible, que es apropiado e incluye formación sanitaria para actualizar el conocimiento de los TASEI sobre las necesidades específicas de los TS",null,null,null,null,null,null,0,0,0]
[null,null,null,"○","Los TASEI tienen formación en microplanificación y divulgación",null,null,null,null,null,null,0,0,0]
[null,null,null,"○","Existe un plan de formación por niveles para mejorar las habilidades, la confianza y el liderazgo de los TASEI ",null,null,null,null,null,null,0,0,0]
[null,null,null,"○","Hay herramientas de divulgación disponibles para movilizar a la comunidad y promover el acceso a los servicios",null,null,null,null,null,null,0,0,0]
[null,null,null,"○","Las herramientas de microplanificación se utilizan para adecuar la prestación de servicios en función de las necesidades de la persona o el sitio ",null,null,null,null,null,null,0,0,0]
[null,null,null,"○","Se emplean mensajes y materiales de comunicación basados en la evidencia",null,null,null,null,null,null,0,0,0]
[null,null,null,"○","Se proporciona información sobre los servicios disponibles, y se facilita a los beneficiarios el acceso a los servicios ",null,null,null,null,null,null,0,0,0]
[null,null,null,"○","Se ofrece asesoramiento y apoyo emocional para llevar a cabo el tratamiento",null,null,null,null,null,null,0,0,0]
[null,null,null,"○","En el caso de los TS, los TASEI tienen en cuenta la edad, la rutina diaria y las influencias de terceros como gerentes de prostíbulos y proxenetas a la hora de planificar actividades divulgativas ",null,null,null,null,null,null,0,0,0]
[null,null,"Participación significativa de las comunidades afectadas en el liderazgo y la coordinación","Las organizaciones o redes lideradas por TS tienen representación en el órgano nacional de coordinación o en el grupo técnico de trabajo técnico para TS, y:\n\n",null,null,null,null,null,{"$f":"O139","v":"-"},null,null,null,null,{"$f":"IFERROR(ROUND(AVERAGEIF(L140:N143,\"<>0\",L140:N143),0),\"-\")","v":"-"}]
[null,null,null,"○","Se reúnen regularmente",null,null,null,null,null,null,{"$f":"IF(ISBLANK(G140),0,1)","v":0},{"$f":"IF(ISBLANK(H140),0,3)","v":0},{"$f":"IF(ISBLANK(I140),0,5)","v":0}]
[null,null,null,"○","Participan activamente en los procesos de toma de decisiones en igualdad de condiciones ",null,null,null,null,null,null,0,0,0]
[null,null,null,"○","Reciben apoyo para solicitar feedback e informar sobre las decisiones clave a los grupos que representan",null,null,null,null,null,null,0,0,0]
[null,null,null,"○","Se ha comprobado que se tienen en cuenta los comentarios, las aportaciones y el asesoramiento experto que las organizaciones o redes lideradas por TS proporcionan",null,null,null,null,null,null,0,0,0]
[null,null,"Prestación de servicios"]
[null,null,"Elemento","Criterios",null,"N/A","Ausente","Presente pero no óptimo","Presente y funcionando bien","Promedio del elemento","Comentarios (si procede)"]
[null,null,"Servicios accesibles","Los servicios son accesibles para las comunidades de TS, y:",null,null,null,null,null,{"$f":"O146","v":"-"},null,null,null,null,{"$f":"IFERROR(ROUND(AVERAGEIF(L147:L147:N154,\"<>0\",L147:N154),0),\"-\")","v":"-"}]
[null,null,null,"○","Están diseñados en base a la investigación formativa realizada en la evaluación de necesidades ",null,null,null,null,null,null,{"$f":"IF(ISBLANK(G147),0,1)","v":0},{"$f":"IF(ISBLANK(H147),0,3)","v":0},{"$f":"IF(ISBLANK(I147),0,5)","v":0}]
[null,null,null,"○","Están convenientemente ubicados en o cerca de centros de actividad",null,null,null,null,null,null,0,0,0]
[null,null,null,"○","Incluyen servicios móviles en caso de ser necesarios ",null,null,null,null,null,null,0,0,0]
[null,null,null,"○","Los horarios son adecuadas para los TS a los que se dirigen ",null,null,null,null,null,null,0,0,0]
[null,null,null,"○","Están integrados con el sistema nacional de salud y ofrecen paquetes de atención integral ",null,null,null,null,null,null,0,0,0]
[null,null,null,"○","Ofrecen servicios y productos de forma constante",null,null,null,null,null,null,0,0,0]
[null,null,null,null,"El suministro de productos es ininterrumpido",null,null,null,null,null,null,0,0,0]
[null,null,null,"○","Implican un cambio de tareas para permitir aumentar la capacidad de los proveedores de atención médica",null,null,null,null,null,null,0,0,0]
[null,null,"Servicios aceptables","Los servicios son aceptables para la comunidad de TS:",null,null,null,null,null,{"$f":"O155","v":"-"},null,null,null,null,{"$f":"IFERROR(ROUND(AVERAGEIF(L156:N161,\"<>0\",L156:N161),0),\"-\")","v":"-"}]
[null,null,null,"○","Son confidenciales y voluntarios ",null,null,null,null,null,null,{"$f":"IF(ISBLANK(G156),0,1)","v":0},{"$f":"IF(ISBLANK(H156),0,3)","v":0},{"$f":"IF(ISBLANK(I156),0,5)","v":0}]
[null,null,null,"○","Los proveedores de asistencia son sensibles a las necesidades de los TS, y no juzgan ni estigmatizan",null,null,null,null,null,null,0,0,0]
[null,null,null,"○","Los proveedores de asistencia están capacitados para poder ofrecer un paquete completo de intervención específica para TS ",null,null,null,null,null,null,0,0,0]
[null,null,null,null,null,null,null,null,null,null,null,0,0,0]
[null,null,null,"○","Crean un entorno seguro y de apoyo ",null,null,null,null,null,null,0,0,0]
[null,null,null,"○","Las intervenciones online se llevan a cabo de manera ética, respetando la privacidad y confidencialidad de los clientes",null,null,null,null,null,null,0,0,0]
[null,null,"Servicios adaptados/apropiados","Los paquete de servicios y la prestación de los mismos están adaptados a las necesidades específicas de los TS en toda su diversidad:",null,null,null,null,null,{"$f":"O162","v":"-"},null,null,null,null,{"$f":"IFERROR(ROUND(AVERAGEIF(L163:N168,\"<>0\",L163:N168),0),\"-\")","v":"-"}]
[null,null,null,"○","El paquete de servicios para mujeres TS incluye todos los servicios de SSR (salud sexual y reproductiva) pertinentes, de acuerdo con las directrices de la OMS ",null,null,null,null,null,null,{"$f":"IF(ISBLANK(G163),0,1)","v":0},{"$f":"IF(ISBLANK(H163),0,3)","v":0},{"$f":"IF(ISBLANK(I163),0,5)","v":0}]
[null,null,null,"○","Amplia disponibilidad para la iniciación comunitaria de la TAR para los TS que viven con el VIH",null,null,null,null,null,null,0,0,0]
[null,null,null,"○","Los servicios se proporcionan de una manera accesible para los TS jóvenes en toda su diversidad",null,null,null,null,null,null,0,0,0]
[null,null,null,"○","Se dispone de servicios adicionales (o se puede conectar con ellos) en función de las necesidades específicas de los TS",null,null,null,null,null,null,0,0,0]
[null,null,null,"○","Los servicios se prestan de forma adecuada y respetando la confidencialidad y privacidad de los clientes ",null,null,null,null,null,null,0,0,0]
[null,null,null,"○","Los servicios abordan las vulnerabilidades cruzadas de adolescentes y jóvenes que se dedican al trabajo sexual",null,null,null,null,null,null,0,0,0]
[null,null,"Intervenciones clínicas"]
[null,null,"Elemento","Criterios",null,"N/A","Ausente","Presente pero no óptimo","Presente y funcionando bien","Promedio del elemento","Comentarios (si procede)"]
[null,null,"Preservativos y lubricante ","Todos los TS tienen acceso a preservativos, lubricantes, demostraciones de uso y otros servicios de salud reproductiva, y:\nTodos los TS tienen acceso a preservativos, lubricantes, demostraciones de uso y otros servicios de salud reproductiva, y:\n",null,null,null,null,null,{"$f":"O171","v":"-"},null,null,null,null,{"$f":"IFERROR(ROUND(AVERAGEIF(L172:N174,\"<>0\",L172:N174),0),\"-\")","v":"-"}]
[null,null,null,"○","Se distribuyen ampliamente y en cantidad suficiente",null,null,null,null,null,null,{"$f":"IF(ISBLANK(G172),0,1)","v":0},{"$f":"IF(ISBLANK(H172),0,3)","v":0},{"$f":"IF(ISBLANK(I172),0,5)","v":0}]
[null,null,null,"○","Son fácilmente accesibles en los centros de actividad",null,null,null,null,null,null,0,0,0]
[null,null,null,"○","Los TASEI realizan regularmente demostraciones de uso  ",null,null,null,null,null,null,0,0,0]
[null,null,"Servicios de pruebas de VIH ","Hay servicios de pruebas de VIH disponibles para TS, y:\n",null,null,null,null,null,{"$f":"O175","v":"-"},null,null,null,null,{"$f":"IFERROR(ROUND(AVERAGEIF(L176:N187,\"<>0\",L176:N187),0),\"-\")","v":"-"}]
[null,null,null,"○","Se han implementado las directrices consolidadas de la OMS sobre los servicios de pruebas del VIH",null,null,null,null,null,null,{"$f":"IF(ISBLANK(G176),0,1)","v":0},{"$f":"IF(ISBLANK(H176),0,3)","v":0},{"$f":"IF(ISBLANK(I176),0,5)","v":0}]
[null,null,null,"○","Todas las pruebas son voluntarias y confidenciales (con consentimiento informado)",null,null,null,null,null,null,0,0,0]
[null,null,null,"○","Se proporciona asesoramiento antes y después de la prueba ",null,null,null,null,null,null,0,0,0]
[null,null,null,"○","Se ofrece tratamiento independientemente del recuento de CD4",null,null,null,null,null,null,0,0,0]
[null,null,null,"○","Tras el diagnóstico, a las personas con VIH se les pone en contacto con las redes de atención y apoyo ",null,null,null,null,null,null,0,0,0]
[null,null,null,"○","El acceso a los servicios se distribuye equitativamente entre toda la comunidad de TS",null,null,null,null,null,null,0,0,0]
[null,null,null,"○","Se han implementado intervenciones para garantizar la adherencia de los TS que viven con el VIH",null,null,null,null,null,null,0,0,0]
[null,null,null,"○","Se realiza un seguimiento regular de la asistencia de los TS que viven con el VIH a los servicios de atención sanitaria ",null,null,null,null,null,null,0,0,0]
[null,null,null,"○","Se pone en contacto con los servicios de prevención de las comorbilidades",null,null,null,null,null,null,0,0,0]
[null,null,null,"○","Se pone en contacto con los servicios de  tratamiento de las comorbilidades",null,null,null,null,null,null,0,0,0]
[null,null,null,"○","Se dispone de pruebas de carga viral y son accesibles para los TS que viven con el VIH",null,null,null,null,null,null,0,0,0]
[null,null,null,"○","Se dispone de pruebas de CD4 y son accesibles para los TS que viven con el VIH",null,null,null,null,null,null,0,0,0]
[null,null,"Profilaxis preexposición (PrEP)","Se dispone de una PrEP oral (TDF) para los TS en riesgo sustancial de infección por VIH ",null,null,null,null,null,{"$f":"O188","v":"-"},null,null,null,null,{"$f":"IFERROR(ROUND(AVERAGEIF(L189:N193,\"<>0\",L189:N193),0),\"-\")","v":"-"}]
[null,null,null,"○","Hay un suministro ininterrumpido de profilaxis preexposición ",null,null,null,null,null,null,{"$f":"IF(ISBLANK(G189),0,1)","v":0},{"$f":"IF(ISBLANK(H189),0,3)","v":0},{"$f":"IF(ISBLANK(I189),0,5)","v":0}]
[null,null,null,"○","Las pruebas de VIH se llevan a cabo antes de iniciar la profilaxis preexposición para asegurarse de que la persona sea negativa en VIH ",null,null,null,null,null,null,0,0,0]
[null,null,null,"○","Se ofrece como parte de un enfoque integral de prevención combinada ",null,null,null,null,null,null,0,0,0]
[null,null,null,"○","Los enfoques combinados incluyen el apoyo a la adherencia, la repetición periódica de la prueba del VIH y el asesoramiento para los usuarios de profilaxis preexposición ",null,null,null,null,null,null,0,0,0]
[null,null,null,"○","La profilaxis preexposición se ofrece basándose en la evaluación individual y no en el grupo de riesgo, a fin de promover una cobertura más amplia ",null,null,null,null,null,null,0,0,0]
[null,null,"Prevención, detección y tratamiento de infecciones de transmisión sexual","Se dispone de pruebas y exámenes de detección de infecciones de transmisión sexual para TS, y:",null,null,null,null,null,{"$f":"O194","v":"-"},null,null,null,null,{"$f":"IFERROR(ROUND(AVERAGEIF(L195:N200,\"<>0\",L195:N200),0),\"-\")","v":"-"}]
[null,null,null,"○","Todas las pruebas son voluntarias y confidenciales ",null,null,null,null,null,null,{"$f":"IF(ISBLANK(G195),0,1)","v":0},{"$f":"IF(ISBLANK(H195),0,3)","v":0},{"$f":"IF(ISBLANK(I195),0,5)","v":0}]
[null,null,null,"○","El tratamiento se administra inmediatamente y el suministro es ininterrumpido ",null,null,null,null,null,null,0,0,0]
[null,null,null,"○","El acceso a los servicios se distribuye equitativamente entre la comunidad y los TS",null,null,null,null,null,null,0,0,0]
[null,null,null,"○","Se lleva a cabo periódicamente un cribado y tratamiento para casos asintomáticos ",null,null,null,null,null,null,0,0,0]
[null,null,null,"○","Se realiza periódicamente un tratamiento por presunción de ITS para casos asintomáticos en áreas de alta prevalencia (>15 % de prevalencia de la gonorrea y/o clamidia) (esp. TS)",null,null,null,null,null,null,0,0,0]
[null,null,null,"○","En ausencia de pruebas de laboratorio, se realiza una gestión sindrómica de los casos sintomáticos de acuerdo con las directrices nacionales de gestión de las ITS",null,null,null,null,null,null,0,0,0]
[null,null,"Planificación familiar y SSR","Todos los TS tienen acceso a servicios de planificación familiar y de salud sexual y reproductiva (SSR), y:",null,null,null,null,null,{"$f":"O201","v":"-"},null,null,null,null,{"$f":"IFERROR(ROUND(AVERAGEIF(L202:N205,\"<>0\",L202:N205),0),\"-\")","v":"-"}]
[null,null,null,"○","Incluyen exámenes de detección del cáncer cervical",null,null,null,null,null,null,{"$f":"IF(ISBLANK(G202),0,1)","v":0},{"$f":"IF(ISBLANK(H202),0,3)","v":0},{"$f":"IF(ISBLANK(I202),0,5)","v":0}]
[null,null,null,"○","Se distribuyen ampliamente y en cantidad suficiente",null,null,null,null,null,null,0,0,0]
[null,null,null,"○","Son fácilmente accesibles en los centros de actividad",null,null,null,null,null,null,0,0,0]
[null,null,null,"○","Se programan talleres demostrativos en los centros de actividad de forma regular",null,null,null,null,null,null,0,0,0]
[null,null,"Atención postviolencia "," Todos los TS tienen acceso a atención postviolencia, y:\n",null,null,null,null,null,{"$f":"O206","v":"-"},null,null,null,null,{"$f":"IFERROR(ROUND(AVERAGEIF(L207:N210,\"<>0\",L207:N210),0),\"-\")","v":"-"}]
[null,null,null,"○","Se dispone de servicios de apoyo y asesoramiento",null,null,null,null,null,null,{"$f":"IF(ISBLANK(G207),0,1)","v":0},{"$f":"IF(ISBLANK(H207),0,3)","v":0},{"$f":"IF(ISBLANK(I207),0,5)","v":0}]
[null,null,null,"○","Se dispone de servicios como la profilaxis postexposición",null,null,null,null,null,null,0,0,0]
[null,null,null,"○","En casos de violencia sexual, se realizan pruebas de ITS (sífilis, clamidia, gonorrea) de forma rutinaria",null,null,null,null,null,null,0,0,0]
[null,null,null,"○","Se ha establecido un mecanismo de referencia a servicios integrales de atención a la violencia de género (VG) en función de la necesidad",null,null,null,null,null,null,0,0,0]
[null,null,"Prevención, detección y tratamiento de la tuberculosis (TB)","Se dispone de servicios de prevención, detección y tratamiento de la TB para TS, y:\n",null,null,null,null,null,{"$f":"O211","v":"-"},null,null,null,null,{"$f":"IFERROR(ROUND(AVERAGEIF(L212:N220,\"<>0\",L212:N220),0),\"-\")","v":"-"}]
[null,null,null,"○","Prevención: terapia preventiva con isoniacida administrada a personas VIH+ junto con terapia antirretroviral (TAR), control de la infección por tuberculosis y rastreo de contactos en entornos compartidos ",null,null,null,null,null,null,{"$f":"IF(ISBLANK(G212),0,1)","v":0},{"$f":"IF(ISBLANK(H212),0,3)","v":0},{"$f":"IF(ISBLANK(I212),0,5)","v":0}]
[null,null,null,"○","Diagnóstico: uso de Xpert MTB/RIF como prueba diagnóstica inicial",null,null,null,null,null,null,0,0,0]
[null,null,null,"○","Todas las pruebas son voluntarias y confidenciales ",null,null,null,null,null,null,0,0,0]
[null,null,null,"○","Se han implementado intervenciones de apoyo de adherencia para garantizar que se completa el ciclo de antibióticos",null,null,null,null,null,null,0,0,0]
[null,null,null,"○","El tratamiento se administra inmediatamente y el suministro es ininterrumpido",null,null,null,null,null,null,0,0,0]
[null,null,null,"○","El acceso a los servicios se distribuye equitativamente entre la comunidad y los TS",null,null,null,null,null,null,0,0,0]
[null,null,null,"○","Se ofrece el contacto con los servicios de pruebas del VIH y de asesoramiento para casos positivos ",null,null,null,null,null,null,0,0,0]
[null,null,null,"○","Se están haciendo esfuerzos para tratar la TB latente en TS",null,null,null,null,null,null,0,0,0]
[null,null,null,"○","El tratamiento de la TB no tiene contraindicaciones por consumo de alcohol o drogas ni por trastornos de salud mental",null,null,null,null,null,null,0,0,0]
[null,null,"Prevención de la transmisión perinatal (PTP)","Todos los TS tienen acceso a información, tratamiento y atención adecuados para prevenir la transmisión perinatal del VIH",null,null,null,null,null,{"$f":"O221","v":"-"},null,null,null,null,{"$f":"IFERROR(ROUND(AVERAGEIF(L222:N222,\"<>0\",L222:N222),0),\"-\")","v":"-"}]
[null,null,null,"○","Se proporciona información a TS que están embarazadas o desean concebir  ",null,null,null,null,null,null,{"$f":"IF(ISBLANK(G222),0,1)","v":0},{"$f":"IF(ISBLANK(H222),0,3)","v":0},{"$f":"IF(ISBLANK(I222),0,5)","v":0}]
[null,null,"Prevención, vacunación, detección y tratamiento de la hepatitis viral","Se dispone de servicios de prevención de la hepatitis vírica tipo B y C, vacunación, detección y tratamiento que satisfacen las necesidades específicas de los TS, y:\n",null,null,null,null,null,{"$f":"O223","v":"-"},null,null,null,null,{"$f":"IFERROR(ROUND(AVERAGEIF(L224:N229,\"<>0\",L224:N229),0),\"-\")","v":"-"}]
[null,null,null,"○","Todas las pruebas son voluntarias y confidenciales ",null,null,null,null,null,null,{"$f":"IF(ISBLANK(G224),0,1)","v":0},{"$f":"IF(ISBLANK(H224),0,3)","v":0},{"$f":"IF(ISBLANK(I224),0,5)","v":0}]
[null,null,null,"○","El tratamiento se administra inmediatamente y el suministro es ininterrumpido ",null,null,null,null,null,null,0,0,0]
[null,null,null,"○","El acceso a los servicios se distribuye equitativamente entre toda la comunidad de TS",null,null,null,null,null,null,0,0,0]
[null,null,null,"○","Se llevan a cabo campañas de vacunación contra la hepatitis B y C de forma rutinaria ",null,null,null,null,null,null,0,0,0]
[null,null,null,null,"Se dispone de regímenes de vacunación contra la hepatitis B y C que son rápidos, estándar y de fácil acceso. ",null,null,null,null,null,null,0,0,0]
[null,null,null,"○","Se han asignado recursos para la prevención, vacunación, detección y tratamiento de la hepatitis vírica",null,null,null,null,null,null,0,0,0]
[null,null,"Detección y tratamiento para el consumo de drogas y alcohol","Se ofrecen servicios de detección y tratamiento del consumo problemático de alcohol y drogas de forma rutinaria en los centros de atención sanitaria, los centros de actividad locales y las unidades de asistencia móviles ",null,null,null,null,null,{"$f":"O230","v":"-"},null,null,null,null,{"$f":"IFERROR(ROUND(AVERAGEIF(L231:N234,\"<>0\",L231:N234),0),\"-\")","v":"-"}]
[null,null,null,"○","Los trabajadores de asistencia social entre iguales ponen en contacto a las personas en riesgo con los servicios de detección y tratamiento ",null,null,null,null,null,null,{"$f":"IF(ISBLANK(G231),0,1)","v":0},{"$f":"IF(ISBLANK(H231),0,3)","v":0},{"$f":"IF(ISBLANK(I231),0,5)","v":0}]
[null,null,null,"○","Las personas están en contacto con terapeutas, organizaciones y grupos de apoyo adecuados",null,null,null,null,null,null,0,0,0]
[null,null,null,"○","El tratamiento se inicia inmediatamente si la persona consiente de forma voluntaria",null,null,null,null,null,null,0,0,0]
[null,null,null,"○","Se ofrece derivación a otros servicios (salud mental, apoyo psicosocial) en caso de necesidad",null,null,null,null,null,null,0,0,0]
[null,null,"Atención a la salud mental","La atención a la salud mental es accesible y se proporciona de forma continuada a los TS que viven con el VIH, e incluye:",null,null,null,null,null,{"$f":"O235","v":"-"},null,null,null,null,{"$f":"IFERROR(ROUND(AVERAGEIF(L236:N237,\"<>0\",L236:N237),0),\"-\")","v":"-"}]
[null,null,null,"○","Evaluaciones rutinarias de trastornos de salud mental (especialmente depresión y estrés psicosocial), según lo dispuesto en el Programa de Acción Global en Salud Mental de la OMS (mhGAP)",null,null,null,null,null,null,{"$f":"IF(ISBLANK(G236),0,1)","v":0},{"$f":"IF(ISBLANK(H236),0,3)","v":0},{"$f":"IF(ISBLANK(I236),0,5)","v":0}]
[null,null,null,"○","Asesoramiento tras obtener resultados positivos en la prueba del VIH para detectar el riesgo de suicidio, depresión y otros problemas de salud mental ",null,null,null,null,null,null,0,0,0]
[null,null,"COVID-19 ","Prestación de servicios a las personas para los programas dirigidos a TS durante la COVID-19 \n",null,null,null,null,null,{"$f":"O238","v":"-"},null,null,null,null,{"$f":"IFERROR(ROUND(AVERAGEIF(L239:N240,\"<>0\",L239:N240),0),\"-\")","v":"-"}]
[null,null,null,"○","Hay programas para promover la vacunación contra la COVID-19 entre los TS y realizar un seguimiento",null,null,null,null,null,null,{"$f":"IF(ISBLANK(G239),0,1)","v":0},{"$f":"IF(ISBLANK(H239),0,3)","v":0},{"$f":"IF(ISBLANK(I239),0,5)","v":0}]
[null,null,null,"○","Comunicación constante y acceso seguro a modelos de prestación de servicios fuera de instalaciones sanitarias (ej.: centros comunitarios, a domicilio, teleasistencia, etc.) durante los picos de la COVID-19 para evitar la interrupción del servicio",null,null,null,null,null,null,0,0,0]
[null,null,"Intervenciones conductuales"]
[null,null,"Elemento","Criterios",null,"N/A","Ausente","Presente pero no óptimo","Presente y funcionando bien","Promedio del elemento","Comentarios (si procede)"]
[null,null,"Comunicación para el cambio conductual y social (CCCS)","Las actividades de CCCS están incluidas en el programa para el grupo de población clave Están:",null,null,null,null,null,{"$f":"O243","v":"-"},null,null,null,null,{"$f":"IFERROR(ROUND(AVERAGEIF(L244:N248,\"<>0\",L244:N248),0),\"-\")","v":"-"}]
[null,null,null,"○","Bien planificadas y adecuadamente presupuestadas",null,null,null,null,null,null,{"$f":"IF(ISBLANK(G244),0,1)","v":0},{"$f":"IF(ISBLANK(H244),0,3)","v":0},{"$f":"IF(ISBLANK(I244),0,5)","v":0}]
[null,null,null,"○","Basadas en la evidencia ",null,null,null,null,null,null,0,0,0]
[null,null,null,"○","Diseñadas y probadas por los miembros de la población de TS",null,null,null,null,null,null,0,0,0]
[null,null,null,"○","Implementadas por organizaciones y personas con experiencia y formación en intervenciones de CCCS",null,null,null,null,null,null,0,0,0]
[null,null,null,"○","Incluidas en los planes y actividades de seguimiento y evaluación",null,null,null,null,null,null,0,0,0]
[null,null,"Intervenciones estructurales"]
[null,null,"Elemento","Se han implementado programas para abordar la violencia contra los TS de manera consistente, e incluyen:",null,"N/A","Ausente","Presente pero no óptimo","Presente y funcionando bien","Promedio del elemento","Comentarios (si procede)"]
[null,null,"Prevención y respuesta a la violencia",null,null,null,null,null,null,{"$f":"O251","v":"-"},null,null,null,null,{"$f":"IFERROR(ROUND(AVERAGEIF(L252:N258,\"<>0\",L252:N258),0),\"-\")","v":"-"}]
[null,null,null,"○","Información sobre seguridad",null,null,null,null,null,null,{"$f":"IF(ISBLANK(G252),0,1)","v":0},{"$f":"IF(ISBLANK(H252),0,3)","v":0},{"$f":"IF(ISBLANK(I252),0,5)","v":0}]
[null,null,null,"○","Espacios seguros en los centros de acogida (CA)",null,null,null,null,null,null,0,0,0]
[null,null,null,"○","Mejora de la seguridad en el lugar de trabajo",null,null,null,null,null,null,0,0,0]
[null,null,null,"○","Estandarización de los mecanismos de seguimiento y de comunicación de los casos de violencia, que van más allá del contacto con la Policía y pueden incluir el asesoramiento jurídico que ofrecen las organizaciones de TS",null,null,null,null,null,null,0,0,0]
[null,null,null,"○","Formación integral de la Policía y los trabajadores sociales para que sean sensibles a las necesidades de los TS",null,null,null,null,null,null,0,0,0]
[null,null,null,"○","Planes de respuesta a la violencia desarrollados por la comunidad",null,null,null,null,null,null,0,0,0]
[null,null,null,"○","En contacto con servicios de asistencia jurídica",null,null,null,null,null,null,0,0,0]
[null,null,"Reducción del estigma y la discriminación ","Se han realizado acciones para reducir el estigma y la discriminación contra los TS, incluyendo:  ",null,null,null,null,null,{"$f":"O259","v":"-"},null,null,null,null,{"$f":"IFERROR(ROUND(AVERAGEIF(L260:N266,\"<>0\",L260:N266),0),\"-\")","v":"-"}]
[null,null,null,"○","Promoción de políticas antidiscriminatorias y de protección para todos los TS",null,null,null,null,null,null,{"$f":"IF(ISBLANK(G260),0,1)","v":0},{"$f":"IF(ISBLANK(H260),0,3)","v":0},{"$f":"IF(ISBLANK(I260),0,5)","v":0}]
[null,null,null,"○","Programas, dentro y fuera del sector sanitario, que instituyan políticas y códigos de conducta en contra de la estigmatización y la discriminación",null,null,null,null,null,null,0,0,0]
[null,null,null,"○","Seguimiento y supervisión rutinarios para garantizar la implementación y el mantenimiento de los estándares de servicio",null,null,null,null,null,null,0,0,0]
[null,null,null,"○","Realización de campañas de reducción del estigma",null,null,null,null,null,null,0,0,0]
[null,null,null,"○","Sensibilización, educación y participación continua de líderes religiosos y comunitarios, fuerzas del orden y profesionales sanitarios ",null,null,null,null,null,null,0,0,0]
[null,null,null,"○","Establecimiento de mecanismos eficaces para permitir la denuncia anónima de incidentes estigmatizantes o discriminatorios en el acceso a la atención sanitaria  ",null,null,null,null,null,null,0,0,0]
[null,null,null,"○","Apoyo y seguimiento para los TS que denuncian incidentes estigmatizantes o discriminatorios",null,null,null,null,null,null,0,0,0]
[null,null,"Servicios jurídicos relacionados con el VIH ","Se ofrecen servicios jurídicos relacionados con el VIH para satisfacer las necesidades de las poblaciones de TS, y:  ",null,null,null,null,null,{"$f":"O267","v":"-"},null,null,null,null,{"$f":"IFERROR(ROUND(AVERAGEIF(L268:N270,\"<>0\",L268:N270),0),\"-\")","v":"-"}]
[null,null,null,"○","Existen alternativas para la resolución de conflictos",null,null,null,null,null,null,{"$f":"IF(ISBLANK(G268),0,1)","v":0},{"$f":"IF(ISBLANK(H268),0,3)","v":0},{"$f":"IF(ISBLANK(I268),0,5)","v":0}]
[null,null,null,"○","Se dispone de acceso fácil a información legal información de contacto con profesionales u organizaciones",null,null,null,null,null,null,0,0,0]
[null,null,null,"○","Se dispone de acceso fácil a asesoramiento y representación legal",null,null,null,null,null,null,0,0,0]
[null,null,"Seguimiento de la aplicación de la ley","Se realiza un seguimiento regular de la implementación de políticas, regulaciones y leyes para evaluar su impacto en los TS.",null,null,null,null,null,{"$f":"O271","v":"-"},null,0,0,0,{"$f":"IFERROR(ROUND(AVERAGEIF(L271:N271,\"<>0\",L271:N271),0),\"-\")","v":"-"}]
[null,null,"Conocimientos legales («Conoce tus derechos»)","Se ofrece una formación integral sobre legislación y derechos a los TS ",null,null,null,null,null,"-",null,null,null,null,{"$f":"IFERROR(ROUND(AVERAGEIF(L273:N274,\"<>0\",L273:N274),0),\"-\")","v":"-"}]
[null,null,null,"○","Se han diseñado y comunicado estrategias efectivas para que los TS interactúen con la Policía",null,null,null,null,null,null,{"$f":"IF(ISBLANK(G273),0,1)","v":0},{"$f":"IF(ISBLANK(H273),0,3)","v":0},{"$f":"IF(ISBLANK(I273),0,5)","v":0}]
[null,null,null,"○","Los TS conocen la ley y sus derechos, y pueden reclamar y defender sus necesidades en el contexto del VIH",null,null,null,null,null,null,0,0,0]
[null,null,"Sensibilización de los legisladores y las fuerzas del orden ","Formación continua y exhaustiva de los encargados de redactar y hacer cumplir las leyes para garantizar que estén adecuadamente sensibilizados con los TS. La formación incluye: \n",null,null,null,null,null,{"$f":"O275","v":"-"},null,null,null,null,{"$f":"IFERROR(ROUND(AVERAGEIF(L276:N279,\"<>0\",L276:N279),0),\"-\")","v":"-"}]
[null,null,null,"○","Un programa integral de formación para la sensibilización adaptado al contexto del país en cuestión",null,null,null,null,null,null,{"$f":"IF(ISBLANK(G276),0,1)","v":0},{"$f":"IF(ISBLANK(H276),0,3)","v":0},{"$f":"IF(ISBLANK(I276),0,5)","v":0}]
[null,null,null,"○","Facilitadores con la formación adecuada",null,null,null,null,null,null,0,0,0]
[null,null,null,"○","Participación de los TS",null,null,null,null,null,null,0,0,0]
[null,null,null,"○","Comentarios de los participantes",null,null,null,null,null,null,0,0,0]
[null,null,"Formación para proveedores de atención sanitaria sobre derechos humanos y ética médica relacionada con el VIH ","Un programa integral de formación para la sensibilización adaptado al contexto del país en cuestión",null,null,null,null,null,{"$f":"O280","v":"-"},null,null,null,null,{"$f":"IFERROR(ROUND(AVERAGEIF(L281:N283,\"<>0\",L281:N283),0),\"-\")","v":"-"}]
[null,null,null,"○","Facilitadores con la formación adecuada",null,null,null,null,null,null,{"$f":"IF(ISBLANK(G281),0,1)","v":0},{"$f":"IF(ISBLANK(H281),0,3)","v":0},{"$f":"IF(ISBLANK(I281),0,5)","v":0}]
[null,null,null,"○","Participación de los TS",null,null,null,null,null,null,0,0,0]
[null,null,null,"○","Comentarios de los participantes",null,null,null,null,null,null,0,0,0]
[null,null,"Reducción de la discriminación contra las mujeres en el contexto del VIH ","Se han implementado programas para abordar la desigualdad de género y la violencia de género en el contexto del VIH, y contemplan: ",null,null,null,null,null,{"$f":"O284","v":"-"},null,null,null,null,{"$f":"IFERROR(ROUND(AVERAGEIF(L285:N291,\"<>0\",L285:N291),0),\"-\")","v":"-"}]
[null,null,null,"○","La desigualdad de mujeres y jóvenes en la toma de decisiones sexuales y reproductivas ",null,null,null,null,null,null,{"$f":"IF(ISBLANK(G285),0,1)","v":0},{"$f":"IF(ISBLANK(H285),0,3)","v":0},{"$f":"IF(ISBLANK(I285),0,5)","v":0}]
[null,null,null,"○","Las barreras de género para acceder a la atención sanitaria ",null,null,null,null,null,null,0,0,0]
[null,null,null,"○","La discriminación en en los procesos de herencia, adquisición de propiedades, matrimonio, divorcio y custodia ",null,null,null,null,null,null,0,0,0]
[null,null,null,"○","La violencia sexual y de otro tipo ",null,null,null,null,null,null,0,0,0]
[null,null,null,"○","La falta de igualdad de acceso a oportunidades educativas y económicas ",null,null,null,null,null,null,0,0,0]
[null,null,null,"○","La falta de apoyo a los cuidadores en los hogares afectados por el VIH ",null,null,null,null,null,null,0,0,0]
[null,null,null,"○","El complemento con programas dirigidos a hombres y niños que abordan las actitudes y costumbres de género perjudiciales ",null,null,null,null,null,null,0,0,0]
[null,null,"Espacios seguros / centros de acogida","Se han establecido espacios seguros/centros de acogida para la comunidad de TS:",null,null,null,null,null,{"$f":"O292","v":"-"},null,null,null,null,{"$f":"IFERROR(ROUND(AVERAGEIF(L293:N301,\"<>0\",L293:N301),0),\"-\")","v":"-"}]
[null,null,null,"○","Funcionan como el lugar principal de interacción entre la comunidad y el programa",null,null,null,null,null,null,{"$f":"IF(ISBLANK(G293),0,1)","v":0},{"$f":"IF(ISBLANK(H293),0,3)","v":0},{"$f":"IF(ISBLANK(I293),0,5)","v":0}]
[null,null,null,"○","Proporcionan una plataforma para la movilización, la formación y la organización de iniciativas para la comunidad",null,null,null,null,null,null,0,0,0]
[null,null,null,"○","Comparte información sobre eventos, actividades y servicios relevantes para la comunidad",null,null,null,null,null,null,0,0,0]
[null,null,null,"○","Cuentan con información y materiales divulgativos y educativos que son accesibles y fáciles de usar",null,null,null,null,null,null,0,0,0]
[null,null,null,"○","Proporcionan servicios psicosociales y apoyo ",null,null,null,null,null,null,0,0,0]
[null,null,null,"○","Tienen preservativos y lubricante a disposición de los usuarios",null,null,null,null,null,null,0,0,0]
[null,null,null,"○","Los utilizan los trabajadores de asistencia social entre iguales para revisar su trabajo y planificar la divulgación",null,null,null,null,null,null,0,0,0]
[null,null,null,"○","Establecidos en colaboración con los TS para determinar la ubicación, el horario y los servicios que ofrecen",null,null,null,null,null,null,0,0,0]
[null,null,null,"○","Pone a disposición o permite contactar con otros programas de intervención fuera del ámbito sanitario",null,null,null,null,null,null,0,0,0]
[null,null,"Comités comunitarios","Se han creado comités comunitarios de TS, y:",null,null,null,null,null,{"$f":"O302","v":"-"},null,null,null,null,{"$f":"IFERROR(ROUND(AVERAGEIF(L303:N312,\"<>0\",L303:N312),0),\"-\")","v":"-"}]
[null,null,null,"○","Se pueden formar libre y fácilmente",null,null,null,null,null,null,{"$f":"IF(ISBLANK(G303),0,1)","v":0},{"$f":"IF(ISBLANK(H303),0,3)","v":0},{"$f":"IF(ISBLANK(I303),0,5)","v":0}]
[null,null,null,"○","Se reúnen con regularidad (mínimo una vez al mes) y utilizan una plantilla de acta de la reunión para registrar la información que se debate ",null,null,null,null,null,null,0,0,0]
[null,null,null,"○","Revisan la prestación de servicios, solucionan problemas, realizan un seguimiento de los cambios, promueven la comprensión y la rendición de cuentas y abordar los problemas generales de la comunidad",null,null,null,null,null,null,0,0,0]
[null,null,null,"○","Eligen a los miembros de la comunidad de TS y renuevan los cargos anualmente",null,null,null,null,null,null,0,0,0]
[null,null,null,"○","Eligen a un portavoz de la comunidad de TS para que actúe como intermediario del programa ",null,null,null,null,null,null,0,0,0]
[null,null,null,"○","Invitan a los trabajadores de las organizaciones pertinentes a formar parte del comité o a asistir a las reuniones",null,null,null,null,null,null,0,0,0]
[null,null,null,"○","Comparten regularmente sus aportaciones sobre el programa para mejorar la calidad de los servicios ofrecidos",null,null,null,null,null,null,0,0,0]
[null,null,null,"○","Respetan la confidencialidad ",null,null,null,null,null,null,0,0,0]
[null,null,null,"○","No permiten que los miembros de la organización implementadora voten en las reuniones",null,null,null,null,null,null,0,0,0]
[null,null,null,"○","Incluyen a los jóvenes de la PC y les ayudan a desarrollar sus capacidades ",null,null,null,null,null,null,0,0,0]
[null,null,"Seguimiento del programa"]
[null,null,"Elemento","Criterios",null,"N/A","Ausente","Presente pero no óptimo","Presente y funcionando bien","Promedio del elemento","Comentarios (si procede)"]
[null,null,"Seguimiento rutinario","Los indicadores del programa se definen y se comunican:",null,null,null,null,null,{"$f":"O315","v":"-"},null,null,null,null,{"$f":"IFERROR(ROUND(AVERAGEIF(L316:N322,\"<>0\",L316:N322),0),\"-\")","v":"-"}]
[null,null,null,"○"," De forma rutinaria (mensual, trimestral)",null,null,null,null,null,null,{"$f":"IF(ISBLANK(G316),0,1)","v":0},{"$f":"IF(ISBLANK(H316),0,3)","v":0},{"$f":"IF(ISBLANK(I316),0,5)","v":0}]
[null,null,null,"○","Al completo (los datos son consistentes y no falta información)",null,null,null,null,null,null,0,0,0]
[null,null,null,"○","A todos los niveles (región, provincia, etc.)",null,null,null,null,null,null,0,0,0]
[null,null,null,"○"," Por parte de todos los colaboradores en la implementación",null,null,null,null,null,null,0,0,0]
[null,null,null,"○","A través de la plataforma DHIS2/EMR",null,null,null,null,null,null,0,0,0]
[null,null,null,"○","Seguimiento de datos individuales por parte de los colaboradores en la implementación ",null,null,null,null,null,null,0,0,0]
[null,null,null,"○","Datos revisados de forma rutinaria por todos los interesados (gobierno, sociedad civil, comunidad de TS, colaboradores en la implementación, donantes), y utilizados para mejorar los programas ",null,null,null,null,null,null,0,0,0]
[null,null,"Seguimiento para la rendición de cuentas dirigido por la comunidad  ","Incorporación del seguimiento dirigido por la comunidad (SDC) en las plataformas nacionales de seguimiento:",null,null,null,null,null,{"$f":"O323","v":"-"},null,null,null,null,{"$f":"IFERROR(ROUND(AVERAGEIF(L324:N330,\"<>0\",L324:N330),0),\"-\")","v":"-"}]
[null,null,null,"○","Se ha aceptado e integrado el SDC en los procesos de toma de decisiones y negociaciones con las autoridades locales, con los financiadores y con otros simpatizantes ",null,null,null,null,null,null,{"$f":"IF(ISBLANK(G324),0,1)","v":0},{"$f":"IF(ISBLANK(H324),0,3)","v":0},{"$f":"IF(ISBLANK(I324),0,5)","v":0}]
[null,null,null,"○","Funciona como un mecanismo comunitario de vigilancia y rendición de cuentas",null,null,null,null,null,null,0,0,0]
[null,null,null,"○","Los supervisores entre pares están cualificados y recopilan y analizan de forma sistemática y rutinaria datos cualitativos y cuantitativos sobre la prestación de servicios relacionados con el VIH",null,null,null,null,null,null,0,0,0]
[null,null,null,"○","Hay equipos de seguimiento dirigidos por la comunidad para responder a los déficits en la prestación de servicios relacionados con el VIH dentro de las comunidades",null,null,null,null,null,null,0,0,0]
[null,null,null,"○","Cuenta con la colaboración de diferentes redes de personas que viven con el VIH (PVVIH) y de las organizaciones de las comunidades afectadas",null,null,null,null,null,null,0,0,0]
[null,null,null,null,"Los recopiladores de datos y otros miembros de la comunidad que participan en las tareas de seguimiento reciben una remuneración conforme a las prácticas y estándares nacionales",null,null,null,null,null,null,0,0,0]
[null,null,null,"○","Las comunidades de TS reciben formación y apoyo para evaluar las instalaciones sanitarias y celebrar asambleas públicas para la rendición de cuentas ",null,null,null,null,null,null,0,0,0]
[null,null,"Seguimiento del sistema de referencias","Existen sistemas de seguimiento de las referencias y derivaciones, e incluyen:",null,null,null,null,null,{"$f":"O331","v":"-"},null,null,null,null,{"$f":"IFERROR(ROUND(AVERAGEIF(L332:N336,\"<>0\",L332:N336),0),\"-\")","v":"-"}]
[null,null,null,"○","Una herramienta para hacer referencias o derivaciones que esté ampliamente disponible y que incluya unos procedimientos estándar claros",null,null,null,null,null,null,{"$f":"IF(ISBLANK(G332),0,1)","v":0},{"$f":"IF(ISBLANK(H332),0,3)","v":0},{"$f":"IF(ISBLANK(I332),0,5)","v":0}]
[null,null,null,"○","Un directorio de contactos de referencia tanto en las instalaciones como en las organizaciones dirigidas por pares ",null,null,null,null,null,null,0,0,0]
[null,null,null,"○","Un registro de los resultados ",null,null,null,null,null,null,0,0,0]
[null,null,null,"○","Mecanismos para que los pacientes y proveedores de servicios (referidos o derivados) envíen sus comentarios y aportaciones ",null,null,null,null,null,null,0,0,0]
[null,null,null,"○","Informes de referencias (mensuales) para supervisar la eficacia del sistema de derivaciones",null,null,null,null,null,null,0,0,0]
[null,null,"Evaluación de la calidad","Se han definido sistemas para recopilar datos sobre la calidad del programa y sus indicadores relacionados, y:\n",null,null,null,null,null,{"$f":"O337","v":"-"},null,null,null,null,{"$f":"IFERROR(ROUND(AVERAGEIF(L338:N341,\"<>0\",L338:N341),0),\"-\")","v":"-"}]
[null,null,null,"○","Se recopilan datos precisos",null,null,null,null,null,null,{"$f":"IF(ISBLANK(G338),0,1)","v":0},{"$f":"IF(ISBLANK(H338),0,3)","v":0},{"$f":"IF(ISBLANK(I338),0,5)","v":0}]
[null,null,null,"○","Se actúa en base a los datos recopilados ",null,null,null,null,null,null,0,0,0]
[null,null,null,"○","Los mecanismos de feedback permiten a los TS evaluar los servicios recibidos, a fin de realizar un seguimiento de la calidad del programa",null,null,null,null,null,null,0,0,0]
[null,null,null,"○","Los datos se auditan con regularidad ",null,null,null,null,null,null,0,0,0]
[null,null,"Vigilancia ","La vigilancia permite una descripción precisa del contexto y los resultados/impacto del programa para TS:\n",null,null,null,null,null,{"$f":"O342","v":"-"},null,null,null,null,{"$f":"IFERROR(ROUND(AVERAGEIF(L343:N346,\"<>0\",L343:N346),0),\"-\")","v":"-"}]
[null,null,null,"○","Los resultados del estudio se utilizan para tomar decisiones informadas y llevar a cabo acciones correctivas ",null,null,null,null,null,null,{"$f":"IF(ISBLANK(G343),0,1)","v":0},{"$f":"IF(ISBLANK(H343),0,3)","v":0},{"$f":"IF(ISBLANK(I343),0,5)","v":0}]
[null,null,null,"○","Implica el análisis y la interpretación de los datos en intervalos regulares ",null,null,null,null,null,null,0,0,0]
[null,null,null,"○","Implica la difusión regular de información para satisfacer las necesidades a nivel local, regional y nacional ",null,null,null,null,null,null,0,0,0]
[null,null,null,"○","Incluye encuestas biológicas y conductuales, encuestas de vigilancia centinela y otros estudios de investigación que analizan los indicadores para TS ",null,null,null,null,null,null,0,0,0]
[null,null,"Datos para la toma de decisiones","La unidad nacional de programación, seguimiento y evaluación del Ministerio de Sanidad, o el organismo equivalente, supervisa/coordina la recopilación de datos de seguimiento, encuestas y vigilancia, y:",null,null,null,null,null,{"$f":"O347","v":"-"},null,null,null,null,{"$f":"IFERROR(ROUND(AVERAGEIF(L348:N355,\"<>0\",L348:N355),0),\"-\")","v":"-"}]
[null,null,null,"○","Comparte datos con el grupo técnico de trabajo técnico de TS",null,null,null,null,null,null,{"$f":"IF(ISBLANK(G348),0,1)","v":0},{"$f":"IF(ISBLANK(H348),0,3)","v":0},{"$f":"IF(ISBLANK(I348),0,5)","v":0}]
[null,null,null,"○","El grupo técnico de trabajo de TS analiza los datos del programa trimestralmente e identifica las áreas en las que hay que aplicar acciones correctivas",null,null,null,null,null,null,0,0,0]
[null,null,null,"○","El grupo técnico de trabajo de TS ayuda en el desarrollo de estrategias para solucionar la falta de información o servicios ",null,null,null,null,null,null,0,0,0]
[null,null,null,"○","Se recopilan datos de buena calidad (válidos, fiables, consistentes, precisos, oportunos y relevantes) para satisfacer la mayoría de las necesidades de información, y se analizan aquellas áreas que requieran datos adicionales ",null,null,null,null,null,null,0,0,0]
[null,null,null,"○","Los datos se utilizan de manera consistente y adecuada para tomar decisiones informadas ",null,null,null,null,null,null,0,0,0]
[null,null,null,"○","Se han eliminado los duplicados en los datos entre los colaboradores en la implementación y, si queda algún duplicado, es mínimo",null,null,null,null,null,null,0,0,0]
[null,null,null,"○","Los datos se recopilan de forma centralizada, pero se pueden separar por localidad, sexo y edad",null,null,null,null,null,null,0,0,0]
[null,null,null,"○","El programa proporciona datos para que el grupo técnico de trabajo los revise",null,null,null,null,null,null,0,0,0]
[null,null,"Uso de un código de identificación único para el seguimiento de los programas","Se utiliza este sistema para supervisar el rendimiento del programa y comprobar que funcione adecuadamente",null,null,null,null,null,{"$f":"O356","v":"-"},null,null,null,null,{"$f":"IFERROR(ROUND(AVERAGEIF(L357:N360,\"<>0\",L357:N360),0),\"-\")","v":"-"}]
[null,null,null,"○","Un mismo país puede utilizar varios códigos de identificación únicos, pero están armonizados",null,null,null,null,null,null,{"$f":"IF(ISBLANK(G357),0,1)","v":0},{"$f":"IF(ISBLANK(H357),0,3)","v":0},{"$f":"IF(ISBLANK(I357),0,5)","v":0}]
[null,null,null,"○","El programa nacional utiliza datos agregados con códigos de identificación únicos",null,null,null,null,null,null,0,0,0]
[null,null,null,"○","El código de identificación único es capaz de distinguir el contacto/alcance para evitar la duplicación ",null,null,null,null,null,null,0,0,0]
[null,null,null,"○","El código de identificación único es electrónico",null,null,null,null,null,null,0,0,0]
[null,null,"Supervisión presupuestaria","Se integra el seguimiento del rendimiento financiero y no financiero del programa para TS, y se generan informes rutinarios: ",null,null,null,null,null,{"$f":"O361","v":"-"},null,null,null,null,{"$f":"IFERROR(ROUND(AVERAGEIF(L362:N364,\"<>0\",L362:N364),0),\"-\")","v":"-"}]
[null,null,null,"○","Se puede acceder fácilmente a los datos sobre los gastos en intervenciones relacionadas con los TS a nivel nacional ",null,null,null,null,null,null,{"$f":"IF(ISBLANK(G362),0,1)","v":0},{"$f":"IF(ISBLANK(H362),0,3)","v":0},{"$f":"IF(ISBLANK(I362),0,5)","v":0}]
[null,null,null,"○","Existen mecanismos de rendición de cuentas analizar los gastos que no hayan agotado el presupuesto ",null,null,null,null,null,null,0,0,0]
[null,null,null,"○","Los datos financieros y no financieros se utilizan para medir la relación calidad-precio",null,null,null,null,null,null,0,0,0]
[null,null,null,null,null,null,null,null,null,{"$f":"O365","v":0},null,0,0,0]
[null,null,"Resultados del programa"]
[null,null,"Resultados e indicadores"]
[null,null,"Elemento","Criterios",null,"N/A","Sin seguimiento ","Objetivo no cumplido o no en proceso ","Objetivo cumplido o en proceso","Promedio del elemento","Comentarios (si procede)"]
[null,null,"Estimaciones disponibles del tamaño de la población de TS",null,null,null,null,null,null,{"$f":"O369","v":"-"},null,{"$f":"IF(ISBLANK(G369),0,1)","v":0},{"$f":"IF(ISBLANK(H369),0,3)","v":0},{"$f":"IF(ISBLANK(I369),0,5)","v":0},{"$f":"IFERROR(ROUND(AVERAGEIF(L369:N369,\"<>0\",L369:N369),0),\"-\")","v":"-"}]
[null,null,"La estrategia de prevención incluye elementos clave del paquete de prevención para TS",null,null,null,null,null,null,"-",null,0,0,0,"-"]
[null,null,"TS que viven con el VIH y conocen su estado serológico (objetivo del 90 %)",null,null,null,null,null,null,"-",null,0,0,0,"-"]
[null,null,"TS que viven con el VIH en terapia antirretroviral (objetivo del 90 %)",null,null,null,null,null,null,"-",null,0,0,0,"-"]
[null,null,"TS que viven con el VIH y que tienen cargas virales indetectables (objetivo del 90 %)",null,null,null,null,null,null,"-",null,0,0,0,"-"]
[null,null,"TS que han utilizado preservativo con el cliente más reciente (objetivo del 80 %)",null,null,null,null,null,null,"-",null,0,0,0,"-"]
[null,null,"TS que han recibido un mínimo de 2 intervenciones de prevención del VIH en los últimos 3 meses",null,null,null,null,null,null,"-",null,0,0,0,"-"]
[null,null,"% de TS que no buscaron atención sanitaria debido al estigma y a la discriminación ",null,null,null,null,null,null,"-",null,0,0,0,"-"]
[null,null,"Criminalización del trabajo sexual",null,null,null,null,null,null,"-",null,0,0,0,"-"]
[]
[null,null,null,null,null,null,null,null,null,null,null,null,{"$f":"COUNTIF(O6:O377,\"-\")","v":65}]
[null,null,null,null,null,null,null,null,null,null,null,null,{"$f":"COUNTIF(O6:O377,\">0\")","v":0}]
[null,null,null,null,null,null,null,null,null,null,null,"Sheet Completion",{"$f":"M380/(M379+M380)","v":0},{"$f":"1-M381","v":1}]

{"sheet":"HSH ","index":5,"n_rows":369,"n_cols":16,"rows_kept":369,"cut":false,"hidden":false,"merged":[[69,2,72,2],[75,3,75,4],[76,2,83,2],[76,3,76,4],[84,2,90,2],[84,3,84,4],[91,3,91,4],[158,9,164,9],[167,9,170,9],[69,9,72,9],[76,9,83,9],[84,9,90,9],[91,9,94,9],[95,9,103,9],[106,9,110,9],[111,9,120,9],[121,9,127,9],[128,9,136,9],[111,2,120,2],[121,2,127,2],[128,2,136,2],[91,2,94,2],[95,2,103,2],[95,3,95,4],[171,9,183,9],[184,9,189,9],[137,9,141,9],[144,9,151,9],[152,9,157,9],[152,2,157,2],[158,2,164,2],[166,3,166,4],[167,3,167,4],[171,3,171,4],[184,3,184,4],[137,3,137,4],[143,3,143,4],[144,3,144,4],[152,3,152,4],[158,3,158,4],[137,2,141,2],[144,2,151,2],[190,9,196,9],[197,9,201,9],[202,9,206,9],[207,9,216,9],[217,9,223,9],[224,9,228,9],[229,9,231,9],[232,9,234,9],[235,9,237,9],[240,9,245,9],[248,9,255,9],[256,9,263,9],[264,9,267,9],[269,9,271,9],[272,9,276,9],[277,9,280,9],[281,9,290,9],[345,9,349,9],[350,9,353,9],[291,9,301,9],[304,9,311,9],[312,9,319,9],[320,9,325,9],[326,9,330,9],[331,9,335,9],[336,9,344,9],[1,2,1,9],[3,2,3,8],[4,3,4,4],[5,2,15,2],[5,3,5,4],[16,2,21,2],[22,2,28,2],[22,9,28,9],[43,3,43,4],[49,3,49,4],[16,3,16,4],[22,3,22,4],[29,2,35,2],[29,3,29,4],[36,2,42,2],[36,3,36,4],[43,2,47,2],[61,3,61,4],[63,3,63,4],[5,9,15,9],[16,9,21,9],[29,9,35,9],[36,9,42,9],[43,9,47,9],[50,9,53,9],[54,9,58,9],[61,9,62,9],[63,9,66,9],[50,2,53,2],[50,3,50,4],[54,2,58,2],[54,3,54,4],[60,3,60,4],[61,2,62,2],[63,2,66,2],[217,2,223,2],[224,2,228,2],[229,2,231,2],[232,2,234,2],[235,2,237,2],[240,2,245,2],[248,2,255,2],[304,2,311,2],[312,2,319,2],[326,2,330,2],[331,2,335,2],[336,2,344,2],[345,2,349,2],[350,2,353,2],[256,2,263,2],[264,2,267,2],[269,2,271,2],[272,2,276,2],[277,2,280,2],[281,2,290,2],[291,2,301,2],[105,3,105,4],[106,2,110,2],[106,3,106,4],[111,3,111,4],[121,3,121,4],[128,3,128,4],[190,3,190,4],[197,3,197,4],[202,3,202,4],[167,2,170,2],[171,2,183,2],[184,2,189,2],[190,2,196,2],[197,2,201,2],[202,2,206,2],[207,2,216,2],[207,3,207,4],[217,3,217,4],[224,3,224,4],[235,3,235,4],[239,3,239,4],[240,3,240,4],[247,3,247,4],[359,2,359,4],[303,3,303,4],[304,3,304,4],[312,3,312,4],[320,3,320,4],[326,3,326,4],[248,3,248,4],[256,3,256,4],[264,3,264,4],[268,3,268,4],[269,3,269,4],[272,3,272,4],[277,3,277,4],[281,3,281,4],[291,3,291,4],[320,2,325,2],[360,2,360,4],[361,2,361,4],[362,2,362,4],[363,2,363,4],[364,2,364,4],[365,2,365,4],[331,3,331,4],[336,3,336,4],[345,3,345,4],[350,3,350,4],[356,3,356,4],[357,2,357,4],[358,2,358,4]]}
[]
[null,null,"Gestión del programa"]
[]
[null,null,"Liderazgo y coordinación"]
[null,null,"Elemento","Criterios",null,"N/A","Ausente","Presente pero no óptimo","Presente y funcionando bien","Promedio del elemento","Comentarios (si procede) ","Absent","Present","Optimal","Average","Sustainability Single Figure"]
[null,null,"Estrategia nacional para grupos de población clave","Los HSH están incluidos en la estrategia nacional para grupos de población clave y en la estrategia nacional de prevención del VIH:",null,null,null,null,null,{"$f":"O6","v":"-"},null,null,null,null,{"$f":"IFERROR(ROUND(AVERAGEIF(L7:N16,\"<>0\",L7:N16),0),\"-\")","v":"-"}]
[null,null,null,"○","Los hombres que tienen sexo con hombres (HSH) han participado en el desarrollo del plan estratégico ",null,null,null,null,null,null,{"$f":"IF(ISBLANK(G7),0,1)","v":0},{"$f":"IF(ISBLANK(H7),0,3)","v":0},{"$f":"IF(ISBLANK(I7),0,5)","v":0}]
[null,null,null,"○","Se han definido claramente las metas y objetivos del programa para HSH ",null,null,null,null,null,null,0,0,0]
[null,null,null,"○","Los HSH se han definido claramente según las directrices de la Organización Mundial de la Salud (OMS) ",null,null,null,null,null,null,0,0,0]
[null,null,null,"○","El plan reconoce las vulnerabilidades específicas de los hombres que tienen sexo con hombres (HSH) debidas al género y la edad",null,null,null,null,null,null,0,0,0]
[null,null,null,"○","Se ha articulado un modelo lógico claro o una teoría del cambio  ",null,null,null,null,null,null,0,0,0]
[null,null,null,"○","El plan incluye un paquete integral de intervenciones y actividades basadas en la evidencia, en línea con las herramientas de implementación de los HSH. Estas herramientas, identificadas por los HSH, incluyen intervenciones del sector no sanitario (e.j.: empoderamiento comunitario, abordaje de la violencia, reducción del estigma, etc.) y se han adaptado para abordar las vulnerabilidades específicas.",null,null,null,null,null,null,0,0,0]
[null,null,null,"○","Se ha definido claramente el proceso de escalado y se han asignado responsabilidades ",null,null,null,null,null,null,0,0,0]
[null,null,null,"○","Hay planes de financiación ",null,null,null,null,null,null,0,0,0]
[null,null,null,"○","Se ha definido un marco de seguimiento y evaluación con indicadores y objetivos básicos",null,null,null,null,null,null,0,0,0]
[null,null,null,"○","Se ha definido claramente el mecanismo de implementación",null,null,null,null,null,null,0,0,0]
[null,null,"Rendición de cuentas","El departamento/ministerio responsable del éxito del programa para HSH ejerce un sólido liderazgo/autoridad:",null,null,null,null,null,{"$f":"O17","v":"-"},null,null,null,null,{"$f":"IFERROR(ROUND(AVERAGEIF(L18:N22,\"<>0\",L18:N22),0),\"-\")","v":"-"}]
[null,null,null,"○","Todos los proyectos para HSH del país envían información sobre indicadores clave de forma rutinaria al gobierno, tanto central como regional, e incluyen indicadores comunes ",null,null,null,null,null,null,{"$f":"IF(ISBLANK(G18),0,1)","v":0},{"$f":"IF(ISBLANK(H18),0,3)","v":0},{"$f":"IF(ISBLANK(I18),0,5)","v":0}]
[null,null,null,"○","Al generar informes, los datos se anonimizan y protegen para proteger a los HSH ",null,null,null,null,null,null,0,0,0]
[null,null,null,"○","Se realizan revisiones programáticas periódicas utilizando datos programáticos",null,null,null,null,null,null,0,0,0]
[null,null,null,"○","El ministerio responsable del programa asiste a las reuniones de coordinación pertinentes",null,null,null,null,null,null,0,0,0]
[null,null,null,"○","El grupo técnico de trabajo (GTT) para este grupo de población clave (con representantes de los HSH) participa para asegurar la rendición de cuentas ",null,null,null,null,null,null,0,0,0]
[null,null,"Grupo técnico de trabajo técnico para HSH","Se ha establecido un grupo técnico de trabajo tanto a nivel nacional como regional (los países pueden tener GTT para los grupos de población clave en los que los HSH estén incluidos), y:",null,null,null,null,null,{"$f":"O23","v":"-"},null,null,null,null,{"$f":"IFERROR(ROUND(AVERAGEIF(L24:N29,\"<>0\",L24:N29),0),\"-\")","v":"-"}]
[null,null,null,"○","Se reúnen regularmente ",null,null,null,null,null,null,{"$f":"IF(ISBLANK(G24),0,1)","v":0},{"$f":"IF(ISBLANK(H24),0,3)","v":0},{"$f":"IF(ISBLANK(I24),0,5)","v":0}]
[null,null,null,"○","El grupo técnico de trabajo está completo e incluye a las organizaciones de la sociedad civil (OSC), a los colaboradores en la implementación y a miembros del colectivo de HSH",null,null,null,null,null,null,0,0,0]
[null,null,null,"○","El grupo técnico de trabajo dispone de mecanismos de comunicación para garantizar la coordinación ",null,null,null,null,null,null,0,0,0]
[null,null,null,"○","El grupo técnico de trabajo dispone de mecanismos de comunicación para garantizar la coordinación",null,null,null,null,null,null,0,0,0]
[null,null,null,"○","Tiene una lista de términos de referencia o ha definido su ámbito de trabajo ",null,null,null,null,null,null,0,0,0]
[null,null,null,"○","Los miembros del colectivo de HSH están incluidos",null,null,null,null,null,null,0,0,0]
[null,null,"Coordinación de los organismos interesados","Existen mecanismos para garantizar que se logre una buena coordinación a todos los niveles, y que sea coherente con: ",null,null,null,null,null,{"$f":"O30","v":"-"},null,null,null,null,{"$f":"IFERROR(ROUND(AVERAGEIF(L31:N36,\"<>0\",L31:N36),0),\"-\")","v":"-"}]
[null,null,null,"○","Socios financiadores (a nivel nacional)",null,null,null,null,null,null,{"$f":"IF(ISBLANK(G31),0,1)","v":0},{"$f":"IF(ISBLANK(H31),0,3)","v":0},{"$f":"IF(ISBLANK(I31),0,5)","v":0}]
[null,null,null,"○","Programas locales con iniciativas más grandes a nivel nacional ",null,null,null,null,null,null,0,0,0]
[null,null,null,"○","Comunidades de HSH",null,null,null,null,null,null,0,0,0]
[null,null,null,"○","Colaboradores en la implementación ",null,null,null,null,null,null,0,0,0]
[null,null,null,"○","El Ministerio de Sanidad o las Consejerías de Sanidad (a nivel nacional y regional)",null,null,null,null,null,null,0,0,0]
[null,null,null,"○","Se ha logrado una coordinación multisectorial con otros ministerios/departamentos (por ejemplo, de finanzas o de las fuerzas del orden)",null,null,null,null,null,null,0,0,0]
[null,null,"Desarrollo de capacidades y plan de asistencia técnica","Existe un plan de asistencia técnica que: ",null,null,null,null,null,{"$f":"O37","v":"-"},null,null,null,null,{"$f":"IFERROR(ROUND(AVERAGEIF(L38:N43,\"<>0\",L38:N43),0),\"-\")","v":"-"}]
[null,null,null,"○","Se ha desarrollado sobre la base de algunas evaluaciones ",null,null,null,null,null,null,{"$f":"IF(ISBLANK(G38),0,1)","v":0},{"$f":"IF(ISBLANK(H38),0,3)","v":0},{"$f":"IF(ISBLANK(I38),0,5)","v":0},null,{"$f":"IF(MAX(L38:N38)=0,\"\",MAX(L38:N38))","v":""}]
[null,null,null,"○","Involucra a expertos técnicos nacionales e internacionales, incluyéndose el desarrollo de capacidades y la asistencia técnica entre pares",null,null,null,null,null,null,0,0,0,null,""]
[null,null,null,"○","Ha priorizado los componentes del programa y las cuestiones políticas ",null,null,null,null,null,null,0,0,0,null,""]
[null,null,null,"○","Facilita el establecimiento y fortalecimiento de redes de implementadores ",null,null,null,null,null,null,0,0,0,null,""]
[null,null,null,"○","Identifica las lagunas y desarrolla solicitudes consolidadas de asistencia en los casos en los que falta experiencia a nivel nacional ",null,null,null,null,null,null,0,0,0,null,""]
[null,null,null,"○","Facilita el desarrollo de la capacidad de la comunidad de HSH para hacerse cargo de los programas para HSH ",null,null,null,null,null,null,0,0,0,null,""]
[null,null,"Plan de sostenibilidad y hoja de ruta de la transición","Se ha establecido un plan completo de sostenibilidad y una hoja de ruta de la transición, que dan cuenta de la transición de intervenciones apoyadas por donantes a intervenciones con apoyo a nivel nacional. Incluyen datos como:  Tiene en cuenta los recursos, incluyendo: ",null,null,null,null,null,{"$f":"O44","v":"-"},null,null,null,null,{"$f":"IFERROR(ROUND(AVERAGEIF(L45:N48,\"<>0\",L45:N48),0),\"-\")","v":"-"},""]
[null,null,null,"○","Cálculo de costes unitarios para el grupo de población clave",null,null,null,null,null,null,{"$f":"IF(ISBLANK(G45),0,1)","v":0},{"$f":"IF(ISBLANK(H45),0,3)","v":0},{"$f":"IF(ISBLANK(I45),0,5)","v":0},null,""]
[null,null,null,"○"," Análisis general de la financiación para el grupo de población clave",null,null,null,null,null,null,0,0,0,null,""]
[null,null,null,"○","Planificación hacia la integración de los servicios para PC en la atención primaria",null,null,null,null,null,null,0,0,0]
[null,null,null,"○","Consideraciones sobre las necesidades financieras, de infraestructura y de personal",null,null,null,null,null,null,0,0,0,null,{"$f":"IF(MAX(L48:N48)=0,\"\",MAX(L48:N48))","v":""}]
[null,null,"Leyes, políticas y normativas"]
[null,null,"Elemento","Criterios",null,"N/A","Ausente","Presente pero no óptimo","Presente y funcionando bien","Promedio del elemento","Comentarios (si procede) "]
[null,null,"Leyes y políticas "," Hay políticas en vigor que promueven activamente el buen funcionamiento del programa para HSH: ",null,null,null,null,null,{"$f":"O51","v":"-"},null,null,null,null,{"$f":"IFERROR(ROUND(AVERAGEIF(L52:N54,\"<>0\",L52:N54),0),\"-\")","v":"-"}]
[null,null,null,"○","Existen políticas en vigor que promueven activamente el acceso de los HSH a los servicios, incluyendo a los HSH adolescentes",null,null,null,null,null,null,{"$f":"IF(ISBLANK(G52),0,1)","v":0},{"$f":"IF(ISBLANK(H52),0,3)","v":0},{"$f":"IF(ISBLANK(I52),0,5)","v":0}]
[null,null,null,"○","Existen políticas que apoyan la despenalización de los HSH",null,null,null,null,null,null,0,0,0]
[null,null,null,"○","Existen políticas para reducir el estigma, la discriminación y la violencia contra los HSH ",null,null,null,null,null,null,0,0,0]
[null,null,"Directrices","Existen unas directrices que detallan claramente los pasos a seguir para implementar con éxito el programa para HSH:",null,null,null,null,null,{"$f":"O55","v":"-"},null,0,0,0,{"$f":"IFERROR(ROUND(AVERAGEIF(L56:N59,\"<>0\",L56:N59),0),\"-\")","v":"-"}]
[null,null,null,"○","Existen directrices a nivel nacional para cada una de las intervenciones y servicios, tanto sanitarios como estructurales, y abordan las necesidades específicas de los HSH",null,null,null,null,null,null,0,0,0]
[null,null,null,"○","Estas directrices se desarrollaron en colaboración con los HSH",null,null,null,null,null,null,0,0,0]
[null,null,null,"○","Las directrices a nivel nacional para los servicios de pruebas del VIH y de infecciones de transmisión sexual, de profilaxis preexposición y de suministro de preservativos tienen en cuenta las necesidades y prioridades de los HSH ",null,null,null,null,null,null,0,0,0]
[null,null,null,"○","Se han incorporado las medidas de prevención y control de la infección por COVID-19 a todas las estrategias, planes y directrices de prevención del VIH/dirigidas a HSH",null,null,null,null,null,null,0,0,0]
[null,null,"Financiación"]
[null,null,"Elemento","Criterios",null,"N/A","Ausente","Presente pero no óptimo","Presente y funcionando bien","Promedio del elemento","Comentarios (si procede) "]
[null,null,"Cálculo de costes ","Hay un presupuesto nacional:",null,null,null,null,null,{"$f":"O62","v":"-"},null,null,null,null,{"$f":"IFERROR(ROUND(AVERAGEIF(L63:N63,\"<>0\",L63:N63),0),\"-\")","v":"-"}]
[null,null,null,"○","Se ha llevado a cabo un ejercicio de cálculo de costes y el programa nacional es consciente del coste promedio de alcanzar a un HSH con un paquete estándar de servicios, según directrices ",null,null,null,null,null,null,{"$f":"IF(ISBLANK(G63),0,1)","v":0},{"$f":"IF(ISBLANK(H63),0,3)","v":0},{"$f":"IF(ISBLANK(I63),0,5)","v":0}]
[null,null,"Planificación de presupuestos","Hay un proceso de planificación presupuestaria para el programa de HSH y está bien gestionado ",null,null,null,null,null,{"$f":"O64","v":"-"},null,null,null,null,{"$f":"IFERROR(ROUND(AVERAGEIF(L65:N67,\"<>0\",L65:N67),0),\"-\")","v":"-"}]
[null,null,null,"○","Se está realizando una evaluación de los recursos disponibles para tratar de identificar las lagunas y asignar una partida presupuestaria al programa para HSH",null,null,null,null,null,null,{"$f":"IF(ISBLANK(G65),0,1)","v":0},{"$f":"IF(ISBLANK(H65),0,3)","v":0},{"$f":"IF(ISBLANK(I65),0,5)","v":0}]
[null,null,null,"○","Se ha desarrollado una estrategia para eliminar las faltas de financiación",null,null,null,null,null,null,0,0,0]
[null,null,null,"○","Los presupuestos están vinculados a las necesidades de recursos de los planes operativos para las unidades a nivel nacional y regional",null,null,null,null,null,null,0,0,0]
[null,null,"Movilización de recursos y financiación","○","Hay fondos suficientes para abordar las necesidades holísticas del programa",null,null,null,null,{"$f":"O68","v":"-"},null,0,0,0,{"$f":"IFERROR(ROUND(AVERAGEIF(L68:N68,\"<>0\",L68:N68),0),\"-\")","v":"-"},{"$f":"IF(MAX(L68:N68)=0,\"\",MAX(L68:N68))","v":""}]
[null,null,"Recursos nacionales","○","Más del 50 % de los recursos que sustentan el programa (tanto humanos como financieros) son de original nacional",null,null,null,null,"-",null,0,0,0,"-",""]
[null,null,"Contratación social","○","Se han desarrollado y se están implementando mecanismos de contratación social",null,null,null,null,"-",null,0,0,0,{"$f":"IFERROR(ROUND(AVERAGEIF(L70:N73,\"<>0\",L70:N73),0),\"-\")","v":"-"},""]
[null,null,null,"○","La información se hace circular ampliamente para que los socios implementadores locales y las organizaciones lideradas por HSH tengan acceso a financiación",null,null,null,null,null,null,0,0,0,null,""]
[null,null,null,"○","Existe un mecanismo que permite que las organizaciones lideradas por la comunidad reciban financiación",null,null,null,null,null,null,0,0,0]
[null,null,null,"○","Los fondos se conceden a las organizaciones lideradas por la comunidad ",null,null,null,null,null,null,0,0,0]
[null,null,"Implementación del programa"]
[null,null,"Definición de objetivos y planificación"]
[null,null,"Elemento","Criterios",null,"N/A","Ausente","Presente pero no óptimo","Presente y funcionando bien","Promedio del elemento","Comentarios (si procede) "]
[null,null,"Evaluación demográfica (estimación del tamaño de la población y microplanificación)","Se ha realizado una estimación del tamaño de la población y una microplanificación, y:",null,null,null,null,null,{"$f":"O77","v":"-"},null,null,null,null,{"$f":"IFERROR(ROUND(AVERAGEIF(L78:N84,\"<>0\",L78:N84),0),\"-\")","v":"-"}]
[null,null,null,"○","Se han basado en cada lugar (a nivel local, no de país o región)",null,null,null,null,null,null,{"$f":"IF(ISBLANK(G78),0,1)","v":0},{"$f":"IF(ISBLANK(H78),0,3)","v":0},{"$f":"IF(ISBLANK(I78),0,5)","v":0}]
[null,null,null,"○","Garantizan la confidencialidad de los centros de actividad y el anonimato de las personas, y no se comparten datos con las fuerzas del orden",null,null,null,null,null,null,0,0,0]
[null,null,null,"○","Se actualizan anualmente o cada vez que se realiza una encuesta bioconductual",null,null,null,null,null,null,0,0,0]
[null,null,null,"○","Se ha involucrado y contratado a miembros del colectivo de HSH con formación o a redes de HSH para llevar a cabo la estimación del tamaño de la población y la microplanificación",null,null,null,null,null,null,0,0,0]
[null,null,null,"○","Las estimaciones del tamaño de la población son precisas y están actualizadas ",null,null,null,null,null,null,0,0,0]
[null,null,null,"○","La información se utiliza para argumentar la necesidad de intervenciones conductuales, biomédicas y estructurales  ",null,null,null,null,null,null,0,0,0]
[null,null,null,"○","Esta información también se utiliza para estimar la necesidad de fondos y para determinar los objetivos",null,null,null,null,null,null,0,0,0]
[null,null,"Evaluación epidemiológica (encuesta de seroprevalencia y factores de riesgo)","Se dispone de estimaciones de seroprevalencia, y:",null,null,null,null,null,{"$f":"O85","v":"-"},null,null,null,null,{"$f":"IFERROR(ROUND(AVERAGEIF(L86:N91,\"<>0\",L86:N91),0),\"-\")","v":"-"}]
[null,null,null,"○","Se han basado en los estudios de vigilancia recientes o continuos (estimaciones modeladas actualizadas anualmente o datos de encuestas actualizados cada 3-5 años)",null,null,null,null,null,null,{"$f":"IF(ISBLANK(G86),0,1)","v":0},{"$f":"IF(ISBLANK(H86),0,3)","v":0},{"$f":"IF(ISBLANK(I86),0,5)","v":0}]
[null,null,null,"○","Son específicas para HSH",null,null,null,null,null,null,0,0,0]
[null,null,null,"○","Los resultados son precisos: el tamaño de la muestra es estadísticamente representativo (y se ha determinado adecuadamente), y el método de muestreo es apropiado para HSH (muestreo temporal y espacial y muestreo de conveniencia)",null,null,null,null,null,null,0,0,0]
[null,null,null,"○","Se han realizado regularmente evaluaciones de los factores de riesgo para HSH, a fin de recabar información para el programa, y:",null,null,null,null,null,null,0,0,0]
[null,null,null,null,"> Son específicas para HSH y tienen en cuenta los comportamientos específicos en función de la edad y del género ",null,null,null,null,null,null,0,0,0]
[null,null,null,null,"> Los estudios son de buena calidad y proporcionan información exhaustiva  ",null,null,null,null,null,null,0,0,0]
[null,null,"Evaluación de necesidades","Se ha realizado una evaluación de necesidades de los HSH a nivel de implementación o local:",null,null,null,null,null,{"$f":"O92","v":"-"},null,null,null,null,{"$f":"IFERROR(ROUND(AVERAGEIF(L93:N95,\"<>0\",L93:N95),0),\"-\")","v":"-"}]
[null,null,null,"○","Se han determinado las necesidades con la participación de HSH y redes u organizaciones lideradas por HSH",null,null,null,null,null,null,{"$f":"IF(ISBLANK(G93),0,1)","v":0},{"$f":"IF(ISBLANK(H93),0,3)","v":0},{"$f":"IF(ISBLANK(I93),0,5)","v":0}]
[null,null,null,"○","Hay suficiente información sobre los servicios que los HSH necesitan, cómo preferirían acceder a los servicios y quién debería proporcionarlos ",null,null,null,null,null,null,0,0,0]
[null,null,null,"○","Hay información detallada sobre las áreas que presentan lagunas en la prestación de servicios o barreras de acceso",null,null,null,null,null,null,0,0,0]
[null,null,"Determinación de objetivos","Se han definido claramente los objetivos para los HSH, y:",null,null,null,null,null,{"$f":"O96","v":"-"},null,null,null,null,{"$f":"IFERROR(ROUND(AVERAGEIF(L97:N104,\"<>0\",L97:N104),0),\"-\")","v":"-"}]
[null,null,null,"○","Se basan en la estimación del tamaño y los datos de evaluación de riesgos",null,null,null,null,null,null,{"$f":"IF(ISBLANK(G97),0,1)","v":0},{"$f":"IF(ISBLANK(H97),0,3)","v":0},{"$f":"IF(ISBLANK(I97),0,5)","v":0}]
[null,null,null,"○","Se han resumido para facilitar su consulta",null,null,null,null,null,null,0,0,0]
[null,null,null,"○","Incluyen especificaciones a nivel nacional y regional ",null,null,null,null,null,null,0,0,0]
[null,null,null,"○","Incluyen los logros ya alcanzados y los logros que se espera alcanzar al final ",null,null,null,null,null,null,0,0,0]
[null,null,null,"○","Se han desarrollado en colaboración con implementadores y redes de HSH para garantizar que sean realistas",null,null,null,null,null,null,0,0,0]
[null,null,null,"○","Están en línea con los presupuestos y los acuerdos formales con los implementadores a nivel local",null,null,null,null,null,null,0,0,0]
[null,null,null,"○","Están divididos por edad",null,null,null,null,null,null,0,0,0]
[null,null,null,"○","Los objetivos del Fondo mundial para la lucha contra el VIH/SIDA, la tuberculosis y la malaria y del Plan de Emergencia del Presidente de los Estados Unidos para el Alivio del Sida (PEPFAR) se refieren a las estimaciones de tamaño y objetivos nacionales",null,null,null,null,null,null,0,0,0]
[null,null,"Acuerdo de implementación "]
[null,null,"Elemento","Criterios",null,"N/A","Ausente","Presente pero no óptimo","Presente y funcionando bien","Promedio del elemento","Comentarios (si procede) "]
[null,null,"Mantener una plataforma de acceso ","Hay una plataforma de acceso que promueve los esfuerzos coordinados de la comunidad y y de los servicios sanitarios, y que: ",null,null,null,null,null,{"$f":"O107","v":"-"},null,null,null,null,{"$f":"IFERROR(ROUND(AVERAGEIF(L108:N111,\"<>0\",L108:N111),0),\"-\")","v":"-"}]
[null,null,null,"○","Genera confianza en toda la comunidad a través de los trabajadores de asistencia social entre iguales ",null,null,null,null,null,null,{"$f":"IF(ISBLANK(G108),0,1)","v":0},{"$f":"IF(ISBLANK(H108),0,3)","v":0},{"$f":"IF(ISBLANK(I108),0,5)","v":0}]
[null,null,null,"○","Llega a un gran número de HSH, y fomenta su aceptación, fidelización y participación activa en el programa",null,null,null,null,null,null,0,0,0]
[null,null,null,"○","Fomenta la captación y fidelización de HSH",null,null,null,null,null,null,0,0,0]
[null,null,null,"○","Fomenta la participación activa de HSH ",null,null,null,null,null,null,0,0,0]
[null,null,"Estructura de gestión","Se ha definido el proceso de estructura de gestión, y:  ",null,null,null,null,null,{"$f":"O112","v":"-"},null,null,null,null,{"$f":"IFERROR(ROUND(AVERAGEIF(L113:N121,\"<>0\",L113:N121),0),\"-\")","v":"-"}]
[null,null,null,"○","Existen unos términos de referencia (TR) claros que describen los roles y responsabilidades de cada puesto, incluidos los del personal de instalaciones y a nivel comunitario",null,null,null,null,null,null,{"$f":"IF(ISBLANK(G113),0,1)","v":0},{"$f":"IF(ISBLANK(H113),0,3)","v":0},{"$f":"IF(ISBLANK(I113),0,5)","v":0}]
[null,null,null,"○","Hay una ratio adecuada entre trabajadores de asistencia social entre iguales y miembros de la comunidad",null,null,null,null,null,null,0,0,0]
[null,null,null,"○","Hay unas directrices para reclutar, retener, evaluar y promover el trabajo de asistencia social entre iguales ",null,null,null,null,null,null,0,0,0]
[null,null,null,"○","Todas las personas que trabajan en el proyecto reciben remuneración ",null,null,null,null,null,null,0,0,0]
[null,null,null,"○","Los supervisores entre pares garantizan el adecuado seguimiento de los trabajadores de asistencia social entre iguales (TASEI)",null,null,null,null,null,null,0,0,0]
[null,null,null,"○","Se ha definido una estrategia de promoción y un plan de progresión de carrera para los TASEI y los profesionales de la comunicación para el cambio conductual y social ",null,null,null,null,null,null,0,0,0]
[null,null,null,"○","Se ha establecido un mecanismo de referencias ",null,null,null,null,null,null,0,0,0]
[null,null,null,"○","Los sitios de destino están equipados para recibir servicios",null,null,null,null,null,null,0,0,0]
[null,null,null,"○","La microplanificación se utiliza para priorizar y gestionar el alcance, y para identificar a los beneficiarios que están más en riesgo",null,null,null,null,null,null,0,0,0]
[null,null,"Flujo de datos ","Se han definido flujos de datos para cada nivel, y:",null,null,null,null,null,{"$f":"O122","v":"-"},null,null,null,null,{"$f":"IFERROR(ROUND(AVERAGEIF(L123:N128,\"<>0\",L123:N128),0),\"-\")","v":"-"}]
[null,null,null,"○","Se han desarrollado y probado los sistemas de datos ",null,null,null,null,null,null,{"$f":"IF(ISBLANK(G123),0,1)","v":0},{"$f":"IF(ISBLANK(H123),0,3)","v":0},{"$f":"IF(ISBLANK(I123),0,5)","v":0}]
[null,null,null,"○","Se han definido claramente los indicadores estándar para el seguimiento del programa de PC",null,null,null,null,null,null,0,0,0]
[null,null,null,"○","Se han desarrollado herramientas estandarizadas para generar informes ",null,null,null,null,null,null,0,0,0]
[null,null,null,"○","Los datos programáticos se comunican y revisan mensualmente ",null,null,null,null,null,null,0,0,0]
[null,null,null,"○","Hay sistemas para mantener la confidencialidad de los datos ",null,null,null,null,null,null,0,0,0]
[null,null,null,"○","Se ha desarrollado un sistema de códigos de identificación únicos (CIU) ",null,null,null,null,null,null,0,0,0]
[null,null,"Trabajadores de asistencia social entre iguales (TASEI) ","El programa emplea trabajadores de asistencia social entre iguales de manera efectiva:\n",null,null,null,null,null,{"$f":"O129","v":"-"},null,null,null,null,{"$f":"IFERROR(ROUND(AVERAGEIF(L130:N137,\"<>0\",L130:N137),0),\"-\")","v":"-"}]
[null,null,null,"○","Los TASEI forman parte de la comunidad de HSH a la que representan o sirven",null,null,null,null,null,null,{"$f":"IF(ISBLANK(G130),0,1)","v":0},{"$f":"IF(ISBLANK(H130),0,3)","v":0},{"$f":"IF(ISBLANK(I130),0,5)","v":0}]
[null,null,null,"○","Hay un plan de formación disponible, que es apropiado e incluye formación sanitaria para actualizar el conocimiento de los TASEI sobre las necesidades específicas de los HSH",null,null,null,null,null,null,0,0,0]
[null,null,null,"○","Existe un plan de formación por niveles para mejorar las habilidades, la confianza y el liderazgo de los TASEI ",null,null,null,null,null,null,0,0,0]
[null,null,null,"○","Hay herramientas de divulgación disponibles para movilizar a la comunidad y promover el acceso a los servicios",null,null,null,null,null,null,0,0,0]
[null,null,null,"○","Las herramientas de microplanificación se utilizan para adecuar la prestación de servicios en función de las necesidades de la persona o el sitio ",null,null,null,null,null,null,0,0,0]
[null,null,null,"○","Se emplean mensajes y materiales de comunicación basados en la evidencia",null,null,null,null,null,null,0,0,0]
[null,null,null,"○","Se proporciona información sobre los servicios disponibles, y se facilita a los beneficiarios el acceso a los servicios ",null,null,null,null,null,null,0,0,0]
[null,null,null,"○","Se ofrece asesoramiento y apoyo emocional para llevar a cabo el tratamiento",null,null,null,null,null,null,0,0,0]
[null,null,"Participación significativa de las comunidades afectadas en el liderazgo y la coordinación","Las organizaciones o redes lideradas por HSH tienen representación en el órgano nacional de coordinación o en el grupo técnico de trabajo técnico para HSH, y:\n\n",null,null,null,null,null,{"$f":"O138","v":"-"},null,null,null,null,{"$f":"IFERROR(ROUND(AVERAGEIF(L139:N142,\"<>0\",L139:N142),0),\"-\")","v":"-"}]
[null,null,null,"○","Se reúnen regularmente",null,null,null,null,null,null,{"$f":"IF(ISBLANK(G139),0,1)","v":0},{"$f":"IF(ISBLANK(H139),0,3)","v":0},{"$f":"IF(ISBLANK(I139),0,5)","v":0}]
[null,null,null,"○","Participan activamente en los procesos de toma de decisiones en igualdad de condiciones ",null,null,null,null,null,null,0,0,0]
[null,null,null,"○","Reciben apoyo para solicitar feedback e informar sobre las decisiones clave a los grupos que representan",null,null,null,null,null,null,0,0,0]
[null,null,null,"○","Se ha comprobado que se tienen en cuenta los comentarios, las aportaciones y el asesoramiento experto que las organizaciones o redes lideradas por HSH proporcionan",null,null,null,null,null,null,0,0,0]
[null,null,"Prestación de servicios"]
[null,null,"Elemento","Criterios",null,"N/A","Ausente","Presente pero no óptimo","Presente y funcionando bien","Promedio del elemento","Comentarios (si procede) "]
[null,null,"Servicios accesibles","Los servicios son accesibles para las comunidades de HSH:",null,null,null,null,null,{"$f":"O145","v":"-"},null,null,null,null,{"$f":"IFERROR(ROUND(AVERAGEIF(L146:N152,\"<>0\",L146:N152),0),\"-\")","v":"-"}]
[null,null,null,"○","Están diseñados en base a la investigación formativa realizada en la evaluación de necesidades ",null,null,null,null,null,null,{"$f":"IF(ISBLANK(G146),0,1)","v":0},{"$f":"IF(ISBLANK(H146),0,3)","v":0},{"$f":"IF(ISBLANK(I146),0,5)","v":0}]
[null,null,null,"○","Están convenientemente ubicados en o cerca de centros de actividad",null,null,null,null,null,null,0,0,0]
[null,null,null,"○","Incluyen servicios móviles en caso de ser necesarios ",null,null,null,null,null,null,0,0,0]
[null,null,null,"○","Los horarios son adecuadas para los HSH a los que se dirigen ",null,null,null,null,null,null,0,0,0]
[null,null,null,"○","Están integrados con el sistema nacional de salud y ofrecen paquetes de atención integral ",null,null,null,null,null,null,0,0,0]
[null,null,null,"○","Cuentan con un suministro constante de servicios y productos",null,null,null,null,null,null,0,0,0]
[null,null,null,"○","Implican un cambio de tareas para permitir aumentar la capacidad de los proveedores de atención médica",null,null,null,null,null,null,0,0,0]
[null,null,"Servicios aceptables","Los servicios son aceptables para la comunidad de HSH, y:",null,null,null,null,null,{"$f":"O153","v":"-"},null,null,null,null,{"$f":"IFERROR(ROUND(AVERAGEIF(L154:N158,\"<>0\",L154:N158),0),\"-\")","v":"-"}]
[null,null,null,"○","Son confidenciales y voluntarios ",null,null,null,null,null,null,{"$f":"IF(ISBLANK(G154),0,1)","v":0},{"$f":"IF(ISBLANK(H154),0,3)","v":0},{"$f":"IF(ISBLANK(I154),0,5)","v":0}]
[null,null,null,"○","Los proveedores de asistencia son sensibles a las necesidades de los HSH, y no juzgan ni estigmatizan",null,null,null,null,null,null,0,0,0]
[null,null,null,"○","Los proveedores de servicios están capacitados para poder ofrecer un paquete completo de intervención específico para HSH ",null,null,null,null,null,null,0,0,0]
[null,null,null,"○","Crean un entorno seguro y de apoyo ",null,null,null,null,null,null,0,0,0]
[null,null,null,"○","Las intervenciones online se llevan a cabo de manera ética, respetando la privacidad y confidencialidad de los clientes",null,null,null,null,null,null,0,0,0]
[null,null,"Servicios adaptados/apropiados","Los paquete de servicios y la prestación de los mismos están adaptados a las necesidades específicas de los HSH en toda su diversidad:",null,null,null,null,null,{"$f":"O159","v":"-"},null,null,null,null,{"$f":"IFERROR(ROUND(AVERAGEIF(L160:N165,\"<>0\",L160:N165),0),\"-\")","v":"-"}]
[null,null,null,"○","El paquete de servicios para HSH incluye todos los servicios de SSR (salud sexual y reproductiva) pertinentes, de acuerdo con las directrices de la OMS ",null,null,null,null,null,null,{"$f":"IF(ISBLANK(G160),0,1)","v":0},{"$f":"IF(ISBLANK(H160),0,3)","v":0},{"$f":"IF(ISBLANK(I160),0,5)","v":0}]
[null,null,null,"○","Amplia disponibilidad para la iniciación comunitaria de la TAR para los HSH que viven con el VIH",null,null,null,null,null,null,0,0,0]
[null,null,null,"○","Los servicios se proporcionan de una manera accesible para los HSH adolescentes en toda su diversidad (por ejemplo, abordan cuestiones sobre la edad de consentimiento)",null,null,null,null,null,null,0,0,0]
[null,null,null,"○","Se dispone de servicios adicionales (o se puede conectar con ellos) en función de las necesidades específicas de los HSH ",null,null,null,null,null,null,0,0,0]
[null,null,null,"○","Los servicios se prestan de forma adecuada y respetando la confidencialidad y privacidad de los clientes (por ejemplo, servicios prestados en el marco de la salud masculina para HSH que no se identifican como gays)",null,null,null,null,null,null,0,0,0]
[null,null,null,"○","Los servicios abordan las vulnerabilidades cruzadas de adolescentes y jóvenes que se dedican al trabajo sexual",null,null,null,null,null,null,0,0,0]
[null,null,"Intervenciones clínicas"]
[null,null,"Elemento","Criterios",null,"N/A","Ausente","Presente pero no óptimo","Presente y funcionando bien","Promedio del elemento","Comentarios (si procede) "]
[null,null,"Preservativos y lubricante ","Todos los HSH tienen acceso a preservativos, lubricantes, demostraciones de uso y otros servicios de salud sexual y reproductiva, y:",null,null,null,null,null,{"$f":"O168","v":"-"},null,null,null,null,{"$f":"IFERROR(ROUND(AVERAGEIF(L169:N171,\"<>0\",L169:N171),0),\"-\")","v":"-"}]
[null,null,null,"○","Se distribuyen ampliamente y en cantidad suficiente",null,null,null,null,null,null,{"$f":"IF(ISBLANK(G169),0,1)","v":0},{"$f":"IF(ISBLANK(H169),0,3)","v":0},{"$f":"IF(ISBLANK(I169),0,5)","v":0}]
[null,null,null,"○","Son fácilmente accesibles en los centros de actividad",null,null,null,null,null,null,0,0,0]
[null,null,null,"○","Los TASEI realizan regularmente demostraciones de uso  ",null,null,null,null,null,null,0,0,0]
[null,null,"Servicios de pruebas del VIH","Existen servicios de pruebas del VIH disponibles para los HSH, y:\n",null,null,null,null,null,{"$f":"O172","v":"-"},null,null,null,null,{"$f":"IFERROR(ROUND(AVERAGEIF(L173:N184,\"<>0\",L173:N184),0),\"-\")","v":"-"}]
[null,null,null,"○","Se han implementado las directrices consolidadas de la OMS sobre los servicios de pruebas del VIH ",null,null,null,null,null,null,{"$f":"IF(ISBLANK(G173),0,1)","v":0},{"$f":"IF(ISBLANK(H173),0,3)","v":0},{"$f":"IF(ISBLANK(I173),0,5)","v":0}]
[null,null,null,"○","Todas las pruebas son voluntarias y confidenciales (con consentimiento informado)",null,null,null,null,null,null,0,0,0]
[null,null,null,"○","Se proporciona asesoramiento antes y después de la prueba ",null,null,null,null,null,null,0,0,0]
[null,null,null,"○","Se ofrece el tratamiento independientemente del recuento de CD4",null,null,null,null,null,null,0,0,0]
[null,null,null,"○","Tras el diagnóstico, a las personas con VIH se les pone en contacto con las redes de atención y apoyo ",null,null,null,null,null,null,0,0,0]
[null,null,null,"○","El acceso a los servicios se distribuye equitativamente entre la comunidad y todos los HSH",null,null,null,null,null,null,0,0,0]
[null,null,null,"○","Se han implementado intervenciones para garantizar la adherencia de los HSH que viven con el VIH",null,null,null,null,null,null,0,0,0]
[null,null,null,"○","Se realiza un seguimiento regular de la asistencia de los HSH que viven con el VIH a los servicios de atención sanitaria ",null,null,null,null,null,null,0,0,0]
[null,null,null,"○","Se facilita el contacto con los servicios de prevención de las comorbilidades",null,null,null,null,null,null,0,0,0]
[null,null,null,"○","Se facilita el contacto con los servicios de  tratamiento de las comorbilidades",null,null,null,null,null,null,0,0,0]
[null,null,null,"○","Se dispone de pruebas de carga viral y son accesibles para los HSH que viven con el VIH",null,null,null,null,null,null,0,0,0]
[null,null,null,"○","Se dispone de pruebas de CD4 y son accesibles para los HSH que viven con el VIH",null,null,null,null,null,null,0,0,0]
[null,null,"Profilaxis preexposición (PrEP)","Se dispone de una PrEP oral (TDF) para los HSH en riesgo sustancial de infección por VIH ",null,null,null,null,null,{"$f":"O185","v":"-"},null,null,null,null,{"$f":"IFERROR(ROUND(AVERAGEIF(L186:N190,\"<>0\",L186:N190),0),\"-\")","v":"-"}]
[null,null,null,"○","Hay un suministro ininterrumpido de profilaxis preexposición (PrEP)",null,null,null,null,null,null,{"$f":"IF(ISBLANK(G186),0,1)","v":0},{"$f":"IF(ISBLANK(H186),0,3)","v":0},{"$f":"IF(ISBLANK(I186),0,5)","v":0}]
[null,null,null,"○","Las pruebas de VIH se llevan a cabo antes de iniciar la profilaxis preexposición (PrEP) para asegurarse de que la persona sea negativa en VIH ",null,null,null,null,null,null,0,0,0]
[null,null,null,"○","Se ofrece como parte de un enfoque integral de prevención combinada ",null,null,null,null,null,null,0,0,0]
[null,null,null,"○","Los enfoques combinados incluyen el apoyo a la adherencia, la repetición periódica de la prueba del VIH y el asesoramiento para los usuarios de profilaxis preexposición ",null,null,null,null,null,null,0,0,0]
[null,null,null,"○","La profilaxis preexposición se ofrece basándose en la evaluación individual y no en el grupo de riesgo, a fin de promover una cobertura más amplia ",null,null,null,null,null,null,0,0,0]
[null,null,"Prevención, detección y tratamiento de las ITS","El cribado y las pruebas de ITS están disponibles para los HSH, y:",null,null,null,null,null,{"$f":"O191","v":"-"},null,null,null,null,{"$f":"IFERROR(ROUND(AVERAGEIF(L192:N197,\"<>0\",L192:N197),0),\"-\")","v":"-"}]
[null,null,null,"○","Todas las pruebas son voluntarias y confidenciales ",null,null,null,null,null,null,{"$f":"IF(ISBLANK(G192),0,1)","v":0},{"$f":"IF(ISBLANK(H192),0,3)","v":0},{"$f":"IF(ISBLANK(I192),0,5)","v":0}]
[null,null,null,"○","El tratamiento se administra inmediatamente y el suministro es ininterrumpido ",null,null,null,null,null,null,0,0,0]
[null,null,null,"○","El acceso a los servicios se distribuye equitativamente entre la comunidad y los TS",null,null,null,null,null,null,0,0,0]
[null,null,null,"○","Se lleva a cabo periódicamente un cribado y tratamiento para casos asintomáticos",null,null,null,null,null,null,0,0,0]
[null,null,null,"○","Se realiza periódicamente un tratamiento por presunción de ITS para casos asintomáticos en áreas de alta prevalencia (>15 % de prevalencia de la gonorrea y/o clamidia) (esp. TS)",null,null,null,null,null,null,0,0,0]
[null,null,null,"○","En ausencia de pruebas de laboratorio, se realiza una gestión sindrómica de los casos sintomáticos de acuerdo con las directrices nacionales de gestión de las ITS",null,null,null,null,null,null,0,0,0]
[null,null," Servicios de salud sexual y reproductiva (SSR) ","Todos los HSH tienen acceso a servicios de salud sexual y reproductiva, y:",null,null,null,null,null,{"$f":"O198","v":"-"},null,null,null,null,{"$f":"IFERROR(ROUND(AVERAGEIF(L199:N202,\"<>0\",L199:N202),0),\"-\")","v":"-"}]
[null,null,null,"○","Incluyen exámenes de detección de cáncer ",null,null,null,null,null,null,{"$f":"IF(ISBLANK(G199),0,1)","v":0},{"$f":"IF(ISBLANK(H199),0,3)","v":0},{"$f":"IF(ISBLANK(I199),0,5)","v":0}]
[null,null,null,"○","Se distribuyen ampliamente y en cantidad suficiente",null,null,null,null,null,null,0,0,0]
[null,null,null,"○","Son fácilmente accesibles en los centros de actividad",null,null,null,null,null,null,0,0,0]
[null,null,null,"○","Se programan talleres demostrativos en los centros de actividad de forma regular",null,null,null,null,null,null,0,0,0]
[null,null,"Atención postviolencia ","Todos las personas que han sido víctimas de agresión sexual o han estado expuestas al VIH tienen acceso a la profilaxis posterior a la exposición (en las 72 horas posteriores al episodio), y se les pone en contacto con los servicios de apoyo y asesoramiento:\n",null,null,null,null,null,{"$f":"O203","v":"-"},null,null,null,null,{"$f":"IFERROR(ROUND(AVERAGEIF(L204:N207,\"<>0\",L204:N207),0),\"-\")","v":"-"}]
[null,null,null,"○","Se dispone de servicios de apoyo y asesoramiento",null,null,null,null,null,null,{"$f":"IF(ISBLANK(G204),0,1)","v":0},{"$f":"IF(ISBLANK(H204),0,3)","v":0},{"$f":"IF(ISBLANK(I204),0,5)","v":0}]
[null,null,null,"○","Se dispone de servicios como la profilaxis postexposición",null,null,null,null,null,null,0,0,0]
[null,null,null,"○","En casos de violencia sexual, se realizan pruebas de ITS (sífilis, clamidia, gonorrea) de forma rutinaria",null,null,null,null,null,null,0,0,0]
[null,null,null,"○","Se ha establecido un mecanismo de referencia a servicios integrales de atención a la violencia de género (VG) en función de la necesidad",null,null,null,null,null,null,0,0,0]
[null,null,"Prevención, detección y tratamiento de la tuberculosis (TB)","Se dispone de servicios de prevención, detección y tratamiento de la TB para HSH, y:\n",null,null,null,null,null,{"$f":"O208","v":"-"},null,null,null,null,{"$f":"IFERROR(ROUND(AVERAGEIF(L209:N217,\"<>0\",L209:N217),0),\"-\")","v":"-"}]
[null,null,null,"○","Prevención: terapia preventiva con isoniacida administrada a personas VIH+ junto con terapia antirretroviral (TAR), control de la infección por tuberculosis y rastreo de contactos en entornos compartidos ",null,null,null,null,null,null,{"$f":"IF(ISBLANK(G209),0,1)","v":0},{"$f":"IF(ISBLANK(H209),0,3)","v":0},{"$f":"IF(ISBLANK(I209),0,5)","v":0}]
[null,null,null,"○","Diagnóstico: uso de Xpert MTB/RIF como prueba diagnóstica inicial",null,null,null,null,null,null,0,0,0]
[null,null,null,"○","Todas las pruebas son voluntarias y confidenciales ",null,null,null,null,null,null,0,0,0]
[null,null,null,"○","Se han implementado intervenciones de apoyo de adherencia para garantizar que se completa el ciclo de antibióticos",null,null,null,null,null,null,0,0,0]
[null,null,null,"○","El tratamiento se administra inmediatamente y el suministro es ininterrumpido",null,null,null,null,null,null,0,0,0]
[null,null,null,"○","El acceso a los servicios se distribuye equitativamente entre la comunidad y los HSH",null,null,null,null,null,null,0,0,0]
[null,null,null,"○","Contacto con los servicios de asistencia para casos positivos ",null,null,null,null,null,null,0,0,0]
[null,null,null,"○","Se están realizando esfuerzos para tratar la tuberculosis latente en los HSH",null,null,null,null,null,null,0,0,0]
[null,null,null,"○","El tratamiento de la TB no tiene contraindicaciones por consumo de alcohol o drogas ni por trastornos de salud mental",null,null,null,null,null,null,0,0,0]
[null,null,"Prevención, vacunación, detección y tratamiento de la hepatitis viral","Se dispone de servicios de prevención de la hepatitis vírica tipo B y C, vacunación, detección y tratamiento que satisfacen las necesidades específicas de los HSH, y:\n",null,null,null,null,null,{"$f":"O218","v":"-"},null,null,null,null,{"$f":"IFERROR(ROUND(AVERAGEIF(L219:N223,\"<>0\",L219:N223),0),\"-\")","v":"-"}]
[null,null,null,"○","Todas las pruebas son voluntarias y confidenciales ",null,null,null,null,null,null,{"$f":"IF(ISBLANK(G219),0,1)","v":0},{"$f":"IF(ISBLANK(H219),0,3)","v":0},{"$f":"IF(ISBLANK(I219),0,5)","v":0}]
[null,null,null,"○","El tratamiento se administra inmediatamente y el suministro es ininterrumpido ",null,null,null,null,null,null,0,0,0]
[null,null,null,"○","El acceso a los servicios se distribuye equitativamente entre la comunidad y todos los HSH",null,null,null,null,null,null,0,0,0]
[null,null,null,"○","Se llevan a cabo campañas de vacunación contra la hepatitis B y C de forma rutinaria ",null,null,null,null,null,null,0,0,0]
[null,null,null,"○","Se dispone de regímenes de vacunación contra la hepatitis B y C que son rápidos, estándar y de fácil acceso. ",null,null,null,null,null,null,0,0,0]
[null,null,null,"○","Se han asignado recursos para la prevención, vacunación, detección y tratamiento de la hepatitis vírica"]
[null,null,"Detección y tratamiento para el consumo de drogas y alcohol","Se ofrecen servicios de detección y tratamiento del consumo problemático de alcohol y drogas de forma rutinaria en los centros de atención sanitaria, los centros de actividad locales y las unidades de asistencia móviles ",null,null,null,null,null,{"$f":"O225","v":"-"},null,null,null,null,{"$f":"IFERROR(ROUND(AVERAGEIF(L226:N229,\"<>0\",L226:N229),0),\"-\")","v":"-"}]
[null,null,null,"○","Los trabajadores de asistencia social entre iguales ponen en contacto a las personas en riesgo con los servicios de detección y tratamiento ",null,null,null,null,null,null,{"$f":"IF(ISBLANK(G226),0,1)","v":0},{"$f":"IF(ISBLANK(H226),0,3)","v":0},{"$f":"IF(ISBLANK(I226),0,5)","v":0}]
[null,null,null,"○","Las personas están en contacto con terapeutas, organizaciones y grupos de apoyo adecuados",null,null,null,null,null,null,0,0,0]
[null,null,null,"○","El tratamiento se inicia inmediatamente si la persona consiente de forma voluntaria",null,null,null,null,null,null,0,0,0]
[null,null,null,"○","Se ofrece derivación a otros servicios (salud mental, apoyo psicosocial) en caso de necesidad",null,null,null,null,null,null,0,0,0]
[null,null,"Atención a la salud mental","La atención a la salud mental es accesible y se proporciona de forma continuada a los HSH que viven con el VIH, e incluye:",null,null,null,null,null,{"$f":"O230","v":"-"},null,null,null,null,{"$f":"IFERROR(ROUND(AVERAGEIF(L231:N232,\"<>0\",L231:N232),0),\"-\")","v":"-"}]
[null,null,null,"○","Evaluaciones rutinarias de trastornos de salud mental (especialmente depresión y estrés psicosocial), según lo dispuesto en el Programa de Acción Global en Salud Mental de la OMS (mhGAP)",null,null,null,null,null,null,{"$f":"IF(ISBLANK(G231),0,1)","v":0},{"$f":"IF(ISBLANK(H231),0,3)","v":0},{"$f":"IF(ISBLANK(I231),0,5)","v":0}]
[null,null,null,"○","Asesoramiento tras obtener resultados positivos en la prueba del VIH para detectar el riesgo de suicidio, depresión y otros problemas de salud mental ",null,null,null,null,null,null,0,0,0]
[null,null,"Circuncisión Médica Masculina Voluntaria (CMMV)","La circuncisión médica masculina voluntaria está disponible para los HSH en los países del sur y el este de África en los que se practica la CMMV (si practican sexo vaginal):",null,null,null,null,null,{"$f":"O233","v":"-"},null,null,null,null,{"$f":"IFERROR(ROUND(AVERAGEIF(L234:N235,\"<>0\",L234:N235),0),\"-\")","v":"-"}]
[null,null,null,"○","El procedimiento es voluntario (con consentimiento informado) y confidencial",null,null,null,null,null,null,{"$f":"IF(ISBLANK(G234),0,1)","v":0},{"$f":"IF(ISBLANK(H234),0,3)","v":0},{"$f":"IF(ISBLANK(I234),0,5)","v":0}]
[null,null,null,"○","El procedimiento lo realizan profesionales de la salud cualificados en entornos adecuadamente equipados",null,null,null,null,null,null,0,0,0]
[null,null,"COVID-19 ","Prestación de servicios a las personas para los programas dirigidos a HSH durante la COVID-19 \n",null,null,null,null,null,{"$f":"O236","v":"-"},null,null,null,null,{"$f":"IFERROR(ROUND(AVERAGEIF(L237:N238,\"<>0\",L237:N238),0),\"-\")","v":"-"}]
[null,null,null,"○","Hay programas para promover la vacunación contra la COVID-19 entre los HSH y realizar un seguimiento",null,null,null,null,null,null,{"$f":"IF(ISBLANK(G237),0,1)","v":0},{"$f":"IF(ISBLANK(H237),0,3)","v":0},{"$f":"IF(ISBLANK(I237),0,5)","v":0}]
[null,null,null,"○","Comunicación constante y acceso seguro a modelos de prestación de servicios fuera de instalaciones sanitarias (ej.: centros comunitarios, a domicilio, teleasistencia, etc.) durante los picos de la COVID-19 para evitar la interrupción del servicio",null,null,null,null,null,null,0,0,0]
[null,null,"Intervenciones conductuales"]
[null,null,"Elemento","Criterios",null,"N/A","Ausente","Presente pero no óptimo","Presente y funcionando bien","Promedio del elemento","Comentarios (si procede) "]
[null,null,"Comunicación para el cambio conductual y social (CCCS)","Las actividades de comunicación para el cambio conductual y social están incluidas en el programa de la población clave de HSH. Están:",null,null,null,null,null,{"$f":"O241","v":"-"},null,null,null,null,{"$f":"IFERROR(ROUND(AVERAGEIF(L242:N246,\"<>0\",L242:N246),0),\"-\")","v":"-"}]
[null,null,null,"○","Bien planificadas y adecuadamente presupuestadas",null,null,null,null,null,null,{"$f":"IF(ISBLANK(G242),0,1)","v":0},{"$f":"IF(ISBLANK(H242),0,3)","v":0},{"$f":"IF(ISBLANK(I242),0,5)","v":0}]
[null,null,null,"○","Basadas en la evidencia ",null,null,null,null,null,null,0,0,0]
[null,null,null,"○","Diseñadas y probadas con la participación de HSH",null,null,null,null,null,null,0,0,0]
[null,null,null,"○","Implementadas por organizaciones y personas con experiencia y formación en intervenciones de CCCS",null,null,null,null,null,null,0,0,0]
[null,null,null,"○","Incluidas en los planes y actividades de seguimiento y evaluación",null,null,null,null,null,null,0,0,0]
[null,null,"Intervenciones estructurales"]
[null,null,"Elemento","Criterios",null,"N/A","Ausente","Presente pero no óptimo","Presente y funcionando bien","Promedio del elemento","Comentarios (si procede) "]
[null,null,"Prevención y respuesta a la violencia","Se han implementado programas para abordar la violencia contra los HSH de manera consistente, e incluyen:",null,null,null,null,null,{"$f":"O249","v":"-"},null,null,null,null,{"$f":"IFERROR(ROUND(AVERAGEIF(L250:N256,\"<>0\",L250:N256),0),\"-\")","v":"-"}]
[null,null,null,"○","Información sobre seguridad",null,null,null,null,null,null,{"$f":"IF(ISBLANK(G250),0,1)","v":0},{"$f":"IF(ISBLANK(H250),0,3)","v":0},{"$f":"IF(ISBLANK(I250),0,5)","v":0}]
[null,null,null,"○","Espacios seguros en centros de acogida (CA)",null,null,null,null,null,null,0,0,0]
[null,null,null,"○","Mejora de la seguridad en el lugar de trabajo",null,null,null,null,null,null,0,0,0]
[null,null,null,"○","Estandarización de los mecanismos de seguimiento y de comunicación de los casos de violencia, que van más allá del contacto con la Policía y pueden incluir el asesoramiento jurídico que ofrecen las organizaciones de HSH",null,null,null,null,null,null,0,0,0]
[null,null,null,"○","Formación integral de la Policía y los trabajadores sociales para que sean sensibles a las necesidades de los HSH",null,null,null,null,null,null,0,0,0]
[null,null,null,"○","Planes de respuesta a la violencia desarrollados por la comunidad",null,null,null,null,null,null,0,0,0]
[null,null,null,"○","En contacto con servicios de asistencia jurídica",null,null,null,null,null,null,0,0,0]
[null,null,"Reducción del estigma y la discriminación ","Los esfuerzos para reducir el estigma y la discriminación contra los HSH incluyen: ",null,null,null,null,null,{"$f":"O257","v":"-"},null,null,null,null,{"$f":"IFERROR(ROUND(AVERAGEIF(L258:N264,\"<>0\",L258:N264),0),\"-\")","v":"-"}]
[null,null,null,"○","Promoción de políticas antidiscriminatorias y de protección para todos los HSH",null,null,null,null,null,null,{"$f":"IF(ISBLANK(G258),0,1)","v":0},{"$f":"IF(ISBLANK(H258),0,3)","v":0},{"$f":"IF(ISBLANK(I258),0,5)","v":0}]
[null,null,null,"○","Programas, dentro y fuera del sector sanitario, que instituyan políticas y códigos de conducta en contra de la estigmatización y la discriminación",null,null,null,null,null,null,0,0,0]
[null,null,null,"○","Seguimiento y supervisión rutinarios para garantizar la implementación y el mantenimiento de los estándares de servicio",null,null,null,null,null,null,0,0,0]
[null,null,null,"○","Realización de campañas de reducción del estigma",null,null,null,null,null,null,0,0,0]
[null,null,null,"○","Sensibilización, educación y participación continua de líderes religiosos y comunitarios, fuerzas del orden y profesionales sanitarios ",null,null,null,null,null,null,0,0,0]
[null,null,null,"○","Establecimiento de mecanismos eficaces para permitir la denuncia anónima de incidentes estigmatizantes o discriminatorios en el acceso a la atención sanitaria  ",null,null,null,null,null,null,0,0,0]
[null,null,null,"○","Se proporciona apoyo y seguimiento a los HSH que denuncian incidentes de estigmatización y/o discriminación",null,null,null,null,null,null,0,0,0]
[null,null,"Servicios jurídicos relacionados con el VIH ","Se ofrecen servicios jurídicos relacionados con el VIH para satisfacer las necesidades de las poblaciones de HSH, y:  ",null,null,null,null,null,{"$f":"O265","v":"-"},null,null,null,null,{"$f":"IFERROR(ROUND(AVERAGEIF(L266:N268,\"<>0\",L266:N268),0),\"-\")","v":"-"}]
[null,null,null,"○","Existen alternativas para la resolución de conflictos",null,null,null,null,null,null,{"$f":"IF(ISBLANK(G266),0,1)","v":0},{"$f":"IF(ISBLANK(H266),0,3)","v":0},{"$f":"IF(ISBLANK(I266),0,5)","v":0}]
[null,null,null,"○","Se dispone de acceso fácil a información legal información de contacto con profesionales u organizaciones",null,null,null,null,null,null,0,0,0]
[null,null,null,"○","Se dispone de acceso fácil a asesoramiento y representación legal",null,null,null,null,null,null,0,0,0]
[null,null,"Seguimiento de la aplicación de la ley","Se realiza un seguimiento regular de la implementación de políticas, regulaciones y leyes para evaluar su impacto en los HSH.",null,null,null,null,null,{"$f":"O269","v":"-"},null,0,0,0,{"$f":"IFERROR(ROUND(AVERAGEIF(L269:N269,\"<>0\",L269:N269),0),\"-\")","v":"-"}]
[null,null,"Conocimientos legales («Conoce tus derechos»)","Se ofrece una formación integral sobre legislación y derechos a los HSH: ",null,null,null,null,null,"-",null,null,null,null,{"$f":"IFERROR(ROUND(AVERAGEIF(L271:N272,\"<>0\",L271:N272),0),\"-\")","v":"-"}]
[null,null,null,"○","Se han diseñado y comunicado estrategias efectivas para que los HSH interactúen con la Policía",null,null,null,null,null,null,{"$f":"IF(ISBLANK(G271),0,1)","v":0},{"$f":"IF(ISBLANK(H271),0,3)","v":0},{"$f":"IF(ISBLANK(I271),0,5)","v":0}]
[null,null,null,"○","Los HSH conocen la ley y sus derechos, y pueden reclamar y defender sus necesidades en el contexto del VIH",null,null,null,null,null,null,0,0,0]
[null,null,"Sensibilización de los legisladores y las fuerzas del orden ","Formación continua y exhaustiva de los encargados de redactar y hacer cumplir las leyes para garantizar que estén adecuadamente sensibilizados con los HSH. La formación incluye: \n",null,null,null,null,null,{"$f":"O273","v":"-"},null,null,null,null,{"$f":"IFERROR(ROUND(AVERAGEIF(L274:N277,\"<>0\",L274:N277),0),\"-\")","v":"-"}]
[null,null,null,"○","Un programa integral de formación para la sensibilización adaptado al contexto del país en cuestión",null,null,null,null,null,null,{"$f":"IF(ISBLANK(G274),0,1)","v":0},{"$f":"IF(ISBLANK(H274),0,3)","v":0},{"$f":"IF(ISBLANK(I274),0,5)","v":0}]
[null,null,null,"○","Facilitadores con la formación adecuada",null,null,null,null,null,null,0,0,0]
[null,null,null,"○","Participación de los HSH",null,null,null,null,null,null,0,0,0]
[null,null,null,"○","Comentarios de los participantes",null,null,null,null,null,null,0,0,0]
[null,null,"Formación para proveedores de atención sanitaria sobre derechos humanos y ética médica relacionada con el VIH ","Un programa integral de formación para la sensibilización adaptado al contexto del país en cuestión",null,null,null,null,null,{"$f":"O278","v":"-"},null,null,null,null,{"$f":"IFERROR(ROUND(AVERAGEIF(L279:N281,\"<>0\",L279:N281),0),\"-\")","v":"-"}]
[null,null,null,"○","Facilitadores con la formación adecuada",null,null,null,null,null,null,{"$f":"IF(ISBLANK(G279),0,1)","v":0},{"$f":"IF(ISBLANK(H279),0,3)","v":0},{"$f":"IF(ISBLANK(I279),0,5)","v":0}]
[null,null,null,"○","Participación de los HSH",null,null,null,null,null,null,0,0,0]
[null,null,null,"○","Comentarios de los participantes",null,null,null,null,null,null,0,0,0]
[null,null,"Espacios seguros / centros de acogida","Se han establecido espacios seguros / centros de acogida para la comunidad HSH:",null,null,null,null,null,{"$f":"O282","v":"-"},null,null,null,null,{"$f":"IFERROR(ROUND(AVERAGEIF(L283:N291,\"<>0\",L283:N291),0),\"-\")","v":"-"}]
[null,null,null,"○","Funcionan como el lugar principal de interacción entre la comunidad y el programa",null,null,null,null,null,null,{"$f":"IF(ISBLANK(G283),0,1)","v":0},{"$f":"IF(ISBLANK(H283),0,3)","v":0},{"$f":"IF(ISBLANK(I283),0,5)","v":0}]
[null,null,null,"○","Proporcionan una plataforma para la movilización, la formación y la organización de iniciativas para la comunidad",null,null,null,null,null,null,0,0,0]
[null,null,null,"○","Comparte información sobre eventos, actividades y servicios relevantes para la comunidad",null,null,null,null,null,null,0,0,0]
[null,null,null,"○","Cuentan con información y materiales divulgativos y educativos que son accesibles y fáciles de usar",null,null,null,null,null,null,0,0,0]
[null,null,null,"○","Proporcionan servicios psicosociales y apoyo ",null,null,null,null,null,null,0,0,0]
[null,null,null,"○","Tienen preservativos y lubricante a disposición de los usuarios",null,null,null,null,null,null,0,0,0]
[null,null,null,"○","Los utilizan los trabajadores de asistencia social entre iguales para revisar su trabajo y planificar la divulgación",null,null,null,null,null,null,0,0,0]
[null,null,null,"○","Establecidos en colaboración con los HSH para determinar la ubicación, el horario y los servicios que ofrecen",null,null,null,null,null,null,0,0,0]
[null,null,null,"○","Pone a disposición o permite contactar con otros programas de intervención fuera del ámbito sanitario",null,null,null,null,null,null,0,0,0]
[null,null,"Comités comunitarios","Se han creado comités comunitarios de HSH, y:",null,null,null,null,null,{"$f":"O292","v":"-"},null,null,null,null,{"$f":"IFERROR(ROUND(AVERAGEIF(L293:N302,\"<>0\",L293:N302),0),\"-\")","v":"-"}]
[null,null,null,"○","Se pueden formar libre y fácilmente",null,null,null,null,null,null,{"$f":"IF(ISBLANK(G293),0,1)","v":0},{"$f":"IF(ISBLANK(H293),0,3)","v":0},{"$f":"IF(ISBLANK(I293),0,5)","v":0}]
[null,null,null,"○","Se reúnen con regularidad (mínimo una vez al mes) y utilizan una plantilla de acta de la reunión para registrar la información que se debate ",null,null,null,null,null,null,0,0,0]
[null,null,null,"○","Revisan la prestación de servicios, solucionan problemas, realizan un seguimiento de los cambios, promueven la comprensión y la rendición de cuentas y abordar los problemas generales de la comunidad",null,null,null,null,null,null,0,0,0]
[null,null,null,"○","Eligen a los miembros de la comunidad de HSH y renuevan los cargos anualmente",null,null,null,null,null,null,0,0,0]
[null,null,null,"○","Eligen a un portavoz de la comunidad de HSH para que actúe como intermediario del programa ",null,null,null,null,null,null,0,0,0]
[null,null,null,"○","Invitan a los trabajadores de las organizaciones pertinentes a formar parte del comité o a asistir a las reuniones",null,null,null,null,null,null,0,0,0]
[null,null,null,"○","Comparten regularmente sus aportaciones sobre el programa para mejorar la calidad de los servicios ofrecidos",null,null,null,null,null,null,0,0,0]
[null,null,null,"○","Respetan la confidencialidad ",null,null,null,null,null,null,0,0,0]
[null,null,null,null,"No permiten que los miembros de la organización implementadora voten en las reuniones",null,null,null,null,null,null,0,0,0]
[null,null,null,"○","Incluyen a los jóvenes de la PC y les ayudan a desarrollar sus capacidades ",null,null,null,null,null,null,0,0,0]
[null,null,"Seguimiento del programa"]
[null,null,"Elemento","Criterios",null,"N/A","Ausente","Presente pero no óptimo","Presente y funcionando bien","Promedio del elemento","Comentarios (si procede) "]
[null,null,"Seguimiento rutinario","Los indicadores del programa se definen y se comunican: ",null,null,null,null,null,{"$f":"O305","v":"-"},null,null,null,null,{"$f":"IFERROR(ROUND(AVERAGEIF(L306:N312,\"<>0\",L306:N312),0),\"-\")","v":"-"}]
[null,null,null,"○"," De forma rutinaria (mensual, trimestral)",null,null,null,null,null,null,{"$f":"IF(ISBLANK(G306),0,1)","v":0},{"$f":"IF(ISBLANK(H306),0,3)","v":0},{"$f":"IF(ISBLANK(I306),0,5)","v":0}]
[null,null,null,"○","Al completo (los datos son consistentes y no falta información)",null,null,null,null,null,null,0,0,0]
[null,null,null,"○","A todos los niveles (región, provincia, etc.)",null,null,null,null,null,null,0,0,0]
[null,null,null,"○"," Por parte de todos los colaboradores en la implementación",null,null,null,null,null,null,0,0,0]
[null,null,null,"○","A través de la plataforma DHIS2/EMR",null,null,null,null,null,null,0,0,0]
[null,null,null,"○","Seguimiento de datos individuales por parte de los colaboradores en la implementación ",null,null,null,null,null,null,0,0,0]
[null,null,null,"○","Datos revisados de forma rutinaria por todos los interesados (gobierno, sociedad civil, comunidad de HSH, colaboradores en la implementación, donantes), y utilizados para mejorar los programas ",null,null,null,null,null,null,0,0,0]
[null,null,"Seguimiento para la rendición de cuentas dirigido por la comunidad","Incorporación del seguimiento dirigido por la comunidad (SDC) en las plataformas nacionales de seguimiento:",null,null,null,null,null,{"$f":"O313","v":"-"},null,null,null,null,{"$f":"IFERROR(ROUND(AVERAGEIF(L314:N320,\"<>0\",L314:N320),0),\"-\")","v":"-"}]
[null,null,null,"○","Se ha aceptado e integrado el SDC en los procesos de toma de decisiones y negociaciones con las autoridades locales, con los financiadores y con otros simpatizantes ",null,null,null,null,null,null,{"$f":"IF(ISBLANK(G314),0,1)","v":0},{"$f":"IF(ISBLANK(H314),0,3)","v":0},{"$f":"IF(ISBLANK(I314),0,5)","v":0}]
[null,null,null,"○","Funciona como un mecanismo comunitario de vigilancia y rendición de cuentas",null,null,null,null,null,null,0,0,0]
[null,null,null,"○","Los supervisores entre pares están cualificados y recopilan y analizan de forma sistemática y rutinaria datos cualitativos y cuantitativos sobre la prestación de servicios relacionados con el VIH",null,null,null,null,null,null,0,0,0]
[null,null,null,"○","Hay equipos de seguimiento dirigidos por la comunidad para responder a los déficits en la prestación de servicios relacionados con el VIH dentro de las comunidades",null,null,null,null,null,null,0,0,0]
[null,null,null,"○","Cuenta con la colaboración de diferentes redes de personas que viven con el VIH (PVVIH) y de las organizaciones de las comunidades afectadas",null,null,null,null,null,null,0,0,0]
[null,null,null,"○","Los recopiladores de datos y otros miembros de la comunidad que participan en las tareas de seguimiento reciben una remuneración conforme a las prácticas y estándares nacionales",null,null,null,null,null,null,0,0,0]
[null,null,null,"○","Las comunidades de HSH reciben formación y apoyo para evaluar las instalaciones sanitarias y celebrar asambleas públicas para la rendición de cuentas ",null,null,null,null,null,null,0,0,0]
[null,null,"Seguimiento del sistema de referencias","Existen sistemas de seguimiento de las referencias y derivaciones, e incluyen:",null,null,null,null,null,{"$f":"O321","v":"-"},null,null,null,null,{"$f":"IFERROR(ROUND(AVERAGEIF(L322:N326,\"<>0\",L322:N326),0),\"-\")","v":"-"}]
[null,null,null,"○","Una herramienta para hacer referencias o derivaciones que esté ampliamente disponible y que incluya unos procedimientos estándar claros",null,null,null,null,null,null,{"$f":"IF(ISBLANK(G322),0,1)","v":0},{"$f":"IF(ISBLANK(H322),0,3)","v":0},{"$f":"IF(ISBLANK(I322),0,5)","v":0}]
[null,null,null,"○","Un directorio de contactos de referencia tanto en las instalaciones como en las organizaciones dirigidas por pares ",null,null,null,null,null,null,0,0,0]
[null,null,null,"○","Un registro de los resultados ",null,null,null,null,null,null,0,0,0]
[null,null,null,"○","Mecanismos para que los pacientes y proveedores de servicios (referidos o derivados) envíen sus comentarios y aportaciones ",null,null,null,null,null,null,0,0,0]
[null,null,null,"○","Informes de referencias (mensuales) para supervisar la eficacia del sistema de derivaciones",null,null,null,null,null,null,0,0,0]
[null,null,"Evaluación de la calidad","Se han definido sistemas para recopilar datos sobre la calidad del programa y sus indicadores relacionados, y:\n",null,null,null,null,null,{"$f":"O327","v":"-"},null,null,null,null,{"$f":"IFERROR(ROUND(AVERAGEIF(L328:N331,\"<>0\",L328:N331),0),\"-\")","v":"-"}]
[null,null,null,"○","Se recopilan datos precisos",null,null,null,null,null,null,{"$f":"IF(ISBLANK(G328),0,1)","v":0},{"$f":"IF(ISBLANK(H328),0,3)","v":0},{"$f":"IF(ISBLANK(I328),0,5)","v":0}]
[null,null,null,"○","Se actúa en base a los datos recopilados ",null,null,null,null,null,null,0,0,0]
[null,null,null,"○","Los mecanismos de feedback permiten a los HSH evaluar los servicios recibidos, a fin de realizar un seguimiento de la calidad del programa",null,null,null,null,null,null,0,0,0]
[null,null,null,"○","Los datos se auditan con regularidad ",null,null,null,null,null,null,0,0,0]
[null,null,"Vigilancia ","La vigilancia permite una descripción precisa del contexto y los resultados/impacto del programa para HSH. Vigilancia: \n",null,null,null,null,null,{"$f":"O332","v":"-"},null,null,null,null,{"$f":"IFERROR(ROUND(AVERAGEIF(L333:N336,\"<>0\",L333:N336),0),\"-\")","v":"-"}]
[null,null,null,"○","Los resultados del estudio se utilizan para tomar decisiones informadas y llevar a cabo acciones correctivas ",null,null,null,null,null,null,{"$f":"IF(ISBLANK(G333),0,1)","v":0},{"$f":"IF(ISBLANK(H333),0,3)","v":0},{"$f":"IF(ISBLANK(I333),0,5)","v":0}]
[null,null,null,"○","Implica el análisis y la interpretación de los datos en intervalos regulares ",null,null,null,null,null,null,0,0,0]
[null,null,null,"○","Implica la difusión regular de información para satisfacer las necesidades a nivel local, regional y nacional ",null,null,null,null,null,null,0,0,0]
[null,null,null,"○","Incluye encuestas biológicas y conductuales, encuestas de vigilancia centinela y otros estudios de investigación que analizan los indicadores para HSH ",null,null,null,null,null,null,0,0,0]
[null,null,"Datos para la toma de decisiones","La unidad nacional de programación, seguimiento y evaluación del Ministerio de Sanidad, o el organismo equivalente, supervisa/coordina la recopilación de datos de seguimiento, encuestas y vigilancia, y:",null,null,null,null,null,{"$f":"O337","v":"-"},null,null,null,null,{"$f":"IFERROR(ROUND(AVERAGEIF(L338:N345,\"<>0\",L338:N345),0),\"-\")","v":"-"}]
[null,null,null,"○","Comparte datos con el grupo técnico de trabajo de HSH",null,null,null,null,null,null,{"$f":"IF(ISBLANK(G338),0,1)","v":0},{"$f":"IF(ISBLANK(H338),0,3)","v":0},{"$f":"IF(ISBLANK(I338),0,5)","v":0}]
[null,null,null,"○","El grupo técnico de trabajo de HSH analiza los datos del programa trimestralmente e identifica las áreas en las que hay que aplicar acciones correctivas",null,null,null,null,null,null,0,0,0]
[null,null,null,"○","El grupo técnico de trabajo de HSH ayuda en el desarrollo de estrategias para solucionar la falta de información o servicios ",null,null,null,null,null,null,0,0,0]
[null,null,null,"○","Se recopilan datos de buena calidad (válidos, fiables, consistentes, precisos, oportunos y relevantes) para satisfacer la mayoría de las necesidades de información, y se analizan aquellas áreas que requieran datos adicionales ",null,null,null,null,null,null,0,0,0]
[null,null,null,"○","Los datos se utilizan de manera consistente y adecuada para tomar decisiones informadas ",null,null,null,null,null,null,0,0,0]
[null,null,null,"○","Se han eliminado los duplicados en los datos entre los colaboradores en la implementación y, si queda algún duplicado, es mínimo",null,null,null,null,null,null,0,0,0]
[null,null,null,"○","Los datos se recopilan de forma centralizada, pero se pueden separar por localidad, sexo y edad",null,null,null,null,null,null,0,0,0]
[null,null,null,"○","El programa proporciona datos para que el grupo técnico de trabajo los revise",null,null,null,null,null,null,0,0,0]
[null,null,"Uso de un código de identificación único para el seguimiento de los programas","Se utiliza este sistema para supervisar el rendimiento del programa y comprobar que funcione adecuadamente",null,null,null,null,null,{"$f":"O346","v":"-"},null,null,null,null,{"$f":"IFERROR(ROUND(AVERAGEIF(L347:N350,\"<>0\",L347:N350),0),\"-\")","v":"-"}]
[null,null,null,"○","Un mismo país puede utilizar varios códigos de identificación únicos, pero están armonizados",null,null,null,null,null,null,{"$f":"IF(ISBLANK(G347),0,1)","v":0},{"$f":"IF(ISBLANK(H347),0,3)","v":0},{"$f":"IF(ISBLANK(I347),0,5)","v":0}]
[null,null,null,"○","El programa nacional utiliza datos agregados con códigos de identificación únicos",null,null,null,null,null,null,0,0,0]
[null,null,null,"○","El código de identificación único es capaz de distinguir el contacto/alcance para evitar la duplicación ",null,null,null,null,null,null,0,0,0]
[null,null,null,"○","El código de identificación único es electrónico",null,null,null,null,null,null,0,0,0]
[null,null,"Supervisión presupuestaria","Se integra el seguimiento del rendimiento financiero y no financiero del programa para chicas adolescentes y mujeres jóvenes, y se generan informes rutinarios: ",null,null,null,null,null,{"$f":"O351","v":"-"},null,null,null,null,{"$f":"IFERROR(ROUND(AVERAGEIF(L352:N354,\"<>0\",L352:N354),0),\"-\")","v":"-"}]
[null,null,null,"○","Se puede acceder fácilmente a los datos sobre los gastos en intervenciones relacionadas con los HSH a nivel nacional ",null,null,null,null,null,null,{"$f":"IF(ISBLANK(G352),0,1)","v":0},{"$f":"IF(ISBLANK(H352),0,3)","v":0},{"$f":"IF(ISBLANK(I352),0,5)","v":0}]
[null,null,null,"○","Existen mecanismos de rendición de cuentas analizar los gastos que no hayan agotado el presupuesto ",null,null,null,null,null,null,0,0,0]
[null,null,null,"○","Los datos financieros y no financieros se utilizan para medir la relación calidad-precio",null,null,null,null,null,null,0,0,0]
[null,null,"Resultados del programa"]
[null,null,"Resultados e indicadores"]
[null,null,"Elemento","Criterios",null,"N/A","Sin seguimiento ","Objetivo no cumplido o no en proceso ","Objetivo cumplido o en proceso ","Promedio del elemento","Comentarios (si procede) "]
[null,null,"Estimaciones disponibles del tamaño de la población de HSH",null,null,null,null,null,null,{"$f":"O358","v":"-"},null,{"$f":"IF(ISBLANK(G358),0,1)","v":0},{"$f":"IF(ISBLANK(H358),0,3)","v":0},{"$f":"IF(ISBLANK(I358),0,5)","v":0},{"$f":"IFERROR(ROUND(AVERAGEIF(L358:N358,\"<>0\",L358:N358),0),\"-\")","v":"-"}]
[null,null,"La estrategia de prevención incluye elementos clave del paquete de prevención para HSH",null,null,null,null,null,null,"-",null,0,0,0,"-"]
[null,null,"HSH que viven con el VIH y conocen su estado serológico (objetivo del 90 %)",null,null,null,null,null,null,"-",null,0,0,0,"-"]
[null,null,"HSH que viven con el VIH en terapia antirretroviral (objetivo del 90 %)",null,null,null,null,null,null,"-",null,0,0,0,"-"]
[null,null,"HSH que han recibido un mínimo de 2 intervenciones de prevención del VIH en los últimos 3 meses",null,null,null,null,null,null,"-",null,0,0,0,"-"]
[null,null,"HSH que viven con el VIH y que tienen cargas virales indetectables (objetivo del 90 %)",null,null,null,null,null,null,"-",null,0,0,0,"-"]
[null,null," % de HSH que no buscaron atención sanitaria debido al estigma y a la discriminación",null,null,null,null,null,null,"-",null,0,0,0,"-"]
[null,null,"Criminalización de actos sexuales entre personas del mismo sexo",null,null,null,null,null,null,"-",null,0,0,0,"-"]
[null,null,"Uso de preservativo en la última relación sexual con penetración anal entre HSH (objetivo del 80 %)",null,null,null,null,null,null,"-",null,0,0,0,"-"]
[null,null,null,null,null,null,null,null,null,null,null,null,{"$f":"COUNTIF(O6:O366,\"-\")","v":64}]
[null,null,null,null,null,null,null,null,null,null,null,null,{"$f":"COUNTIF(O6:O366,\">0\")","v":0}]
[null,null,null,null,null,null,null,null,null,null,null,"Sheet Completion",{"$f":"M368/(M367+M368)","v":0},{"$f":"1-M369","v":1}]

{"sheet":"Personas transgénero","index":6,"n_rows":371,"n_cols":16,"rows_kept":371,"cut":false,"hidden":false,"merged":[[16,9,21,9],[22,9,27,9],[28,9,34,9],[35,9,41,9],[42,9,46,9],[49,9,52,9],[53,9,57,9],[1,2,1,9],[4,3,4,4],[5,2,15,2],[5,3,5,4],[5,9,15,9],[16,3,16,4],[22,3,22,4],[42,3,42,4],[48,3,48,4],[16,2,21,2],[22,2,27,2],[28,2,34,2],[28,3,28,4],[35,2,41,2],[35,3,35,4],[42,2,46,2],[107,9,111,9],[112,9,121,9],[122,9,128,9],[138,9,142,9],[145,9,152,9],[49,2,52,2],[49,3,49,4],[53,2,57,2],[53,3,53,4],[59,3,59,4],[60,2,61,2],[62,2,65,2],[68,8,69,8],[70,9,73,9],[66,9,67,9],[68,9,69,9],[60,3,60,4],[62,3,62,4],[60,9,61,9],[62,9,65,9],[70,2,73,2],[77,2,84,2],[85,2,91,2],[85,3,85,4],[153,9,158,9],[159,9,165,9],[168,9,171,9],[172,9,182,9],[183,9,188,9],[189,9,192,9],[193,9,198,9],[199,9,208,9],[209,9,215,9],[216,9,221,9],[222,9,224,9],[225,9,227,9],[230,9,235,9],[238,9,245,9],[246,9,253,9],[254,9,257,9],[259,9,261,9],[318,9,323,9],[324,9,328,9],[329,9,333,9],[334,9,342,9],[343,9,347,9],[348,9,351,9],[352,10,354,10],[262,9,266,9],[267,9,270,9],[271,9,278,9],[279,9,288,9],[289,9,299,9],[302,9,309,9],[310,9,317,9],[66,10,67,10],[66,11,67,11],[66,12,67,12],[66,13,67,13],[66,14,67,14],[66,2,67,2],[66,3,67,3],[66,4,67,4],[66,5,67,5],[66,6,67,6],[66,7,67,7],[66,8,67,8],[92,2,95,2],[92,3,92,4],[96,2,104,2],[68,10,69,10],[68,14,69,14],[68,2,69,2],[68,3,69,3],[68,4,69,4],[68,5,69,5],[68,6,69,6],[68,7,69,7],[76,3,76,4],[77,9,84,9],[85,9,91,9],[92,9,95,9],[96,9,104,9],[172,3,172,4],[183,3,183,4],[189,3,189,4],[193,3,193,4],[199,3,199,4],[209,3,209,4],[222,3,222,4],[77,3,77,4],[96,3,96,4],[106,3,106,4],[216,3,216,4],[254,2,257,2],[259,2,261,2],[262,2,266,2],[267,2,270,2],[271,2,278,2],[279,2,288,2],[289,2,299,2],[129,3,129,4],[129,9,137,9],[209,2,215,2],[216,2,221,2],[222,2,224,2],[225,2,227,2],[230,2,235,2],[238,2,245,2],[246,2,253,2],[167,3,167,4],[168,2,171,2],[172,2,182,2],[183,2,188,2],[189,2,192,2],[193,2,198,2],[199,2,208,2],[168,3,168,4],[289,3,289,4],[301,3,301,4],[302,3,302,4],[310,3,310,4],[318,3,318,4],[324,3,324,4],[329,3,329,4],[360,2,360,4],[361,2,361,4],[302,2,309,2],[310,2,317,2],[318,2,323,2],[324,2,328,2],[329,2,333,2],[334,2,342,2],[343,2,347,2],[348,2,351,2],[362,2,362,4],[363,2,363,4],[364,2,364,4],[365,2,365,4],[366,2,366,4],[367,2,367,4],[334,3,334,4],[343,3,343,4],[348,3,348,4],[356,3,356,4],[357,2,357,4],[358,2,358,4],[359,2,359,4],[107,2,111,2],[107,3,107,4],[112,2,121,2],[112,3,112,4],[122,2,128,2],[122,3,122,4],[129,2,137,2],[153,3,153,4],[159,3,159,4],[138,2,142,2],[138,3,138,4],[144,3,144,4],[145,2,152,2],[145,3,145,4],[153,2,158,2],[159,2,165,2],[262,3,262,4],[267,3,267,4],[271,3,271,4],[279,3,279,4],[225,3,225,4],[229,3,229,4],[230,3,230,4],[237,3,237,4],[238,3,238,4],[246,3,246,4],[254,3,254,4],[258,3,258,4],[259,3,259,4]]}
[]
[null,null,"Gestión del programa"]
[]
[null,null,"Liderazgo y coordinación"]
[null,null,"Elemento","Criterios",null,"N/A","Ausente","Presente pero no óptimo","Presente y funcionando bien","Promedio del elemento","Comentarios (si procede)","Absent","Present","Optimal","Average","Sustainability Single Figure"]
[null,null,"Estrategia nacional para grupos de población clave","Las personas transgénero están incluidas en la estrategia nacional para grupos de población clave y en la estrategia nacional de prevención del VIH:",null,null,null,null,null,{"$f":"O6","v":"-"},null,null,null,null,{"$f":"IFERROR(ROUND(AVERAGEIF(L7:N16,\"<>0\",L7:N16),0),\"-\")","v":"-"}]
[null,null,null,"○","Las personas transgénero han participado en el desarrollo del plan estratégico ",null,null,null,null,null,null,{"$f":"IF(ISBLANK(G7),0,1)","v":0},{"$f":"IF(ISBLANK(H7),0,3)","v":0},{"$f":"IF(ISBLANK(I7),0,5)","v":0}]
[null,null,null,"○","Se han definido claramente las metas y objetivos del programa para personas transgénero ",null,null,null,null,null,null,0,0,0]
[null,null,null,"○","Se ha definido claramente a la comunidad transgénero según las directrices de la Organización Mundial de la Salud (OMS)",null,null,null,null,null,null,0,0,0]
[null,null,null,"○","El plan reconoce las vulnerabilidades específicas de las personas transgénero por género y por edad",null,null,null,null,null,null,0,0,0]
[null,null,null,"○","Se ha articulado un modelo lógico claro o una teoría del cambio  ",null,null,null,null,null,null,0,0,0]
[null,null,null,"○","El plan incluye un paquete integral de intervenciones y actividades basadas en la evidencia que están en línea con las herramientas de implementación para personas transgénero. Estas herramientas incluyen las intervenciones del sector no sanitario (ej.: empoderamiento comunitario, abordaje de la violencia, reducción del estigma, etc.), y están adaptadas para abordar vulnerabilidades específicas.",null,null,null,null,null,null,0,0,0]
[null,null,null,"○","Se ha definido claramente el proceso de escalado y se han asignado responsabilidades ",null,null,null,null,null,null,0,0,0]
[null,null,null,"○","Hay planes de financiación ",null,null,null,null,null,null,0,0,0]
[null,null,null,"○","Se ha definido un marco de seguimiento y evaluación con indicadores y objetivos básicos",null,null,null,null,null,null,0,0,0]
[null,null,null,"○","Se ha definido claramente el mecanismo de implementación",null,null,null,null,null,null,0,0,0]
[null,null,"Rendición de cuentas","El departamento/ministerio responsable del éxito del programa para personas transgénero ejerce un sólido liderazgo/autoridad:",null,null,null,null,null,{"$f":"O17","v":"-"},null,null,null,null,{"$f":"IFERROR(ROUND(AVERAGEIF(L18:N22,\"<>0\",L18:N22),0),\"-\")","v":"-"}]
[null,null,null,"○","Todos los proyectos del país envían información sobre indicadores clave de forma rutinaria al gobierno, tanto central como regional, e incluyen indicadores comunes",null,null,null,null,null,null,{"$f":"IF(ISBLANK(G18),0,1)","v":0},{"$f":"IF(ISBLANK(H18),0,3)","v":0},{"$f":"IF(ISBLANK(I18),0,5)","v":0}]
[null,null,null,"○","Al generar informes, los datos se anonimizan y protegen para proteger a las personas transgénero  ",null,null,null,null,null,null,0,0,0]
[null,null,null,"○","Se realizan revisiones programáticas periódicas utilizando datos programáticos",null,null,null,null,null,null,0,0,0]
[null,null,null,"○","El ministerio responsable del programa asiste a las reuniones de coordinación pertinentes",null,null,null,null,null,null,0,0,0]
[null,null,null,"○","El grupo técnico de trabajo (GTT) para este grupo de población clave (con representantes de las personas transgénero) participa para asegurar la rendición de cuentas ",null,null,null,null,null,null,0,0,0]
[null,null,"Grupo técnico de trabajo técnico para las personas transgénero ","Se ha establecido un grupo técnico de trabajo tanto a nivel nacional como regional (los países pueden tener GTT para los grupos de población clave en los que las personas transgénero estén incluidas), y:",null,null,null,null,null,{"$f":"O23","v":"-"},null,null,null,null,{"$f":"IFERROR(ROUND(AVERAGEIF(L24:N28,\"<>0\",L24:N28),0),\"-\")","v":"-"}]
[null,null,null,"○","Se reúnen regularmente ",null,null,null,null,null,null,{"$f":"IF(ISBLANK(G24),0,1)","v":0},{"$f":"IF(ISBLANK(H24),0,3)","v":0},{"$f":"IF(ISBLANK(I24),0,5)","v":0}]
[null,null,null,"○","El grupo técnico de trabajo está completo e incluye a las Organizaciones de la Sociedad Civil,, a los colaboradores en la implementación y a miembros de la comunidad transgénero",null,null,null,null,null,null,0,0,0]
[null,null,null,"○","El grupo técnico de trabajo dispone de mecanismos de comunicación para garantizar la coordinación",null,null,null,null,null,null,0,0,0]
[null,null,null,"○","Tiene una lista de términos de referencia o ha definido su ámbito de trabajo ",null,null,null,null,null,null,0,0,0]
[null,null,null,"○","Los miembros del colectivo de personas transgénero están incluidos",null,null,null,null,null,null,0,0,0]
[null,null,"Coordinación de los organismos interesados","Existen mecanismos para garantizar que se logre una buena coordinación a todos los niveles, y que sea coherente con: ",null,null,null,null,null,{"$f":"O29","v":"-"},null,null,null,null,{"$f":"IFERROR(ROUND(AVERAGEIF(L30:N35,\"<>0\",L30:N35),0),\"-\")","v":"-"}]
[null,null,null,"○","Socios financiadores (a nivel nacional)",null,null,null,null,null,null,{"$f":"IF(ISBLANK(G30),0,1)","v":0},{"$f":"IF(ISBLANK(H30),0,3)","v":0},{"$f":"IF(ISBLANK(I30),0,5)","v":0}]
[null,null,null,"○","Programas locales con iniciativas más grandes a nivel nacional ",null,null,null,null,null,null,0,0,0]
[null,null,null,"○","Personas transgénero",null,null,null,null,null,null,0,0,0]
[null,null,null,"○","Colaboradores en la implementación ",null,null,null,null,null,null,0,0,0]
[null,null,null,"○","El Ministerio de Sanidad o las Consejerías de Sanidad (a nivel nacional y regional)",null,null,null,null,null,null,0,0,0]
[null,null,null,"○","Se ha logrado una coordinación multisectorial con otros ministerios/departamentos (por ejemplo, de finanzas o de las fuerzas del orden)",null,null,null,null,null,null,0,0,0]
[null,null,"Desarrollo de capacidades y plan de asistencia técnica","Existe un plan de asistencia técnica que: ",null,null,null,null,null,{"$f":"O36","v":"-"},null,null,null,null,{"$f":"IFERROR(ROUND(AVERAGEIF(L37:N42,\"<>0\",L37:N42),0),\"-\")","v":"-"}]
[null,null,null,"○","Se ha desarrollado sobre la base de algunas evaluaciones ",null,null,null,null,null,null,{"$f":"IF(ISBLANK(G37),0,1)","v":0},{"$f":"IF(ISBLANK(H37),0,3)","v":0},{"$f":"IF(ISBLANK(I37),0,5)","v":0},null,{"$f":"IF(MAX(L37:N37)=0,\"\",MAX(L37:N37))","v":""}]
[null,null,null,"○","Involucra a expertos técnicos nacionales e internacionales, incluyéndose el desarrollo de capacidades y la asistencia técnica entre pares",null,null,null,null,null,null,0,0,0,null,""]
[null,null,null,"○","Ha priorizado los componentes del programa y las cuestiones políticas ",null,null,null,null,null,null,0,0,0,null,""]
[null,null,null,"○","Facilita el establecimiento y fortalecimiento de redes de implementadores ",null,null,null,null,null,null,0,0,0,null,""]
[null,null,null,"○","Identifica las lagunas y desarrolla solicitudes consolidadas de asistencia en los casos en los que falta experiencia a nivel nacional ",null,null,null,null,null,null,0,0,0,null,""]
[null,null,null,"○","Facilita el desarrollo de la capacidad de la comunidad transgénero para hacerse cargo de los programas para personas transgénero ",null,null,null,null,null,null,0,0,0,null,""]
[null,null,"Plan de sostenibilidad y hoja de ruta de la transición","Se ha establecido un plan completo de sostenibilidad y una hoja de ruta de la transición, que dan cuenta de la transición de intervenciones apoyadas por donantes a intervenciones con apoyo a nivel nacional. Incluyen datos como:  Tiene en cuenta los recursos, incluyendo: ",null,null,null,null,null,{"$f":"O43","v":"-"},null,null,null,null,{"$f":"IFERROR(ROUND(AVERAGEIF(L44:N47,\"<>0\",L44:N47),0),\"-\")","v":"-"},""]
[null,null,null,"○","Cálculo de costes unitarios para el grupo de población clave",null,null,null,null,null,null,{"$f":"IF(ISBLANK(G44),0,1)","v":0},{"$f":"IF(ISBLANK(H44),0,3)","v":0},{"$f":"IF(ISBLANK(I44),0,5)","v":0},null,""]
[null,null,null,"○","Análisis general de la financiación para el grupo de población clave",null,null,null,null,null,null,0,0,0,null,""]
[null,null,null,"○","Planificación hacia la integración de los servicios para PC en la atención primaria",null,null,null,null,null,null,0,0,0]
[null,null,null,"○","Consideraciones sobre las necesidades financieras, de infraestructura y de personal",null,null,null,null,null,null,0,0,0,null,{"$f":"IF(MAX(L47:N47)=0,\"\",MAX(L47:N47))","v":""}]
[null,null,"Leyes, políticas y normativas"]
[null,null,"Elemento","Criterios",null,"N/A","Ausente","Presente pero no óptimo","Presente y funcionando bien","Promedio del elemento","Comentarios (si procede)"]
[null,null,"Leyes y políticas ","Políticas vigentes que promueven activamente el buen funcionamiento del programa: ",null,null,null,null,null,{"$f":"O50","v":"-"},null,null,null,null,{"$f":"IFERROR(ROUND(AVERAGEIF(L51:N53,\"<>0\",L51:N53),0),\"-\")","v":"-"}]
[null,null,null,"○","Existen políticas en vigor que promueven activamente el acceso de las personas transgénero a los servicios, incluyendo a los adolescentes ",null,null,null,null,null,null,{"$f":"IF(ISBLANK(G51),0,1)","v":0},{"$f":"IF(ISBLANK(H51),0,3)","v":0},{"$f":"IF(ISBLANK(I51),0,5)","v":0}]
[null,null,null,"○","Existen políticas en vigor que apoyan a las personas transgénero para que tengan acceso a los servicios, a pesar de las leyes que penalizan el uso de drogas, el trabajo sexual y las relaciones sexuales entre personas del mismo sexo",null,null,null,null,null,null,0,0,0]
[null,null,null,"○","Existen políticas para reducir el estigma, la discriminación y la violencia contra las personas transgénero ",null,null,null,null,null,null,0,0,0]
[null,null,"Directrices","Existen unas directrices que detallan claramente los pasos a seguir para implementar con éxito este programa:",null,null,null,null,null,{"$f":"O54","v":"-"},null,null,null,null,{"$f":"IFERROR(ROUND(AVERAGEIF(L55:N58,\"<>0\",L55:N58),0),\"-\")","v":"-"}]
[null,null,null,"○","Existen directrices nacionales para cada una de las intervenciones y servicios conductuales, biomédicos y estructurales, y están en línea con las directrices a nivel mundial",null,null,null,null,null,null,{"$f":"IF(ISBLANK(G55),0,1)","v":0},{"$f":"IF(ISBLANK(H55),0,3)","v":0},{"$f":"IF(ISBLANK(I55),0,5)","v":0}]
[null,null,null,"○","Estas directrices se desarrollaron en colaboración con personas transgénero",null,null,null,null,null,null,0,0,0]
[null,null,null,"○","Las directrices a nivel nacional para los servicios de pruebas del VIH y de infecciones de transmisión sexual, de profilaxis preexposición y de suministro de preservativos tienen en cuenta las necesidades y prioridades de las personas transgénero",null,null,null,null,null,null,0,0,0]
[null,null,null,"○","Se han incorporado las medidas de prevención y control de la infección por COVID-19 a todas las estrategias, planes y directrices de prevención del VIH/dirigidas a personas transgénero",null,null,null,null,null,null,0,0,0]
[null,null,"Financiación"]
[null,null,"Elemento","Criterios",null,"N/A","Ausente","Presente pero no óptimo","Presente y funcionando bien","Promedio del elemento","Comentarios (si procede)"]
[null,null,"Cálculo de costes ","Hay un presupuesto nacional:",null,null,null,null,null,{"$f":"O61","v":"-"},null,null,null,null,{"$f":"IFERROR(ROUND(AVERAGEIF(L62:N62,\"<>0\",L62:N62),0),\"-\")","v":"-"}]
[null,null,null,"○","Se ha llevado a cabo un ejercicio de cálculo de costes y el programa nacional es consciente del coste promedio de alcanzar a una persona transgénero con un paquete estándar de servicios, según directrices ",null,null,null,null,null,null,{"$f":"IF(ISBLANK(G62),0,1)","v":0},{"$f":"IF(ISBLANK(H62),0,3)","v":0},{"$f":"IF(ISBLANK(I62),0,5)","v":0}]
[null,null,"Planificación de presupuestos","Hay un proceso de planificación presupuestaria para el programa de prevención del VIH, que tiene en cuenta a las personas transgénero y está bien gestionado.",null,null,null,null,null,{"$f":"O63","v":"-"},null,null,null,null,{"$f":"IFERROR(ROUND(AVERAGEIF(L64:N66,\"<>0\",L64:N66),0),\"-\")","v":"-"}]
[null,null,null,"○","Se está realizando una evaluación de los recursos disponibles para tratar de identificar las lagunas y asignar partidas presupuestarias a este programa",null,null,null,null,null,null,{"$f":"IF(ISBLANK(G64),0,1)","v":0},{"$f":"IF(ISBLANK(H64),0,3)","v":0},{"$f":"IF(ISBLANK(I64),0,5)","v":0},"-"]
[null,null,null,"○","Se ha desarrollado una estrategia para eliminar las faltas de financiación",null,null,null,null,null,null,0,0,0,"-"]
[null,null,null,"○","Los presupuestos están vinculados a las necesidades de recursos de los planes operativos para las unidades a nivel nacional y regional",null,null,null,null,null,null,0,0,0,"-"]
[null,null,"Movilización de recursos y financiación","○","Hay fondos suficientes para abordar las necesidades holísticas del programa",null,null,null,null,{"$f":"O67","v":"-"},null,0,0,0,{"$f":"IFERROR(ROUND(AVERAGEIF(L67:N67,\"<>0\",L67:N67),0),\"-\")","v":"-"},{"$f":"IF(MAX(L67:N67)=0,\"\",MAX(L67:N67))","v":""}]
[null,null,null,null,null,null,null,null,null,null,null,null,null,null,null,""]
[null,null,"Recursos nacionales ","○","Más del 50 % de los recursos que sustentan el programa (tanto humanos como financieros) son de original nacional",null,null,null,null,{"$f":"O69","v":"-"},null,null,null,null,{"$f":"IFERROR(ROUND(AVERAGEIF(L70:N70,\"<>0\",L70:N70),0),\"-\")","v":"-"},""]
[null,null,null,null,null,null,null,null,null,null,null,{"$f":"IF(ISBLANK(G69),0,1)","v":0},{"$f":"IF(ISBLANK(H69),0,3)","v":0},{"$f":"IF(ISBLANK(I69),0,5)","v":0},null,""]
[null,null,"Contratación social","○","Se han desarrollado y se están implementando mecanismos de contratación social",null,null,null,null,{"$f":"O71","v":"-"},null,{"$f":"IF(ISBLANK(G71),0,1)","v":0},{"$f":"IF(ISBLANK(H71),0,3)","v":0},{"$f":"IF(ISBLANK(I71),0,5)","v":0},{"$f":"IFERROR(ROUND(AVERAGEIF(L71:N74,\"<>0\",L71:N74),0),\"-\")","v":"-"}]
[null,null,null,"○","La información se hace circular ampliamente para que los socios implementadores locales y las organizaciones lideradas por personas transgénero tengan acceso a financiación",null,null,null,null,null,null,0,0,0]
[null,null,null,"○","Existe un mecanismo que permite que las organizaciones lideradas por la comunidad reciban financiación",null,null,null,null,null,null,0,0,0]
[null,null,null,"○","Los fondos se conceden a las organizaciones lideradas por la comunidad ",null,null,null,null,null,null,0,0,0,null,{"$f":"IF(MAX(L74:N74)=0,\"\",MAX(L74:N74))","v":""}]
[null,null,"Implementación del programa"]
[null,null,"Definición de objetivos y planificación"]
[null,null,"Elemento","Criterios",null,"N/A","Ausente","Presente pero no óptimo","Presente y funcionando bien","Promedio del elemento","Comentarios (si procede)"]
[null,null,"Evaluación demográfica (estimación del tamaño de la población y microplanificación)","Se ha realizado una estimación del tamaño de la población y una microplanificación, y:",null,null,null,null,null,{"$f":"O78","v":"-"},null,null,null,null,{"$f":"IFERROR(ROUND(AVERAGEIF(L79:N85,\"<>0\",L79:N85),0),\"-\")","v":"-"}]
[null,null,null,"○","Se han basado en cada lugar (a nivel local, no de país o región)",null,null,null,null,null,null,{"$f":"IF(ISBLANK(G79),0,1)","v":0},{"$f":"IF(ISBLANK(H79),0,3)","v":0},{"$f":"IF(ISBLANK(I79),0,5)","v":0}]
[null,null,null,"○","Garantizan la confidencialidad de los centros de actividad y el anonimato de las personas, y no se comparten datos con las fuerzas del orden",null,null,null,null,null,null,0,0,0]
[null,null,null,"○","Se actualizan anualmente o cada vez que se realiza una encuesta bioconductual",null,null,null,null,null,null,0,0,0]
[null,null,null,"○","Se ha involucrado y contratado a miembros de la comunidad transgénero con formación o a redes de personas transgénero para llevar a cabo la estimación del tamaño de la población y la microplanificación",null,null,null,null,null,null,0,0,0]
[null,null,null,"○","Las estimaciones del tamaño de la población son precisas y están actualizadas ",null,null,null,null,null,null,0,0,0]
[null,null,null,"○","La información se utiliza para argumentar la necesidad de intervenciones conductuales, biomédicas y estructurales  ",null,null,null,null,null,null,0,0,0]
[null,null,null,"○","Esta información también se utiliza para estimar la necesidad de fondos y para determinar los objetivos",null,null,null,null,null,null,0,0,0]
[null,null,"Evaluación epidemiológica (encuesta de seroprevalencia y factores de riesgo)","Se dispone de estimaciones de seroprevalencia, y:",null,null,null,null,null,{"$f":"O86","v":"-"},null,null,null,null,{"$f":"IFERROR(ROUND(AVERAGEIF(L87:N92,\"<>0\",L87:N92),0),\"-\")","v":"-"}]
[null,null,null,"○","Se han basado en los estudios de vigilancia recientes o continuos (estimaciones modeladas actualizadas anualmente o datos de encuestas actualizados cada 3-5 años)",null,null,null,null,null,null,{"$f":"IF(ISBLANK(G87),0,1)","v":0},{"$f":"IF(ISBLANK(H87),0,3)","v":0},{"$f":"IF(ISBLANK(I87),0,5)","v":0}]
[null,null,null,"○","Específico para cada persona transgénero",null,null,null,null,null,null,0,0,0]
[null,null,null,"○","Los resultados son precisos: el tamaño de la muestra es estadísticamente representativo (y se ha determinado adecuadamente), y el método de muestreo es apropiado para personas transgénero (muestreo temporal y espacial y muestreo de conveniencia)",null,null,null,null,null,null,0,0,0]
[null,null,null,"○","Se han realizado regularmente evaluaciones de los factores de riesgo para personas transgénero, a fin de recabar información para el programa, y:",null,null,null,null,null,null,0,0,0]
[null,null,null,null,"> Son específicas para personas transgénero y tienen en cuenta los comportamientos específicos en función de la edad y del género ",null,null,null,null,null,null,0,0,0]
[null,null,null,null,"> Los estudios son de buena calidad y proporcionan información exhaustiva  ",null,null,null,null,null,null,0,0,0]
[null,null,"Evaluación de necesidades","Se ha realizado una evaluación de necesidades de las personas transgénero a nivel de implementación o local:",null,null,null,null,null,{"$f":"O93","v":"-"},null,null,null,null,{"$f":"IFERROR(ROUND(AVERAGEIF(L94:N96,\"<>0\",L94:N96),0),\"-\")","v":"-"}]
[null,null,null,"○","Se han determinado las necesidades con la participación de personas transgénero y redes u organizaciones lideradas por personas transgénero",null,null,null,null,null,null,{"$f":"IF(ISBLANK(G94),0,1)","v":0},{"$f":"IF(ISBLANK(H94),0,3)","v":0},{"$f":"IF(ISBLANK(I94),0,5)","v":0}]
[null,null,null,"○","Hay suficiente información sobre los servicios que las personas transgénero necesitan, cómo preferirían acceder a los servicios y quién debería proporcionarlos ",null,null,null,null,null,null,0,0,0]
[null,null,null,"○","Hay información detallada sobre las áreas que presentan lagunas en la prestación de servicios o barreras de acceso",null,null,null,null,null,null,0,0,0]
[null,null,"Determinación de objetivos","Se han definido claramente los objetivos para las personas transgénero, y:",null,null,null,null,null,{"$f":"O97","v":"-"},null,null,null,null,{"$f":"IFERROR(ROUND(AVERAGEIF(L98:N105,\"<>0\",L98:N105),0),\"-\")","v":"-"}]
[null,null,null,"○","Se basan en la estimación del tamaño y los datos de evaluación de riesgos",null,null,null,null,null,null,{"$f":"IF(ISBLANK(G98),0,1)","v":0},{"$f":"IF(ISBLANK(H98),0,3)","v":0},{"$f":"IF(ISBLANK(I98),0,5)","v":0}]
[null,null,null,"○","Se han desarrollado para personas transgénero  ",null,null,null,null,null,null,0,0,0]
[null,null,null,"○","Incluyen especificaciones a nivel nacional y regional ",null,null,null,null,null,null,0,0,0]
[null,null,null,"○","Incluyen los logros ya alcanzados y los logros que se espera alcanzar al final ",null,null,null,null,null,null,0,0,0]
[null,null,null,"○","Se han desarrollado en colaboración con implementadores y redes de personas transgénero para garantizar que sean realistas",null,null,null,null,null,null,0,0,0]
[null,null,null,"○","Están en línea con los presupuestos y los acuerdos formales con los implementadores a nivel local",null,null,null,null,null,null,0,0,0]
[null,null,null,"○","Están divididos por edad y sexo",null,null,null,null,null,null,0,0,0]
[null,null,null,"○","Los objetivos del Fondo mundial para la lucha contra el VIH/SIDA, la tuberculosis y la malaria y del Plan de Emergencia del Presidente de los Estados Unidos para el Alivio del Sida (PEPFAR) se refieren a las estimaciones de tamaño y objetivos nacionales  ",null,null,null,null,null,null,0,0,0]
[null,null,"Acuerdo de implementación "]
[null,null,"Elemento","Criterios",null,"N/A","Ausente","Presente pero no óptimo","Presente y funcionando bien","Promedio del elemento","Comentarios (si procede)"]
[null,null,"Mantener una plataforma de acceso","Hay una plataforma de acceso que promueve los esfuerzos coordinados de la comunidad y y de los servicios sanitarios, y que:",null,null,null,null,null,{"$f":"O108","v":"-"},null,null,null,null,{"$f":"IFERROR(ROUND(AVERAGEIF(L109:N112,\"<>0\",L109:N112),0),\"-\")","v":"-"}]
[null,null,null,"○","Genera confianza en toda la comunidad a través de los trabajadores de asistencia social entre iguales ",null,null,null,null,null,null,{"$f":"IF(ISBLANK(G109),0,1)","v":0},{"$f":"IF(ISBLANK(H109),0,3)","v":0},{"$f":"IF(ISBLANK(I109),0,5)","v":0}]
[null,null,null,"○","Llega a un gran número de personas transgénero, y fomenta su aceptación, fidelización y participación activa en el programa",null,null,null,null,null,null,0,0,0]
[null,null,null,"○","Fomenta la captación y fidelización de las personas transgénero",null,null,null,null,null,null,0,0,0]
[null,null,null,"○","Fomenta la participación activa de las personas transgénero",null,null,null,null,null,null,0,0,0]
[null,null,"Estructura de gestión","Se ha definido el proceso de estructura de gestión, y:  ",null,null,null,null,null,{"$f":"O113","v":"-"},null,null,null,null,{"$f":"IFERROR(ROUND(AVERAGEIF(L114:N122,\"<>0\",L114:N122),0),\"-\")","v":"-"}]
[null,null,null,"○","Existen unos términos de referencia (TR) claros que describen los roles y responsabilidades de cada puesto, incluidos los del personal de instalaciones y a nivel comunitario",null,null,null,null,null,null,{"$f":"IF(ISBLANK(G114),0,1)","v":0},{"$f":"IF(ISBLANK(H114),0,3)","v":0},{"$f":"IF(ISBLANK(I114),0,5)","v":0}]
[null,null,null,"○","Hay una ratio adecuada entre trabajadores de asistencia social entre iguales y miembros de la comunidad"]
[null,null,null,"○","Hay unas directrices para reclutar, retener, evaluar y promover el trabajo de asistencia social entre iguales ",null,null,null,null,null,null,{"$f":"IF(ISBLANK(G116),0,1)","v":0},{"$f":"IF(ISBLANK(H116),0,3)","v":0},{"$f":"IF(ISBLANK(I116),0,5)","v":0}]
[null,null,null,"○","Todas las personas que trabajan en el proyecto reciben remuneración ",null,null,null,null,null,null,0,0,0]
[null,null,null,"○","Los supervisores entre pares garantizan el adecuado seguimiento de los trabajadores de asistencia social entre iguales (TASEI)",null,null,null,null,null,null,0,0,0]
[null,null,null,"○","Se ha definido una estrategia de promoción y un plan de progresión de carrera para los TASEI y los profesionales de la comunicación para el cambio conductual y social ",null,null,null,null,null,null,0,0,0]
[null,null,null,"○","Se ha establecido un mecanismo formal de referencias ",null,null,null,null,null,null,0,0,0]
[null,null,null,"○","Los sitios de destino están equipados para recibir servicios (los sitios de destino son los puntos en los que se proporcionarán servicios, como clínicas, hospitales, centros comunitarios, etc.)",null,null,null,null,null,null,0,0,0]
[null,null,null,"○","La microplanificación se utiliza para priorizar y gestionar el alcance, y para identificar a los beneficiarios que están más en riesgo",null,null,null,null,null,null,0,0,0]
[null,null,"Flujo de datos ","Se han definido flujos de datos para cada nivel, y:",null,null,null,null,null,{"$f":"O123","v":"-"},null,null,null,null,{"$f":"IFERROR(ROUND(AVERAGEIF(L124:N129,\"<>0\",L124:N129),0),\"-\")","v":"-"}]
[null,null,null,"○","Se han desarrollado y probado los sistemas de datos ",null,null,null,null,null,null,{"$f":"IF(ISBLANK(G124),0,1)","v":0},{"$f":"IF(ISBLANK(H124),0,3)","v":0},{"$f":"IF(ISBLANK(I124),0,5)","v":0}]
[null,null,null,"○","Se han definido claramente los indicadores estándar para el seguimiento del programa de PC",null,null,null,null,null,null,0,0,0]
[null,null,null,"○","Se han desarrollado herramientas estandarizadas para generar informes ",null,null,null,null,null,null,0,0,0]
[null,null,null,"○","Los datos programáticos se comunican y revisan mensualmente ",null,null,null,null,null,null,0,0,0]
[null,null,null,"○","Hay sistemas para mantener la confidencialidad de los datos ",null,null,null,null,null,null,0,0,0]
[null,null,null,"○","Se ha desarrollado un sistema de código de identificación único ",null,null,null,null,null,null,0,0,0]
[null,null,"Trabajadores de asistencia social entre iguales (TASEI)","El programa emplea trabajadores de asistencia social entre iguales de manera efectiva:\n",null,null,null,null,null,{"$f":"O130","v":"-"},null,null,null,null,{"$f":"IFERROR(ROUND(AVERAGEIF(L131:N138,\"<>0\",L131:N138),0),\"-\")","v":"-"}]
[null,null,null,"○","Los TASEI forman parte de la comunidad transgénero a la que representan o sirven",null,null,null,null,null,null,{"$f":"IF(ISBLANK(G131),0,1)","v":0},{"$f":"IF(ISBLANK(H131),0,3)","v":0},{"$f":"IF(ISBLANK(I131),0,5)","v":0}]
[null,null,null,"○","Hay un plan de formación disponible, que es apropiado e incluye formación sanitaria para actualizar el conocimiento de los TASEI sobre las necesidades específicas de la comunidad transgénero",null,null,null,null,null,null,0,0,0]
[null,null,null,"○","Los TASEI tienen formación en microplanificación y divulgación",null,null,null,null,null,null,0,0,0]
[null,null,null,"○","Existe un plan de formación por niveles para mejorar las habilidades, la confianza y el liderazgo de los TASEI ",null,null,null,null,null,null,0,0,0]
[null,null,null,"○","Hay herramientas de divulgación disponibles para movilizar a la comunidad y promover el acceso a los servicios",null,null,null,null,null,null,0,0,0]
[null,null,null,"○","Se emplean mensajes y materiales de comunicación basados en la evidencia",null,null,null,null,null,null,0,0,0]
[null,null,null,"○","Se proporciona información sobre los servicios disponibles, y se facilita a los beneficiarios el acceso a los servicios ",null,null,null,null,null,null,0,0,0]
[null,null,null,"○","Se ofrece asesoramiento y apoyo emocional para llevar a cabo el tratamiento",null,null,null,null,null,null,0,0,0]
[null,null,"Participación significativa de las comunidades afectadas en el liderazgo y la coordinación","Las organizaciones o redes lideradas por personas transgénero tienen representación en el órgano nacional de coordinación o en el grupo técnico de trabajo técnico, y:\n\n",null,null,null,null,null,{"$f":"O139","v":"-"},null,null,null,null,{"$f":"IFERROR(ROUND(AVERAGEIF(L140:N143,\"<>0\",L140:N143),0),\"-\")","v":"-"}]
[null,null,null,"○","Se reúnen regularmente",null,null,null,null,null,null,{"$f":"IF(ISBLANK(G140),0,1)","v":0},{"$f":"IF(ISBLANK(H140),0,3)","v":0},{"$f":"IF(ISBLANK(I140),0,5)","v":0}]
[null,null,null,"○","Participan activamente en los procesos de toma de decisiones en igualdad de condiciones ",null,null,null,null,null,null,0,0,0]
[null,null,null,"○","Reciben apoyo para solicitar feedback e informar sobre las decisiones clave a los grupos que representan",null,null,null,null,null,null,0,0,0]
[null,null,null,"○","Se ha comprobado que se tienen en cuenta los comentarios, las aportaciones y el asesoramiento experto que la comunidad transgénero proporciona",null,null,null,null,null,null,0,0,0]
[null,null,"Prestación de servicios"]
[null,null,"Elemento","Criterios",null,"N/A","Ausente","Presente pero no óptimo","Presente y funcionando bien","Promedio del elemento","Comentarios (si procede)"]
[null,null,"Servicios accesibles","Los servicios son accesibles para las personas transgénero, y:",null,null,null,null,null,{"$f":"O146","v":"-"},null,null,null,null,{"$f":"IFERROR(ROUND(AVERAGEIF(L147:N153,\"<>0\",L147:N153),0),\"-\")","v":"-"}]
[null,null,null,"○","Están diseñados en base a la investigación formativa realizada en la evaluación de necesidades ",null,null,null,null,null,null,{"$f":"IF(ISBLANK(G147),0,1)","v":0},{"$f":"IF(ISBLANK(H147),0,3)","v":0},{"$f":"IF(ISBLANK(I147),0,5)","v":0}]
[null,null,null,"○","Están convenientemente ubicados en o cerca de centros de actividad",null,null,null,null,null,null,0,0,0]
[null,null,null,"○","Incluyen servicios móviles en caso de ser necesarios ",null,null,null,null,null,null,0,0,0]
[null,null,null,"○","Los horarios son adecuados para las personas transgénero a las que se dirigen ",null,null,null,null,null,null,0,0,0]
[null,null,null,"○","Están integrados con el sistema nacional de salud y ofrecen paquetes de atención integral ",null,null,null,null,null,null,0,0,0]
[null,null,null,"○","Cuentan con un suministro constante de servicios y productos",null,null,null,null,null,null,0,0,0]
[null,null,null,"○","Implican un cambio de tareas para permitir aumentar la capacidad de los proveedores de atención médica",null,null,null,null,null,null,0,0,0]
[null,null,"Servicios aceptables","Los servicios son aceptables para las personas transgénero, y:",null,null,null,null,null,{"$f":"O154","v":"-"},null,null,null,null,{"$f":"IFERROR(ROUND(AVERAGEIF(L155:N159,\"<>0\",L155:N159),0),\"-\")","v":"-"}]
[null,null,null,"○","Son confidenciales y voluntarios ",null,null,null,null,null,null,{"$f":"IF(ISBLANK(G155),0,1)","v":0},{"$f":"IF(ISBLANK(H155),0,3)","v":0},{"$f":"IF(ISBLANK(I155),0,5)","v":0}]
[null,null,null,"○","Los proveedores de asistencia son sensibles a las necesidades de las personas transgénero, y no juzgan ni estigmatizan",null,null,null,null,null,null,0,0,0]
[null,null,null,"○","Los proveedores de servicios están capacitados para poder ofrecer un paquete completo de intervención específico para personas transgénero  ",null,null,null,null,null,null,0,0,0]
[null,null,null,"○","Crean un entorno seguro y de apoyo ",null,null,null,null,null,null,0,0,0]
[null,null,null,"○","Las intervenciones online se llevan a cabo de manera ética, respetando la privacidad y confidencialidad de los clientes",null,null,null,null,null,null,0,0,0]
[null,null,"Servicios adaptados/apropiados","Los paquete de servicios y la prestación de los mismos están adaptados a las necesidades específicas de las personas transgénero en toda su diversidad:",null,null,null,null,null,{"$f":"O160","v":"-"},null,null,null,null,{"$f":"IFERROR(ROUND(AVERAGEIF(L161:N166,\"<>0\",L161:N166),0),\"-\")","v":"-"}]
[null,null,null,"○","El paquete de servicios para personas transgénero incluye todos los servicios de salud sexual y reproductiva pertinentes, de acuerdo con las directrices de la OMS",null,null,null,null,null,null,{"$f":"IF(ISBLANK(G161),0,1)","v":0},{"$f":"IF(ISBLANK(H161),0,3)","v":0},{"$f":"IF(ISBLANK(I161),0,5)","v":0}]
[null,null,null,"○","Amplia disponibilidad para la iniciación comunitaria en la terapia antirretroviral para las personas transgénero que viven con el VIH",null,null,null,null,null,null,0,0,0]
[null,null,null,"○","Los servicios se proporcionan de una manera accesible para las personas transgénero en toda su diversidad (por ejemplo, abordan cuestiones sobre la edad de consentimiento)",null,null,null,null,null,null,0,0,0]
[null,null,null,"○","Se dispone de servicios adicionales (o se puede contactar con ellos) en función de las necesidades específicas de las personas transgénero (por ejemplo, servicios de reasignación de género)",null,null,null,null,null,null,0,0,0]
[null,null,null,"○","Los servicios abordan las vulnerabilidades cruzadas de adolescentes y jóvenes que se dedican al trabajo sexual",null,null,null,null,null,null,0,0,0]
[null,null,null,"○","Los servicios se prestan de forma adecuada y respetando la confidencialidad y privacidad de los clientes",null,null,null,null,null,null,0,0,0]
[null,null,"Intervenciones clínicas  "]
[null,null,"Elemento","Criterios",null,"N/A","Ausente","Presente pero no óptimo","Presente y funcionando bien","Promedio del elemento","Comentarios (si procede)"]
[null,null,"Preservativos y lubricante ","Todas las personas transgénero tienen acceso a preservativos, lubricantes, demostraciones de uso y otros servicios de salud sexual y reproductiva, y:\n",null,null,null,null,null,{"$f":"O169","v":"-"},null,null,null,null,{"$f":"IFERROR(ROUND(AVERAGEIF(L170:N172,\"<>0\",L170:N172),0),\"-\")","v":"-"}]
[null,null,null,"○","Se distribuyen ampliamente y en cantidad suficiente",null,null,null,null,null,null,{"$f":"IF(ISBLANK(G170),0,1)","v":0},{"$f":"IF(ISBLANK(H170),0,3)","v":0},{"$f":"IF(ISBLANK(I170),0,5)","v":0}]
[null,null,null,"○","Son fácilmente accesibles en los centros de actividad",null,null,null,null,null,null,0,0,0]
[null,null,null,"○","Los TASEI realizan regularmente demostraciones de uso  ",null,null,null,null,null,null,0,0,0]
[null,null,"Servicios de pruebas del VIH","Existen servicios de pruebas del VIH disponibles para las personas transgénero, y:\n",null,null,null,null,null,{"$f":"O173","v":"-"},null,null,null,null,{"$f":"IFERROR(ROUND(AVERAGEIF(L174:N183,\"<>0\",L174:N183),0),\"-\")","v":"-"}]
[null,null,null,"○","Se han implementado las directrices consolidadas de la OMS sobre los servicios de pruebas del VIH",null,null,null,null,null,null,{"$f":"IF(ISBLANK(G174),0,1)","v":0},{"$f":"IF(ISBLANK(H174),0,3)","v":0},{"$f":"IF(ISBLANK(I174),0,5)","v":0}]
[null,null,null,"○","Todas las pruebas son voluntarias y confidenciales (con consentimiento informado)",null,null,null,null,null,null,0,0,0]
[null,null,null,"○","Se proporciona asesoramiento antes y después de la prueba ",null,null,null,null,null,null,0,0,0]
[null,null,null,"○","Se ofrece el tratamiento independientemente del recuento de CD4",null,null,null,null,null,null,0,0,0]
[null,null,null,"○","Tras el diagnóstico, a las personas con VIH se les pone en contacto con las redes de atención y apoyo ",null,null,null,null,null,null,0,0,0]
[null,null,null,"○","El acceso a los servicios se distribuye equitativamente entre la comunidad transgénero",null,null,null,null,null,null,0,0,0]
[null,null,null,"○","Se han implementado intervenciones para garantizar la adherencia de las personas transgénero que viven con el VIH",null,null,null,null,null,null,0,0,0]
[null,null,null,"○","Se realiza un seguimiento regular de la asistencia de las personas transgénero que viven con el VIH a los servicios de atención sanitaria ",null,null,null,null,null,null,0,0,0]
[null,null,null,"○","Se facilita el contacto con los servicios de prevención y tratamiento de las comorbilidades",null,null,null,null,null,null,0,0,0]
[null,null,null,"○","Se dispone de pruebas de carga viral y de CD4 y son accesibles para las personas transgénero que viven con el VIH",null,null,null,null,null,null,0,0,0]
[null,null,"Profilaxis preexposición (PrEP)","Se ofrece la profilaxis oral preexposición (TDF) a las personas transgénero con un riesgo sustancial de infección por el VIH ",null,null,null,null,null,{"$f":"O184","v":"-"},null,null,null,null,{"$f":"IFERROR(ROUND(AVERAGEIF(L185:N189,\"<>0\",L185:N189),0),\"-\")","v":"-"}]
[null,null,null,"○","Hay un suministro ininterrumpido de profilaxis preexposición ",null,null,null,null,null,null,{"$f":"IF(ISBLANK(G185),0,1)","v":0},{"$f":"IF(ISBLANK(H185),0,3)","v":0},{"$f":"IF(ISBLANK(I185),0,5)","v":0}]
[null,null,null,"○","Las pruebas del VIH se llevan a cabo antes de iniciar la profilaxis preexposición para asegurarse de que la persona sea negativa en VIH ",null,null,null,null,null,null,0,0,0]
[null,null,null,"○","Se ofrece como parte de un enfoque integral de prevención combinada ",null,null,null,null,null,null,0,0,0]
[null,null,null,"○","Los enfoques combinados incluyen el apoyo a la adherencia, la repetición periódica de la prueba del VIH y el asesoramiento para los usuarios de profilaxis preexposición ",null,null,null,null,null,null,0,0,0]
[null,null,null,"○","La profilaxis preexposición se ofrece basándose en la evaluación individual y no en el grupo de riesgo, a fin de promover una cobertura más amplia ",null,null,null,null,null,null,0,0,0]
[null,null,"Planificación familiar y SSR ","Todas las personas transgénero tienen acceso a servicios de planificación familiar y de salud sexual y reproductiva (SSR), y:",null,null,null,null,null,{"$f":"O190","v":"-"},null,null,null,null,{"$f":"IFERROR(ROUND(AVERAGEIF(L191:N193,\"<>0\",L191:N193),0),\"-\")","v":"-"}]
[null,null,null,"○","Se distribuyen ampliamente y en cantidad suficiente",null,null,null,null,null,null,{"$f":"IF(ISBLANK(G191),0,1)","v":0},{"$f":"IF(ISBLANK(H191),0,3)","v":0},{"$f":"IF(ISBLANK(I191),0,5)","v":0}]
[null,null,null,"○","Son fácilmente accesibles en los centros de actividad",null,null,null,null,null,null,0,0,0]
[null,null,null,"○","Se programan talleres demostrativos en los centros de actividad de forma regular",null,null,null,null,null,null,0,0,0]
[null,null,"Atención postviolencia ","Todas las personas transgénero tienen acceso a atención postviolencia, y;\n",null,null,null,null,null,{"$f":"O194","v":"-"},null,null,null,null,{"$f":"IFERROR(ROUND(AVERAGEIF(L195:N199,\"<>0\",L195:N199),0),\"-\")","v":"-"}]
[null,null,null,"○","Se dispone de servicios de apoyo y asesoramiento",null,null,null,null,null,null,{"$f":"IF(ISBLANK(G195),0,1)","v":0},{"$f":"IF(ISBLANK(H195),0,3)","v":0},{"$f":"IF(ISBLANK(I195),0,5)","v":0}]
[null,null,null,"○","Se dispone de servicios como la profilaxis postexposición",null,null,null,null,null,null,0,0,0]
[null,null,null,"○","En casos de violencia sexual, se realizan pruebas de ITS (sífilis, clamidia, gonorrea) de forma rutinaria",null,null,null,null,null,null,0,0,0]
[null,null,null,"○","Se ha establecido un mecanismo de referencia a servicios integrales de atención a la violencia de género (VG) en función de la necesidad",null,null,null,null,null,null,0,0,0]
[null,null,null,"○","Se han implementado intervenciones para la prevención, detección y reparación de la violencia de género, para ofrecer apoyo a la salud mental y para hacer frente a las barreras relacionadas con los derechos humanos y garantizar el acceso a la justicia",null,null,null,null,null,null,0,0,0]
[null,null,"Prevención, detección y tratamiento de la tuberculosis (TB)","Se dispone de servicios de prevención, detección y tratamiento de la TB para personas transgénero, y:\n",null,null,null,null,null,{"$f":"O200","v":"-"},null,null,null,null,{"$f":"IFERROR(ROUND(AVERAGEIF(L201:N209,\"<>0\",L201:N209),0),\"-\")","v":"-"}]
[null,null,null,"○","Prevención: terapia preventiva con isoniacida administrada a personas VIH+ junto con terapia antirretroviral (TAR), control de la infección por tuberculosis y rastreo de contactos en entornos compartidos ",null,null,null,null,null,null,{"$f":"IF(ISBLANK(G201),0,1)","v":0},{"$f":"IF(ISBLANK(H201),0,3)","v":0},{"$f":"IF(ISBLANK(I201),0,5)","v":0}]
[null,null,null,"○","Diagnóstico: uso de Xpert MTB/RIF como prueba diagnóstica inicial",null,null,null,null,null,null,0,0,0]
[null,null,null,"○","Todas las pruebas son voluntarias y confidenciales ",null,null,null,null,null,null,0,0,0]
[null,null,null,"○","Se han implementado intervenciones de apoyo de adherencia para garantizar que se completa el ciclo de antibióticos",null,null,null,null,null,null,0,0,0]
[null,null,null,"○","El tratamiento se administra inmediatamente y el suministro es ininterrumpido",null,null,null,null,null,null,0,0,0]
[null,null,null,"○","El acceso a los servicios se distribuye equitativamente entre la comunidad transgénero ",null,null,null,null,null,null,0,0,0]
[null,null,null,"○","Se ofrece el contacto con los servicios de pruebas del VIH y de asesoramiento para casos positivos ",null,null,null,null,null,null,0,0,0]
[null,null,null,"○","Se están realizando esfuerzos para tratar la tuberculosis latente en personas transgénero ",null,null,null,null,null,null,0,0,0]
[null,null,null,"○","El tratamiento de la tuberculosis no tiene contraindicaciones por consumo de alcohol o drogas ni por trastornos de salud mental",null,null,null,null,null,null,0,0,0]
[null,null,"Prevención, vacunación, detección y tratamiento de la hepatitis viral","Se dispone de servicios de prevención, vacunación, detección y tratamiento de la hepatitis vírica tipo B y C que satisfacen las necesidades específicas de las personas transgénero, y:\n",null,null,null,null,null,{"$f":"O210","v":"-"},null,null,null,null,{"$f":"IFERROR(ROUND(AVERAGEIF(L211:N216,\"<>0\",L211:N216),0),\"-\")","v":"-"}]
[null,null,null,"○","Todas las pruebas son voluntarias y confidenciales ",null,null,null,null,null,null,{"$f":"IF(ISBLANK(G211),0,1)","v":0},{"$f":"IF(ISBLANK(H211),0,3)","v":0},{"$f":"IF(ISBLANK(I211),0,5)","v":0}]
[null,null,null,"○","El tratamiento se administra inmediatamente y el suministro es ininterrumpido ",null,null,null,null,null,null,0,0,0]
[null,null,null,"○","El acceso a los servicios se distribuye equitativamente entre toda la comunidad transgénero ",null,null,null,null,null,null,0,0,0]
[null,null,null,"○","Se llevan a cabo campañas de vacunación contra la hepatitis B y C de forma rutinaria ",null,null,null,null,null,null,0,0,0]
[null,null,null,null,"Se dispone de regímenes de vacunación contra la hepatitis B y C que son rápidos, estándar y de fácil acceso. ",null,null,null,null,null,null,0,0,0]
[null,null,null,"○","Se han asignado recursos para la prevención, vacunación, detección y tratamiento de la hepatitis vírica",null,null,null,null,null,null,0,0,0]
[null,null,"Detección y tratamiento para el consumo de drogas y alcohol","Se ofrecen servicios de detección y tratamiento del consumo problemático de alcohol y drogas de forma rutinaria en los centros de atención sanitaria, los centros de actividad locales y las unidades de asistencia móviles ",null,null,null,null,null,{"$f":"O217","v":"-"},null,null,null,null,{"$f":"IFERROR(ROUND(AVERAGEIF(L218:N222,\"<>0\",L218:N222),0),\"-\")","v":"-"}]
[null,null,null,"○","Se ofrecen servicios de detección y tratamiento del consumo problemático de alcohol y drogas de forma rutinaria en los centros de atención sanitaria, los centros de actividad locales y las unidades de asistencia móviles ",null,null,null,null,null,null,{"$f":"IF(ISBLANK(G218),0,1)","v":0},{"$f":"IF(ISBLANK(H218),0,3)","v":0},{"$f":"IF(ISBLANK(I218),0,5)","v":0}]
[null,null,null,"○","Los trabajadores de asistencia social entre iguales ponen en contacto a las personas en riesgo con los servicios de detección y tratamiento ",null,null,null,null,null,null,0,0,0]
[null,null,null,"○","Las personas están en contacto con terapeutas, organizaciones y grupos de apoyo adecuados",null,null,null,null,null,null,0,0,0]
[null,null,null,"○","El tratamiento se inicia inmediatamente si la persona consiente de forma voluntaria",null,null,null,null,null,null,0,0,0]
[null,null,null,"○","Se ofrece derivación a otros servicios (salud mental, apoyo psicosocial) en caso de necesidad",null,null,null,null,null,null,0,0,0]
[null,null,"Atención a la salud mental","La atención a la salud mental es accesible y se proporciona de forma continuada a las personas transgénero que viven con el VIH, e incluye:",null,null,null,null,null,{"$f":"O223","v":"-"},null,null,null,null,{"$f":"IFERROR(ROUND(AVERAGEIF(L224:N225,\"<>0\",L224:N225),0),\"-\")","v":"-"}]
[null,null,null,"○","Evaluaciones rutinarias de trastornos de salud mental (especialmente depresión y estrés psicosocial), según lo dispuesto en el Programa de Acción Global en Salud Mental de la OMS (mhGAP)",null,null,null,null,null,null,{"$f":"IF(ISBLANK(G224),0,1)","v":0},{"$f":"IF(ISBLANK(H224),0,3)","v":0},{"$f":"IF(ISBLANK(I224),0,5)","v":0}]
[null,null,null,"○","Asesoramiento tras obtener resultados positivos en la prueba del VIH para detectar el riesgo de suicidio, depresión y otros problemas de salud mental ",null,null,null,null,null,null,0,0,0]
[null,null,"COVID-19 ","Prestación de servicios a las personas para los programas dirigidos a la comunidad transgénero durante la COVID-19 \n",null,null,null,null,null,{"$f":"O226","v":"-"},null,null,null,null,{"$f":"IFERROR(ROUND(AVERAGEIF(L227:N228,\"<>0\",L227:N228),0),\"-\")","v":"-"}]
[null,null,null,"○","Hay programas para promover la vacunación contra la COVID-19 entre las personas transgénero y realizar un seguimiento",null,null,null,null,null,null,{"$f":"IF(ISBLANK(G227),0,1)","v":0},{"$f":"IF(ISBLANK(H227),0,3)","v":0},{"$f":"IF(ISBLANK(I227),0,5)","v":0}]
[null,null,null,"○","Comunicación constante y acceso seguro a modelos de prestación de servicios fuera de instalaciones sanitarias (ej.: centros comunitarios, a domicilio, teleasistencia, etc.) durante los picos de la COVID-19 para evitar la interrupción del servicio",null,null,null,null,null,null,0,0,0]
[null,null,"Intervenciones conductuales"]
[null,null,"Elemento","Criterios",null,"N/A","Ausente","Presente pero no óptimo","Presente y funcionando bien","Promedio del elemento","Comentarios (si procede)"]
[null,null,"Comunicación para el cambio conductual y social (CCCS)","Las actividades de CCCS están incluidas en el programa para el grupo de población clave Están:",null,null,null,null,null,{"$f":"O231","v":"-"},null,null,null,null,{"$f":"IFERROR(ROUND(AVERAGEIF(L232:N236,\"<>0\",L232:N236),0),\"-\")","v":"-"}]
[null,null,null,"○","Bien planificadas y adecuadamente presupuestadas",null,null,null,null,null,null,{"$f":"IF(ISBLANK(G232),0,1)","v":0},{"$f":"IF(ISBLANK(H232),0,3)","v":0},{"$f":"IF(ISBLANK(I232),0,5)","v":0}]
[null,null,null,"○","Basadas en la evidencia ",null,null,null,null,null,null,0,0,0]
[null,null,null,"○","Diseñadas y probadas con la participación de personas transgénero",null,null,null,null,null,null,0,0,0]
[null,null,null,"○","Implementadas por organizaciones y personas con experiencia y formación en intervenciones de CCCS",null,null,null,null,null,null,0,0,0]
[null,null,null,"○","Las intervenciones de CCCS están incluidas en los planes y actividades de seguimiento y evaluación",null,null,null,null,null,null,0,0,0]
[null,null,"Intervenciones estructurales"]
[null,null,"Elemento","Criterios",null,"N/A","Ausente","Presente pero no óptimo","Presente y funcionando bien","Promedio del elemento","Comentarios (si procede)"]
[null,null,"Prevención y respuesta a la violencia","Se han implementado programas para abordar la violencia contra las personas transgénero de manera consistente, e incluyen:",null,null,null,null,null,{"$f":"O239","v":"-"},null,null,null,null,{"$f":"IFERROR(ROUND(AVERAGEIF(L240:N246,\"<>0\",L240:N246),0),\"-\")","v":"-"}]
[null,null,null,"○","Información sobre seguridad",null,null,null,null,null,null,{"$f":"IF(ISBLANK(G240),0,1)","v":0},{"$f":"IF(ISBLANK(H240),0,3)","v":0},{"$f":"IF(ISBLANK(I240),0,5)","v":0}]
[null,null,null,"○","Espacios seguros (centros de acogida)",null,null,null,null,null,null,0,0,0]
[null,null,null,"○","Mejora de la seguridad en el lugar de trabajo",null,null,null,null,null,null,0,0,0]
[null,null,null,"○","Estandarización de los mecanismos de seguimiento y de denuncia de los casos de violencia, que van más allá del contacto con la Policía y pueden incluir el asesoramiento jurídico que ofrecen las organizaciones de personas transgénero",null,null,null,null,null,null,0,0,0]
[null,null,null,"○","Formación integral de la Policía y los trabajadores sociales para que sean sensibles a las necesidades de las personas transgénero",null,null,null,null,null,null,0,0,0]
[null,null,null,"○","Planes de respuesta a la violencia desarrollados por la comunidad",null,null,null,null,null,null,0,0,0]
[null,null,null,"○","En contacto con servicios de asistencia jurídica",null,null,null,null,null,null,0,0,0]
[null,null,"Reducción del estigma y la discriminación ","Los esfuerzos para reducir el estigma y la discriminación contra las personas transgénero incluyen:  ",null,null,null,null,null,{"$f":"O247","v":"-"},null,null,null,null,{"$f":"IFERROR(ROUND(AVERAGEIF(L248:N254,\"<>0\",L248:N254),0),\"-\")","v":"-"}]
[null,null,null,"○","Promoción de políticas antidiscriminatorias y de protección para todas las personas transgénero",null,null,null,null,null,null,{"$f":"IF(ISBLANK(G248),0,1)","v":0},{"$f":"IF(ISBLANK(H248),0,3)","v":0},{"$f":"IF(ISBLANK(I248),0,5)","v":0}]
[null,null,null,"○","Programas, dentro y fuera del sector sanitario, que instituyan políticas y códigos de conducta en contra de la estigmatización y la discriminación",null,null,null,null,null,null,0,0,0]
[null,null,null,"○","Seguimiento y supervisión rutinarios para garantizar la implementación y el mantenimiento de los estándares de servicio",null,null,null,null,null,null,0,0,0]
[null,null,null,"○","Realización de campañas de reducción del estigma",null,null,null,null,null,null,0,0,0]
[null,null,null,"○","Sensibilización, educación y participación continua de líderes religiosos y comunitarios, fuerzas del orden y profesionales sanitarios ",null,null,null,null,null,null,0,0,0]
[null,null,null,"○","Establecimiento de mecanismos eficaces para permitir la denuncia anónima de incidentes estigmatizantes o discriminatorios en el acceso a la atención sanitaria  ",null,null,null,null,null,null,0,0,0]
[null,null,null,"○","Se proporciona apoyo y seguimiento a las personas transgénero que denuncian incidentes de estigmatización y/o discriminación",null,null,null,null,null,null,0,0,0]
[null,null,"Servicios jurídicos relacionados con el VIH ","Se ofrecen servicios jurídicos relacionados con el VIH para satisfacer las necesidades de las poblaciones de personas transgénero, y:",null,null,null,null,null,{"$f":"O255","v":"-"},null,null,null,null,{"$f":"IFERROR(ROUND(AVERAGEIF(L256:N258,\"<>0\",L256:N258),0),\"-\")","v":"-"}]
[null,null,null,"○","Existen alternativas para la resolución de conflictos",null,null,null,null,null,null,{"$f":"IF(ISBLANK(G256),0,1)","v":0},{"$f":"IF(ISBLANK(H256),0,3)","v":0},{"$f":"IF(ISBLANK(I256),0,5)","v":0}]
[null,null,null,"○","Se dispone de acceso fácil a información legal información de contacto con profesionales u organizaciones",null,null,null,null,null,null,0,0,0]
[null,null,null,"○","Se dispone de acceso fácil a asesoramiento y representación legal",null,null,null,null,null,null,0,0,0]
[null,null,"Seguimiento de la aplicación de la ley ","Se realiza un seguimiento regular de la implementación de políticas, regulaciones y leyes para evaluar su impacto en las personas transgénero.",null,null,null,null,null,{"$f":"O259","v":"-"},null,0,0,0,{"$f":"IFERROR(ROUND(AVERAGEIF(L259:N259,\"<>0\",L259:N259),0),\"-\")","v":"-"}]
[null,null,"Conocimientos legales («Conoce tus derechos»)","Se ofrece una formación integral sobre legislación y derechos a las personas transgénero: ",null,null,null,null,null,"-",null,null,null,null,{"$f":"IFERROR(ROUND(AVERAGEIF(L261:N262,\"<>0\",L261:N262),0),\"-\")","v":"-"}]
[null,null,null,"○","Se han diseñado y comunicado estrategias efectivas para que las personas transgénero interactúen con la Policía ",null,null,null,null,null,null,{"$f":"IF(ISBLANK(G261),0,1)","v":0},{"$f":"IF(ISBLANK(H261),0,3)","v":0},{"$f":"IF(ISBLANK(I261),0,5)","v":0}]
[null,null,null,"○","Las personas transgénero conocen la ley y sus derechos, y pueden reclamar y defender sus necesidades en el contexto del VIH",null,null,null,null,null,null,0,0,0]
[null,null,"Sensibilización de los legisladores y las fuerzas del orden ","Formación continua y exhaustiva de los encargados de redactar y hacer cumplir las leyes para garantizar que estén adecuadamente sensibilizados con todas las personas transgénero. La formación incluye: ",null,null,null,null,null,{"$f":"O263","v":"-"},null,null,null,null,{"$f":"IFERROR(ROUND(AVERAGEIF(L264:N267,\"<>0\",L264:N267),0),\"-\")","v":"-"}]
[null,null,null,"○","Un programa integral de formación para la sensibilización adaptado al contexto del país en cuestión",null,null,null,null,null,null,{"$f":"IF(ISBLANK(G264),0,1)","v":0},{"$f":"IF(ISBLANK(H264),0,3)","v":0},{"$f":"IF(ISBLANK(I264),0,5)","v":0}]
[null,null,null,"○","Facilitadores con la formación adecuada",null,null,null,null,null,null,0,0,0]
[null,null,null,"○","Participación de personas transgénero ",null,null,null,null,null,null,0,0,0]
[null,null,null,"○","Comentarios de los participantes",null,null,null,null,null,null,0,0,0]
[null,null,"Formación para proveedores de atención sanitaria sobre derechos humanos y ética médica relacionada con el VIH ","Un programa integral de formación para la sensibilización adaptado al contexto del país en cuestión",null,null,null,null,null,{"$f":"O268","v":"-"},null,null,null,null,{"$f":"IFERROR(ROUND(AVERAGEIF(L269:N271,\"<>0\",L269:N271),0),\"-\")","v":"-"}]
[null,null,null,"○","Facilitadores con la formación adecuada",null,null,null,null,null,null,{"$f":"IF(ISBLANK(G269),0,1)","v":0},{"$f":"IF(ISBLANK(H269),0,3)","v":0},{"$f":"IF(ISBLANK(I269),0,5)","v":0}]
[null,null,null,"○","Participación de personas transgénero ",null,null,null,null,null,null,0,0,0]
[null,null,null,"○","Comentarios de los participantes",null,null,null,null,null,null,0,0,0]
[null,null,"Reducción de la discriminación contra las mujeres en el contexto del VIH ","Se han implementado programas para abordar la desigualdad de género y la violencia de género en el contexto del VIH, y contemplan: ",null,null,null,null,null,{"$f":"O272","v":"-"},null,null,null,null,{"$f":"IFERROR(ROUND(AVERAGEIF(L273:N279,\"<>0\",L273:N279),0),\"-\")","v":"-"}]
[null,null,null,"○","La desigualdad de mujeres y jóvenes en la toma de decisiones sexuales y reproductivas ",null,null,null,null,null,null,{"$f":"IF(ISBLANK(G273),0,1)","v":0},{"$f":"IF(ISBLANK(H273),0,3)","v":0},{"$f":"IF(ISBLANK(I273),0,5)","v":0}]
[null,null,null,"○","Las barreras de género para acceder a la atención sanitaria ",null,null,null,null,null,null,0,0,0]
[null,null,null,"○","La discriminación en en los procesos de herencia, adquisición de propiedades, matrimonio, divorcio y custodia ",null,null,null,null,null,null,0,0,0]
[null,null,null,"○","La violencia sexual y de otro tipo ",null,null,null,null,null,null,0,0,0]
[null,null,null,"○","La falta de igualdad de acceso a oportunidades educativas y económicas ",null,null,null,null,null,null,0,0,0]
[null,null,null,"○","La falta de apoyo a los cuidadores en los hogares afectados por el VIH ",null,null,null,null,null,null,0,0,0]
[null,null,null,"○","El complemento con programas dirigidos a hombres y niños que abordan las actitudes y costumbres de género perjudiciales ",null,null,null,null,null,null,0,0,0]
[null,null,"Espacios seguros / centros de acogida","Se han establecido espacios seguros o centros de acogida para las personas transgénero:",null,null,null,null,null,{"$f":"O280","v":"-"},null,null,null,null,{"$f":"IFERROR(ROUND(AVERAGEIF(L281:N289,\"<>0\",L281:N289),0),\"-\")","v":"-"}]
[null,null,null,"○","Funcionan como el lugar principal de interacción entre la comunidad y el programa",null,null,null,null,null,null,{"$f":"IF(ISBLANK(G281),0,1)","v":0},{"$f":"IF(ISBLANK(H281),0,3)","v":0},{"$f":"IF(ISBLANK(I281),0,5)","v":0}]
[null,null,null,"○","Proporcionan una plataforma para la movilización, la formación y la organización de iniciativas para la comunidad",null,null,null,null,null,null,0,0,0]
[null,null,null,"○","Comparte información sobre eventos, actividades y servicios relevantes para la comunidad",null,null,null,null,null,null,0,0,0]
[null,null,null,"○","Cuentan con información y materiales divulgativos y educativos que son accesibles y fáciles de usar",null,null,null,null,null,null,0,0,0]
[null,null,null,"○","Proporcionan servicios psicosociales y apoyo ",null,null,null,null,null,null,0,0,0]
[null,null,null,"○","Tienen preservativos y lubricante a disposición de los usuarios",null,null,null,null,null,null,0,0,0]
[null,null,null,"○","Los utilizan los trabajadores de asistencia social entre iguales para revisar su trabajo y planificar la divulgación",null,null,null,null,null,null,0,0,0]
[null,null,null,"○","Establecidos en colaboración con las personas transgénero para determinar la ubicación, el horario y los servicios que ofrecen",null,null,null,null,null,null,0,0,0]
[null,null,null,"○","Pone a disposición o permite contactar con otros programas de intervención fuera del ámbito sanitario",null,null,null,null,null,null,0,0,0]
[null,null,"Comités comunitarios","Se han creado comités comunitarios de personas transgénero, y:",null,null,null,null,null,{"$f":"O290","v":"-"},null,null,null,null,{"$f":"IFERROR(ROUND(AVERAGEIF(L291:N300,\"<>0\",L291:N300),0),\"-\")","v":"-"}]
[null,null,null,"○","Se pueden formar libre y fácilmente",null,null,null,null,null,null,{"$f":"IF(ISBLANK(G291),0,1)","v":0},{"$f":"IF(ISBLANK(H291),0,3)","v":0},{"$f":"IF(ISBLANK(I291),0,5)","v":0}]
[null,null,null,"○","Se reúnen con regularidad (mínimo una vez al mes) y utilizan una plantilla de acta de la reunión para registrar la información que se debate ",null,null,null,null,null,null,0,0,0]
[null,null,null,"○","Revisan la prestación de servicios, solucionan problemas, realizan un seguimiento de los cambios, promueven la comprensión y la rendición de cuentas y abordar los problemas generales de la comunidad",null,null,null,null,null,null,0,0,0]
[null,null,null,"○","Eligen a los miembros de la comunidad transgénero y renuevan los cargos anualmente",null,null,null,null,null,null,0,0,0]
[null,null,null,"○","Eligen a un portavoz de la comunidad transgénero para que actúe como intermediario del programa ",null,null,null,null,null,null,0,0,0]
[null,null,null,"○","Invitan a los trabajadores de las organizaciones pertinentes a formar parte del comité o a asistir a las reuniones",null,null,null,null,null,null,0,0,0]
[null,null,null,"○","Comparten regularmente sus aportaciones sobre el programa para mejorar la calidad de los servicios ofrecidos",null,null,null,null,null,null,0,0,0]
[null,null,null,"○","Respetan la confidencialidad ",null,null,null,null,null,null,0,0,0]
[null,null,null,"○","No permiten que los miembros de la organización implementadora voten en las reuniones",null,null,null,null,null,null,0,0,0]
[null,null,null,"○","Incluyen a los jóvenes de la PC y les ayudan a desarrollar sus capacidades ",null,null,null,null,null,null,0,0,0]
[null,null,"Seguimiento del programa"]
[null,null,"Elemento","Criterios",null,"N/A","Ausente","Presente pero no óptimo","Presente y funcionando bien","Promedio del elemento","Comentarios (si procede)"]
[null,null,"Seguimiento rutinario","Los indicadores del programa se definen y se comunican:",null,null,null,null,null,{"$f":"O303","v":"-"},null,null,null,null,{"$f":"IFERROR(ROUND(AVERAGEIF(L304:N310,\"<>0\",L304:N310),0),\"-\")","v":"-"}]
[null,null,null,"○","De forma rutinaria (mensual, trimestral)",null,null,null,null,null,null,{"$f":"IF(ISBLANK(G304),0,1)","v":0},{"$f":"IF(ISBLANK(H304),0,3)","v":0},{"$f":"IF(ISBLANK(I304),0,5)","v":0}]
[null,null,null,"○","Al completo (los datos son consistentes y no falta información)",null,null,null,null,null,null,0,0,0]
[null,null,null,"○","A todos los niveles (región, provincia, etc.)",null,null,null,null,null,null,0,0,0]
[null,null,null,"○"," Por parte de todos los colaboradores en la implementación",null,null,null,null,null,null,0,0,0]
[null,null,null,"○","A través de la plataforma DHIS2/EMR",null,null,null,null,null,null,0,0,0]
[null,null,null,"○","Seguimiento de datos individuales por parte de los colaboradores en la implementación ",null,null,null,null,null,null,0,0,0]
[null,null,null,"○","Datos revisados de forma rutinaria por todos los interesados (gobierno, sociedad civil, comunidad de personas transgénero, colaboradores en la implementación, donantes), y utilizados para mejorar los programas ",null,null,null,null,null,null,0,0,0]
[null,null,"Seguimiento para la rendición de cuentas dirigido por la comunidad ","Incorporación del seguimiento dirigido por la comunidad (SDC) en las plataformas nacionales de seguimiento:",null,null,null,null,null,{"$f":"O311","v":"-"},null,null,null,null,{"$f":"IFERROR(ROUND(AVERAGEIF(L312:N318,\"<>0\",L312:N318),0),\"-\")","v":"-"}]
[null,null,null,"○","Se ha aceptado e integrado el SDC en los procesos de toma de decisiones y negociaciones con las autoridades locales, con los financiadores y con otros simpatizantes ",null,null,null,null,null,null,{"$f":"IF(ISBLANK(G312),0,1)","v":0},{"$f":"IF(ISBLANK(H312),0,3)","v":0},{"$f":"IF(ISBLANK(I312),0,5)","v":0}]
[null,null,null,"○","Funciona como un mecanismo comunitario de vigilancia y rendición de cuentas",null,null,null,null,null,null,0,0,0]
[null,null,null,"○","Los supervisores entre pares están cualificados y recopilan y analizan de forma sistemática y rutinaria datos cualitativos y cuantitativos sobre la prestación de servicios relacionados con el VIH",null,null,null,null,null,null,0,0,0]
[null,null,null,"○","Hay equipos de seguimiento dirigidos por la comunidad para responder a los déficits en la prestación de servicios relacionados con el VIH dentro de las comunidades",null,null,null,null,null,null,0,0,0]
[null,null,null,"○","Cuenta con la colaboración de diferentes redes de personas que viven con el VIH (PVVIH) y de las organizaciones de las comunidades afectadas",null,null,null,null,null,null,0,0,0]
[null,null,null,"○","Los recopiladores de datos y otros miembros de la comunidad que participan en las tareas de seguimiento reciben una remuneración conforme a las prácticas y estándares nacionales",null,null,null,null,null,null,0,0,0]
[null,null,null,"○"," Las comunidades de TS reciben formación y apoyo para evaluar las instalaciones sanitarias y celebrar asambleas públicas para la rendición de cuentas ",null,null,null,null,null,null,0,0,0]
[null,null,"Seguimiento del sistema de referencias","Existen sistemas de seguimiento de las referencias y derivaciones, e incluyen:",null,null,null,null,null,{"$f":"O319","v":"-"},null,null,null,null,{"$f":"IFERROR(ROUND(AVERAGEIF(L320:N324,\"<>0\",L320:N324),0),\"-\")","v":"-"}]
[null,null,null,"○","Una herramienta para hacer referencias o derivaciones que esté ampliamente disponible y que incluya unos procedimientos estándar claros",null,null,null,null,null,null,{"$f":"IF(ISBLANK(G320),0,1)","v":0},{"$f":"IF(ISBLANK(H320),0,3)","v":0},{"$f":"IF(ISBLANK(I320),0,5)","v":0}]
[null,null,null,"○","Un directorio de contactos de referencia tanto en las instalaciones como en las organizaciones dirigidas por pares ",null,null,null,null,null,null,0,0,0]
[null,null,null,"○","Un registro de los resultados ",null,null,null,null,null,null,0,0,0]
[null,null,null,"○","Mecanismos para que los pacientes y proveedores de servicios (referidos o derivados) envíen sus comentarios y aportaciones ",null,null,null,null,null,null,0,0,0]
[null,null,null,"○","Informes de referencias (mensuales) para supervisar la eficacia del sistema de derivaciones",null,null,null,null,null,null,0,0,0]
[null,null,"Evaluación de la calidad","Se han definido sistemas para recopilar datos sobre la calidad del programa y sus indicadores relacionados, y:\n",null,null,null,null,null,{"$f":"O325","v":"-"},null,null,null,null,{"$f":"IFERROR(ROUND(AVERAGEIF(L326:N329,\"<>0\",L326:N329),0),\"-\")","v":"-"}]
[null,null,null,"○","Se recopilan datos precisos",null,null,null,null,null,null,{"$f":"IF(ISBLANK(G326),0,1)","v":0},{"$f":"IF(ISBLANK(H326),0,3)","v":0},{"$f":"IF(ISBLANK(I326),0,5)","v":0}]
[null,null,null,"○","Se actúa en base a los datos recopilados ",null,null,null,null,null,null,0,0,0]
[null,null,null,"○","Los mecanismos de feedback permiten a las personas transgénero evaluar los servicios recibidos, a fin de realizar un seguimiento de la calidad del programa",null,null,null,null,null,null,0,0,0]
[null,null,null,"○","Los datos se auditan con regularidad ",null,null,null,null,null,null,0,0,0]
[null,null,"Vigilancia ","La vigilancia permite una descripción precisa del contexto y los resultados/impacto del programa para la comunidad transgénero \n",null,null,null,null,null,{"$f":"O330","v":"-"},null,null,null,null,{"$f":"IFERROR(ROUND(AVERAGEIF(L331:N334,\"<>0\",L331:N334),0),\"-\")","v":"-"}]
[null,null,null,"○","Los resultados del estudio se utilizan para tomar decisiones informadas y llevar a cabo acciones correctivas ",null,null,null,null,null,null,{"$f":"IF(ISBLANK(G331),0,1)","v":0},{"$f":"IF(ISBLANK(H331),0,3)","v":0},{"$f":"IF(ISBLANK(I331),0,5)","v":0}]
[null,null,null,"○","Implica el análisis y la interpretación de los datos en intervalos regulares ",null,null,null,null,null,null,0,0,0]
[null,null,null,"○","Implica la difusión regular de información para satisfacer las necesidades a nivel local, regional y nacional ",null,null,null,null,null,null,0,0,0]
[null,null,null,"○","Incluye encuestas biológicas y conductuales, encuestas de vigilancia centinela y otros estudios de investigación que analizan los indicadores para personas transgénero ",null,null,null,null,null,null,0,0,0]
[null,null,"Datos para la toma de decisiones","La unidad nacional de programación, seguimiento y evaluación del Ministerio de Sanidad, o el organismo equivalente, supervisa/coordina la recopilación de datos de seguimiento, encuestas y vigilancia, y:",null,null,null,null,null,{"$f":"O335","v":"-"},null,null,null,null,{"$f":"IFERROR(ROUND(AVERAGEIF(L336:N343,\"<>0\",L336:N343),0),\"-\")","v":"-"}]
[null,null,null,"○","Comparte datos con el grupo técnico de trabajo de la comunidad transgénero",null,null,null,null,null,null,{"$f":"IF(ISBLANK(G336),0,1)","v":0},{"$f":"IF(ISBLANK(H336),0,3)","v":0},{"$f":"IF(ISBLANK(I336),0,5)","v":0}]
[null,null,null,"○","El grupo técnico de trabajo de la comunidad transgénero analiza los datos del programa trimestralmente e identifica las áreas en las que hay que aplicar acciones correctivas",null,null,null,null,null,null,0,0,0]
[null,null,null,"○","El grupo técnico de trabajo de la comunidad transgénero ayuda en el desarrollo de estrategias para solucionar la falta de información o servicios ",null,null,null,null,null,null,0,0,0]
[null,null,null,"○","Se recopilan datos de buena calidad (válidos, fiables, consistentes, precisos, oportunos y relevantes) para satisfacer la mayoría de las necesidades de información, y se analizan aquellas áreas que requieran datos adicionales ",null,null,null,null,null,null,0,0,0]
[null,null,null,"○","Los datos se utilizan de manera consistente y adecuada para tomar decisiones informadas ",null,null,null,null,null,null,0,0,0]
[null,null,null,"○","Se han eliminado los duplicados en los datos entre los colaboradores en la implementación y, si queda algún duplicado, es mínimo",null,null,null,null,null,null,0,0,0]
[null,null,null,"○","Los datos se recopilan de forma centralizada, pero se pueden separar por localidad, sexo y edad",null,null,null,null,null,null,0,0,0]
[null,null,null,"○","El programa proporciona datos para que el grupo técnico de trabajo los revise",null,null,null,null,null,null,0,0,0]
[null,null,"Uso de un código de identificación único para el seguimiento de los programas","Se utiliza este sistema para supervisar el rendimiento del programa y comprobar que funcione adecuadamente",null,null,null,null,null,{"$f":"O344","v":"-"},null,null,null,null,{"$f":"IFERROR(ROUND(AVERAGEIF(L345:N348,\"<>0\",L345:N348),0),\"-\")","v":"-"}]
[null,null,null,"○","Un mismo país puede utilizar varios códigos de identificación únicos, pero están armonizados",null,null,null,null,null,null,{"$f":"IF(ISBLANK(G345),0,1)","v":0},{"$f":"IF(ISBLANK(H345),0,3)","v":0},{"$f":"IF(ISBLANK(I345),0,5)","v":0}]
[null,null,null,"○","El programa nacional utiliza datos agregados con códigos de identificación únicos",null,null,null,null,null,null,0,0,0]
[null,null,null,"○","El código de identificación único es capaz de distinguir el contacto/alcance para evitar la duplicación ",null,null,null,null,null,null,0,0,0]
[null,null,null,"○","El código de identificación único es electrónico",null,null,null,null,null,null,0,0,0]
[null,null,"Supervisión presupuestaria","Se integra el seguimiento del rendimiento financiero y no financiero del programa para chicas adolescentes y mujeres jóvenes, y se generan informes rutinarios: ",null,null,null,null,null,{"$f":"O349","v":"-"},null,null,null,null,{"$f":"IFERROR(ROUND(AVERAGEIF(L350:N352,\"<>0\",L350:N352),0),\"-\")","v":"-"}]
[null,null,null,"○","Se puede acceder fácilmente a los datos sobre los gastos en intervenciones relacionadas con las personas transgénero a nivel nacional ",null,null,null,null,null,null,{"$f":"IF(ISBLANK(G350),0,1)","v":0},{"$f":"IF(ISBLANK(H350),0,3)","v":0},{"$f":"IF(ISBLANK(I350),0,5)","v":0}]
[null,null,null,"○","Existen mecanismos de rendición de cuentas analizar los gastos que no hayan agotado el presupuesto ",null,null,null,null,null,null,0,0,0]
[null,null,null,"○","Los datos financieros y no financieros se utilizan para medir la relación calidad-precio",null,null,null,null,null,null,0,0,0]
[]
[null,null,"Resultados del programa"]
[]
[null,null,"Resultados e indicadores"]
[null,null,"Indicador",null,null,"N/A","Sin seguimiento ","Objetivo no cumplido o no en proceso ","Objetivo cumplido o en proceso ","Promedio del elemento","Comentarios (si procede)"]
[null,null,"Estimaciones disponibles del tamaño de la población de personas transgénero",null,null,null,null,null,null,{"$f":"O358","v":"-"},null,{"$f":"IF(ISBLANK(G358),0,1)","v":0},{"$f":"IF(ISBLANK(H358),0,3)","v":0},{"$f":"IF(ISBLANK(I358),0,5)","v":0},{"$f":"IFERROR(ROUND(AVERAGEIF(L358:N358,\"<>0\",L358:N358),0),\"-\")","v":"-"}]
[null,null,"La estrategia de prevención incluye elementos clave del paquete de prevención para personas transgénero",null,null,null,null,null,null,"-",null,0,0,0,"-"]
[null,null,"Prevalencia del VIH entre las personas transgénero",null,null,null,null,null,null,"-",null,0,0,0,"-"]
[null,null,"Personas transgénero que viven con el VIH y conocen su estado serológico (objetivo del 90 %)",null,null,null,null,null,null,"-",null,0,0,0,"-"]
[null,null,"Personas transgénero que viven con el VIH en terapia antirretroviral (objetivo del 90 %)",null,null,null,null,null,null,"-",null,0,0,0,"-"]
[null,null,"Personas transgénero que viven con el VIH y que tienen cargas virales indetectables (objetivo del 90 %)",null,null,null,null,null,null,"-",null,0,0,0,"-"]
[null,null,"Personas transgénero que han recibido un mínimo de 2 intervenciones de prevención del VIH en los últimos 3 meses",null,null,null,null,null,null,"-",null,0,0,0,"-"]
[null,null,"Criminalización de las personas transgénero",null,null,null,null,null,null,"-",null,0,0,0,"-"]
[null,null,"% de personas transgénero que no buscaron atención sanitaria debido al estigma y a la discriminación ",null,null,null,null,null,null,"-",null,0,0,0,"-"]
[null,null,"Atención sanitaria para la reasignación de género en los centros de salud",null,null,null,null,null,null,"-",null,0,0,0,"-"]
[null,null,"Uso del preservativo entre personas transgénero (objetivo del 80 %)",null,null,null,null,null,null,"-",null,0,0,0,"-"]
[null,null,null,null,null,null,null,null,null,null,null,null,{"$f":"COUNTIF(O6:O368,\"-\")","v":68}]
[null,null,null,null,null,null,null,null,null,null,null,null,{"$f":"COUNTIF(O6:O368,\">0\")","v":0}]
[null,null,null,null,null,null,null,null,null,null,null,"Sheet Completion",{"$f":"M370/(M369+M370)","v":0},{"$f":"1-M371","v":1}]

{"sheet":"Reclusos ","index":7,"n_rows":328,"n_cols":16,"rows_kept":328,"cut":false,"hidden":false,"merged":[[177,9,180,9],[61,2,64,2],[67,2,70,2],[74,3,74,4],[61,3,61,4],[215,9,217,9],[220,9,225,9],[75,2,79,2],[75,3,75,4],[80,2,86,2],[80,3,80,4],[87,3,87,4],[146,9,151,9],[154,9,157,9],[158,9,170,9],[171,9,176,9],[102,9,106,9],[107,9,111,9],[112,9,117,9],[118,9,124,9],[125,9,129,9],[132,9,139,9],[140,9,145,9],[118,2,124,2],[292,9,296,9],[297,9,305,9],[306,9,310,9],[311,9,314,9],[232,9,239,9],[240,9,243,9],[245,9,246,9],[247,9,251,9],[252,9,255,9],[256,9,263,9],[266,9,273,9],[274,9,280,9],[281,9,286,9],[287,9,291,9],[1,2,1,9],[3,2,3,8],[4,3,4,4],[5,2,14,2],[5,3,5,4],[15,2,20,2],[21,2,27,2],[21,9,27,9],[42,3,42,4],[5,9,14,9],[15,9,20,9],[28,9,34,9],[35,9,41,9],[42,9,46,9],[48,3,48,4],[15,3,15,4],[21,3,21,4],[28,2,34,2],[28,3,28,4],[35,2,41,2],[35,3,35,4],[42,2,46,2],[59,3,59,4],[49,2,51,2],[49,3,49,4],[52,2,56,2],[52,3,52,4],[58,3,58,4],[59,2,60,2],[49,9,51,9],[52,9,56,9],[59,9,60,9],[61,9,64,9],[67,9,70,9],[75,9,79,9],[80,9,86,9],[87,9,90,9],[91,9,99,9],[182,9,185,9],[186,9,196,9],[197,9,203,9],[204,9,208,9],[209,9,211,9],[212,9,214,9],[252,3,252,4],[256,3,256,4],[265,3,265,4],[220,3,220,4],[227,3,227,4],[232,3,232,4],[240,3,240,4],[244,3,244,4],[245,3,245,4],[247,3,247,4],[228,9,231,9],[197,3,197,4],[204,3,204,4],[209,3,209,4],[212,3,212,4],[215,3,215,4],[219,3,219,4],[252,2,255,2],[256,2,263,2],[266,2,273,2],[274,2,280,2],[322,2,322,4],[292,3,292,4],[297,3,297,4],[306,3,306,4],[311,3,311,4],[317,3,317,4],[318,2,318,4],[319,2,319,4],[266,3,266,4],[274,3,274,4],[281,3,281,4],[287,3,287,4],[320,2,320,4],[321,2,321,4],[292,2,296,2],[297,2,305,2],[306,2,310,2],[311,2,314,2],[281,2,286,2],[287,2,291,2],[107,2,111,2],[112,2,117,2],[171,3,171,4],[177,3,177,4],[87,2,90,2],[91,2,99,2],[91,3,91,4],[101,3,101,4],[102,2,106,2],[102,3,102,4],[107,3,107,4],[112,3,112,4],[118,3,118,4],[132,2,139,2],[140,2,145,2],[146,2,151,2],[153,3,153,4],[125,2,129,2],[154,2,157,2],[158,2,170,2],[171,2,176,2],[177,2,180,2],[182,2,185,2],[154,3,154,4],[158,3,158,4],[125,3,125,4],[131,3,131,4],[132,3,132,4],[140,3,140,4],[146,3,146,4],[186,3,186,4],[181,3,181,4],[182,3,182,4],[240,2,243,2],[245,2,246,2],[247,2,251,2],[204,2,208,2],[209,2,211,2],[212,2,214,2],[215,2,217,2],[220,2,225,2],[186,2,196,2],[197,2,203,2],[228,2,231,2],[232,2,239,2]]}
[]
[null,null,"Gestión del programa"]
[]
[null,null,"Liderazgo y coordinación"]
[null,null,"Elemento","Criterios",null,"N/A","Ausente","Presente pero no óptimo","Presente y funcionando bien","Promedio del elemento","Comentarios (si procede) ","Absent","Present","Optimal","Average","Sustainability Single Figure"]
[null,null,"Estrategia nacional para grupos de población clave","Los reclusos están incluidos en la estrategia nacional para grupos de población clave y en la estrategia nacional de prevención del VIH:",null,null,null,null,null,{"$f":"O6","v":"-"},null,null,null,null,{"$f":"IFERROR(ROUND(AVERAGEIF(L7:N15,\"<>0\",L7:N15),0),\"-\")","v":"-"}]
[null,null,null,"○","Los reclusos han participado en el desarrollo del plan estratégico ",null,null,null,null,null,null,{"$f":"IF(ISBLANK(G7),0,1)","v":0},{"$f":"IF(ISBLANK(H7),0,3)","v":0},{"$f":"IF(ISBLANK(I7),0,5)","v":0}]
[null,null,null,"○","Se han definido claramente las metas y objetivos del programa para reclusos ",null,null,null,null,null,null,0,0,0]
[null,null,null,"○","Los reclusos o personas en privación de libertad se han definido claramente según las directrices de la Oficina de las Naciones Unidas contra la Droga y el Delito (ONUDD) ",null,null,null,null,null,null,0,0,0]
[null,null,null,"○","Se ha articulado un modelo lógico claro o una teoría del cambio  ",null,null,null,null,null,null,0,0,0]
[null,null,null,"○","El plan incluye un paquete integral de intervenciones y actividades basadas en la evidencia, en línea con las herramientas de implementación de la OMS. Estas herramientas, identificadas por los reclusos, incluyen intervenciones del sector no sanitario (e.j.: empoderamiento comunitario, abordaje de la violencia, reducción del estigma, etc.) y se han adaptado para abordar las vulnerabilidades específicas.",null,null,null,null,null,null,0,0,0]
[null,null,null,"○","Se ha definido claramente el proceso de escalado y se han asignado responsabilidades ",null,null,null,null,null,null,0,0,0]
[null,null,null,"○","Hay planes de financiación ",null,null,null,null,null,null,0,0,0]
[null,null,null,"○","Se ha definido un marco de seguimiento y evaluación con indicadores y objetivos básicos",null,null,null,null,null,null,0,0,0]
[null,null,null,"○","Se ha definido claramente el mecanismo de implementación",null,null,null,null,null,null,0,0,0]
[null,null,"Rendición de cuentas","El departamento/ministerio responsable del éxito de este programa ejerce un sólido liderazgo/autoridad:",null,null,null,null,null,{"$f":"O16","v":"-"},null,null,null,null,{"$f":"IFERROR(ROUND(AVERAGEIF(L17:N21,\"<>0\",L17:N21),0),\"-\")","v":"-"}]
[null,null,null,"○","Todos los proyectos del país envían información sobre indicadores clave de forma rutinaria al gobierno, tanto central como regional, e incluyen indicadores comunes ",null,null,null,null,null,null,{"$f":"IF(ISBLANK(G17),0,1)","v":0},{"$f":"IF(ISBLANK(H17),0,3)","v":0},{"$f":"IF(ISBLANK(I17),0,5)","v":0}]
[null,null,null,"○","Al generar informes, los datos se anonimizan y protegen para proteger a los reclusos ",null,null,null,null,null,null,0,0,0]
[null,null,null,"○","Se realizan revisiones programáticas periódicas utilizando datos programáticos",null,null,null,null,null,null,0,0,0]
[null,null,null,"○","El ministerio responsable del programa asiste a las reuniones de coordinación pertinentes",null,null,null,null,null,null,0,0,0]
[null,null,null,"○","El grupo técnico de trabajo (GTT) para este grupo de población clave (con representantes de los reclusos) participa para asegurar la rendición de cuentas ",null,null,null,null,null,null,0,0,0]
[null,null,"Grupo técnico de trabajo técnico para reclusos","Se ha establecido un grupo técnico de trabajo para los reclusos a nivel nacional:",null,null,null,null,null,{"$f":"O22","v":"-"},null,null,null,null,{"$f":"IFERROR(ROUND(AVERAGEIF(L23:N28,\"<>0\",L23:N28),0),\"-\")","v":"-"}]
[null,null,null,"○","Se reúnen regularmente ",null,null,null,null,null,null,{"$f":"IF(ISBLANK(G23),0,1)","v":0},{"$f":"IF(ISBLANK(H23),0,3)","v":0},{"$f":"IF(ISBLANK(I23),0,5)","v":0}]
[null,null,null,"○","El grupo técnico de trabajo está completo e incluye a las Organizaciones de la Sociedad Civil (OSC), a los colaboradores en la implementación y a representantes de las poblaciones clave",null,null,null,null,null,null,0,0,0]
[null,null,null,"○","El grupo técnico de trabajo dispone de mecanismos de comunicación para garantizar la coordinación",null,null,null,null,null,null,0,0,0]
[null,null,null,"○","El grupo técnico de trabajo dispone de mecanismos de comunicación para garantizar la coordinación ",null,null,null,null,null,null,0,0,0]
[null,null,null,"○","Tiene una lista de términos de referencia o ha definido su ámbito de trabajo ",null,null,null,null,null,null,0,0,0]
[null,null,null,"○","Los miembros del colectivo de reclusos están incluidos",null,null,null,null,null,null,0,0,0]
[null,null,"Coordinación de los organismos interesados","Existen mecanismos para garantizar que se logre una buena coordinación a todos los niveles, y que sea coherente con: ",null,null,null,null,null,{"$f":"O29","v":"-"},null,null,null,null,{"$f":"IFERROR(ROUND(AVERAGEIF(L30:N35,\"<>0\",L30:N35),0),\"-\")","v":"-"}]
[null,null,null,"○","Socios financiadores (a nivel nacional)",null,null,null,null,null,null,{"$f":"IF(ISBLANK(G30),0,1)","v":0},{"$f":"IF(ISBLANK(H30),0,3)","v":0},{"$f":"IF(ISBLANK(I30),0,5)","v":0}]
[null,null,null,"○","Programas locales con iniciativas más grandes a nivel nacional ",null,null,null,null,null,null,0,0,0]
[null,null,null,"○","Comunidades afectadas",null,null,null,null,null,null,0,0,0]
[null,null,null,"○","Colaboradores en la implementación ",null,null,null,null,null,null,0,0,0]
[null,null,null,"○","El Ministerio de Sanidad o las Consejerías de Sanidad (a nivel nacional y regional)",null,null,null,null,null,null,0,0,0]
[null,null,null,"○","Se ha logrado una coordinación multisectorial con otros ministerios/departamentos (por ejemplo, de finanzas o de las fuerzas del orden)",null,null,null,null,null,null,0,0,0]
[null,null,"Desarrollo de las capacidades y plan de asistencia técnica","Existe un plan de asistencia técnica que: ",null,null,null,null,null,{"$f":"O36","v":"-"},null,null,null,null,{"$f":"IFERROR(ROUND(AVERAGEIF(L37:N42,\"<>0\",L37:N42),0),\"-\")","v":"-"}]
[null,null,null,"○","Se ha desarrollado sobre la base de algunas evaluaciones ",null,null,null,null,null,null,{"$f":"IF(ISBLANK(G37),0,1)","v":0},{"$f":"IF(ISBLANK(H37),0,3)","v":0},{"$f":"IF(ISBLANK(I37),0,5)","v":0},null,{"$f":"IF(MAX(L37:N37)=0,\"\",MAX(L37:N37))","v":""}]
[null,null,null,"○","Involucra a expertos técnicos nacionales e internacionales, incluyéndose el desarrollo de capacidades y la asistencia técnica entre pares",null,null,null,null,null,null,0,0,0,null,""]
[null,null,null,"○","Ha priorizado los componentes del programa y las cuestiones políticas ",null,null,null,null,null,null,0,0,0,null,""]
[null,null,null,"○","Facilita el establecimiento y fortalecimiento de redes de implementadores ",null,null,null,null,null,null,0,0,0,null,""]
[null,null,null,"○","Identifica las lagunas y desarrolla solicitudes consolidadas de asistencia en los casos en los que falta experiencia a nivel nacional ",null,null,null,null,null,null,0,0,0,null,""]
[null,null,null,"○","Facilita el desarrollo de la capacidad de la comunidad de reclusos para hacerse cargo de los programas para reclusos ",null,null,null,null,null,null,0,0,0,null,""]
[null,null,"Plan de sostenibilidad y hoja de ruta de la transición","Se ha establecido un plan completo de sostenibilidad y una hoja de ruta de la transición, que dan cuenta de la transición de intervenciones apoyadas por donantes a intervenciones con apoyo a nivel nacional. Incluyen datos como: ",null,null,null,null,null,{"$f":"O43","v":"-"},null,null,null,null,{"$f":"IFERROR(ROUND(AVERAGEIF(L44:N47,\"<>0\",L44:N47),0),\"-\")","v":"-"},""]
[null,null,null,"○","Cálculo de costes unitarios para el grupo de población clave",null,null,null,null,null,null,{"$f":"IF(ISBLANK(G44),0,1)","v":0},{"$f":"IF(ISBLANK(H44),0,3)","v":0},{"$f":"IF(ISBLANK(I44),0,5)","v":0},null,""]
[null,null,null,"○","Análisis general de la financiación para el grupo de población clave",null,null,null,null,null,null,0,0,0,null,""]
[null,null,null,"○","Planificación hacia la integración de los servicios para PC en la atención primaria",null,null,null,null,null,null,0,0,0]
[null,null,null,"○","Consideraciones sobre las necesidades financieras, de infraestructura y de personal",null,null,null,null,null,null,0,0,0,null,{"$f":"IF(MAX(L47:N47)=0,\"\",MAX(L47:N47))","v":""}]
[null,null,"Leyes, políticas y normativas"]
[null,null,"Elemento","Criterios",null,"N/A","Ausente","Presente pero no óptimo","Presente y funcionando bien","Promedio del elemento","Comentarios (si procede) "]
[null,null,"Leyes y políticas ","Las políticas promueven activamente el buen funcionamiento del programa de prevención del VIH para reclusos: ",null,null,null,null,null,{"$f":"O50","v":"-"},null,null,null,null,{"$f":"IFERROR(ROUND(AVERAGEIF(L51:N52,\"<>0\",L51:N52),0),\"-\")","v":"-"}]
[null,null,null,"○","Existen políticas en vigor que promueven activamente el acceso de los reclusos a los servicios, incluyendo a los menores internados",null,null,null,null,null,null,{"$f":"IF(ISBLANK(G51),0,1)","v":0},{"$f":"IF(ISBLANK(H51),0,3)","v":0},{"$f":"IF(ISBLANK(I51),0,5)","v":0}]
[null,null,null,"○","Existen políticas en vigor que apoyan a los reclusos para que tengan acceso a los servicios, a pesar de las leyes que penalizan el uso de drogas, el trabajo sexual y las relaciones sexuales entre personas del mismo sexo",null,null,null,null,null,null,0,0,0]
[null,null,"Directrices","Existen unas directrices que detallan claramente los pasos a seguir para implementar con éxito este programa:",null,null,null,null,null,{"$f":"O53","v":"-"},null,null,null,null,{"$f":"IFERROR(ROUND(AVERAGEIF(L54:N57,\"<>0\",L54:N57),0),\"-\")","v":"-"}]
[null,null,null,"○","Existen directrices nacionales para cada una de las intervenciones y servicios conductuales, biomédicos y estructurales, y están en línea con las directrices a nivel mundial ",null,null,null,null,null,null,{"$f":"IF(ISBLANK(G54),0,1)","v":0},{"$f":"IF(ISBLANK(H54),0,3)","v":0},{"$f":"IF(ISBLANK(I54),0,5)","v":0}]
[null,null,null,"○","Estas directrices se desarrollaron en colaboración con las poblaciones afectadas",null,null,null,null,null,null,0,0,0]
[null,null,null,"○","Las directrices a nivel nacional para los servicios de pruebas del VIH y de infecciones de transmisión sexual, de profilaxis preexposición y de suministro de preservativos tienen en cuenta las necesidades y prioridades de los reclusos",null,null,null,null,null,null,0,0,0]
[null,null,null,"○","Se han incorporado las medidas de prevención y control de la infección por COVID-19 a todas las estrategias, planes y directrices de prevención del VIH/dirigidas a reclusos",null,null,null,null,null,null,0,0,0]
[null,null,"Financiación"]
[null,null,"Elemento","Criterios",null,"N/A","Ausente","Presente pero no óptimo","Presente y funcionando bien","Promedio del elemento","Comentarios (si procede) "]
[null,null,"Cálculo de costes ","Hay un presupuesto nacional:",null,null,null,null,null,{"$f":"O60","v":"-"},null,null,null,null,{"$f":"IFERROR(ROUND(AVERAGEIF(L61:N61,\"<>0\",L61:N61),0),\"-\")","v":"-"}]
[null,null,null,"○","Se ha llevado a cabo un cálculo de costes, y el programa nacional es consciente del coste promedio de alcanzar a un recluso con un paquete estándar de servicios, según las directrices ",null,null,null,null,null,null,{"$f":"IF(ISBLANK(G61),0,1)","v":0},{"$f":"IF(ISBLANK(H61),0,3)","v":0},{"$f":"IF(ISBLANK(I61),0,5)","v":0}]
[null,null,"Planificación de presupuestos","Hay un proceso de planificación presupuestaria para el programa de prevención del VIH, que tiene en cuenta a las personas transgénero y está bien gestionado.",null,null,null,null,null,{"$f":"O62","v":"-"},null,null,null,null,{"$f":"IFERROR(ROUND(AVERAGEIF(L63:N65,\"<>0\",L63:N65),0),\"-\")","v":"-"}]
[null,null,null,"○","Se está realizando una evaluación de los recursos disponibles para tratar de identificar las lagunas y asignar partidas presupuestarias a este programa",null,null,null,null,null,null,{"$f":"IF(ISBLANK(G63),0,1)","v":0},{"$f":"IF(ISBLANK(H63),0,3)","v":0},{"$f":"IF(ISBLANK(I63),0,5)","v":0}]
[null,null,null,"○","Se ha desarrollado una estrategia para eliminar las faltas de financiación",null,null,null,null,null,null,0,0,0]
[null,null,null,"○","Los presupuestos están vinculados a las necesidades de recursos de los planes operativos para las unidades a nivel nacional y regional",null,null,null,null,null,null,0,0,0]
[null,null,"Movilización de recursos y financiación","○","Hay fondos suficientes para abordar las necesidades holísticas del programa ",null,null,null,null,{"$f":"O66","v":"-"},null,0,0,0,{"$f":"IFERROR(ROUND(AVERAGEIF(L66:N66,\"<>0\",L66:N66),0),\"-\")","v":"-"},{"$f":"IF(MAX(L66:N66)=0,\"\",MAX(L66:N66))","v":""}]
[null,null,"Recursos nacionales","○","Más del 50 % de los recursos que sustentan el programa (tanto humanos como financieros) son de original nacional",null,null,null,null,"-",null,0,0,0,"-",""]
[null,null,"Contratación social","○","Se han desarrollado y se están implementando mecanismos de contratación social",null,null,null,null,"-",null,0,0,0,{"$f":"IFERROR(ROUND(AVERAGEIF(L68:N71,\"<>0\",L68:N71),0),\"-\")","v":"-"},""]
[null,null,null,"○","La información se hace circular ampliamente para que los colaboradores locales y las organizaciones lideradas por reclusos tengan acceso a financiación",null,null,null,null,null,null,0,0,0]
[null,null,null,"○","Existe un mecanismo que permite que las organizaciones lideradas por la comunidad reciban financiación",null,null,null,null,null,null,0,0,0]
[null,null,null,"○","Los fondos se conceden a las organizaciones lideradas por la comunidad ",null,null,null,null,null,null,0,0,0]
[null,null,"Implementación del programa"]
[]
[null,null,"Definición de objetivos y planificación"]
[null,null,"Elemento","Criterios",null,"N/A","Ausente","Presente pero no óptimo","Presente y funcionando bien","Promedio del elemento","Comentarios (si procede) "]
[null,null,"Evaluación demográfica (estimación del tamaño de la población y microplanificación)","Se ha realizado una estimación del tamaño de la población y una microplanificación, y:",null,null,null,null,null,{"$f":"O76","v":"-"},null,null,null,null,{"$f":"IFERROR(ROUND(AVERAGEIF(L77:N80,\"<>0\",L77:N80),0),\"-\")","v":"-"}]
[null,null,null,"○","Se han basado en cada lugar (a nivel local, no de país o región)",null,null,null,null,null,null,{"$f":"IF(ISBLANK(G77),0,1)","v":0},{"$f":"IF(ISBLANK(H77),0,3)","v":0},{"$f":"IF(ISBLANK(I77),0,5)","v":0}]
[null,null,null,"○","Se actualizan anualmente o cada vez que se realiza una encuesta bioconductual",null,null,null,null,null,null,0,0,0]
[null,null,null,"○","La información se utiliza para argumentar la necesidad de intervenciones conductuales, biomédicas y estructurales   ",null,null,null,null,null,null,0,0,0]
[null,null,null,"○","Esta información también se utiliza para estimar la necesidad de fondos y para determinar los objetivos",null,null,null,null,null,null,0,0,0]
[null,null,"Evaluación epidemiológica (encuesta de seroprevalencia y factores de riesgo)","Se dispone de estimaciones de seroprevalencia, y:",null,null,null,null,null,{"$f":"O81","v":"-"},null,null,null,null,{"$f":"IFERROR(ROUND(AVERAGEIF(L82:N87,\"<>0\",L82:N87),0),\"-\")","v":"-"}]
[null,null,null,"○","Se han basado en los estudios de vigilancia recientes o continuos (estimaciones modeladas actualizadas anualmente o datos de encuestas actualizados cada 3-5 años)",null,null,null,null,null,null,{"$f":"IF(ISBLANK(G82),0,1)","v":0},{"$f":"IF(ISBLANK(H82),0,3)","v":0},{"$f":"IF(ISBLANK(I82),0,5)","v":0}]
[null,null,null,"○","Específicas para reclusos",null,null,null,null,null,null,0,0,0]
[null,null,null,"○","Los resultados son precisos: el tamaño de la muestra es estadísticamente representativo (y se ha determinado adecuadamente), y el método de muestreo es apropiado para la población reclusa",null,null,null,null,null,null,0,0,0]
[null,null,null,"○","Se han realizado regularmente evaluaciones de los factores de riesgo para los reclusos, a fin de recabar información para el programa, y:",null,null,null,null,null,null,0,0,0]
[null,null,null,null,"> Son específicas para la población reclusa y tienen en cuenta los comportamientos específicos en función de la edad y del género ",null,null,null,null,null,null,0,0,0]
[null,null,null,null,"> Los estudios son de buena calidad y proporcionan información exhaustiva  ",null,null,null,null,null,null,0,0,0]
[null,null,"Evaluación de necesidades","Se ha realizado una evaluación de necesidades de los reclusos a nivel de implementación o local:",null,null,null,null,null,{"$f":"O88","v":"-"},null,null,null,null,{"$f":"IFERROR(ROUND(AVERAGEIF(L89:N91,\"<>0\",L89:N91),0),\"-\")","v":"-"}]
[null,null,null,"○","Se han determinado las necesidades con la participación de reclusos y redes u organizaciones lideradas por reclusos",null,null,null,null,null,null,{"$f":"IF(ISBLANK(G89),0,1)","v":0},{"$f":"IF(ISBLANK(H89),0,3)","v":0},{"$f":"IF(ISBLANK(I89),0,5)","v":0}]
[null,null,null,"○","Hay suficiente información sobre los servicios que los reclusos necesitan, cómo preferirían acceder a dichos servicios y quién debería proporcionarlos ",null,null,null,null,null,null,0,0,0]
[null,null,null,"○","Hay información detallada sobre las áreas que presentan lagunas en la prestación de servicios o barreras de acceso",null,null,null,null,null,null,0,0,0]
[null,null,"Determinación de objetivos","Se han definido claramente los objetivos para los reclusos, y:",null,null,null,null,null,{"$f":"O92","v":"-"},null,null,null,null,{"$f":"IFERROR(ROUND(AVERAGEIF(L93:N100,\"<>0\",L93:N100),0),\"-\")","v":"-"}]
[null,null,null,"○","Se basan en la estimación del tamaño y los datos de evaluación de riesgos",null,null,null,null,null,null,{"$f":"IF(ISBLANK(G93),0,1)","v":0},{"$f":"IF(ISBLANK(H93),0,3)","v":0},{"$f":"IF(ISBLANK(I93),0,5)","v":0}]
[null,null,null,"○","Desarrollados para la población reclusa ",null,null,null,null,null,null,0,0,0]
[null,null,null,"○","Incluyen especificaciones a nivel nacional y regional ",null,null,null,null,null,null,0,0,0]
[null,null,null,"○","Incluyen los logros ya alcanzados y los logros que se espera alcanzar al final ",null,null,null,null,null,null,0,0,0]
[null,null,null,"○","Se han desarrollado en colaboración con implementadores y redes de reclusos para garantizar que sean realistas",null,null,null,null,null,null,0,0,0]
[null,null,null,"○","Están en línea con los presupuestos y los acuerdos formales con los implementadores a nivel local",null,null,null,null,null,null,0,0,0]
[null,null,null,"○","Están divididos por edad y sexo",null,null,null,null,null,null,0,0,0]
[null,null,null,"○","Los objetivos del Fondo mundial para la lucha contra el VIH/SIDA, la tuberculosis y la malaria y del Plan de Emergencia del Presidente de los Estados Unidos para el Alivio del Sida (PEPFAR) se refieren a las estimaciones de tamaño y objetivos nacionales ",null,null,null,null,null,null,0,0,0]
[null,null,"Acuerdo de implementación "]
[null,null,"Elemento","Criterios",null,"N/A","Ausente","Presente pero no óptimo","Presente y funcionando bien","Promedio del elemento","Comentarios (si procede) "]
[null,null,"Mantener una plataforma de acceso","Hay una plataforma de acceso que promueve los esfuerzos coordinados de la comunidad y y de los servicios sanitarios, y que: ",null,null,null,null,null,{"$f":"O103","v":"-"},null,null,null,null,{"$f":"IFERROR(ROUND(AVERAGEIF(L104:N107,\"<>0\",L104:N107),0),\"-\")","v":"-"}]
[null,null,null,"○","Genera confianza en toda la comunidad a través de los trabajadores de asistencia social entre iguales ",null,null,null,null,null,null,{"$f":"IF(ISBLANK(G104),0,1)","v":0},{"$f":"IF(ISBLANK(H104),0,3)","v":0},{"$f":"IF(ISBLANK(I104),0,5)","v":0}]
[null,null,null,"○","Llega a un gran número de reclusos, y fomenta su aceptación, fidelización y participación activa en el programa",null,null,null,null,null,null,0,0,0]
[null,null,null,"○","Fomenta la captación y fidelización de reclusos ",null,null,null,null,null,null,0,0,0]
[null,null,null,"○","Fomenta la participación activa de reclusos ",null,null,null,null,null,null,0,0,0]
[null,null,"Estructura de gestión","Se ha definido el proceso de estructura de gestión, y: ",null,null,null,null,null,{"$f":"O108","v":"-"},null,null,null,null,{"$f":"IFERROR(ROUND(AVERAGEIF(L109:N112,\"<>0\",L109:N112),0),\"-\")","v":"-"}]
[null,null,null,"○","Hay una ratio adecuada entre trabajadores de asistencia social entre iguales y poblaciones afectadas ",null,null,null,null,null,null,{"$f":"IF(ISBLANK(G109),0,1)","v":0},{"$f":"IF(ISBLANK(H109),0,3)","v":0},{"$f":"IF(ISBLANK(I109),0,5)","v":0}]
[null,null,null,"○","Hay unas directrices para reclutar, retener, evaluar y promover el trabajo de asistencia social entre iguales",null,null,null,null,null,null,0,0,0]
[null,null,null,"○","Los supervisores entre pares garantizan el adecuado seguimiento de los trabajadores de asistencia social entre iguales ",null,null,null,null,null,null,0,0,0]
[null,null,null,"○","Se ha establecido un mecanismo formal de referencias ",null,null,null,null,null,null,0,0,0]
[null,null,"Flujo de datos ","Se han definido flujos de datos para cada nivel, y:",null,null,null,null,null,{"$f":"O113","v":"-"},null,null,null,null,{"$f":"IFERROR(ROUND(AVERAGEIF(L114:N118,\"<>0\",L114:N118),0),\"-\")","v":"-"}]
[null,null,null,"○","Se han desarrollado y probado los sistemas de datos ",null,null,null,null,null,null,{"$f":"IF(ISBLANK(G114),0,1)","v":0},{"$f":"IF(ISBLANK(H114),0,3)","v":0},{"$f":"IF(ISBLANK(I114),0,5)","v":0}]
[null,null,null,"○","Se han definido claramente los indicadores estándar para el seguimiento del programa de PC",null,null,null,null,null,null,0,0,0]
[null,null,null,"○","Se han desarrollado herramientas estandarizadas para generar informes ",null,null,null,null,null,null,0,0,0]
[null,null,null,"○","Los datos programáticos se comunican y revisan mensualmente ",null,null,null,null,null,null,0,0,0]
[null,null,null,"○","Hay sistemas para mantener la confidencialidad de los datos ",null,null,null,null,null,null,0,0,0]
[null,null,"Trabajadores de asistencia social entre iguales (TASEI) ","El programa emplea trabajadores de asistencia social entre iguales de manera efectiva:\n",null,null,null,null,null,{"$f":"O119","v":"-"},null,null,null,null,{"$f":"IFERROR(ROUND(AVERAGEIF(L120:N125,\"<>0\",L120:N125),0),\"-\")","v":"-"}]
[null,null,null,"○","Los TASEI forman parte de la comunidad reclusa a la que representan o sirven",null,null,null,null,null,null,{"$f":"IF(ISBLANK(G120),0,1)","v":0},{"$f":"IF(ISBLANK(H120),0,3)","v":0},{"$f":"IF(ISBLANK(I120),0,5)","v":0}]
[null,null,null,"○","Hay un plan de formación disponible, que es apropiado e incluye formación sanitaria para que los TASEI actualicen sus conocimientos acerca de las necesidades específicas de los reclusos",null,null,null,null,null,null,0,0,0]
[null,null,null,"○","Los TASEI tienen formación en microplanificación y divulgación",null,null,null,null,null,null,0,0,0]
[null,null,null,"○","Se emplean mensajes y materiales de comunicación basados en la evidencia",null,null,null,null,null,null,0,0,0]
[null,null,null,"○","Se proporciona información sobre los servicios disponibles, y se facilita a los beneficiarios el acceso a los servicios ",null,null,null,null,null,null,0,0,0]
[null,null,null,"○","Se ofrece asesoramiento y apoyo emocional para llevar a cabo el tratamiento",null,null,null,null,null,null,0,0,0]
[null,null,"Participación significativa de las comunidades afectadas en el liderazgo y la coordinación","Los miembros de las poblaciones afectadas tienen representación en el órgano nacional de coordinación o en el grupo técnico de trabajo técnico, y:\n\n",null,null,null,null,null,{"$f":"O126","v":"-"},null,null,null,null,{"$f":"IFERROR(ROUND(AVERAGEIF(L127:N130,\"<>0\",L127:N130),0),\"-\")","v":"-"}]
[null,null,null,"○","Se reúnen regularmente",null,null,null,null,null,null,{"$f":"IF(ISBLANK(G127),0,1)","v":0},{"$f":"IF(ISBLANK(H127),0,3)","v":0},{"$f":"IF(ISBLANK(I127),0,5)","v":0}]
[null,null,null,"○","Participan activamente en los procesos de toma de decisiones en igualdad de condiciones ",null,null,null,null,null,null,0,0,0]
[null,null,null,"○","Reciben apoyo para solicitar feedback e informar sobre las decisiones clave a los grupos que representan",null,null,null,null,null,null,0,0,0]
[null,null,null,"○","Se ha comprobado que se tienen en cuenta los comentarios, las aportaciones y el asesoramiento experto que las organizaciones o redes lideradas por reclusos proporcionan",null,null,null,null,null,null,0,0,0]
[null,null,"Prestación de servicios"]
[null,null,"Elemento","Criterios",null,"N/A","Ausente","Presente pero no óptimo","Presente y funcionando bien","Promedio del elemento","Comentarios (si procede) "]
[null,null,"Servicios accesibles","Los servicios son accesibles para los reclusos, y:",null,null,null,null,null,{"$f":"O133","v":"-"},null,null,null,null,{"$f":"IFERROR(ROUND(AVERAGEIF(L134:N140,\"<>0\",L134:N140),0),\"-\")","v":"-"}]
[null,null,null,"○","Están diseñados en base a la investigación formativa realizada en la evaluación de necesidades ",null,null,null,null,null,null,{"$f":"IF(ISBLANK(G134),0,1)","v":0},{"$f":"IF(ISBLANK(H134),0,3)","v":0},{"$f":"IF(ISBLANK(I134),0,5)","v":0}]
[null,null,null,"○","Están convenientemente ubicados en o cerca de centros de actividad",null,null,null,null,null,null,0,0,0]
[null,null,null,"○","Incluyen servicios móviles en caso de ser necesarios ",null,null,null,null,null,null,0,0,0]
[null,null,null,"○","Los horarios son adecuados para los reclusos a los que se dirigen ",null,null,null,null,null,null,0,0,0]
[null,null,null,"○","Están integrados con el sistema nacional de salud y ofrecen paquetes de atención integral ",null,null,null,null,null,null,0,0,0]
[null,null,null,"○","Cuentan con un suministro constante de servicios y productos",null,null,null,null,null,null,0,0,0]
[null,null,null,"○","Implican un cambio de tareas para permitir aumentar la capacidad de los proveedores de atención médica",null,null,null,null,null,null,0,0,0]
[null,null,"Servicios aceptables","Los servicios son aceptables para los reclusos:",null,null,null,null,null,{"$f":"O141","v":"-"},null,null,null,null,{"$f":"IFERROR(ROUND(AVERAGEIF(L142:N146,\"<>0\",L142:N146),0),\"-\")","v":"-"}]
[null,null,null,"○","Son confidenciales y voluntarios ",null,null,null,null,null,null,{"$f":"IF(ISBLANK(G142),0,1)","v":0},{"$f":"IF(ISBLANK(H142),0,3)","v":0},{"$f":"IF(ISBLANK(I142),0,5)","v":0}]
[null,null,null,"○","Los proveedores de asistencia son sensibles a las necesidades de los reclusos, y no juzgan ni estigmatizan",null,null,null,null,null,null,0,0,0]
[null,null,null,"○","Los proveedores de servicios están capacitados para poder ofrecer un paquete completo de intervención específico para reclusos ",null,null,null,null,null,null,0,0,0]
[null,null,null,"○","Crean un entorno seguro y de apoyo ",null,null,null,null,null,null,0,0,0]
[null,null,null,"○","Las intervenciones online se llevan a cabo de manera ética, respetando la privacidad y confidencialidad de los clientes",null,null,null,null,null,null,0,0,0]
[null,null,"Servicios adaptados/apropiados","Los paquetes de servicios y la prestación de los mismos están adaptados a las necesidades específicas de los reclusos en toda su diversidad:",null,null,null,null,null,{"$f":"O147","v":"-"},null,null,null,null,{"$f":"IFERROR(ROUND(AVERAGEIF(L148:N152,\"<>0\",L148:N152),0),\"-\")","v":"-"}]
[null,null,null,"○","El paquete de servicios para reclusos incluye todos los servicios de salud sexual y reproductiva pertinentes, de acuerdo con las directrices de la OMS ",null,null,null,null,null,null,{"$f":"IF(ISBLANK(G148),0,1)","v":0},{"$f":"IF(ISBLANK(H148),0,3)","v":0},{"$f":"IF(ISBLANK(I148),0,5)","v":0}]
[null,null,null,"○","Amplia disponibilidad para la iniciación comunitaria en la terapia antirretroviral para los recursos que viven con el VIH",null,null,null,null,null,null,0,0,0]
[null,null,null,"○","Los servicios se proporcionan de una manera accesible para los reclusos en toda su diversidad (por ejemplo, abordan cuestiones sobre la edad de consentimiento)",null,null,null,null,null,null,0,0,0]
[null,null,null,"○","Se dispone de servicios adicionales (o se puede contactar con ellos) en función de las necesidades específicas de los reclusos (por ejemplo, servicios de reasignación de género)",null,null,null,null,null,null,0,0,0]
[null,null,null,"○","Los servicios se prestan de forma adecuada y respetando la confidencialidad y privacidad de los clientes (por ejemplo, servicios prestados en el marco de la salud masculina para HSH que no se identifican como gays)",null,null,null,null,null,null,0,0,0]
[null,null,"Intervención clínicas "]
[null,null,"Elemento","Criterios",null,"N/A","Ausente","Presente pero no óptimo","Presente y funcionando bien","Promedio del elemento","Comentarios (si procede) "]
[null,null,"Preservativos y lubricante ","Todos los reclusos tienen acceso a preservativos, lubricantes, demostraciones de uso y otros servicios de salud sexual y reproductiva, y:\nTodos los reclusos tienen acceso a preservativos, lubricantes, demostraciones de uso y otros servicios de salud sexual y reproductiva, y:\n",null,null,null,null,null,{"$f":"O155","v":"-"},null,null,null,null,{"$f":"IFERROR(ROUND(AVERAGEIF(L156:N158,\"<>0\",L156:N158),0),\"-\")","v":"-"}]
[null,null,null,"○","Se distribuyen ampliamente y en cantidad suficiente",null,null,null,null,null,null,{"$f":"IF(ISBLANK(G156),0,1)","v":0},{"$f":"IF(ISBLANK(H156),0,3)","v":0},{"$f":"IF(ISBLANK(I156),0,5)","v":0}]
[null,null,null,"○","Son fácilmente accesibles",null,null,null,null,null,null,0,0,0]
[null,null,null,"○","Los TASEI realizan regularmente demostraciones de uso en los centros penitenciarios ",null,null,null,null,null,null,0,0,0]
[null,null,"Servicios de pruebas del VIH","Existen servicios de pruebas del VIH disponibles para los reclusos, y:\n",null,null,null,null,null,{"$f":"O159","v":"-"},null,null,null,null,{"$f":"IFERROR(ROUND(AVERAGEIF(L160:N171,\"<>0\",L160:N171),0),\"-\")","v":"-"}]
[null,null,null,"○","Se han implementado las directrices consolidadas de la OMS sobre los servicios de pruebas del VIH ",null,null,null,null,null,null,{"$f":"IF(ISBLANK(G160),0,1)","v":0},{"$f":"IF(ISBLANK(H160),0,3)","v":0},{"$f":"IF(ISBLANK(I160),0,5)","v":0}]
[null,null,null,"○","Todas las pruebas son voluntarias y confidenciales (con consentimiento informado)",null,null,null,null,null,null,0,0,0]
[null,null,null,"○","Se proporciona asesoramiento antes y después de la prueba ",null,null,null,null,null,null,0,0,0]
[null,null,null,"○","Se ofrece el tratamiento independientemente del recuento de CD4 ",null,null,null,null,null,null,0,0,0]
[null,null,null,"○","Tras el diagnóstico, a las personas con VIH se les pone en contacto con las redes de atención y apoyo ",null,null,null,null,null,null,0,0,0]
[null,null,null,"○","El acceso a los servicios se distribuye equitativamente entre la comunidad ",null,null,null,null,null,null,0,0,0]
[null,null,null,"○","Se han implementado intervenciones para garantizar la adherencia de los reclusos que viven con el VIH",null,null,null,null,null,null,0,0,0]
[null,null,null,"○","Se realiza un seguimiento regular de la asistencia de los reclusos que viven con el VIH a los servicios de atención sanitaria ",null,null,null,null,null,null,0,0,0]
[null,null,null,"○","Se pone en contacto con los servicios de prevención de las comorbilidades",null,null,null,null,null,null,0,0,0]
[null,null,null,"○","Se facilita el contacto con los servicios de  tratamiento de las comorbilidades",null,null,null,null,null,null,0,0,0]
[null,null,null,"○","Se dispone de pruebas de carga viral y son accesibles para los reclusos que viven con el VIH",null,null,null,null,null,null,0,0,0]
[null,null,null,"○","Se dispone de pruebas de CD4 y son accesibles para los reclusos que viven con el VIH",null,null,null,null,null,null,0,0,0]
[null,null,"Profilaxis preexposición (PrEP)","Se dispone de una PrEP oral (TDF) para los reclusos en riesgo sustancial de infección por VIH ",null,null,null,null,null,{"$f":"O172","v":"-"},null,null,null,null,{"$f":"IFERROR(ROUND(AVERAGEIF(L173:N177,\"<>0\",L173:N177),0),\"-\")","v":"-"}]
[null,null,null,"○","Hay un suministro ininterrumpido de profilaxis preexposición ",null,null,null,null,null,null,{"$f":"IF(ISBLANK(G173),0,1)","v":0},{"$f":"IF(ISBLANK(H173),0,3)","v":0},{"$f":"IF(ISBLANK(I173),0,5)","v":0}]
[null,null,null,"○","Las pruebas de VIH se llevan a cabo antes de iniciar la profilaxis preexposición para asegurarse de que la persona sea negativa en VIH ",null,null,null,null,null,null,0,0,0]
[null,null,null,"○","Se ofrece como parte de un enfoque integral de prevención combinada ",null,null,null,null,null,null,0,0,0]
[null,null,null,"○","Los enfoques combinados incluyen el apoyo a la adherencia, la repetición periódica de la prueba del VIH y el asesoramiento para los usuarios de profilaxis preexposición ",null,null,null,null,null,null,0,0,0]
[null,null,null,"○","La profilaxis preexposición se ofrece basándose en la evaluación individual y no en el grupo de riesgo, a fin de promover una cobertura más amplia ",null,null,null,null,null,null,0,0,0]
[null,null,"Planificación familiar y SSR ","Todos los reclusos tienen acceso a servicios de planificación familiar y de salud sexual y reproductiva (SSR), y:",null,null,null,null,null,{"$f":"O178","v":"-"},null,0,0,0,{"$f":"IFERROR(ROUND(AVERAGEIF(L179:N181,\"<>0\",L179:N181),0),\"-\")","v":"-"}]
[null,null,null,"○","Incluyen exámenes de detección del cáncer cervical",null,null,null,null,null,null,0,0,0]
[null,null,null,"○","Se distribuyen ampliamente y en cantidad suficiente",null,null,null,null,null,null,0,0,0]
[null,null,null,"○","Son fácilmente accesibles en los centros penitenciarios",null,null,null,null,null,null,0,0,0]
[null,null,"Prevención de la transmisión perinatal (PTP)","Todas las reclusas tienen acceso a la  información, el tratamiento y la atención adecuados para prevenir la transmisión perinatal del VIH",null,null,null,null,null,{"$f":"O182","v":"-"},null,0,0,0,{"$f":"IFERROR(ROUND(AVERAGEIF(L182:N182,\"<>0\",L182:N182),0),\"-\")","v":"-"}]
[null,null,"Atención postviolencia","Todos los reclusos tienen acceso a atención postviolencia, y:\n",null,null,null,null,null,"-",null,null,null,null,{"$f":"IFERROR(ROUND(AVERAGEIF(L184:N186,\"<>0\",L184:N186),0),\"-\")","v":"-"}]
[null,null,null,"○","Se dispone de servicios de apoyo y asesoramiento",null,null,null,null,null,null,{"$f":"IF(ISBLANK(G184),0,1)","v":0},{"$f":"IF(ISBLANK(H184),0,3)","v":0},{"$f":"IF(ISBLANK(I184),0,5)","v":0}]
[null,null,null,"○","Se dispone de servicios como la profilaxis postexposición",null,null,null,null,null,null,0,0,0]
[null,null,null,"○","Se realizan pruebas de infecciones de transmisión sexual (sífilis, clamidia, gonorrea) de forma rutinaria",null,null,null,null,null,null,0,0,0]
[null,null,"Prevención, detección y tratamiento de la tuberculosis (TB)","Se dispone de servicios de prevención, detección y tratamiento de la TB para reclusos, y:\n",null,null,null,null,null,{"$f":"O187","v":"-"},null,null,null,null,{"$f":"IFERROR(ROUND(AVERAGEIF(L188:N197,\"<>0\",L188:N197),0),\"-\")","v":"-"}]
[null,null,null,"○","Prevención: terapia preventiva con isoniacida administrada a personas VIH+ junto con terapia antirretroviral (TAR), control de la infección por tuberculosis y rastreo de contactos en entornos compartidos ",null,null,null,null,null,null,{"$f":"IF(ISBLANK(G188),0,1)","v":0},{"$f":"IF(ISBLANK(H188),0,3)","v":0},{"$f":"IF(ISBLANK(I188),0,5)","v":0}]
[null,null,null,"○","Se intensifican las labores de detección de la TB se en los centros penitenciarios debido a la aglomeración y a otros factores de riesgo ",null,null,null,null,null,null,0,0,0]
[null,null,null,"○","Diagnóstico: uso de Xpert MTB/RIF como prueba diagnóstica inicial",null,null,null,null,null,null,0,0,0]
[null,null,null,"○","Todas las pruebas son voluntarias y confidenciales ",null,null,null,null,null,null,0,0,0]
[null,null,null,"○","Se han implementado intervenciones de apoyo de adherencia para garantizar que se completa el ciclo de antibióticos",null,null,null,null,null,null,0,0,0]
[null,null,null,"○","El tratamiento se administra inmediatamente y el suministro es ininterrumpido",null,null,null,null,null,null,0,0,0]
[null,null,null,"○","El acceso a los servicios se distribuye equitativamente entre la comunidad y los reclusos",null,null,null,null,null,null,0,0,0]
[null,null,null,"○","Se ofrece el contacto con los servicios de pruebas del VIH y de asesoramiento para casos positivos ",null,null,null,null,null,null,0,0,0]
[null,null,null,"○","Se están realizando esfuerzos para tratar la tuberculosis latente en la población reclusa",null,null,null,null,null,null,0,0,0]
[null,null,null,"○","El tratamiento de la tuberculosis no tiene contraindicaciones por consumo de alcohol o drogas ni por trastornos de salud mental",null,null,null,null,null,null,0,0,0]
[null,null,"Prevención, vacunación, detección y tratamiento de la hepatitis viral","Se dispone de servicios de prevención, vacunación, detección y tratamiento de la hepatitis vírica tipo B y C que satisfacen las necesidades específicas de los reclusos, y:\n",null,null,null,null,null,{"$f":"O198","v":"-"},null,null,null,null,{"$f":"IFERROR(ROUND(AVERAGEIF(L199:N204,\"<>0\",L199:N204),0),\"-\")","v":"-"}]
[null,null,null,"○","Todas las pruebas son voluntarias y confidenciales ",null,null,null,null,null,null,{"$f":"IF(ISBLANK(G199),0,1)","v":0},{"$f":"IF(ISBLANK(H199),0,3)","v":0},{"$f":"IF(ISBLANK(I199),0,5)","v":0}]
[null,null,null,"○","El tratamiento se administra inmediatamente y el suministro es ininterrumpido ",null,null,null,null,null,null,0,0,0]
[null,null,null,"○","El acceso a los servicios se distribuye equitativamente entre todos los reclusos",null,null,null,null,null,null,0,0,0]
[null,null,null,"○","Se llevan a cabo campañas de vacunación contra la hepatitis B y C de forma rutinaria ",null,null,null,null,null,null,0,0,0]
[null,null,null,"○","Se dispone de regímenes de vacunación contra la hepatitis B y C que son rápidos, estándar y de fácil acceso. ",null,null,null,null,null,null,0,0,0]
[null,null,null,"○","Se han asignado recursos para la prevención, vacunación, detección y tratamiento de la hepatitis vírica",null,null,null,null,null,null,0,0,0]
[null,null,"Detección y tratamiento para el consumo de drogas y alcohol","La detección y el tratamiento para el consumo problemático de alcohol y drogas se llevan a cabo de forma rutinaria:",null,null,null,null,null,{"$f":"O205","v":"-"},null,null,null,null,{"$f":"IFERROR(ROUND(AVERAGEIF(L206:N209,\"<>0\",L206:N209),0),\"-\")","v":"-"}]
[null,null,null,"○","Los trabajadores de asistencia social entre iguales ponen en contacto a las personas en riesgo con los servicios de detección y tratamiento ",null,null,null,null,null,null,{"$f":"IF(ISBLANK(G206),0,1)","v":0},{"$f":"IF(ISBLANK(H206),0,3)","v":0},{"$f":"IF(ISBLANK(I206),0,5)","v":0}]
[null,null,null,"○","Las personas están en contacto con terapeutas, organizaciones y grupos de apoyo adecuados",null,null,null,null,null,null,0,0,0]
[null,null,null,"○","El tratamiento se inicia inmediatamente si la persona consiente de forma voluntaria",null,null,null,null,null,null,0,0,0]
[null,null,null,"○","Se ofrece derivación a otros servicios (salud mental, apoyo psicosocial) en caso de necesidad",null,null,null,null,null,null,0,0,0]
[null,null,"Atención a la salud mental","La atención a la salud mental es accesible y se proporciona de forma continuada a los reclusos que viven con el VIH, e incluye:",null,null,null,null,null,{"$f":"O210","v":"-"},null,null,null,null,{"$f":"IFERROR(ROUND(AVERAGEIF(L211:N212,\"<>0\",L211:N212),0),\"-\")","v":"-"}]
[null,null,null,"○","Evaluaciones rutinarias de trastornos de salud mental (especialmente depresión y estrés psicosocial), según lo dispuesto en el Programa de Acción Global en Salud Mental de la OMS (mhGAP)",null,null,null,null,null,null,{"$f":"IF(ISBLANK(G211),0,1)","v":0},{"$f":"IF(ISBLANK(H211),0,3)","v":0},{"$f":"IF(ISBLANK(I211),0,5)","v":0}]
[null,null,null,"○","Asesoramiento tras obtener resultados positivos en la prueba del VIH para detectar el riesgo de suicidio, depresión y otros problemas de salud mental ",null,null,null,null,null,null,0,0,0]
[null,null,"CMMV","La CMMV está disponible para los reclusos heterosexuales que están a punto de salir de prisión en los países del este y sur de África en los que se practica la CMMV, y:",null,null,null,null,null,{"$f":"O213","v":"-"},null,null,null,null,{"$f":"IFERROR(ROUND(AVERAGEIF(L214:N215,\"<>0\",L214:N215),0),\"-\")","v":"-"}]
[null,null,null,"○","El procedimiento es voluntario (con consentimiento informado) y confidencial",null,null,null,null,null,null,{"$f":"IF(ISBLANK(G214),0,1)","v":0},{"$f":"IF(ISBLANK(H214),0,3)","v":0},{"$f":"IF(ISBLANK(I214),0,5)","v":0}]
[null,null,null,"○","El procedimiento lo realizan profesionales de la salud cualificados en entornos adecuadamente equipados",null,null,null,null,null,null,0,0,0]
[null,null,"COVID-19 ","Prestación de servicios a las personas para los programas dirigidos a la población reclusa durante la COVID-19 \n",null,null,null,null,null,{"$f":"O216","v":"-"},null,null,null,null,{"$f":"IFERROR(ROUND(AVERAGEIF(L217:N218,\"<>0\",L217:N218),0),\"-\")","v":"-"}]
[null,null,null,"○","Hay programas para promover la vacunación contra la COVID-19 entre los reclusos y realizar un seguimiento ",null,null,null,null,null,null,{"$f":"IF(ISBLANK(G217),0,1)","v":0},{"$f":"IF(ISBLANK(H217),0,3)","v":0},{"$f":"IF(ISBLANK(I217),0,5)","v":0}]
[null,null,null,"○","Comunicación constante y acceso seguro a modelos de prestación de servicios fuera de instalaciones sanitarias (ej.: centros comunitarios, a domicilio, teleasistencia, etc.) durante los picos de la COVID-19 para evitar la interrupción del servicio",null,null,null,null,null,null,0,0,0]
[null,null,"Intervenciones conductuales"]
[null,null,"Elemento","Criterios",null,"N/A","Ausente","Presente pero no óptimo","Presente y funcionando bien","Promedio del elemento","Comentarios (si procede) "]
[null,null,"Comunicación para el cambio conductual y social (CCCS)","Las actividades de comunicación para el cambio conductual y social están incluidas en el programa. Están:",null,null,null,null,null,{"$f":"O221","v":"-"},null,null,null,null,{"$f":"IFERROR(ROUND(AVERAGEIF(L222:N226,\"<>0\",L222:N226),0),\"-\")","v":"-"}]
[null,null,null,"○","Bien planificadas y adecuadamente presupuestadas",null,null,null,null,null,null,{"$f":"IF(ISBLANK(G222),0,1)","v":0},{"$f":"IF(ISBLANK(H222),0,3)","v":0},{"$f":"IF(ISBLANK(I222),0,5)","v":0}]
[null,null,null,"○","Basadas en la evidencia ",null,null,null,null,null,null,0,0,0]
[null,null,null,"○","Diseñadas y probadas con la participación de miembros de las comunidades afectadas",null,null,null,null,null,null,0,0,0]
[null,null,null,"○","Implementadas por organizaciones y personas con experiencia y formación en intervenciones de CCCS",null,null,null,null,null,null,0,0,0]
[null,null,null,"○","Las intervenciones de CCCS están incluidas en los planes y actividades de seguimiento y evaluación",null,null,null,null,null,null,0,0,0]
[null,null,"Intervenciones estructurales"]
[null,null,"Elemento","Criterios",null,"N/A","Ausente","Presente pero no óptimo","Presente y funcionando bien","Promedio del elemento","Comentarios (si procede) "]
[null,null,"Prevención y respuesta a la violencia","Se han implementado programas para abordar la violencia contra y entre los reclusos de manera consistente, e incluyen:",null,null,null,null,null,{"$f":"O229","v":"-"},null,null,null,null,{"$f":"IFERROR(ROUND(AVERAGEIF(L230:N232,\"<>0\",L230:N232),0),\"-\")","v":"-"}]
[null,null,null,"○","Información sobre seguridad",null,null,null,null,null,null,{"$f":"IF(ISBLANK(G230),0,1)","v":0},{"$f":"IF(ISBLANK(H230),0,3)","v":0},{"$f":"IF(ISBLANK(I230),0,5)","v":0}]
[null,null,null,"○","Estandarización de los mecanismos de seguimiento y de denuncia de los casos de violencia, que van más allá del contacto con la Policía y pueden incluir asesoramiento jurídico",null,null,null,null,null,null,0,0,0]
[null,null,null,"○","En contacto con servicios de asistencia jurídica",null,null,null,null,null,null,0,0,0]
[null,null,"Reducción del estigma y la discriminación ","Los esfuerzos para reducir el estigma y la discriminación contra los reclusos incluyen:  ",null,null,null,null,null,{"$f":"O233","v":"-"},null,null,null,null,{"$f":"IFERROR(ROUND(AVERAGEIF(L234:N240,\"<>0\",L234:N240),0),\"-\")","v":"-"}]
[null,null,null,"○","Promoción de políticas antidiscriminatorias y de protección para todos los reclusos ",null,null,null,null,null,null,{"$f":"IF(ISBLANK(G234),0,1)","v":0},{"$f":"IF(ISBLANK(H234),0,3)","v":0},{"$f":"IF(ISBLANK(I234),0,5)","v":0}]
[null,null,null,"○","Programas, dentro y fuera del sector sanitario, que instituyan políticas y códigos de conducta en contra de la estigmatización y la discriminación",null,null,null,null,null,null,0,0,0]
[null,null,null,"○","Seguimiento y supervisión rutinarios para garantizar la implementación y el mantenimiento de los estándares de servicio",null,null,null,null,null,null,0,0,0]
[null,null,null,"○","Realización de campañas de reducción del estigma",null,null,null,null,null,null,0,0,0]
[null,null,null,"○","Sensibilización, educación y participación continua de líderes religiosos y comunitarios, fuerzas del orden y profesionales sanitarios ",null,null,null,null,null,null,0,0,0]
[null,null,null,"○","Establecimiento de mecanismos eficaces para permitir la denuncia anónima de incidentes estigmatizantes o discriminatorios en el acceso a la atención sanitaria  ",null,null,null,null,null,null,0,0,0]
[null,null,null,"○","Se proporciona apoyo y seguimiento a los reclusos que denuncian incidentes de estigmatización y/o discriminación",null,null,null,null,null,null,0,0,0]
[null,null,"Servicios jurídicos relacionados con el VIH ","Se ofrecen servicios jurídicos relacionados con el VIH para satisfacer las necesidades de las poblaciones reclusas, y:  ",null,null,null,null,null,{"$f":"O241","v":"-"},null,null,null,null,{"$f":"IFERROR(ROUND(AVERAGEIF(L242:N244,\"<>0\",L242:N244),0),\"-\")","v":"-"}]
[null,null,null,"○","Existen alternativas para la resolución de conflictos",null,null,null,null,null,null,{"$f":"IF(ISBLANK(G242),0,1)","v":0},{"$f":"IF(ISBLANK(H242),0,3)","v":0},{"$f":"IF(ISBLANK(I242),0,5)","v":0}]
[null,null,null,"○","Se dispone de acceso fácil a información legal información de contacto con profesionales u organizaciones",null,null,null,null,null,null,0,0,0]
[null,null,null,"○","Se dispone de acceso fácil a asesoramiento y representación legal",null,null,null,null,null,null,0,0,0]
[null,null,"Seguimiento de la aplicación de la ley ","Se realiza un seguimiento regular de la implementación de políticas, regulaciones y leyes para evaluar su impacto en los reclusos. ",null,null,null,null,null,{"$f":"O245","v":"-"},null,0,0,0,{"$f":"IFERROR(ROUND(AVERAGEIF(L245:N245,\"<>0\",L245:N245),0),\"-\")","v":"-"}]
[null,null,"Conocimientos legales («Conoce tus derechos»)","Se ofrece a los reclusos una formación integral sobre legislación y derechos. ",null,null,null,null,null,"-",null,null,null,null,{"$f":"IFERROR(ROUND(AVERAGEIF(L247:N247,\"<>0\",L247:N247),0),\"-\")","v":"-"}]
[null,null,null,"○","Los reclusos conocen la ley y sus derechos, y pueden reclamar y defender sus necesidades en el contexto del VIH",null,null,null,null,null,null,{"$f":"IF(ISBLANK(G247),0,1)","v":0},{"$f":"IF(ISBLANK(H247),0,3)","v":0},{"$f":"IF(ISBLANK(I247),0,5)","v":0}]
[null,null,"Sensibilización de los legisladores y las fuerzas del orden ","Formación continua y exhaustiva de los encargados de redactar y hacer cumplir las leyes para garantizar que estén adecuadamente sensibilizados con la población reclusa. La formación incluye: \n",null,null,null,null,null,{"$f":"O248","v":"-"},null,null,null,null,{"$f":"IFERROR(ROUND(AVERAGEIF(L249:N252,\"<>0\",L249:N252),0),\"-\")","v":"-"}]
[null,null,null,"○","Un programa integral de formación para la sensibilización adaptado al contexto del país en cuestión",null,null,null,null,null,null,{"$f":"IF(ISBLANK(G249),0,1)","v":0},{"$f":"IF(ISBLANK(H249),0,3)","v":0},{"$f":"IF(ISBLANK(I249),0,5)","v":0}]
[null,null,null,"○","Facilitadores con la formación adecuada",null,null,null,null,null,null,0,0,0]
[null,null,null,"○","Participación de los reclusos",null,null,null,null,null,null,0,0,0]
[null,null,null,"○","Comentarios de los participantes",null,null,null,null,null,null,0,0,0]
[null,null,"Formación para proveedores de atención sanitaria sobre derechos humanos y ética médica relacionada con el VIH ","Un programa integral de formación para la sensibilización adaptado al contexto del país en cuestión",null,null,null,null,null,{"$f":"O253","v":"-"},null,null,null,null,{"$f":"IFERROR(ROUND(AVERAGEIF(L254:N256,\"<>0\",L254:N256),0),\"-\")","v":"-"}]
[null,null,null,"○","Facilitadores con la formación adecuada",null,null,null,null,null,null,{"$f":"IF(ISBLANK(G254),0,1)","v":0},{"$f":"IF(ISBLANK(H254),0,3)","v":0},{"$f":"IF(ISBLANK(I254),0,5)","v":0}]
[null,null,null,"○","Participación de los reclusos",null,null,null,null,null,null,0,0,0]
[null,null,null,"○","Comentarios de los participantes",null,null,null,null,null,null,0,0,0]
[null,null,"Reducción de la discriminación contra las mujeres en el contexto del VIH ","Se han implementado programas para abordar la desigualdad de género y la violencia de género en el contexto del VIH, y contemplan: ",null,null,null,null,null,{"$f":"O257","v":"-"},null,null,null,null,{"$f":"IFERROR(ROUND(AVERAGEIF(L258:N264,\"<>0\",L258:N264),0),\"-\")","v":"-"}]
[null,null,null,"○","La desigualdad de mujeres y jóvenes en la toma de decisiones sexuales y reproductivas ",null,null,null,null,null,null,{"$f":"IF(ISBLANK(G258),0,1)","v":0},{"$f":"IF(ISBLANK(H258),0,3)","v":0},{"$f":"IF(ISBLANK(I258),0,5)","v":0}]
[null,null,null,"○","Las barreras de género para acceder a la atención sanitaria ",null,null,null,null,null,null,0,0,0]
[null,null,null,"○","La discriminación en en los procesos de herencia, adquisición de propiedades, matrimonio, divorcio y custodia ",null,null,null,null,null,null,0,0,0]
[null,null,null,"○","La violencia sexual y de otro tipo ",null,null,null,null,null,null,0,0,0]
[null,null,null,"○","La falta de igualdad de acceso a oportunidades educativas y económicas ",null,null,null,null,null,null,0,0,0]
[null,null,null,"○","La falta de apoyo a los cuidadores en los hogares afectados por el VIH ",null,null,null,null,null,null,0,0,0]
[null,null,null,"○","El complemento con programas dirigidos a hombres y niños que abordan las actitudes y costumbres de género perjudiciales ",null,null,null,null,null,null,0,0,0]
[null,null,"Seguimiento del programa"]
[null,null,"Elemento","Criterios",null,"N/A","Ausente","Presente pero no óptimo","Presente y funcionando bien","Promedio del elemento","Comentarios (si procede) "]
[null,null,"Seguimiento rutinario","El gobierno define los indicadores rutinarios de los programas, y los implementadores elaboran sus informes basándose en estos indicadores:",null,null,null,null,null,{"$f":"O267","v":"-"},null,null,null,null,{"$f":"IFERROR(ROUND(AVERAGEIF(L268:N274,\"<>0\",L268:N274),0),\"-\")","v":"-"}]
[null,null,null,"○"," De forma rutinaria (mensual, trimestral)",null,null,null,null,null,null,{"$f":"IF(ISBLANK(G268),0,1)","v":0},{"$f":"IF(ISBLANK(H268),0,3)","v":0},{"$f":"IF(ISBLANK(I268),0,5)","v":0}]
[null,null,null,"○","Al completo (los datos son consistentes y no falta información)",null,null,null,null,null,null,0,0,0]
[null,null,null,"○","A todos los niveles (región, provincia, etc.)",null,null,null,null,null,null,0,0,0]
[null,null,null,"○","Por parte de todos los colaboradores en la implementación",null,null,null,null,null,null,0,0,0]
[null,null,null,"○","A través de la plataforma DHIS2/EMR",null,null,null,null,null,null,0,0,0]
[null,null,null,"○","Seguimiento de datos individuales por parte de los colaboradores en la implementación ",null,null,null,null,null,null,0,0,0]
[null,null,null,"○","Datos revisados de forma rutinaria por todos los interesados (gobierno, sociedad civil, comunidad de reclusos, colaboradores, donantes), y utilizados para mejorar los programas ",null,null,null,null,null,null,0,0,0]
[null,null,"Seguimiento para la rendición de cuentas dirigido por la comunidad ","Incorporación del seguimiento dirigido por la comunidad (SDC) en las plataformas nacionales de seguimiento:",null,null,null,null,null,{"$f":"O275","v":"-"},null,null,null,null,{"$f":"IFERROR(ROUND(AVERAGEIF(L276:N281,\"<>0\",L276:N281),0),\"-\")","v":"-"}]
[null,null,null,"○","Se ha aceptado e integrado el SDC en los procesos de toma de decisiones y negociaciones con las autoridades locales, con los financiadores y con otros simpatizantes ",null,null,null,null,null,null,{"$f":"IF(ISBLANK(G276),0,1)","v":0},{"$f":"IF(ISBLANK(H276),0,3)","v":0},{"$f":"IF(ISBLANK(I276),0,5)","v":0}]
[null,null,null,"○","Funciona como un mecanismo comunitario de vigilancia y rendición de cuentas",null,null,null,null,null,null,0,0,0]
[null,null,null,"○","Los supervisores entre pares están cualificados y recopilan y analizan de forma sistemática y rutinaria datos cualitativos y cuantitativos sobre la prestación de servicios relacionados con el VIH",null,null,null,null,null,null,0,0,0]
[null,null,null,"○","Hay equipos de seguimiento dirigidos por la comunidad para responder a los déficits en la prestación de servicios relacionados con el VIH dentro de las comunidades",null,null,null,null,null,null,0,0,0]
[null,null,null,"○","Cuenta con la colaboración de diferentes redes de personas que viven con el VIH (PVVIH) y de las organizaciones de las comunidades afectadas",null,null,null,null,null,null,0,0,0]
[null,null,null,"○","Los recopiladores de datos y otros miembros de la comunidad que participan en las tareas de seguimiento reciben una remuneración conforme a las prácticas y estándares nacionales",null,null,null,null,null,null,0,0,0]
[null,null,"Seguimiento del sistema de referencias","Existen sistemas de seguimiento de las referencias y derivaciones, e incluyen:",null,null,null,null,null,{"$f":"O282","v":"-"},null,null,null,null,{"$f":"IFERROR(ROUND(AVERAGEIF(L283:N287,\"<>0\",L283:N287),0),\"-\")","v":"-"}]
[null,null,null,"○","Una herramienta para hacer referencias o derivaciones que esté ampliamente disponible y que incluya unos procedimientos estándar claros",null,null,null,null,null,null,{"$f":"IF(ISBLANK(G283),0,1)","v":0},{"$f":"IF(ISBLANK(H283),0,3)","v":0},{"$f":"IF(ISBLANK(I283),0,5)","v":0}]
[null,null,null,"○","Un directorio de contactos de referencia tanto en las instalaciones como en las organizaciones dirigidas por pares ",null,null,null,null,null,null,0,0,0]
[null,null,null,"○","Un registro de los resultados ",null,null,null,null,null,null,0,0,0]
[null,null,null,"○","Mecanismos para que los pacientes y proveedores de servicios (referidos o derivados) envíen sus comentarios y aportaciones ",null,null,null,null,null,null,0,0,0]
[null,null,null,"○","Informes de referencias (mensuales) para supervisar la eficacia del sistema de derivaciones",null,null,null,null,null,null,0,0,0]
[null,null,"Evaluación de la calidad","Se han definido sistemas para recopilar datos sobre la calidad del programa y sus indicadores relacionados, y:\n",null,null,null,null,null,{"$f":"O288","v":"-"},null,null,null,null,{"$f":"IFERROR(ROUND(AVERAGEIF(L289:N292,\"<>0\",L289:N292),0),\"-\")","v":"-"}]
[null,null,null,"○","Se recopilan datos precisos",null,null,null,null,null,null,{"$f":"IF(ISBLANK(G289),0,1)","v":0},{"$f":"IF(ISBLANK(H289),0,3)","v":0},{"$f":"IF(ISBLANK(I289),0,5)","v":0}]
[null,null,null,"○","Se actúa en base a los datos recopilados ",null,null,null,null,null,null,0,0,0]
[null,null,null,"○","Los mecanismos de feedback permiten a los reclusos evaluar los servicios recibidos, a fin de realizar un seguimiento de la calidad del programa",null,null,null,null,null,null,0,0,0]
[null,null,null,"○","Los datos se auditan con regularidad ",null,null,null,null,null,null,0,0,0]
[null,null,"Vigilancia ","La vigilancia permite una descripción precisa del contexto y los resultados/impacto del programa para reclusos. Vigilancia: \n",null,null,null,null,null,{"$f":"O293","v":"-"},null,null,null,null,{"$f":"IFERROR(ROUND(AVERAGEIF(L294:N297,\"<>0\",L294:N297),0),\"-\")","v":"-"}]
[null,null,null,"○","Los resultados del estudio se utilizan para tomar decisiones informadas y llevar a cabo acciones correctivas ",null,null,null,null,null,null,{"$f":"IF(ISBLANK(G294),0,1)","v":0},{"$f":"IF(ISBLANK(H294),0,3)","v":0},{"$f":"IF(ISBLANK(I294),0,5)","v":0}]
[null,null,null,"○","Implica el análisis y la interpretación de los datos en intervalos regulares ",null,null,null,null,null,null,0,0,0]
[null,null,null,"○","Implica la difusión regular de información para satisfacer las necesidades a nivel local, regional y nacional ",null,null,null,null,null,null,0,0,0]
[null,null,null,"○","Incluye encuestas biológicas y conductuales, encuestas de vigilancia centinela y otros estudios de investigación que analizan los indicadores para reclusos ",null,null,null,null,null,null,0,0,0]
[null,null,"Datos para la toma de decisiones","La unidad nacional de programación, seguimiento y evaluación del Ministerio de Sanidad, o el organismo equivalente, supervisa/coordina la recopilación de datos de seguimiento, encuestas y vigilancia, y:",null,null,null,null,null,{"$f":"O298","v":"-"},null,null,null,null,{"$f":"IFERROR(ROUND(AVERAGEIF(L299:N306,\"<>0\",L299:N306),0),\"-\")","v":"-"}]
[null,null,null,"○","Comparte datos con el grupo técnico de trabajo de reclusos",null,null,null,null,null,null,{"$f":"IF(ISBLANK(G299),0,1)","v":0},{"$f":"IF(ISBLANK(H299),0,3)","v":0},{"$f":"IF(ISBLANK(I299),0,5)","v":0}]
[null,null,null,"○","El grupo técnico de trabajo de reclusos analiza los datos del programa trimestralmente e identifica las áreas en las que hay que aplicar acciones correctivas",null,null,null,null,null,null,0,0,0]
[null,null,null,"○","El grupo técnico de trabajo de reclusos colabora en el desarrollo de estrategias para solucionar la falta de información o servicios ",null,null,null,null,null,null,0,0,0]
[null,null,null,"○","Se recopilan datos de buena calidad (válidos, fiables, consistentes, precisos, oportunos y relevantes) para satisfacer la mayoría de las necesidades de información, y se analizan aquellas áreas que requieran datos adicionales ",null,null,null,null,null,null,0,0,0]
[null,null,null,"○","Los datos se utilizan de manera consistente y adecuada para tomar decisiones informadas ",null,null,null,null,null,null,0,0,0]
[null,null,null,"○","Se han eliminado los duplicados en los datos entre los colaboradores en la implementación y, si queda algún duplicado, es mínimo",null,null,null,null,null,null,0,0,0]
[null,null,null,"○","Los datos se recopilan de forma centralizada, pero se pueden separar por localidad, sexo y edad",null,null,null,null,null,null,0,0,0]
[null,null,null,"○","El programa proporciona datos para que el grupo técnico de trabajo los revise",null,null,null,null,null,null,0,0,0]
[null,null,"Uso de un código de identificación único para el seguimiento de los programas","Se utiliza este sistema para supervisar el rendimiento del programa y comprobar que funcione adecuadamente",null,null,null,null,null,{"$f":"O307","v":"-"},null,null,null,null,{"$f":"IFERROR(ROUND(AVERAGEIF(L308:N311,\"<>0\",L308:N311),0),\"-\")","v":"-"}]
[null,null,null,"○","Un mismo país puede utilizar varios códigos de identificación únicos, pero están armonizados",null,null,null,null,null,null,{"$f":"IF(ISBLANK(G308),0,1)","v":0},{"$f":"IF(ISBLANK(H308),0,3)","v":0},{"$f":"IF(ISBLANK(I308),0,5)","v":0}]
[null,null,null,"○","El programa nacional utiliza datos agregados con códigos de identificación únicos",null,null,null,null,null,null,0,0,0]
[null,null,null,"○","El código de identificación único es capaz de distinguir el contacto/alcance para evitar la duplicación ",null,null,null,null,null,null,0,0,0]
[null,null,null,"○","El código de identificación único es electrónico",null,null,null,null,null,null,0,0,0]
[null,null,"Supervisión presupuestaria","Se integra el seguimiento del rendimiento financiero y no financiero del programa para chicas adolescentes y mujeres jóvenes, y se generan informes rutinarios: ",null,null,null,null,null,{"$f":"O312","v":"-"},null,null,null,null,{"$f":"IFERROR(ROUND(AVERAGEIF(L313:N315,\"<>0\",L313:N315),0),\"-\")","v":"-"}]
[null,null,null,"○","Se puede acceder fácilmente a los datos sobre los gastos en intervenciones relacionadas con la población reclusa a nivel nacional ",null,null,null,null,null,null,{"$f":"IF(ISBLANK(G313),0,1)","v":0},{"$f":"IF(ISBLANK(H313),0,3)","v":0},{"$f":"IF(ISBLANK(I313),0,5)","v":0}]
[null,null,null,"○","Existen mecanismos de rendición de cuentas analizar los gastos que no hayan agotado el presupuesto ",null,null,null,null,null,null,0,0,0]
[null,null,null,"○","Los datos financieros y no financieros se utilizan para medir la relación calidad-precio",null,null,null,null,null,null,0,0,0]
[null,null,"Resultados del programa"]
[null,null,"Resultados e indicadores"]
[null,null,"Elemento","Criterios",null,"N/A","Sin seguimiento ","Objetivo no cumplido o no en proceso ","Objetivo cumplido o en proceso ","Promedio del elemento","Comentarios (si procede) "]
[null,null,"Estimaciones disponibles del tamaño de la población reclusa",null,null,null,null,null,null,{"$f":"O319","v":"-"},null,{"$f":"IF(ISBLANK(G319),0,1)","v":0},{"$f":"IF(ISBLANK(H319),0,3)","v":0},{"$f":"IF(ISBLANK(I319),0,5)","v":0},{"$f":"IFERROR(ROUND(AVERAGEIF(L319:N319,\"<>0\",L319:N319),0),\"-\")","v":"-"}]
[null,null,"La estrategia de prevención incluye elementos clave del paquete de prevención para reclusos",null,null,null,null,null,null,"-",null,0,0,0,"-"]
[null,null,"Reclusos que viven con el VIH y conocen su estado serológico (objetivo del 90 %)",null,null,null,null,null,null,"-",null,0,0,0,"-"]
[null,null,"Reclusos que viven con el VIH en terapia antirretroviral (objetivo del 90 %)",null,null,null,null,null,null,"-",null,0,0,0,"-"]
[null,null,"Reclusos que viven con el VIH y que tienen cargas virales indetectables (objetivo del 90 %)",null,null,null,null,null,null,"-",null,0,0,0,"-"]
[]
[]
[null,null,null,null,null,null,null,null,null,null,null,null,{"$f":"COUNTIF(O6:O323,\"-\")","v":59}]
[null,null,null,null,null,null,null,null,null,null,null,null,{"$f":"COUNTIF(O6:O323,\">0\")","v":0}]
[null,null,null,null,null,null,null,null,null,null,null,"Sheet Completion",{"$f":"M327/(M326+M327)","v":0},{"$f":"1-M328","v":1}]

{"sheet":"PID ","index":8,"n_rows":391,"n_cols":16,"rows_kept":391,"cut":false,"hidden":false,"merged":[[49,2,51,2],[49,3,49,4],[52,2,56,2],[52,3,52,4],[58,3,58,4],[59,2,60,2],[61,2,64,2],[67,2,70,2],[73,3,73,4],[238,9,242,9],[243,9,245,9],[246,9,248,9],[249,9,251,9],[93,9,101,9],[104,9,108,9],[109,9,118,9],[119,9,125,9],[126,9,135,9],[136,9,140,9],[143,9,150,9],[151,9,156,9],[192,9,204,9],[188,9,191,9],[216,9,220,9],[221,9,230,9],[231,9,237,9],[254,9,259,9],[262,9,269,9],[270,9,274,9],[275,9,278,9],[331,9,338,9],[339,9,344,9],[345,9,349,9],[350,9,354,9],[355,9,363,9],[364,9,368,9],[369,9,372,9],[280,9,282,9],[283,9,287,9],[288,9,291,9],[292,9,299,9],[300,9,309,9],[310,9,320,9],[323,9,330,9],[167,10,168,10],[179,9,187,9],[1,2,1,9],[4,3,4,4],[5,2,15,2],[5,3,5,4],[5,9,15,9],[16,3,16,4],[22,3,22,4],[42,3,42,4],[48,3,48,4],[16,2,21,2],[22,2,27,2],[28,2,34,2],[28,3,28,4],[35,2,41,2],[35,3,35,4],[42,2,46,2],[16,9,21,9],[22,9,27,9],[28,9,34,9],[35,9,41,9],[42,9,46,9],[74,2,81,2],[74,3,74,4],[82,2,88,2],[82,3,82,4],[89,3,89,4],[59,9,60,9],[61,9,64,9],[67,9,70,9],[74,9,81,9],[82,9,88,9],[89,9,92,9],[59,3,59,4],[61,3,61,4],[89,2,92,2],[49,9,51,9],[52,9,56,9],[157,9,163,9],[166,9,178,9],[167,6,168,6],[167,7,168,7],[167,8,168,8],[205,9,210,9],[211,9,215,9],[364,2,368,2],[369,2,372,2],[300,2,309,2],[310,2,320,2],[323,2,330,2],[331,2,338,2],[339,2,344,2],[345,2,349,2],[350,2,354,2],[300,3,300,4],[310,3,310,4],[322,3,322,4],[323,3,323,4],[331,3,331,4],[283,2,287,2],[288,2,291,2],[292,2,299,2],[355,2,363,2],[157,3,157,4],[109,2,118,2],[119,2,125,2],[126,2,135,2],[136,2,140,2],[143,2,150,2],[157,2,163,2],[288,3,288,4],[292,3,292,4],[238,2,242,2],[243,2,245,2],[246,2,248,2],[249,2,251,2],[254,2,259,2],[262,2,269,2],[270,2,274,2],[275,2,278,2],[280,2,282,2],[205,2,210,2],[211,2,215,2],[216,2,220,2],[221,2,230,2],[231,2,237,2],[165,3,165,4],[93,2,101,2],[93,3,93,4],[103,3,103,4],[104,2,108,2],[104,3,104,4],[109,3,109,4],[119,3,119,4],[126,3,126,4],[151,2,156,2],[136,3,136,4],[142,3,142,4],[143,3,143,4],[151,3,151,4],[166,3,166,4],[167,3,168,3],[167,4,168,4],[179,3,179,4],[188,3,188,4],[192,3,192,4],[166,2,178,2],[179,2,187,2],[188,2,191,2],[192,2,204,2],[205,3,205,4],[211,3,211,4],[216,3,216,4],[221,3,221,4],[231,3,231,4],[238,3,238,4],[243,3,243,4],[246,3,246,4],[249,3,249,4],[387,2,387,4],[369,3,369,4],[375,3,375,4],[376,2,376,4],[377,2,377,4],[378,2,378,4],[379,2,379,4],[382,2,382,4],[253,3,253,4],[254,3,254,4],[261,3,261,4],[270,3,270,4],[275,3,275,4],[383,2,383,4],[384,2,384,4],[385,2,385,4],[386,2,386,4],[339,3,339,4],[345,3,345,4],[350,3,350,4],[355,3,355,4],[364,3,364,4],[279,3,279,4],[283,3,283,4]]}
[]
[null,null,"Gestión del programa"]
[]
[null,null,"Liderazgo y coordinación"]
[null,null,"Elemento","Criterios",null,"N/A","Ausente","Presente pero no óptimo","Presente y funcionando bien","Promedio del elemento","Comentarios (si procede)","Absent","Present","Optimal","Average","Sustainability Single Figure"]
[null,null,"Estrategia nacional para grupos de población clave","Existe un plan estratégico para la prevención del VIH entre las personas que se inyectan drogas (PID) o están incluidas en una estrategia general de prevención del VIH:",null,null,null,null,null,{"$f":"O6","v":"-"},null,null,null,null,{"$f":"IFERROR(ROUND(AVERAGEIF(L7:N16,\"<>0\",L7:N16),0),\"-\")","v":"-"}]
[null,null,null,"○","Las personas que se inyectan drogas han participado en el desarrollo del plan estratégico ",null,null,null,null,null,null,{"$f":"IF(ISBLANK(G7),0,1)","v":0},{"$f":"IF(ISBLANK(H7),0,3)","v":0},{"$f":"IF(ISBLANK(I7),0,5)","v":0}]
[null,null,null,"○","Se han definido claramente las metas y objetivos del programa para PID ",null,null,null,null,null,null,0,0,0]
[null,null,null,"○","Las PID se han definido claramente según las directrices de la Organización Mundial de la Salud ",null,null,null,null,null,null,0,0,0]
[null,null,null,"○","El plan reconoce las vulnerabilidades específicas de las PID en función del género y la edad",null,null,null,null,null,null,0,0,0]
[null,null,null,"○","Se ha articulado un modelo lógico claro o una teoría del cambio  ",null,null,null,null,null,null,0,0,0]
[null,null,null,"○","El plan incluye un paquete integral de intervenciones y actividades basadas en la evidencia, en línea con las herramientas de implementación de las PID. Estas herramientas, identificadas por las PID, incluyen intervenciones del sector no sanitario (e.j.: empoderamiento comunitario, abordaje de la violencia, reducción del estigma, etc.) y se han adaptado para abordar las vulnerabilidades específicas.",null,null,null,null,null,null,0,0,0]
[null,null,null,"○","Se ha definido claramente el proceso de escalado y se han asignado responsabilidades ",null,null,null,null,null,null,0,0,0]
[null,null,null,"○","Hay planes de financiación ",null,null,null,null,null,null,0,0,0]
[null,null,null,"○","Se ha definido un marco de seguimiento y evaluación con indicadores y objetivos básicos",null,null,null,null,null,null,0,0,0]
[null,null,null,"○","Se ha definido claramente el mecanismo de implementación",null,null,null,null,null,null,0,0,0]
[null,null,"Rendición de cuentas","El departamento/ministerio responsable del éxito del programa para PID ejerce un sólido liderazgo/autoridad:",null,null,null,null,null,{"$f":"O17","v":"-"},null,null,null,null,{"$f":"IFERROR(ROUND(AVERAGEIF(L18:N22,\"<>0\",L18:N22),0),\"-\")","v":"-"}]
[null,null,null,"○","Todos los proyectos para PID del país envían información sobre indicadores clave de forma rutinaria al gobierno, tanto central como regional, e incluyen indicadores comunes ",null,null,null,null,null,null,{"$f":"IF(ISBLANK(G18),0,1)","v":0},{"$f":"IF(ISBLANK(H18),0,3)","v":0},{"$f":"IF(ISBLANK(I18),0,5)","v":0}]
[null,null,null,"○","Al generar informes, los datos se anonimizan y protegen para proteger a las PID ",null,null,null,null,null,null,0,0,0]
[null,null,null,"○","Se realizan revisiones programáticas periódicas utilizando datos programáticos",null,null,null,null,null,null,0,0,0]
[null,null,null,"○","El ministerio responsable del programa asiste a las reuniones de coordinación pertinentes",null,null,null,null,null,null,0,0,0]
[null,null,null,"○","El grupo técnico de trabajo (GTT) para este grupo de población clave (con representantes de las PID) participa para asegurar la rendición de cuentas ",null,null,null,null,null,null,0,0,0]
[null,null,"Grupo técnico de trabajo para PID","Se ha establecido un grupo técnico de trabajo tanto a nivel nacional como regional (los países pueden tener GTT en los que las PID estén incluidas), y:",null,null,null,null,null,{"$f":"O23","v":"-"},null,null,null,null,{"$f":"IFERROR(ROUND(AVERAGEIF(L24:N28,\"<>0\",L24:N28),0),\"-\")","v":"-"}]
[null,null,null,"○","Se reúnen regularmente ",null,null,null,null,null,null,{"$f":"IF(ISBLANK(G24),0,1)","v":0},{"$f":"IF(ISBLANK(H24),0,3)","v":0},{"$f":"IF(ISBLANK(I24),0,5)","v":0}]
[null,null,null,"○","El grupo técnico de trabajo está completo e incluye a las Organizaciones de la Sociedad Civil,, a los colaboradores en la implementación y a miembros del colectivo de PID",null,null,null,null,null,null,0,0,0]
[null,null,null,"○","El grupo técnico de trabajo dispone de mecanismos de comunicación para garantizar la coordinación",null,null,null,null,null,null,0,0,0]
[null,null,null,"○","Tiene una lista de términos de referencia o ha definido su ámbito de trabajo ",null,null,null,null,null,null,0,0,0]
[null,null,null,"○","Los miembros del colectivo de PID están incluidos",null,null,null,null,null,null,0,0,0]
[null,null,"Coordinación de los organismos interesados","Existen mecanismos para garantizar que se logre una buena coordinación a todos los niveles, y que sea coherente con: ",null,null,null,null,null,{"$f":"O29","v":"-"},null,null,null,null,{"$f":"IFERROR(ROUND(AVERAGEIF(L30:N35,\"<>0\",L30:N35),0),\"-\")","v":"-"}]
[null,null,null,"○","Socios financiadores (a nivel nacional)",null,null,null,null,null,null,{"$f":"IF(ISBLANK(G30),0,1)","v":0},{"$f":"IF(ISBLANK(H30),0,3)","v":0},{"$f":"IF(ISBLANK(I30),0,5)","v":0}]
[null,null,null,"○","Programas locales con iniciativas más grandes a nivel nacional ",null,null,null,null,null,null,0,0,0]
[null,null,null,"○","Comunidades de PID",null,null,null,null,null,null,0,0,0]
[null,null,null,"○","Colaboradores en la implementación ",null,null,null,null,null,null,0,0,0]
[null,null,null,"○","El Ministerio de Sanidad o las Consejerías de Sanidad (a nivel nacional y regional)",null,null,null,null,null,null,0,0,0]
[null,null,null,"○","Se ha logrado una coordinación multisectorial con otros ministerios/departamentos (por ejemplo, de finanzas o de las fuerzas del orden)",null,null,null,null,null,null,0,0,0]
[null,null,"Desarrollo de las capacidades y plan de asistencia técnica","Existe un plan de asistencia técnica que: ",null,null,null,null,null,{"$f":"O36","v":"-"},null,null,null,null,{"$f":"IFERROR(ROUND(AVERAGEIF(L37:N42,\"<>0\",L37:N42),0),\"-\")","v":"-"}]
[null,null,null,"○","Se ha desarrollado sobre la base de algunas evaluaciones ",null,null,null,null,null,null,{"$f":"IF(ISBLANK(G37),0,1)","v":0},{"$f":"IF(ISBLANK(H37),0,3)","v":0},{"$f":"IF(ISBLANK(I37),0,5)","v":0},null,{"$f":"IF(MAX(L37:N37)=0,\"\",MAX(L37:N37))","v":""}]
[null,null,null,"○","Involucra a expertos técnicos nacionales e internacionales, incluyéndose el desarrollo de capacidades y la asistencia técnica entre pares",null,null,null,null,null,null,0,0,0,null,""]
[null,null,null,"○","Ha priorizado los componentes del programa y las cuestiones políticas ",null,null,null,null,null,null,0,0,0,null,""]
[null,null,null,"○","Facilita el establecimiento y fortalecimiento de redes de implementadores ",null,null,null,null,null,null,0,0,0,null,""]
[null,null,null,"○","Identifica las lagunas y desarrolla solicitudes consolidadas de asistencia en los casos en los que falta experiencia a nivel nacional ",null,null,null,null,null,null,0,0,0,null,""]
[null,null,null,"○","Facilita el desarrollo de la capacidad de la comunidad de PID para hacerse cargo de los programas para PID ",null,null,null,null,null,null,0,0,0,null,""]
[null,null,"Plan de sostenibilidad y hoja de ruta de la transición","Se ha establecido un plan completo de sostenibilidad y una hoja de ruta de la transición, que dan cuenta de la transición de intervenciones apoyadas por donantes a intervenciones con apoyo a nivel nacional. Incluyen datos como: ",null,null,null,null,null,{"$f":"O43","v":"-"},null,null,null,null,{"$f":"IFERROR(ROUND(AVERAGEIF(L44:N47,\"<>0\",L44:N47),0),\"-\")","v":"-"},""]
[null,null,null,"○","Cálculo de costes unitarios para el grupo de población clave",null,null,null,null,null,null,{"$f":"IF(ISBLANK(G44),0,1)","v":0},{"$f":"IF(ISBLANK(H44),0,3)","v":0},{"$f":"IF(ISBLANK(I44),0,5)","v":0},null,""]
[null,null,null,"○","Análisis general de la financiación para el grupo de población clave",null,null,null,null,null,null,0,0,0,null,""]
[null,null,null,"○"," Planificación hacia la integración de los servicios para PC en la atención primaria",null,null,null,null,null,null,0,0,0]
[null,null,null,"○","Consideraciones sobre las necesidades financieras, de infraestructura y de personal",null,null,null,null,null,null,0,0,0,null,{"$f":"IF(MAX(L47:N47)=0,\"\",MAX(L47:N47))","v":""}]
[null,null,"Leyes, políticas y normativas"]
[null,null,"Elemento","Criterios",null,"N/A","Ausente","Presente pero no óptimo","Presente y funcionando bien","Promedio del elemento","Comentarios (si procede)"]
[null,null,"Leyes y políticas ","Existen políticas que promueven activamente el buen funcionamiento del programa para PID: ",null,null,null,null,null,{"$f":"O50","v":"-"},null,null,null,null,{"$f":"IFERROR(ROUND(AVERAGEIF(L51:N52,\"<>0\",L51:N52),0),\"-\")","v":"-"}]
[null,null,null,"○","Existen directrices nacionales para cada una de las intervenciones y servicios conductuales, biomédicos y estructurales, y están en línea con las directrices a nivel mundial",null,null,null,null,null,null,{"$f":"IF(ISBLANK(G51),0,1)","v":0},{"$f":"IF(ISBLANK(H51),0,3)","v":0},{"$f":"IF(ISBLANK(I51),0,5)","v":0}]
[null,null,null,"○","Existen políticas en vigor que apoyan a las PID para que tengan acceso a los servicios, a pesar de las leyes que criminalizan el uso de drogas, el trabajo sexual y las relaciones sexuales entre personas del mismo sexo",null,null,null,null,null,null,0,0,0]
[null,null,"Directrices","Existen unas directrices que detallan claramente los pasos a seguir para implementar con éxito el programa para PID:",null,null,null,null,null,{"$f":"O53","v":"-"},null,null,null,null,{"$f":"IFERROR(ROUND(AVERAGEIF(L54:N57,\"<>0\",L54:N57),0),\"-\")","v":"-"}]
[null,null,null,"○","Existen directrices nacionales para cada una de las intervenciones y servicios conductuales, biomédicos y estructurales, y están en línea con las directrices a nivel mundial ",null,null,null,null,null,null,{"$f":"IF(ISBLANK(G54),0,1)","v":0},{"$f":"IF(ISBLANK(H54),0,3)","v":0},{"$f":"IF(ISBLANK(I54),0,5)","v":0}]
[null,null,null,"○","Estas directrices se desarrollaron en colaboración con las PID",null,null,null,null,null,null,0,0,0]
[null,null,null,"○","Las directrices a nivel nacional para los servicios de pruebas del VIH y de infecciones de transmisión sexual, de profilaxis preexposición y de suministro de preservativos tienen en cuenta las necesidades y prioridades de los PID ",null,null,null,null,null,null,0,0,0]
[null,null,null,"○","Se han incorporado las medidas de prevención y control de la infección por COVID-19 a todas las estrategias, planes y directrices de prevención del VIH/dirigidas a PID",null,null,null,null,null,null,0,0,0]
[null,null,"Financiación"]
[null,null,"Elemento","Criterios",null,"N/A","Ausente","Presente pero no óptimo","Presente y funcionando bien","Promedio del elemento","Comentarios (si procede)"]
[null,null,"Cálculo de costes ","Hay un presupuesto nacional:",null,null,null,null,null,{"$f":"O60","v":"-"},null,null,null,null,{"$f":"IFERROR(ROUND(AVERAGEIF(L61:N61,\"<>0\",L61:N61),0),\"-\")","v":"-"}]
[null,null,null,"○","Se ha llevado a cabo un cálculo de costes, y el programa nacional es consciente del coste promedio de alcanzar a una PID con un paquete estándar de servicios, según las directrices ",null,null,null,null,null,null,{"$f":"IF(ISBLANK(G61),0,1)","v":0},{"$f":"IF(ISBLANK(H61),0,3)","v":0},{"$f":"IF(ISBLANK(I61),0,5)","v":0}]
[null,null,"Planificación de presupuestos","Hay un proceso de planificación presupuestaria para el programa de prevención del VIH que tiene en cuenta a las PID y está bien gestionado.",null,null,null,null,null,{"$f":"O62","v":"-"},null,null,null,null,{"$f":"IFERROR(ROUND(AVERAGEIF(L63:N65,\"<>0\",L63:N65),0),\"-\")","v":"-"}]
[null,null,null,"○","Se está realizando una evaluación de los recursos disponibles para tratar de identificar las lagunas y asignar partidas presupuestarias a este programa",null,null,null,null,null,null,{"$f":"IF(ISBLANK(G63),0,1)","v":0},{"$f":"IF(ISBLANK(H63),0,3)","v":0},{"$f":"IF(ISBLANK(I63),0,5)","v":0},"-"]
[null,null,null,"○","Se ha desarrollado una estrategia para eliminar las faltas de financiación",null,null,null,null,null,null,0,0,0,"-"]
[null,null,null,"○","Los presupuestos están vinculados a las necesidades de recursos de los planes operativos para las unidades a nivel nacional y regional",null,null,null,null,null,null,0,0,0,{"$f":"IFERROR(ROUND(AVERAGEIF(L66:N71,\"<>0\",L66:N71),0),\"-\")","v":"-"}]
[null,null,"Movilización de recursos y financiación","○","Hay fondos suficientes para abordar las necesidades holísticas del programa",null,null,null,null,{"$f":"O66","v":"-"},null,0,0,0,{"$f":"IFERROR(ROUND(AVERAGEIF(L66:N66,\"<>0\",L66:N66),0),\"-\")","v":"-"}]
[null,null,"Recursos nacionales","○","Más del 50 % de los recursos que sustentan el programa (tanto humanos como financieros) son de original nacional",null,null,null,null,"-",null,0,0,0,"-",{"$f":"IF(MAX(L67:N67)=0,\"\",MAX(L67:N67))","v":""}]
[null,null,"Contratación social","○","Se han desarrollado y se están implementando mecanismos de contratación social",null,null,null,null,"-",null,0,0,0,{"$f":"IFERROR(ROUND(AVERAGEIF(L68:N71,\"<>0\",L68:N71),0),\"-\")","v":"-"}]
[null,null,null,"○","La información se hace circular ampliamente para que los colaboradores locales y las organizaciones lideradas por PID tengan acceso a financiación",null,null,null,null,null,null,0,0,0]
[null,null,null,"○","Existe un mecanismo que permite que las organizaciones lideradas por la comunidad reciban financiación",null,null,null,null,null,null,0,0,0]
[null,null,null,"○","Los fondos se conceden a las organizaciones lideradas por la comunidad ",null,null,null,null,null,null,0,0,0,null,{"$f":"IF(MAX(L71:N71)=0,\"\",MAX(L71:N71))","v":""}]
[null,null,"Implementación del programa"]
[null,null,"Definición de objetivos y planificación"]
[null,null,"Elemento","Criterios",null,"N/A","Ausente","Presente pero no óptimo","Presente y funcionando bien","Promedio del elemento","Comentarios (si procede)"]
[null,null,"Evaluación demográfica (estimación del tamaño de la población y microplanificación)","Se ha realizado una estimación del tamaño de la población y una microplanificación, y:",null,null,null,null,null,{"$f":"O75","v":"-"},null,null,null,null,{"$f":"IFERROR(ROUND(AVERAGEIF(L76:N82,\"<>0\",L76:N82),0),\"-\")","v":"-"}]
[null,null,null,"○","Se han basado en cada lugar (a nivel local, no de país o región)",null,null,null,null,null,null,{"$f":"IF(ISBLANK(G76),0,1)","v":0},{"$f":"IF(ISBLANK(H76),0,3)","v":0},{"$f":"IF(ISBLANK(I76),0,5)","v":0}]
[null,null,null,"○","Garantizan la confidencialidad de los centros de actividad y el anonimato de las personas, y no se comparten datos con las fuerzas del orden",null,null,null,null,null,null,0,0,0]
[null,null,null,"○","Se actualizan anualmente o cada vez que se realiza una encuesta bioconductual",null,null,null,null,null,null,0,0,0]
[null,null,null,"○","Se ha involucrado y contratado a miembros del colectivo de PID con formación o a redes de PID para llevar a cabo la estimación del tamaño de la población y la microplanificación",null,null,null,null,null,null,0,0,0]
[null,null,null,"○","Las estimaciones del tamaño de la población son precisas y están actualizadas",null,null,null,null,null,null,0,0,0]
[null,null,null,"○","La información se utiliza para argumentar la necesidad de intervenciones conductuales, biomédicas y estructurales  ",null,null,null,null,null,null,0,0,0]
[null,null,null,"○","Esta información también se utiliza para estimar la necesidad de fondos y para determinar los objetivos",null,null,null,null,null,null,0,0,0]
[null,null,"Evaluación epidemiológica (encuesta de seroprevalencia y factores de riesgo)","Se dispone de estimaciones de seroprevalencia, y:",null,null,null,null,null,{"$f":"O83","v":"-"},null,null,null,null,{"$f":"IFERROR(ROUND(AVERAGEIF(L84:N89,\"<>0\",L84:N89),0),\"-\")","v":"-"}]
[null,null,null,"○","Se han basado en los estudios de vigilancia recientes o continuos (estimaciones modeladas actualizadas anualmente o datos de encuestas actualizados cada 3-5 años)",null,null,null,null,null,null,{"$f":"IF(ISBLANK(G84),0,1)","v":0},{"$f":"IF(ISBLANK(H84),0,3)","v":0},{"$f":"IF(ISBLANK(I84),0,5)","v":0}]
[null,null,null,"○","Son específicas para PID",null,null,null,null,null,null,0,0,0]
[null,null,null,"○","Los resultados son precisos: el tamaño de la muestra es estadísticamente representativo (y se ha determinado adecuadamente), y el método de muestreo es apropiado para la población de PID. PID: muestreo temporal y espacial y muestreo de conveniencia",null,null,null,null,null,null,0,0,0]
[null,null,null,"○","Se han realizado regularmente evaluaciones de los factores de riesgo para PID, a fin de recabar información para el programa, y:",null,null,null,null,null,null,0,0,0]
[null,null,null,null,"> Son específicas para PID y tienen en cuenta los comportamientos específicos en función de la edad y del género ",null,null,null,null,null,null,0,0,0]
[null,null,null,null,"> Los estudios son de buena calidad y proporcionan información exhaustiva  ",null,null,null,null,null,null,0,0,0]
[null,null,"Evaluación de necesidades","Se ha realizado una evaluación de necesidades de las PID a nivel de implementación o local:",null,null,null,null,null,{"$f":"O90","v":"-"},null,null,null,null,{"$f":"IFERROR(ROUND(AVERAGEIF(L91:N93,\"<>0\",L91:N93),0),\"-\")","v":"-"}]
[null,null,null,"○","Se han determinado las necesidades con la participación de PID y redes u organizaciones lideradas por PID",null,null,null,null,null,null,{"$f":"IF(ISBLANK(G91),0,1)","v":0},{"$f":"IF(ISBLANK(H91),0,3)","v":0},{"$f":"IF(ISBLANK(I91),0,5)","v":0}]
[null,null,null,"○","Hay suficiente información sobre los servicios que las PID necesitan, cómo preferirían acceder a dichos servicios y quién debería proporcionarlos ",null,null,null,null,null,null,0,0,0]
[null,null,null,"○","Hay información detallada sobre las áreas que presentan lagunas en la prestación de servicios o barreras de acceso",null,null,null,null,null,null,0,0,0]
[null,null,"Determinación de objetivos","Se han definido claramente los objetivos para las PID, y:",null,null,null,null,null,{"$f":"O94","v":"-"},null,null,null,null,{"$f":"IFERROR(ROUND(AVERAGEIF(L95:N102,\"<>0\",L95:N102),0),\"-\")","v":"-"}]
[null,null,null,"○","Se basan en la estimación del tamaño y los datos de evaluación de riesgos",null,null,null,null,null,null,{"$f":"IF(ISBLANK(G95),0,1)","v":0},{"$f":"IF(ISBLANK(H95),0,3)","v":0},{"$f":"IF(ISBLANK(I95),0,5)","v":0}]
[null,null,null,"○","Se han desarrollado para PID en toda su diversidad ",null,null,null,null,null,null,0,0,0]
[null,null,null,"○","Incluyen especificaciones a nivel nacional y regional ",null,null,null,null,null,null,0,0,0]
[null,null,null,"○","Incluyen los logros ya alcanzados y los logros que se espera alcanzar al final ",null,null,null,null,null,null,0,0,0]
[null,null,null,"○","Se han desarrollado en colaboración con implementadores y redes de PID para garantizar que sean realistas",null,null,null,null,null,null,0,0,0]
[null,null,null,"○","Están en línea con los presupuestos y los acuerdos formales con los implementadores a nivel local",null,null,null,null,null,null,0,0,0]
[null,null,null,"○","Están divididos por edad y sexo",null,null,null,null,null,null,0,0,0]
[null,null,null,"○","Los objetivos del Fondo mundial para la lucha contra el VIH/SIDA, la tuberculosis y la malaria y del Plan de Emergencia del Presidente de los Estados Unidos para el Alivio del Sida (PEPFAR) se refieren a las estimaciones de tamaño y objetivos nacionales",null,null,null,null,null,null,0,0,0]
[null,null,"Acuerdo de implementación "]
[null,null,"Elemento","Criterios",null,"N/A","Ausente","Presente pero no óptimo","Presente y funcionando bien","Promedio del elemento","Comentarios (si procede)"]
[null,null,"Mantener una plataforma de acceso","Hay una plataforma de acceso que promueve los esfuerzos coordinados de la comunidad y y de los servicios sanitarios, y que:",null,null,null,null,null,{"$f":"O105","v":"-"},null,null,null,null,{"$f":"IFERROR(ROUND(AVERAGEIF(L106:N109,\"<>0\",L106:N109),0),\"-\")","v":"-"}]
[null,null,null,"○","Genera confianza en toda la comunidad a través de los trabajadores de asistencia social entre iguales ",null,null,null,null,null,null,{"$f":"IF(ISBLANK(G106),0,1)","v":0},{"$f":"IF(ISBLANK(H106),0,3)","v":0},{"$f":"IF(ISBLANK(I106),0,5)","v":0}]
[null,null,null,"○","Llega a un gran número de PID, y fomenta su aceptación, fidelización y participación activa en el programa",null,null,null,null,null,null,0,0,0]
[null,null,null,"○","Fomenta la captación y fidelización de PID",null,null,null,null,null,null,0,0,0]
[null,null,null,"○","Fomenta la participación activa de PID ",null,null,null,null,null,null,0,0,0]
[null,null,"Estructura de gestión","Se ha definido el proceso de estructura de gestión, y:  ",null,null,null,null,null,{"$f":"O110","v":"-"},null,null,null,null,{"$f":"IFERROR(ROUND(AVERAGEIF(L111:N119,\"<>0\",L111:N119),0),\"-\")","v":"-"}]
[null,null,null,"○","Existen unos términos de referencia (TR) claros que describen los roles y responsabilidades de cada puesto, incluidos los del personal de instalaciones y a nivel comunitario",null,null,null,null,null,null,{"$f":"IF(ISBLANK(G111),0,1)","v":0},{"$f":"IF(ISBLANK(H111),0,3)","v":0},{"$f":"IF(ISBLANK(I111),0,5)","v":0}]
[null,null,null,"○","Hay una ratio adecuada entre trabajadores de asistencia social entre iguales (TASEI) y miembros de la comunidad",null,null,null,null,null,null,0,0,0]
[null,null,null,"○","Hay unas directrices para reclutar, retener, evaluar y promover a los TASEI",null,null,null,null,null,null,0,0,0]
[null,null,null,"○","Todas las personas que trabajan en el proyecto reciben remuneración ",null,null,null,null,null,null,0,0,0]
[null,null,null,"○","Los supervisores entre pares garantizan el adecuado seguimiento de los TASEI",null,null,null,null,null,null,0,0,0]
[null,null,null,"○","Se ha definido una estrategia de promoción y un plan de progresión de carrera para los TASEI y los profesionales de la comunicación para el cambio conductual y social (CCCS) ",null,null,null,null,null,null,0,0,0]
[null,null,null,"○","Se ha establecido un mecanismo formal de referencias ",null,null,null,null,null,null,0,0,0]
[null,null,null,"○","Los sitios de destino están equipados para recibir servicios (los sitios de destino son los puntos en los que se proporcionarán servicios, como clínicas, hospitales, centros comunitarios, etc.)",null,null,null,null,null,null,0,0,0]
[null,null,null,"○","La microplanificación se utiliza para priorizar y gestionar el alcance, y para identificar a los beneficiarios que están más en riesgo",null,null,null,null,null,null,0,0,0]
[null,null,"Flujo de datos ","Se han definido flujos de datos para cada nivel, y:",null,null,null,null,null,{"$f":"O120","v":"-"},null,null,null,null,{"$f":"IFERROR(ROUND(AVERAGEIF(L121:N126,\"<>0\",L121:N126),0),\"-\")","v":"-"}]
[null,null,null,"○","Se han desarrollado y probado los sistemas de datos ",null,null,null,null,null,null,{"$f":"IF(ISBLANK(G121),0,1)","v":0},{"$f":"IF(ISBLANK(H121),0,3)","v":0},{"$f":"IF(ISBLANK(I121),0,5)","v":0}]
[null,null,null,"○","Se han definido claramente los indicadores estándar para el seguimiento del programa de PC",null,null,null,null,null,null,0,0,0]
[null,null,null,"○","Se han desarrollado herramientas estandarizadas para generar informes ",null,null,null,null,null,null,0,0,0]
[null,null,null,"○","Los datos programáticos se comunican y revisan mensualmente ",null,null,null,null,null,null,0,0,0]
[null,null,null,"○","Hay sistemas para mantener la confidencialidad de los datos ",null,null,null,null,null,null,0,0,0]
[null,null,null,"○","Se ha desarrollado un sistema de códigos de identificación únicos (CIU) ",null,null,null,null,null,null,0,0,0]
[null,null,"Trabajadores de asistencia social entre iguales (TASEI)  "," El programa emplea trabajadores de asistencia social entre iguales de manera efectiva:\n",null,null,null,null,null,{"$f":"O127","v":"-"},null,null,null,null,{"$f":"IFERROR(ROUND(AVERAGEIF(L128:N136,\"<>0\",L128:N136),0),\"-\")","v":"-"}]
[null,null,null,"○","Los TASEI forman parte de la comunidad de PID a la que representan o sirven",null,null,null,null,null,null,{"$f":"IF(ISBLANK(G128),0,1)","v":0},{"$f":"IF(ISBLANK(H128),0,3)","v":0},{"$f":"IF(ISBLANK(I128),0,5)","v":0}]
[null,null,null,"○","Hay un plan de formación disponible, que es apropiado e incluye formación sanitaria para actualizar el conocimiento de los TASEI sobre las necesidades específicas de los PID",null,null,null,null,null,null,0,0,0]
[null,null,null,"○","Los TASEI tienen formación en microplanificación y divulgación",null,null,null,null,null,null,0,0,0]
[null,null,null,"○","Existe un plan de formación por niveles para mejorar las habilidades, la confianza y el liderazgo de los TASEI ",null,null,null,null,null,null,0,0,0]
[null,null,null,"○","Hay herramientas de divulgación disponibles para movilizar a la comunidad y promover el acceso a los servicios",null,null,null,null,null,null,0,0,0]
[null,null,null,"○","Las herramientas de microplanificación se utilizan para adecuar la prestación de servicios en función de las necesidades de la persona o el sitio ",null,null,null,null,null,null,0,0,0]
[null,null,null,"○","Se emplean mensajes y materiales de comunicación basados en la evidencia",null,null,null,null,null,null,0,0,0]
[null,null,null,"○","Se proporciona información sobre los servicios disponibles, y se facilita a los beneficiarios el acceso a los servicios ",null,null,null,null,null,null,0,0,0]
[null,null,null,"○","Se ofrece asesoramiento y apoyo emocional para llevar a cabo el tratamiento",null,null,null,null,null,null,0,0,0]
[null,null,"Participación significativa de las comunidades afectadas en el liderazgo y la coordinación","Las organizaciones o redes lideradas por PID tienen representación en el órgano nacional de coordinación o en el grupo técnico de trabajo técnico para PID, y:\n\n",null,null,null,null,null,{"$f":"O137","v":"-"},null,null,null,null,{"$f":"IFERROR(ROUND(AVERAGEIF(L138:N141,\"<>0\",L138:N141),0),\"-\")","v":"-"}]
[null,null,null,"○","Se reúnen regularmente",null,null,null,null,null,null,{"$f":"IF(ISBLANK(G138),0,1)","v":0},{"$f":"IF(ISBLANK(H138),0,3)","v":0},{"$f":"IF(ISBLANK(I138),0,5)","v":0}]
[null,null,null,"○","Participan activamente en los procesos de toma de decisiones en igualdad de condiciones ",null,null,null,null,null,null,0,0,0]
[null,null,null,"○","Reciben apoyo para solicitar feedback e informar sobre las decisiones clave a los grupos que representan",null,null,null,null,null,null,0,0,0]
[null,null,null,"○","Se ha comprobado que se tienen en cuenta los comentarios, las aportaciones y el asesoramiento experto que las organizaciones o redes lideradas por PID proporcionan",null,null,null,null,null,null,0,0,0]
[null,null,"Prestación de servicios"]
[null,null,"Elemento","Criterios",null,"N/A","Ausente","Presente pero no óptimo","Presente y funcionando bien","Promedio del elemento","Comentarios (si procede)"]
[null,null,"Servicios accesibles","Los servicios son accesibles para las comunidades de PID:",null,null,null,null,null,{"$f":"O144","v":"-"},null,null,null,null,{"$f":"IFERROR(ROUND(AVERAGEIF(L145:N151,\"<>0\",L145:N151),0),\"-\")","v":"-"}]
[null,null,null,"○","Están diseñados en base a la investigación formativa realizada en la evaluación de necesidades ",null,null,null,null,null,null,{"$f":"IF(ISBLANK(G145),0,1)","v":0},{"$f":"IF(ISBLANK(H145),0,3)","v":0},{"$f":"IF(ISBLANK(I145),0,5)","v":0}]
[null,null,null,"○","Están convenientemente ubicados en o cerca de centros de actividad",null,null,null,null,null,null,0,0,0]
[null,null,null,"○","Incluyen servicios móviles en caso de ser necesarios ",null,null,null,null,null,null,0,0,0]
[null,null,null,"○","Los horarios son adecuadas para las PID a las que se dirigen ",null,null,null,null,null,null,0,0,0]
[null,null,null,"○","Están integrados con el sistema nacional de salud y ofrecen paquetes de atención integral ",null,null,null,null,null,null,0,0,0]
[null,null,null,"○","Cuentan con un suministro constante de servicios y productos",null,null,null,null,null,null,0,0,0]
[null,null,null,"○","Implican un cambio de tareas para permitir aumentar la capacidad de los proveedores de atención médica",null,null,null,null,null,null,0,0,0]
[null,null,"Servicios aceptables","Los servicios son aceptables para la comunidad de PID, y:",null,null,null,null,null,{"$f":"O152","v":"-"},null,null,null,null,{"$f":"IFERROR(ROUND(AVERAGEIF(L153:N157,\"<>0\",L153:N157),0),\"-\")","v":"-"}]
[null,null,null,"○","Son confidenciales y voluntarios ",null,null,null,null,null,null,{"$f":"IF(ISBLANK(G153),0,1)","v":0},{"$f":"IF(ISBLANK(H153),0,3)","v":0},{"$f":"IF(ISBLANK(I153),0,5)","v":0}]
[null,null,null,"○","Los proveedores de asistencia son sensibles a las necesidades de las PID, y no juzgan ni estigmatizan",null,null,null,null,null,null,0,0,0]
[null,null,null,"○","Los proveedores de servicios están capacitados para poder ofrecer un paquete completo de intervención específico para PID ",null,null,null,null,null,null,0,0,0]
[null,null,null,"○","Crean un entorno seguro y de apoyo ",null,null,null,null,null,null,0,0,0]
[null,null,null,"○","Las intervenciones online se llevan a cabo de manera ética, respetando la privacidad y confidencialidad de los clientes",null,null,null,null,null,null,0,0,0]
[null,null,"Servicios adaptados/apropiados","Los paquete de servicios y la prestación de los mismos están adaptados a las necesidades específicas de las PID en toda su diversidad:",null,null,null,null,null,{"$f":"O158","v":"-"},null,null,null,null,{"$f":"IFERROR(ROUND(AVERAGEIF(L159:N164,\"<>0\",L159:N164),0),\"-\")","v":"-"}]
[null,null,null,"○","El paquete de servicios para mujeres incluye todos los servicios de SSR (salud sexual y reproductiva) pertinentes, de acuerdo con las directrices de la OMS ",null,null,null,null,null,null,{"$f":"IF(ISBLANK(G159),0,1)","v":0},{"$f":"IF(ISBLANK(H159),0,3)","v":0},{"$f":"IF(ISBLANK(I159),0,5)","v":0}]
[null,null,null,"○","Amplia disponibilidad para la iniciación comunitaria de la TAR para las PID que viven con el VIH",null,null,null,null,null,null,0,0,0]
[null,null,null,"○","Los servicios son accesibles para las PID adolescentes en toda su diversidad ",null,null,null,null,null,null,0,0,0]
[null,null,null,"○","Se dispone de servicios adicionales (o se puede contactar con ellos) en función de las necesidades específicas de las PID (por ejemplo, servicios de reasignación de género)",null,null,null,null,null,null,0,0,0]
[null,null,null,"○","Los servicios se prestan de forma adecuada y respetando la confidencialidad y privacidad de los usuarios",null,null,null,null,null,null,0,0,0]
[null,null,null,"○","Los servicios abordan las vulnerabilidades cruzadas de adolescentes y jóvenes que se dedican al trabajo sexual",null,null,null,null,null,null,0,0,0]
[null,null,"Intervenciones clínicas"]
[null,null,"Elemento","Criterios",null,"N/A","Ausente","Presente pero no óptimo","Presente y funcionando bien","Promedio del elemento","Comentarios (si procede)"]
[null,null,"Programa de intercambio de jeringuillas (PIJ)","Se ha establecido un PIJ, y:",null,null,null,null,null,{"$f":"O167","v":"-"},null,null,null,null,{"$f":"IFERROR(ROUND(AVERAGEIF(L168:N179,\"<>0\",L168:N179),0),\"-\")","v":"-"}]
[null,null,null,"○","Las PID disponen de acceso libre y fácil a agujas, jeringuillas y otros productos estériles, sin restricciones por cantidad o distribución secundaria. Esto incluye preservativos, lubricante, filtros, agua estéril, hisopos con alcohol, hisopos de algodón, cucharas, contenedores para objetos punzantes, acidificantes o torniquetes.",null,null,null,null,null,null,{"$f":"IF(ISBLANK(G168),0,1)","v":0},{"$f":"IF(ISBLANK(H168),0,3)","v":0},{"$f":"IF(ISBLANK(I168),0,5)","v":0}]
[null,null,null,null,null,null,null,null,null,null,null,0,0,0]
[null,null,null,"○","Está integrado con el acceso a otros servicios de apoyo y atención relacionados con la gestión de la salud de las PID, incluida la atención por sobredosis (reversión de la sobredosis y naloxona)",null,null,null,null,null,null,0,0,0]
[null,null,null,"○","Están convenientemente ubicado en máquinas expendedoras, centros de acogida, farmacias, clínicas y otros lugares de acceso cotidiano ",null,null,null,null,null,null,0,0,0]
[null,null,null,"○","Las autoridades no interfieren ",null,null,null,null,null,null,0,0,0]
[null,null,null,"○","Se ha establecido un mecanismo para devolver/desechar las agujas y jeringas usadas en condiciones de seguridad",null,null,null,null,null,null,0,0,0]
[null,null,null,"○","Los miembros de la comunidad participan en la selección y distribución de productos básicos ",null,null,null,null,null,null,0,0,0]
[null,null,null,"○","No se requiere realizar un intercambio ",null,null,null,null,null,null,0,0,0]
[null,null,null,"○","Los enfoques del programa de intercambio de jeringuillas tienen en cuenta cuestiones relacionadas con la edad y el género (por ejemplo, la prestación conjunta de servicios del PIJ y de SSR, o la disponibilidad de usuarias de drogas como asistentes entre iguales)",null,null,null,null,null,null,0,0,0]
[null,null,null,"○","Se distribuye una cantidad suficiente de agujas por persona y año, en función de sus necesidades y de acuerdo con la cantidad recomendada por la Organización Mundial de la Salud",null,null,null,null,null,null,0,0,0]
[null,null,null,"○","Amplio acceso a métodos para desechar productos con seguridad",null,null,null,null,null,null,0,0,0]
[null,null,null,"○","Se proporcionan agujas adecuadas y jeringuillas de bajo espacio muerto",null,null,null,null,null,null,0,0,0]
[null,null,"Tratamiento de sustitución de opioides","La terapia de sustitución de opioides se ofrece libremente a las PID, y:",null,null,null,null,null,{"$f":"O180","v":"-"},null,null,null,null,{"$f":"IFERROR(ROUND(AVERAGEIF(L181:N188,\"<>0\",L181:N188),0),\"-\")","v":"-"}]
[null,null,null,"○","Es accesible y está disponible ",null,null,null,null,null,null,{"$f":"IF(ISBLANK(G181),0,1)","v":0},{"$f":"IF(ISBLANK(H181),0,3)","v":0},{"$f":"IF(ISBLANK(I181),0,5)","v":0}]
[null,null,null,"○","Se garantiza la seguridad de los usuarios ",null,null,null,null,null,null,0,0,0]
[null,null,null,"○","El tratamiento está disponible en el mismo día, al momento de realizar la inscripción ",null,null,null,null,null,null,0,0,0]
[null,null,null,"○","Atención de gran calidad y no discriminatoria ",null,null,null,null,null,null,0,0,0]
[null,null,null,"○","Se permite que las PID continúen con el tratamiento de sustitución de opioides después de ser arrestados o puestos en libertad",null,null,null,null,null,null,0,0,0]
[null,null,null,"○","Se sigue una política de dosificación flexible, según las directrices de la Organización Mundial de la Salud",null,null,null,null,null,null,0,0,0]
[null,null,null,"○","Se puede recoger una dosis para llevar a casa",null,null,null,null,null,null,0,0,0]
[null,null,null,"○","Existen programas de distribución en la comunidad",null,null,null,null,null,null,0,0,0]
[null,null,"Preservativos y lubricante ","Todas las PID tienen acceso a preservativos, lubricantes, demostraciones de uso y otros servicios de salud sexual y reproductiva, y:\n\n",null,null,null,null,null,{"$f":"O189","v":"-"},null,null,null,null,{"$f":"IFERROR(ROUND(AVERAGEIF(L190:N192,\"<>0\",L190:N192),0),\"-\")","v":"-"}]
[null,null,null,"○","Se distribuyen ampliamente y en cantidad suficiente",null,null,null,null,null,null,{"$f":"IF(ISBLANK(G190),0,1)","v":0},{"$f":"IF(ISBLANK(H190),0,3)","v":0},{"$f":"IF(ISBLANK(I190),0,5)","v":0}]
[null,null,null,"○","Son fácilmente accesibles en los centros de actividad",null,null,null,null,null,null,0,0,0]
[null,null,null,"○","Los TASEI realizan regularmente demostraciones de uso ",null,null,null,null,null,null,0,0,0]
[null,null,"Servicios de pruebas del VIH","Las pruebas, el tratamiento, el asesoramiento y el apoyo para personas con VIH están disponibles para PID y,:\n",null,null,null,null,null,{"$f":"O193","v":"-"},null,null,null,null,{"$f":"IFERROR(ROUND(AVERAGEIF(L194:N205,\"<>0\",L194:N205),0),\"-\")","v":"-"}]
[null,null,null,"○","Se han implementado las directrices consolidadas de la OMS sobre los servicios de pruebas del VIH",null,null,null,null,null,null,{"$f":"IF(ISBLANK(G194),0,1)","v":0},{"$f":"IF(ISBLANK(H194),0,3)","v":0},{"$f":"IF(ISBLANK(I194),0,5)","v":0}]
[null,null,null,"○","Todas las pruebas son voluntarias y confidenciales (con consentimiento informado)",null,null,null,null,null,null,0,0,0]
[null,null,null,"○","Se proporciona asesoramiento antes y después de la prueba ",null,null,null,null,null,null,0,0,0]
[null,null,null,"○","Se ofrece el tratamiento independientemente del recuento de CD4",null,null,null,null,null,null,0,0,0]
[null,null,null,"○","Tras el diagnóstico, a las personas con VIH se les pone en contacto con las redes de atención y apoyo ",null,null,null,null,null,null,0,0,0]
[null,null,null,"○","El acceso a los servicios se distribuye equitativamente entre la comunidad y todas las PID",null,null,null,null,null,null,0,0,0]
[null,null,null,"○","Se han implementado intervenciones para garantizar la adherencia de las PID que viven con el VIH",null,null,null,null,null,null,0,0,0]
[null,null,null,"○","Se realiza un seguimiento regular de la asistencia de las PID que viven con el VIH a los servicios de atención sanitaria ",null,null,null,null,null,null,0,0,0]
[null,null,null,"○","Se pone en contacto con los servicios de prevención de las comorbilidades",null,null,null,null,null,null,0,0,0]
[null,null,null,"○","Se facilita el contacto con los servicios de prevención y tratamiento de las comorbilidades",null,null,null,null,null,null,0,0,0]
[null,null,null,"○","Se dispone de pruebas de carga viral y son accesibles para las PID que viven con el VIH",null,null,null,null,null,null,0,0,0]
[null,null,null,"○","Se dispone de pruebas de CD4 y son accesibles para las PID que viven con el VIH",null,null,null,null,null,null,0,0,0]
[null,null,"Profilaxis preexposición (PrEP)","Se dispone de una PrEP oral (TDF) para las PID en riesgo sustancial de infección por VIH ",null,null,null,null,null,{"$f":"O206","v":"-"},null,null,null,null,{"$f":"IFERROR(ROUND(AVERAGEIF(L207:N211,\"<>0\",L207:N211),0),\"-\")","v":"-"}]
[null,null,null,"○","Hay un suministro ininterrumpido de profilaxis preexposición ",null,null,null,null,null,null,{"$f":"IF(ISBLANK(G207),0,1)","v":0},{"$f":"IF(ISBLANK(H207),0,3)","v":0},{"$f":"IF(ISBLANK(I207),0,5)","v":0}]
[null,null,null,"○","Las pruebas de VIH se llevan a cabo antes de iniciar la profilaxis preexposición para asegurarse de que la persona sea negativa en VIH ",null,null,null,null,null,null,0,0,0]
[null,null,null,"○","Se ofrece como parte de un enfoque integral de prevención combinada ",null,null,null,null,null,null,0,0,0]
[null,null,null,"○","Los enfoques combinados incluyen el apoyo a la adherencia, la repetición periódica de la prueba del VIH y el asesoramiento para los usuarios de profilaxis preexposición ",null,null,null,null,null,null,0,0,0]
[null,null,null,"○","La profilaxis preexposición se ofrece basándose en la evaluación individual y no en el grupo de riesgo, a fin de promover una cobertura más amplia ",null,null,null,null,null,null,0,0,0]
[null,null,"Planificación familiar y SSR","Todas las PID tienen acceso a servicios de planificación familiar y de salud sexual y reproductiva (SSR), y:",null,null,null,null,null,{"$f":"O212","v":"-"},null,null,null,null,{"$f":"IFERROR(ROUND(AVERAGEIF(L213:N216,\"<>0\",L213:N216),0),\"-\")","v":"-"}]
[null,null,null,"○","Incluyen exámenes de detección del cáncer cervical",null,null,null,null,null,null,{"$f":"IF(ISBLANK(G213),0,1)","v":0},{"$f":"IF(ISBLANK(H213),0,3)","v":0},{"$f":"IF(ISBLANK(I213),0,5)","v":0}]
[null,null,null,"○","Se distribuyen ampliamente y en cantidad suficiente",null,null,null,null,null,null,0,0,0]
[null,null,null,"○","Son fácilmente accesibles en los centros de actividad",null,null,null,null,null,null,0,0,0]
[null,null,null,"○","Se programan talleres demostrativos en los centros de actividad de forma regular",null,null,null,null,null,null,0,0,0]
[null,null,"Atención postviolencia ","Todas las PID tienen acceso a atención postviolencia, y:\n",null,null,null,null,null,{"$f":"O217","v":"-"},null,null,null,null,{"$f":"IFERROR(ROUND(AVERAGEIF(L217:N221,\"<>0\",L217:N221),0),\"-\")","v":"-"}]
[null,null,null,"○","Se dispone de servicios de apoyo y asesoramiento",null,null,null,null,null,null,{"$f":"IF(ISBLANK(G218),0,1)","v":0},{"$f":"IF(ISBLANK(H218),0,3)","v":0},{"$f":"IF(ISBLANK(I218),0,5)","v":0}]
[null,null,null,"○","Se dispone de servicios como la profilaxis postexposición",null,null,null,null,null,null,0,0,0]
[null,null,null,"○","En casos de violencia sexual, se realizan pruebas de ITS (sífilis, clamidia, gonorrea) de forma rutinaria",null,null,null,null,null,null,0,0,0]
[null,null,null,"○","Se ha establecido un mecanismo de referencia a servicios integrales de atención a la violencia de género (VG) en función de la necesidad",null,null,null,null,null,null,0,0,0]
[null,null,"Prevención, detección y tratamiento de la tuberculosis (TB)","Se dispone de servicios de prevención, detección y tratamiento de la TB para PID, y:\n",null,null,null,null,null,{"$f":"O222","v":"-"},null,null,null,null,{"$f":"IFERROR(ROUND(AVERAGEIF(L223:N231,\"<>0\",L223:N231),0),\"-\")","v":"-"}]
[null,null,null,"○","Prevención: terapia preventiva con isoniacida administrada a personas VIH+ junto con terapia antirretroviral (TAR), control de la infección por tuberculosis y rastreo de contactos en entornos compartidos ",null,null,null,null,null,null,{"$f":"IF(ISBLANK(G223),0,1)","v":0},{"$f":"IF(ISBLANK(H223),0,3)","v":0},{"$f":"IF(ISBLANK(I223),0,5)","v":0}]
[null,null,null,"○","Diagnóstico: uso de Xpert MTB/RIF como prueba diagnóstica inicial",null,null,null,null,null,null,0,0,0]
[null,null,null,"○","Todas las pruebas son voluntarias y confidenciales ",null,null,null,null,null,null,0,0,0]
[null,null,null,"○","Se han implementado intervenciones de apoyo de adherencia para garantizar que se completa el ciclo de antibióticos",null,null,null,null,null,null,0,0,0]
[null,null,null,"○","El tratamiento se administra inmediatamente y el suministro es ininterrumpido",null,null,null,null,null,null,0,0,0]
[null,null,null,"○","El acceso a los servicios se distribuye equitativamente entre la comunidad y las PID",null,null,null,null,null,null,0,0,0]
[null,null,null,"○","Se ofrece el contacto con los servicios de pruebas del VIH y de asesoramiento para casos positivos ",null,null,null,null,null,null,0,0,0]
[null,null,null,"○","Se están realizando esfuerzos para tratar la tuberculosis latente en las PID",null,null,null,null,null,null,0,0,0]
[null,null,null,"○","El tratamiento de la tuberculosis no tiene contraindicaciones por consumo de alcohol o drogas ni por trastornos de salud mental",null,null,null,null,null,null,0,0,0]
[null,null,"Prevención, vacunación, detección y tratamiento de la hepatitis viral","Se dispone de servicios de prevención, vacunación, detección y tratamiento de la hepatitis vírica tipo B y C que satisfacen las necesidades específicas de las PID, y:\n",null,null,null,null,null,{"$f":"O232","v":"-"},null,null,null,null,{"$f":"IFERROR(ROUND(AVERAGEIF(L233:N238,\"<>0\",L233:N238),0),\"-\")","v":"-"}]
[null,null,null,"○","Todas las pruebas son voluntarias y confidenciales ",null,null,null,null,null,null,{"$f":"IF(ISBLANK(G233),0,1)","v":0},{"$f":"IF(ISBLANK(H233),0,3)","v":0},{"$f":"IF(ISBLANK(I233),0,5)","v":0}]
[null,null,null,"○","El tratamiento se administra inmediatamente y el suministro es ininterrumpido ",null,null,null,null,null,null,0,0,0]
[null,null,null,"○","El acceso a los servicios se distribuye equitativamente entre la comunidad y todas las PID",null,null,null,null,null,null,0,0,0]
[null,null,null,"○","Se llevan a cabo campañas de vacunación contra la hepatitis B y C de forma rutinaria ",null,null,null,null,null,null,0,0,0]
[null,null,null,"○","Se dispone de regímenes de vacunación contra la hepatitis B y C que son rápidos, estándar y de fácil acceso. ",null,null,null,null,null,null,0,0,0]
[null,null,null,"○","Se han asignado recursos para la prevención, vacunación, detección y tratamiento de la hepatitis vírica",null,null,null,null,null,null,0,0,0]
[null,null,"Detección y tratamiento para el consumo de drogas y alcohol","Se ofrecen servicios de detección y tratamiento del consumo problemático de alcohol y drogas de forma rutinaria en los centros de atención sanitaria, los centros de actividad locales y las unidades de asistencia móviles ",null,null,null,null,null,{"$f":"O239","v":"-"},null,null,null,null,{"$f":"IFERROR(ROUND(AVERAGEIF(L240:N243,\"<>0\",L240:N243),0),\"-\")","v":"-"}]
[null,null,null,"○","Los trabajadores de asistencia social entre iguales ponen en contacto a las personas en riesgo con los servicios de detección y tratamiento ",null,null,null,null,null,null,{"$f":"IF(ISBLANK(G240),0,1)","v":0},{"$f":"IF(ISBLANK(H240),0,3)","v":0},{"$f":"IF(ISBLANK(I240),0,5)","v":0}]
[null,null,null,"○","Las personas están en contacto con terapeutas, organizaciones y grupos de apoyo adecuados",null,null,null,null,null,null,0,0,0]
[null,null,null,"○","El tratamiento se inicia inmediatamente si la persona consiente de forma voluntaria",null,null,null,null,null,null,0,0,0]
[null,null,null,"○","Se ofrece derivación a otros servicios (salud mental, apoyo psicosocial) en caso de necesidad",null,null,null,null,null,null,0,0,0]
[null,null,"Atención a la salud mental","La atención a la salud mental es accesible y se proporciona de forma continuada a las PID que viven con el VIH, e incluye:",null,null,null,null,null,{"$f":"O244","v":"-"},null,null,null,null,{"$f":"IFERROR(ROUND(AVERAGEIF(L245:N246,\"<>0\",L245:N246),0),\"-\")","v":"-"}]
[null,null,null,"○","Evaluaciones rutinarias de trastornos de salud mental (especialmente depresión y estrés psicosocial), según lo dispuesto en el Programa de Acción Global en Salud Mental de la OMS (mhGAP)",null,null,null,null,null,null,{"$f":"IF(ISBLANK(G245),0,1)","v":0},{"$f":"IF(ISBLANK(H245),0,3)","v":0},{"$f":"IF(ISBLANK(I245),0,5)","v":0}]
[null,null,null,"○","Asesoramiento tras obtener resultados positivos en la prueba del VIH para detectar el riesgo de suicidio, depresión y otros problemas de salud mental ",null,null,null,null,null,null,0,0,0]
[null,null,"CMMV","La CMMV está disponible para los hombres heterosexuales que se inyectan drogas y que están a punto de salir de prisión en los países del este y sur de África en los que se practica la CMMV, y:",null,null,null,null,null,{"$f":"O247","v":"-"},null,null,null,null,{"$f":"IFERROR(ROUND(AVERAGEIF(L248:N249,\"<>0\",L248:N249),0),\"-\")","v":"-"}]
[null,null,null,"○","El procedimiento es voluntario (con consentimiento informado) y confidencial",null,null,null,null,null,null,{"$f":"IF(ISBLANK(G248),0,1)","v":0},{"$f":"IF(ISBLANK(H248),0,3)","v":0},{"$f":"IF(ISBLANK(I248),0,5)","v":0}]
[null,null,null,"○","El procedimiento lo realizan profesionales de la salud cualificados en entornos adecuadamente equipados",null,null,null,null,null,null,0,0,0]
[null,null,"COVID-19 ","Prestación de servicios a las personas para los programas dirigidos a PID durante la COVID-19 \n",null,null,null,null,null,{"$f":"O250","v":"-"},null,null,null,null,{"$f":"IFERROR(ROUND(AVERAGEIF(L251:N252,\"<>0\",L251:N252),0),\"-\")","v":"-"}]
[null,null,null,"○","Hay programas para promover la vacunación contra la COVID-19 entre las PID y realizar un seguimiento",null,null,null,null,null,null,{"$f":"IF(ISBLANK(G251),0,1)","v":0},{"$f":"IF(ISBLANK(H251),0,3)","v":0},{"$f":"IF(ISBLANK(I251),0,5)","v":0}]
[null,null,null,"○","Comunicación constante y acceso seguro a modelos de prestación de servicios fuera de instalaciones sanitarias (ej.: centros comunitarios, a domicilio, teleasistencia, etc.) durante los picos de la COVID-19 para evitar la interrupción del servicio",null,null,null,null,null,null,0,0,0]
[null,null,"Intervenciones conductuales"]
[null,null,"Elemento","Criterios",null,"N/A","Ausente","Presente pero no óptimo","Presente y funcionando bien","Promedio del elemento","Comentarios (si procede)"]
[null,null,"Comunicación para el cambio conductual y social (CCCS)","Las actividades de CCCS están incluidas en el programa para el grupo de población clave Están:",null,null,null,null,null,{"$f":"O255","v":"-"},null,null,null,null,{"$f":"IFERROR(ROUND(AVERAGEIF(L256:N260,\"<>0\",L256:N260),0),\"-\")","v":"-"}]
[null,null,null,"○","Bien planificadas y adecuadamente presupuestadas",null,null,null,null,null,null,{"$f":"IF(ISBLANK(G256),0,1)","v":0},{"$f":"IF(ISBLANK(H256),0,3)","v":0},{"$f":"IF(ISBLANK(I256),0,5)","v":0},0]
[null,null,null,"○","Basadas en la evidencia ",null,null,null,null,null,null,0,0,{"$f":"IF(ISBLANK(I257),0,5)","v":0}]
[null,null,null,"○","Diseñadas y probadas por los miembros de la población clave",null,null,null,null,null,null,0,0,0]
[null,null,null,"○","Implementadas por organizaciones y personas con experiencia y formación en intervenciones de CCCS",null,null,null,null,null,null,0,0,0]
[null,null,null,"○","Las intervenciones de CCCS están incluidas en los planes y actividades de seguimiento y evaluación",null,null,null,null,null,null,0,0,0]
[null,null,"Intervenciones estructurales"]
[null,null,"Elemento","Criterios",null,"N/A","Ausente","Presente pero no óptimo","Presente y funcionando bien","Promedio del elemento","Comentarios (si procede)"]
[null,null,"Prevención y respuesta a la violencia","Se han implementado programas para abordar la violencia contra las PID de manera consistente, e incluyen:",null,null,null,null,null,{"$f":"O263","v":"-"},null,null,null,null,{"$f":"IFERROR(ROUND(AVERAGEIF(L264:N270,\"<>0\",L264:N270),0),\"-\")","v":"-"}]
[null,null,null,"○","Información sobre seguridad",null,null,null,null,null,null,{"$f":"IF(ISBLANK(G264),0,1)","v":0},{"$f":"IF(ISBLANK(H264),0,3)","v":0},{"$f":"IF(ISBLANK(I264),0,5)","v":0}]
[null,null,null,"○","Espacios seguros (centros de acogida)",null,null,null,null,null,null,0,0,0]
[null,null,null,"○","Mejora de la seguridad en el lugar de trabajo",null,null,null,null,null,null,0,0,0]
[null,null,null,"○","Estandarización de los mecanismos de seguimiento y denuncia de los casos de violencia, que van más allá del contacto con la Policía y pueden incluir el asesoramiento jurídico que ofrecen las organizaciones de PID",null,null,null,null,null,null,0,0,0]
[null,null,null,"○","Formación integral de la Policía y los trabajadores sociales para que sean sensibles a las necesidades de las PID",null,null,null,null,null,null,0,0,0]
[null,null,null,"○","Planes de respuesta a la violencia desarrollados por la comunidad",null,null,null,null,null,null,0,0,0]
[null,null,null,"○","En contacto con servicios de asistencia jurídica",null,null,null,null,null,null,0,0,0]
[null,null,"Reducción del estigma y la discriminación ","Existe un enfoque coherente para la reducción del estigma en los centros sanitarios y al buscar asistencia jurídica ",null,null,null,null,null,{"$f":"O271","v":"-"},null,null,null,null,{"$f":"IFERROR(ROUND(AVERAGEIF(L272:N275,\"<>0\",L272:N275),0),\"-\")","v":"-"}]
[null,null,null,"○","Realización de campañas de reducción del estigma ",null,null,null,null,null,null,{"$f":"IF(ISBLANK(G272),0,1)","v":0},{"$f":"IF(ISBLANK(H272),0,3)","v":0},{"$f":"IF(ISBLANK(I272),0,5)","v":0}]
[null,null,null,"○","Sensibilización y participación continua de líderes religiosos y comunitarios, fuerzas del orden y profesionales sanitarios",null,null,null,null,null,null,0,0,0]
[null,null,null,"○","Establecimiento de mecanismos eficaces para permitir la denuncia anónima de incidentes discriminatorios en el acceso a la atención sanitaria  ",null,null,null,null,null,null,0,0,0]
[null,null,null,"○","Se proporciona apoyo y seguimiento a las PID que denuncian incidentes de discriminación",null,null,null,null,null,null,0,0,0]
[null,null,"Servicios jurídicos relacionados con el VIH ","Se ofrecen servicios jurídicos relacionados con el VIH para satisfacer las necesidades de las poblaciones de PID, y:  ",null,null,null,null,null,{"$f":"O276","v":"-"},null,null,null,null,{"$f":"IFERROR(ROUND(AVERAGEIF(L277:N279,\"<>0\",L277:N279),0),\"-\")","v":"-"}]
[null,null,null,"○","Existen alternativas para la resolución de conflictos",null,null,null,null,null,null,{"$f":"IF(ISBLANK(G277),0,1)","v":0},{"$f":"IF(ISBLANK(H277),0,3)","v":0},{"$f":"IF(ISBLANK(I277),0,5)","v":0}]
[null,null,null,"○","Se dispone de acceso fácil a información legal información de contacto con profesionales u organizaciones",null,null,null,null,null,null,0,0,0]
[null,null,null,"○","Se dispone de acceso fácil a asesoramiento y representación legal",null,null,null,null,null,null,0,0,0]
[null,null,"Seguimiento de la aplicación de la ley ","Se realiza un seguimiento regular de la implementación de políticas, regulaciones y leyes para evaluar su impacto en las PID.",null,null,null,null,null,{"$f":"O280","v":"-"},null,0,0,0,{"$f":"IFERROR(ROUND(AVERAGEIF(L280:N280,\"<>0\",L280:N280),0),\"-\")","v":"-"}]
[null,null,"Conocimientos legales («Conoce tus derechos»)","○","Se ofrece a las PID una formación integral sobre legislación y derechos ",null,null,null,null,"-",null,null,null,null,{"$f":"IFERROR(ROUND(AVERAGEIF(L282:N283,\"<>0\",L282:N283),0),\"-\")","v":"-"}]
[null,null,null,"○","Se han diseñado y comunicado estrategias efectivas para que las PID interactúen con la Policía",null,null,null,null,null,null,{"$f":"IF(ISBLANK(G282),0,1)","v":0},{"$f":"IF(ISBLANK(H282),0,3)","v":0},{"$f":"IF(ISBLANK(I282),0,5)","v":0}]
[null,null,null,"○","Las PID conocen la ley y sus derechos, y pueden reclamar y defender sus necesidades en el contexto del VIH",null,null,null,null,null,null,0,0,0]
[null,null,"Sensibilización de los legisladores y las fuerzas del orden ","Formación continua y exhaustiva de los encargados de redactar y hacer cumplir las leyes para garantizar que estén adecuadamente sensibilizados con las PID. La formación incluye: \n",null,null,null,null,null,{"$f":"O284","v":"-"},null,null,null,null,{"$f":"IFERROR(ROUND(AVERAGEIF(L285:N288,\"<>0\",L285:N288),0),\"-\")","v":"-"}]
[null,null,null,"○","Un programa integral de formación para la sensibilización adaptado al contexto del país en cuestión",null,null,null,null,null,null,{"$f":"IF(ISBLANK(G285),0,1)","v":0},{"$f":"IF(ISBLANK(H285),0,3)","v":0},{"$f":"IF(ISBLANK(I285),0,5)","v":0}]
[null,null,null,"○","Facilitadores con la formación adecuada",null,null,null,null,null,null,0,0,0]
[null,null,null,"○","Participación de las PID",null,null,null,null,null,null,0,0,0]
[null,null,null,"○","Comentarios de los participantes",null,null,null,null,null,null,0,0,0]
[null,null,"Formación para proveedores de atención sanitaria sobre derechos humanos y ética médica relacionada con el VIH ","Un programa integral de formación para la sensibilización adaptado al contexto del país en cuestión",null,null,null,null,null,{"$f":"O289","v":"-"},null,null,null,null,{"$f":"IFERROR(ROUND(AVERAGEIF(L290:N292,\"<>0\",L290:N292),0),\"-\")","v":"-"}]
[null,null,null,"○","Facilitadores con la formación adecuada",null,null,null,null,null,null,{"$f":"IF(ISBLANK(G290),0,1)","v":0},{"$f":"IF(ISBLANK(H290),0,3)","v":0},{"$f":"IF(ISBLANK(I290),0,5)","v":0}]
[null,null,null,"○","Participación de las PID",null,null,null,null,null,null,0,0,0]
[null,null,null,"○","Comentarios de los participantes",null,null,null,null,null,null,0,0,0]
[null,null,"Reducción de la discriminación contra las mujeres en el contexto del VIH ","Se han implementado programas para abordar la desigualdad de género y la violencia de género en el contexto del VIH, y contemplan: ",null,null,null,null,null,{"$f":"O293","v":"-"},null,null,null,null,{"$f":"IFERROR(ROUND(AVERAGEIF(L294:N300,\"<>0\",L294:N300),0),\"-\")","v":"-"}]
[null,null,null,"○","La desigualdad de mujeres y jóvenes en la toma de decisiones sexuales y reproductivas ",null,null,null,null,null,null,{"$f":"IF(ISBLANK(G294),0,1)","v":0},{"$f":"IF(ISBLANK(H294),0,3)","v":0},{"$f":"IF(ISBLANK(I294),0,5)","v":0}]
[null,null,null,"○","Las barreras de género para acceder a la atención sanitaria ",null,null,null,null,null,null,0,0,0]
[null,null,null,"○","La discriminación en en los procesos de herencia, adquisición de propiedades, matrimonio, divorcio y custodia ",null,null,null,null,null,null,0,0,0]
[null,null,null,"○","La violencia sexual y de otro tipo ",null,null,null,null,null,null,0,0,0]
[null,null,null,"○","La falta de igualdad de acceso a oportunidades educativas y económicas ",null,null,null,null,null,null,0,0,0]
[null,null,null,"○","La falta de apoyo a los cuidadores en los hogares afectados por el VIH ",null,null,null,null,null,null,0,0,0]
[null,null,null,"○","El complemento con programas dirigidos a hombres y niños que abordan las actitudes y costumbres de género perjudiciales ",null,null,null,null,null,null,0,0,0]
[null,null,"Espacios seguros / centros de acogida","Se han establecido espacios seguros / centros de acogida para la comunidad de PID:",null,null,null,null,null,{"$f":"O301","v":"-"},null,null,null,null,{"$f":"IFERROR(ROUND(AVERAGEIF(L302:N310,\"<>0\",L302:N310),0),\"-\")","v":"-"}]
[null,null,null,"○","Funcionan como el lugar principal de interacción entre la comunidad y el programa",null,null,null,null,null,null,{"$f":"IF(ISBLANK(G302),0,1)","v":0},{"$f":"IF(ISBLANK(H302),0,3)","v":0},{"$f":"IF(ISBLANK(I302),0,5)","v":0}]
[null,null,null,"○","Proporcionan una plataforma para la movilización, la formación y la organización de iniciativas para la comunidad",null,null,null,null,null,null,0,0,0]
[null,null,null,"○","Comparte información sobre eventos, actividades y servicios relevantes para la comunidad",null,null,null,null,null,null,0,0,0]
[null,null,null,"○","Cuentan con información y materiales divulgativos y educativos que son accesibles y fáciles de usar",null,null,null,null,null,null,0,0,0]
[null,null,null,"○","Proporcionan servicios psicosociales y apoyo ",null,null,null,null,null,null,0,0,0]
[null,null,null,"○","Tienen preservativos y lubricante a disposición de los usuarios",null,null,null,null,null,null,0,0,0]
[null,null,null,"○","Los utilizan los TASEI para revisar su trabajo y planificar la divulgación",null,null,null,null,null,null,0,0,0]
[null,null,null,"○","Establecidos en colaboración con las PID para determinar la ubicación, el horario y los servicios que ofrecen",null,null,null,null,null,null,0,0,0]
[null,null,null,"○","Pone a disposición o permite contactar con otros programas de intervención fuera del ámbito sanitario",null,null,null,null,null,null,0,0,0]
[null,null,"Comités comunitarios","Se han creado comités comunitarios de PID, y:",null,null,null,null,null,{"$f":"O311","v":"-"},null,null,null,null,{"$f":"IFERROR(ROUND(AVERAGEIF(L312:N321,\"<>0\",L312:N321),0),\"-\")","v":"-"}]
[null,null,null,"○","Se pueden formar libre y fácilmente",null,null,null,null,null,null,{"$f":"IF(ISBLANK(G312),0,1)","v":0},{"$f":"IF(ISBLANK(H312),0,3)","v":0},{"$f":"IF(ISBLANK(I312),0,5)","v":0}]
[null,null,null,"○","Se reúnen con regularidad (mínimo una vez al mes) y utilizan una plantilla de acta de la reunión para registrar la información que se debate ",null,null,null,null,null,null,0,0,0]
[null,null,null,"○","Revisan la prestación de servicios, solucionan problemas, realizan un seguimiento de los cambios, promueven la comprensión y la rendición de cuentas y abordar los problemas generales de la comunidad",null,null,null,null,null,null,0,0,0]
[null,null,null,"○","Elegir miembros de la comunidad de PWID sobre una base anual",null,null,null,null,null,null,0,0,0]
[null,null,null,"○","Eligen a un portavoz de la comunidad de PID para que actúe como intermediario del programa ",null,null,null,null,null,null,0,0,0]
[null,null,null,"○","Invitan a los trabajadores de las organizaciones pertinentes a formar parte del comité o a asistir a las reuniones",null,null,null,null,null,null,0,0,0]
[null,null,null,"○","Comparten regularmente sus aportaciones sobre el programa para mejorar la calidad de los servicios ofrecidos",null,null,null,null,null,null,0,0,0]
[null,null,null,"○","Respetan la confidencialidad ",null,null,null,null,null,null,0,0,0]
[null,null,null,null,"No permiten que los miembros de la organización implementadora voten en las reuniones",null,null,null,null,null,null,0,0,0]
[null,null,null,"○","Incluyen a los jóvenes de la PC y les ayudan a desarrollar sus capacidades ",null,null,null,null,null,null,0,0,0]
[null,null,"Seguimiento del programa"]
[null,null,"Elemento","Criterios",null,"N/A","Ausente","Presente pero no óptimo","Presente y funcionando bien","Promedio del elemento","Comentarios (si procede)"]
[null,null,"Seguimiento rutinario","Los indicadores del programa se definen y se comunican: ",null,null,null,null,null,{"$f":"O324","v":"-"},null,null,null,null,{"$f":"IFERROR(ROUND(AVERAGEIF(L325:N331,\"<>0\",L325:N331),0),\"-\")","v":"-"}]
[null,null,null,"○","De forma rutinaria (mensual, trimestral)",null,null,null,null,null,null,{"$f":"IF(ISBLANK(G325),0,1)","v":0},{"$f":"IF(ISBLANK(H325),0,3)","v":0},{"$f":"IF(ISBLANK(I325),0,5)","v":0}]
[null,null,null,"○","Al completo (los datos son consistentes y no falta información)",null,null,null,null,null,null,0,0,0]
[null,null,null,"○","A todos los niveles (región, provincia, etc.)",null,null,null,null,null,null,0,0,0]
[null,null,null,"○","Por parte de todos los colaboradores en la implementación",null,null,null,null,null,null,0,0,0]
[null,null,null,"○","A través de la plataforma DHIS2/EMR",null,null,null,null,null,null,0,0,0]
[null,null,null,"○","Seguimiento de datos individuales por parte de los colaboradores en la implementación ",null,null,null,null,null,null,0,0,0]
[null,null,null,"○","Datos revisados de forma rutinaria por todos los interesados (gobierno, sociedad civil, comunidad de PID, colaboradores, donantes), y utilizados para mejorar los programas ",null,null,null,null,null,null,0,0,0]
[null,null,"Seguimiento para la rendición de cuentas dirigido por la comunidad ","Incorporación del seguimiento dirigido por la comunidad (SDC) en las plataformas nacionales de seguimiento:",null,null,null,null,null,{"$f":"O332","v":"-"},null,null,null,null,{"$f":"IFERROR(ROUND(AVERAGEIF(L333:N339,\"<>0\",L333:N339),0),\"-\")","v":"-"}]
[null,null,null,"○","Se ha aceptado e integrado el SDC en los procesos de toma de decisiones y negociaciones con las autoridades locales, con los financiadores y con otros simpatizantes ",null,null,null,null,null,null,{"$f":"IF(ISBLANK(G333),0,1)","v":0},{"$f":"IF(ISBLANK(H333),0,3)","v":0},{"$f":"IF(ISBLANK(I333),0,5)","v":0}]
[null,null,null,"○","Funciona como un mecanismo comunitario de vigilancia y rendición de cuentas",null,null,null,null,null,null,0,0,0]
[null,null,null,"○","Los supervisores entre pares están cualificados y recopilan y analizan de forma sistemática y rutinaria datos cualitativos y cuantitativos sobre la prestación de servicios relacionados con el VIH",null,null,null,null,null,null,0,0,0]
[null,null,null,"○","Hay equipos de seguimiento dirigidos por la comunidad para responder a los déficits en la prestación de servicios relacionados con el VIH dentro de las comunidades",null,null,null,null,null,null,0,0,0]
[null,null,null,"○","Cuenta con la colaboración de diferentes redes de personas que viven con el VIH (PVVIH) y de las organizaciones de las comunidades afectadas",null,null,null,null,null,null,0,0,0]
[null,null,null,"○","Los recopiladores de datos y otros miembros de la comunidad que participan en las tareas de seguimiento reciben una remuneración conforme a las prácticas y estándares nacionales",null,null,null,null,null,null,0,0,0]
[null,null,null,"○","Las comunidades de PID reciben formación y apoyo para evaluar las instalaciones sanitarias y celebrar asambleas públicas para la rendición de cuentas ",null,null,null,null,null,null,0,0,0]
[null,null,"Seguimiento del sistema de referencias","Existen sistemas de seguimiento de las referencias y derivaciones, e incluyen:",null,null,null,null,null,{"$f":"O340","v":"-"},null,null,null,null,{"$f":"IFERROR(ROUND(AVERAGEIF(L341:N345,\"<>0\",L341:N345),0),\"-\")","v":"-"}]
[null,null,null,"○","Una herramienta para hacer referencias o derivaciones que esté ampliamente disponible y que incluya unos procedimientos estándar claros",null,null,null,null,null,null,{"$f":"IF(ISBLANK(G341),0,1)","v":0},{"$f":"IF(ISBLANK(H341),0,3)","v":0},{"$f":"IF(ISBLANK(I341),0,5)","v":0}]
[null,null,null,"○","Un directorio de contactos de referencia tanto en las instalaciones como en las organizaciones dirigidas por pares ",null,null,null,null,null,null,0,0,0]
[null,null,null,"○","Un registro de los resultados ",null,null,null,null,null,null,0,0,0]
[null,null,null,"○","Mecanismos para que los pacientes y proveedores de servicios (referidos o derivados) envíen sus comentarios y aportaciones ",null,null,null,null,null,null,0,0,0]
[null,null,null,"○","Informes de referencias (mensuales) para supervisar la eficacia del sistema de derivaciones",null,null,null,null,null,null,0,0,0]
[null,null,"Evaluación de la calidad","Se han definido sistemas para recopilar datos sobre la calidad del programa y sus indicadores relacionados, y:\n",null,null,null,null,null,{"$f":"O346","v":"-"},null,null,null,null,{"$f":"IFERROR(ROUND(AVERAGEIF(L347:N350,\"<>0\",L347:N350),0),\"-\")","v":"-"}]
[null,null,null,"○","Se recopilan datos precisos",null,null,null,null,null,null,{"$f":"IF(ISBLANK(G347),0,1)","v":0},{"$f":"IF(ISBLANK(H347),0,3)","v":0},{"$f":"IF(ISBLANK(I347),0,5)","v":0}]
[null,null,null,"○","Se actúa en base a los datos recopilados ",null,null,null,null,null,null,0,0,0]
[null,null,null,"○","Los mecanismos de feedback permiten a las PID evaluar los servicios recibidos, a fin de realizar un seguimiento de la calidad del programa",null,null,null,null,null,null,0,0,0]
[null,null,null,"○","Los datos se auditan con regularidad ",null,null,null,null,null,null,0,0,0]
[null,null,"Vigilancia ","La vigilancia permite una descripción precisa del contexto y los resultados/impacto del programa para PID. Vigilancia: \n",null,null,null,null,null,{"$f":"O351","v":"-"},null,null,null,null,{"$f":"IFERROR(ROUND(AVERAGEIF(L352:N355,\"<>0\",L352:N355),0),\"-\")","v":"-"}]
[null,null,null,"○","Los resultados del estudio se utilizan para tomar decisiones informadas y llevar a cabo acciones correctivas ",null,null,null,null,null,null,{"$f":"IF(ISBLANK(G352),0,1)","v":0},{"$f":"IF(ISBLANK(H352),0,3)","v":0},{"$f":"IF(ISBLANK(I352),0,5)","v":0}]
[null,null,null,"○","Implica el análisis y la interpretación de los datos en intervalos regulares ",null,null,null,null,null,null,0,0,0]
[null,null,null,"○","Implica la difusión regular de información para satisfacer las necesidades a nivel local, regional y nacional ",null,null,null,null,null,null,0,0,0]
[null,null,null,"○","Incluye encuestas biológicas y conductuales, encuestas de vigilancia centinela y otros estudios de investigación que analizan los indicadores para PID ",null,null,null,null,null,null,0,0,0]
[null,null,"Datos para la toma de decisiones","La unidad nacional de programación, seguimiento y evaluación del Ministerio de Sanidad, o el organismo equivalente, supervisa/coordina la recopilación de datos de seguimiento, encuestas y vigilancia, y:",null,null,null,null,null,{"$f":"O356","v":"-"},null,null,null,null,{"$f":"IFERROR(ROUND(AVERAGEIF(L357:N364,\"<>0\",L357:N364),0),\"-\")","v":"-"}]
[null,null,null,"○","Comparte datos con el grupo técnico de trabajo de PID",null,null,null,null,null,null,{"$f":"IF(ISBLANK(G357),0,1)","v":0},{"$f":"IF(ISBLANK(H357),0,3)","v":0},{"$f":"IF(ISBLANK(I357),0,5)","v":0}]
[null,null,null,"○","El grupo técnico de trabajo de PID analiza los datos del programa trimestralmente e identifica las áreas en las que hay que aplicar acciones correctivas",null,null,null,null,null,null,0,0,0]
[null,null,null,"○","El grupo técnico de trabajo de PID colabora en el desarrollo de estrategias para solucionar la falta de información o servicios ",null,null,null,null,null,null,0,0,0]
[null,null,null,"○","Se recopilan datos de buena calidad (válidos, fiables, consistentes, precisos, oportunos y relevantes) para satisfacer la mayoría de las necesidades de información, y se analizan aquellas áreas que requieran datos adicionales ",null,null,null,null,null,null,0,0,0]
[null,null,null,"○","Los datos se utilizan de manera consistente y adecuada para tomar decisiones informadas ",null,null,null,null,null,null,0,0,0]
[null,null,null,"○","Se han eliminado los duplicados en los datos entre los colaboradores en la implementación y, si queda algún duplicado, es mínimo",null,null,null,null,null,null,0,0,0]
[null,null,null,"○","Los datos se recopilan de forma centralizada, pero se pueden separar por localidad, sexo y edad",null,null,null,null,null,null,0,0,0]
[null,null,null,"○","El programa proporciona datos para que el grupo técnico de trabajo los revise",null,null,null,null,null,null,0,0,0]
[null,null,"Uso de un código de identificación único para el seguimiento de los programas","Se utiliza este sistema para supervisar el rendimiento del programa y comprobar que funcione adecuadamente",null,null,null,null,null,{"$f":"O365","v":"-"},null,null,null,null,{"$f":"IFERROR(ROUND(AVERAGEIF(L366:N369,\"<>0\",L366:N369),0),\"-\")","v":"-"}]
[null,null,null,"○","Un mismo país puede utilizar varios códigos de identificación únicos, pero están armonizados",null,null,null,null,null,null,{"$f":"IF(ISBLANK(G366),0,1)","v":0},{"$f":"IF(ISBLANK(H366),0,3)","v":0},{"$f":"IF(ISBLANK(I366),0,5)","v":0}]
[null,null,null,"○","El programa nacional utiliza datos agregados con códigos de identificación únicos",null,null,null,null,null,null,0,0,0]
[null,null,null,"○","El código de identificación único es capaz de distinguir el contacto/alcance para evitar la duplicación ",null,null,null,null,null,null,0,0,0]
[null,null,null,"○","El código de identificación único es electrónico",null,null,null,null,null,null,0,0,0]
[null,null,"Supervisión presupuestaria","Se integra el seguimiento del rendimiento financiero y no financiero del programa para chicas adolescentes y mujeres jóvenes, y se generan informes rutinarios: ",null,null,null,null,null,{"$f":"O370","v":"-"},null,null,null,null,{"$f":"IFERROR(ROUND(AVERAGEIF(L371:N373,\"<>0\",L371:N373),0),\"-\")","v":"-"}]
[null,null,null,"○","Se puede acceder fácilmente a los datos sobre los gastos en intervenciones relacionadas con las PID a nivel nacional ",null,null,null,null,null,null,{"$f":"IF(ISBLANK(G371),0,1)","v":0},{"$f":"IF(ISBLANK(H371),0,3)","v":0},{"$f":"IF(ISBLANK(I371),0,5)","v":0}]
[null,null,null,"○","Existen mecanismos de rendición de cuentas analizar los gastos que no hayan agotado el presupuesto ",null,null,null,null,null,null,0,0,0]
[null,null,null,"○","Los datos financieros y no financieros se utilizan para medir la relación calidad-precio",null,null,null,null,null,null,0,0,0]
[null,null,"Resultados del programa"]
[null,null,"Resultados e indicadores"]
[null,null,"Elemento","Criterios",null,"N/A","Sin seguimiento ","Objetivo no cumplido o no en proceso ","Objetivo cumplido o en proceso ","Promedio del elemento","Comentarios (si procede)"]
[null,null,"Estimaciones disponibles del tamaño de la población de personas que se inyectan drogas",null,null,null,null,null,null,{"$f":"O377","v":"-"},null,{"$f":"IF(ISBLANK(G377),0,1)","v":0},{"$f":"IF(ISBLANK(H377),0,3)","v":0},{"$f":"IF(ISBLANK(I377),0,5)","v":0},{"$f":"IFERROR(ROUND(AVERAGEIF(L377:N377,\"<>0\",L377:N377),0),\"-\")","v":"-"}]
[null,null,"PID que viven con el VIH y conocen su estado serológico (objetivo del 90 %)",null,null,null,null,null,null,"-",null,0,0,0,"-"]
[null,null,"PID que viven con el VIH en terapia antirretroviral (objetivo del 90 %)",null,null,null,null,null,null,"-",null,0,0,0,"-"]
[null,null,"PID que viven con el VIH y que tienen cargas virales indetectables (objetivo del 90 %)",null,null,null,null,null,null,"-",null,0,0,0,"-"]
[null,null,"La estrategia de prevención incluye elementos clave del paquete de prevención para PID",null,null,null,null,null,null,"-",null,0,0,0,"-"]
[null,null,"PID que han recibido un mínimo de 2 intervenciones de prevención del VIH en los últimos 3 meses",null,null,null,null,null,null,"-",null,0,0,0,"-"]
[null,null,"Número de agujas/jeringuillas por PID",null,null,null,null,null,null,"-",null,0,0,0,"-"]
[null,null,"% de PID que no buscaron atención sanitaria debido al estigma y a la discriminación",null,null,null,null,null,null,"-",null,0,0,0,"-"]
[null,null,"Incidentes de discriminación de las PID relacionados con el VIH que tuvieron lugar en entornos de atención sanitaria ",null,null,null,null,null,null,"-",null,0,0,0,"-"]
[null,null,"Prácticas seguras para inyectarse (PID) (objetivo del 90 %)",null,null,null,null,null,null,"-",null,0,0,0,"-"]
[null,null,"% de usuarios de opioides que reciben tratamiento farmacológicamente asistido (PID) (objetivo del 25 %)",null,null,null,null,null,null,"-",null,0,0,0,"-"]
[null,null,"Criminalización del consumo/posesión de drogas para uso personal",null,null,null,null,null,null,"-",null,0,0,0,"-"]
[null,null,null,null,null,null,null,null,null,null,null,null,{"$f":"COUNTIF(O6:O387,\"-\")","v":71}]
[null,null,null,null,null,null,null,null,null,null,null,null,{"$f":"COUNTIF(O6:O387,\">0\")","v":0}]
[null,null,null,null,null,null,null,null,null,null,null,"Sheet Completion",{"$f":"M390/(M389+M390)","v":0},{"$f":"1-M391","v":1}]

{"sheet":"Resumen de calificaciones ","index":9,"n_rows":84,"n_cols":14,"rows_kept":84,"cut":false,"hidden":false,"merged":[[16,2,61,2],[64,2,79,2],[2,2,2,4],[3,2,15,2],[3,3,8,3],[9,3,10,3],[11,3,15,3],[16,3,19,3],[54,3,61,3],[20,3,24,3],[25,3,27,3],[28,3,42,3],[44,3,53,3],[64,3,77,3]]}
[]
[]
[null,null,"Resumen de calificaciones",null,null,"Trabajadores sexuales (TS)","Hombres que tienen sexo con hombres (HSH)","Personas transgénero","Reclusos y personas en privación de libertad","Personas que se inyectan drogas (PID)"]
[null,null,"Gestión del programa","Liderazgo y coordinación","Estrategia nacional de PC",{"$f":"'TS '!O6","v":"-"},{"$f":"'HSH '!O6","v":"-"},{"$f":"'Personas transgénero'!O6","v":"-"},{"$f":"'Reclusos '!O6","v":"-"},{"$f":"'PID '!O6","v":"-"}]
[null,null,null,null,"Rendición de cuentas",{"$f":"'TS '!O17","v":"-"},{"$f":"'HSH '!O17","v":"-"},{"$f":"'Personas transgénero'!O17","v":"-"},{"$f":"'Reclusos '!O16","v":"-"},{"$f":"'PID '!O17","v":"-"}]
[null,null,null,null,"Grupo técnico de trabajo para la PC",{"$f":"'TS '!O23","v":"-"},{"$f":"'HSH '!O23","v":"-"},{"$f":"'Personas transgénero'!O23","v":"-"},{"$f":"'Reclusos '!O22","v":"-"},{"$f":"'PID '!O23","v":"-"}]
[null,null,null,null,"Coordinación de los organismos interesados",{"$f":"'TS '!O29","v":"-"},{"$f":"'HSH '!O30","v":"-"},{"$f":"'Personas transgénero'!O29","v":"-"},{"$f":"'Reclusos '!O29","v":"-"},{"$f":"'PID '!O29","v":"-"}]
[null,null,null,null,"Desarrollo de las capacidades y plan de asistencia técnica",{"$f":"'TS '!O36","v":"-"},{"$f":"'HSH '!O37","v":"-"},{"$f":"'Personas transgénero'!O36","v":"-"},{"$f":"'Reclusos '!O36","v":"-"},{"$f":"'PID '!O36","v":"-"}]
[null,null,null,null,"Plan de sostenibilidad y hoja de ruta de la transición",{"$f":"'TS '!O43","v":"-"},{"$f":"'HSH '!O44","v":"-"},{"$f":"'Personas transgénero'!O43","v":"-"},{"$f":"'Reclusos '!O43","v":"-"},{"$f":"'PID '!O43","v":"-"}]
[null,null,null,"Leyes, políticas y normativas","Leyes y políticas ",{"$f":"'TS '!O50","v":"-"},{"$f":"'HSH '!O51","v":"-"},{"$f":"'Personas transgénero'!O50","v":"-"},{"$f":"'Reclusos '!O50","v":"-"},{"$f":"'PID '!O50","v":"-"}]
[null,null,null,null,"Directrices",{"$f":"'TS '!O54","v":"-"},{"$f":"'HSH '!O55","v":"-"},{"$f":"'Personas transgénero'!O54","v":"-"},{"$f":"'Reclusos '!O53","v":"-"},{"$f":"'PID '!O53","v":"-"}]
[null,null,null,"Financiación","Cálculo de costes",{"$f":"'TS '!O61","v":"-"},{"$f":"'HSH '!O62","v":"-"},{"$f":"'Personas transgénero'!O61","v":"-"},{"$f":"'Reclusos '!O60","v":"-"},{"$f":"'PID '!O60","v":"-"}]
[null,null,null,null,"Planificación de presupuestos",{"$f":"'TS '!O63","v":"-"},{"$f":"'HSH '!O64","v":"-"},{"$f":"'Personas transgénero'!O63","v":"-"},{"$f":"'Reclusos '!O62","v":"-"},{"$f":"'PID '!O62","v":"-"}]
[null,null,null,null,"Movilización de recursos y financiación",{"$f":"'TS '!O67","v":"-"},{"$f":"'HSH '!O68","v":"-"},{"$f":"'Personas transgénero'!O67","v":"-"},{"$f":"'Reclusos '!O66","v":"-"},{"$f":"'PID '!O66","v":"-"}]
[null,null,null,null,"Recursos nacionales",{"$f":"'TS '!O68","v":"-"},{"$f":"'HSH '!O69","v":"-"},{"$f":"'Personas transgénero'!O69","v":"-"},{"$f":"'Reclusos '!O67","v":"-"},{"$f":"'PID '!O67","v":"-"}]
[null,null,null,null,"Contratación social",{"$f":"'TS '!O69","v":"-"},{"$f":"'HSH '!O70","v":"-"},{"$f":"'Personas transgénero'!O71","v":"-"},{"$f":"'Reclusos '!O68","v":"-"},{"$f":"'PID '!O68","v":"-"}]
[null,null,"Implementación del programa","Orientación y planificación","Evaluación demográfica (estimación del tamaño de la población y microplanificación)",{"$f":"'TS '!O76","v":"-"},{"$f":"'HSH '!O77","v":"-"},{"$f":"'Personas transgénero'!O78","v":"-"},{"$f":"'Reclusos '!O76","v":"-"},{"$f":"'PID '!O75","v":"-"}]
[null,null,null,null,"Evaluación epidemiológica (encuesta de seroprevalencia y factores de riesgo)",{"$f":"'TS '!O84","v":"-"},{"$f":"'HSH '!O85","v":"-"},{"$f":"'Personas transgénero'!O86","v":"-"},{"$f":"'Reclusos '!O81","v":"-"},{"$f":"'PID '!O83","v":"-"}]
[null,null,null,null,"Evaluación de necesidades",{"$f":"'TS '!O91","v":"-"},{"$f":"'HSH '!O92","v":"-"},{"$f":"'Personas transgénero'!O93","v":"-"},{"$f":"'Reclusos '!O88","v":"-"},{"$f":"'PID '!O90","v":"-"}]
[null,null,null,null,"Determinación de objetivos",{"$f":"'TS '!O95","v":"-"},{"$f":"'HSH '!O96","v":"-"},{"$f":"'Personas transgénero'!O97","v":"-"},{"$f":"'Reclusos '!O92","v":"-"},{"$f":"'PID '!O94","v":"-"}]
[null,null,null,"Acuerdo de implementación ","Mantener una plataforma de acceso",{"$f":"'TS '!O106","v":"-"},{"$f":"'HSH '!O107","v":"-"},{"$f":"'Personas transgénero'!O108","v":"-"},{"$f":"'Reclusos '!O103","v":"-"},{"$f":"'PID '!O105","v":"-"}]
[null,null,null,null,"Estructura de gestión",{"$f":"'TS '!O111","v":"-"},{"$f":"'HSH '!O112","v":"-"},{"$f":"'Personas transgénero'!O113","v":"-"},{"$f":"'Reclusos '!O108","v":"-"},{"$f":"'PID '!O110","v":"-"}]
[null,null,null,null,"Flujo de datos ",{"$f":"'TS '!O121","v":"-"},{"$f":"'HSH '!O122","v":"-"},{"$f":"'Personas transgénero'!O123","v":"-"},{"$f":"'Reclusos '!O113","v":"-"},{"$f":"'PID '!O120","v":"-"}]
[null,null,null,null,"Trabajadores de asistencia social entre iguales ",{"$f":"'TS '!O128","v":"-"},{"$f":"'HSH '!O129","v":"-"},{"$f":"'Personas transgénero'!O130","v":"-"},{"$f":"'Reclusos '!O119","v":"-"},{"$f":"'PID '!O120","v":"-"}]
[null,null,null,null,"Participación significativa de las comunidades afectadas en el liderazgo y la coordinación",{"$f":"'TS '!O139","v":"-"},{"$f":"'HSH '!O138","v":"-"},{"$f":"'Personas transgénero'!O139","v":"-"},{"$f":"'Reclusos '!O126","v":"-"},{"$f":"'PID '!O127","v":"-"}]
[null,null,null,"Prestación de servicios diferenciada","Servicios accesibles",{"$f":"'TS '!O146","v":"-"},{"$f":"'HSH '!O145","v":"-"},{"$f":"'Personas transgénero'!O146","v":"-"},{"$f":"'Reclusos '!O133","v":"-"},{"$f":"'PID '!O144","v":"-"}]
[null,null,null,null,"Servicios aceptables",{"$f":"'TS '!O155","v":"-"},{"$f":"'HSH '!O153","v":"-"},{"$f":"'Personas transgénero'!O154","v":"-"},{"$f":"'Reclusos '!O141","v":"-"},{"$f":"'PID '!O152","v":"-"}]
[null,null,null,null,"Servicios adaptados/apropiados",{"$f":"'TS '!O162","v":"-"},{"$f":"'HSH '!O159","v":"-"},{"$f":"'Personas transgénero'!O160","v":"-"},{"$f":"'Reclusos '!O147","v":"-"},{"$f":"'PID '!O158","v":"-"}]
[null,null,null,"Intervención clínicas ","Preservativos y lubricante ",{"$f":"'TS '!O171","v":"-"},{"$f":"'HSH '!O168","v":"-"},{"$f":"'Personas transgénero'!O169","v":"-"},{"$f":"'Reclusos '!O155","v":"-"},{"$f":"'PID '!O189","v":"-"}]
[null,null,null,null,"Servicios de pruebas del VIH",{"$f":"'TS '!O175","v":"-"},{"$f":"'HSH '!O172","v":"-"},{"$f":"'Personas transgénero'!O173","v":"-"},{"$f":"'Reclusos '!O159","v":"-"},{"$f":"'PID '!O193","v":"-"}]
[null,null,null,null,"Profilaxis preexposición (PrEP)",{"$f":"'TS '!O188","v":"-"},{"$f":"'HSH '!O172","v":"-"},{"$f":"'Personas transgénero'!O184","v":"-"},{"$f":"'Reclusos '!O172","v":"-"},{"$f":"'PID '!O206","v":"-"}]
[null,null,null,null,"Prevención, detección y tratamiento de las ITS",{"$f":"'TS '!O194","v":"-"},{"$f":"'HSH '!O191","v":"-"}]
[null,null,null,null,"Planificación familiar y SSR",{"$f":"'TS '!O201","v":"-"},{"$f":"'HSH '!O198","v":"-"},{"$f":"'Personas transgénero'!O190","v":"-"},{"$f":"'Reclusos '!O178","v":"-"}]
[null,null,null,null,"Atención postviolencia ",{"$f":"'TS '!O206","v":"-"},{"$f":"'HSH '!O203","v":"-"},{"$f":"'Personas transgénero'!O194","v":"-"},{"$f":"'Reclusos '!O183","v":"-"},{"$f":"'PID '!O212","v":"-"}]
[null,null,null,null,"Prevención, detección y tratamiento de la tuberculosis (TB)",{"$f":"'TS '!O211","v":"-"},{"$f":"'HSH '!O208","v":"-"},{"$f":"'Personas transgénero'!O200","v":"-"},{"$f":"'Reclusos '!O187","v":"-"},{"$f":"'PID '!O217","v":"-"}]
[null,null,null,null,"Prevención de la transmisión perinatal (PTP)",{"$f":"'TS '!O221","v":"-"},null,null,{"$f":"'Reclusos '!O182","v":"-"}]
[null,null,null,null,"Prevención, vacunación, detección y tratamiento de la hepatitis viral",{"$f":"'TS '!O223","v":"-"},{"$f":"'HSH '!O218","v":"-"},{"$f":"'Personas transgénero'!O210","v":"-"},{"$f":"'Reclusos '!O198","v":"-"}]
[null,null,null,null,"Detección y tratamiento para el consumo de drogas y alcohol",{"$f":"'TS '!O230","v":"-"},{"$f":"'HSH '!O225","v":"-"},{"$f":"'Personas transgénero'!O217","v":"-"},{"$f":"'Reclusos '!O205","v":"-"},{"$f":"'PID '!O232","v":"-"}]
[null,null,null,null,"Atención a la salud mental",{"$f":"'TS '!O235","v":"-"},{"$f":"'HSH '!O230","v":"-"},{"$f":"'Personas transgénero'!O223","v":"-"},{"$f":"'Reclusos '!O210","v":"-"},{"$f":"'PID '!O239","v":"-"}]
[null,null,null,null,"Programa de intercambio de jeringuillas (PIJ)",null,null,null,null,{"$f":"'PID '!O167","v":"-"}]
[null,null,null,null,"Tratamiento de sustitución de opioides",null,null,null,null,{"$f":"'PID '!O180","v":"-"}]
[null,null,null,null,"CMMV",null,{"$f":"'HSH '!O233","v":"-"},null,{"$f":"'Reclusos '!O213","v":"-"},{"$f":"'PID '!O247","v":"-"}]
[null,null,null,null,"COVID-19",{"$f":"'TS '!O238","v":"-"},{"$f":"'HSH '!O236","v":"-"},{"$f":"'Personas transgénero'!O226","v":"-"},{"$f":"'Reclusos '!O216","v":"-"},{"$f":"'PID '!O250","v":"-"}]
[null,null,null,"Intervenciones conductuales","Comunicación para el cambio conductual y social ",{"$f":"'TS '!O243","v":"-"},{"$f":"'HSH '!O241","v":"-"},{"$f":"'Personas transgénero'!O231","v":"-"},{"$f":"'Reclusos '!O221","v":"-"},{"$f":"'PID '!O255","v":"-"}]
[null,null,null,"Paquete de intervención estructural","Prevención y respuesta a la violencia",{"$f":"'TS '!O251","v":"-"},{"$f":"'HSH '!O249","v":"-"},{"$f":"'Personas transgénero'!O239","v":"-"},{"$f":"'Reclusos '!O229","v":"-"},{"$f":"'PID '!O263","v":"-"}]
[null,null,null,null,"Reducción del estigma y la discriminación ",{"$f":"'TS '!O259","v":"-"},{"$f":"'HSH '!O257","v":"-"},{"$f":"'Personas transgénero'!O247","v":"-"},{"$f":"'Reclusos '!O233","v":"-"},{"$f":"'PID '!O271","v":"-"}]
[null,null,null,null,"Servicios jurídicos relacionados con el VIH ",{"$f":"'TS '!O267","v":"-"},{"$f":"'HSH '!O265","v":"-"},{"$f":"'Personas transgénero'!O255","v":"-"},{"$f":"'Reclusos '!O241","v":"-"},{"$f":"'PID '!O276","v":"-"}]
[null,null,null,null,"Seguimiento de la aplicación de la ley",{"$f":"'TS '!O271","v":"-"},{"$f":"'HSH '!O269","v":"-"},{"$f":"'Personas transgénero'!O259","v":"-"},{"$f":"'Reclusos '!O245","v":"-"},{"$f":"'PID '!O280","v":"-"}]
[null,null,null,null,"Conocimientos legales («Conoce tus derechos»)",{"$f":"'TS '!O272","v":"-"},{"$f":"'HSH '!O270","v":"-"},{"$f":"'Personas transgénero'!O260","v":"-"},{"$f":"'Reclusos '!O246","v":"-"},{"$f":"'PID '!O281","v":"-"}]
[null,null,null,null,"Sensibilización de los legisladores y las fuerzas del orden ",{"$f":"'TS '!O275","v":"-"},{"$f":"'HSH '!O273","v":"-"},{"$f":"'Personas transgénero'!O263","v":"-"},{"$f":"'Reclusos '!O248","v":"-"},{"$f":"'PID '!O284","v":"-"}]
[null,null,null,null,"Formación para proveedores de atención sanitaria sobre derechos humanos y ética médica relacionada con el VIH ",{"$f":"'TS '!O280","v":"-"},{"$f":"'HSH '!O278","v":"-"},{"$f":"'Personas transgénero'!O268","v":"-"},{"$f":"'Reclusos '!O253","v":"-"},{"$f":"'PID '!O289","v":"-"}]
[null,null,null,null,"Reducción de la discriminación contra las mujeres en el contexto del VIH ",{"$f":"'TS '!O284","v":"-"},null,{"$f":"'Personas transgénero'!O272","v":"-"},{"$f":"'Reclusos '!O257","v":"-"},{"$f":"'PID '!O293","v":"-"}]
[null,null,null,null,"Espacios seguros / centros de acogida",{"$f":"'TS '!O292","v":"-"},{"$f":"'HSH '!O282","v":"-"},{"$f":"'Personas transgénero'!O280","v":"-"},null,{"$f":"'PID '!O301","v":"-"}]
[null,null,null,null,"Comités comunitarios",{"$f":"'TS '!O302","v":"-"},{"$f":"'HSH '!O292","v":"-"},{"$f":"'Personas transgénero'!O290","v":"-"},null,{"$f":"'PID '!O311","v":"-"}]
[null,null,null,"Supervisión y evaluación del programa","Seguimiento rutinario",{"$f":"'TS '!O315","v":"-"},{"$f":"'HSH '!O305","v":"-"},{"$f":"'Personas transgénero'!O303","v":"-"},{"$f":"'Reclusos '!O267","v":"-"},{"$f":"'PID '!O324","v":"-"}]
[null,null,null,null,"Seguimiento para la rendición de cuentas dirigido por la comunidad ",{"$f":"'TS '!O323","v":"-"},{"$f":"'HSH '!O313","v":"-"},{"$f":"'Personas transgénero'!O311","v":"-"},{"$f":"'Reclusos '!O275","v":"-"},{"$f":"'PID '!O332","v":"-"}]
[null,null,null,null,"Seguimiento del sistema de referencias",{"$f":"'TS '!O331","v":"-"},{"$f":"'HSH '!O321","v":"-"},{"$f":"'Personas transgénero'!O319","v":"-"},{"$f":"'Reclusos '!O282","v":"-"},{"$f":"'PID '!O340","v":"-"}]
[null,null,null,null,"Evaluación de la calidad",{"$f":"'TS '!O337","v":"-"},{"$f":"'HSH '!O327","v":"-"},{"$f":"'Personas transgénero'!O325","v":"-"},{"$f":"'Reclusos '!O288","v":"-"},{"$f":"'PID '!O340","v":"-"}]
[null,null,null,null,"Vigilancia ",{"$f":"'TS '!O342","v":"-"},{"$f":"'HSH '!O332","v":"-"},{"$f":"'Personas transgénero'!O330","v":"-"},{"$f":"'Reclusos '!O293","v":"-"},{"$f":"'PID '!O351","v":"-"}]
[null,null,null,null,"Datos para la toma de decisiones",{"$f":"'TS '!O347","v":"-"},{"$f":"'HSH '!O337","v":"-"},{"$f":"'Personas transgénero'!O335","v":"-"},{"$f":"'Reclusos '!O298","v":"-"},{"$f":"'PID '!O356","v":"-"}]
[null,null,null,null,"Uso de un código de identificación único para el seguimiento de los programas",{"$f":"'TS '!O356","v":"-"},{"$f":"'HSH '!O346","v":"-"},{"$f":"'Personas transgénero'!O344","v":"-"},{"$f":"'Reclusos '!O307","v":"-"},{"$f":"'PID '!O365","v":"-"}]
[null,null,null,null,"Supervisión presupuestaria",{"$f":"'TS '!O361","v":"-"},{"$f":"'HSH '!O351","v":"-"},{"$f":"'Personas transgénero'!O349","v":"-"},{"$f":"'Reclusos '!O312","v":"-"},{"$f":"'PID '!O370","v":"-"}]
[null,null,null,null,"Estimaciones disponibles del tamaño de la PC",{"$f":"'TS '!O369","v":"-"},{"$f":"'HSH '!O358","v":"-"},{"$f":"'Personas transgénero'!O358","v":"-"},{"$f":"'Reclusos '!O319","v":"-"},{"$f":"'PID '!O377","v":"-"}]
[null,null,null,null,"La estrategia de prevención incluye elementos clave del paquete de prevención para la PC",{"$f":"'TS '!O370","v":"-"},{"$f":"'HSH '!O359","v":"-"},{"$f":"'Personas transgénero'!O359","v":"-"},{"$f":"'Reclusos '!O320","v":"-"},{"$f":"'PID '!O381","v":"-"}]
[null,null,"Resultados del programa","Resultados entre PC","Personas que viven con el VIH y conocen su estado serológico (objetivo del 90 %)",{"$f":"'TS '!O370","v":"-"},{"$f":"'HSH '!O360","v":"-"},{"$f":"'Personas transgénero'!O361","v":"-"},{"$f":"'Reclusos '!O321","v":"-"},{"$f":"'PID '!O378","v":"-"}]
[null,null,null,null,"Personas que viven con el VIH en tratamiento antirretroviral (objetivo del 90 %)",{"$f":"'TS '!O371","v":"-"},{"$f":"'HSH '!O361","v":"-"},{"$f":"'Personas transgénero'!O362","v":"-"},{"$f":"'Reclusos '!O322","v":"-"},{"$f":"'PID '!O379","v":"-"}]
[null,null,null,null,"Personas que viven con el VIH y que tienen cargas indetectables (objetivo del 90 %)",{"$f":"'TS '!O373","v":"-"},{"$f":"'HSH '!O363","v":"-"},{"$f":"'Personas transgénero'!O363","v":"-"},{"$f":"'Reclusos '!O323","v":"-"},{"$f":"'PID '!O380","v":"-"}]
[null,null,null,null,"TS que han utilizado preservativo con el cliente más reciente (objetivo del 80 %)",{"$f":"'TS '!O374","v":"-"}]
[null,null,null,null,"PC que ha recibido un mínimo de 2 intervenciones de prevención del VIH en los últimos 3 meses",{"$f":"'TS '!O375","v":"-"},{"$f":"'HSH '!O362","v":"-"},{"$f":"'Personas transgénero'!O364","v":"-"},null,{"$f":"'PID '!O382","v":"-"}]
[null,null,null,null,"% personas de que no buscaron atención sanitaria debido al estigma y a la discriminación",{"$f":"'TS '!O376","v":"-"},{"$f":"'HSH '!O364","v":"-"},{"$f":"'Personas transgénero'!O366","v":"-"},null,{"$f":"'PID '!O384","v":"-"}]
[null,null,null,null,"Criminalización de la PC",{"$f":"'TS '!O377","v":"-"},{"$f":"'HSH '!O365","v":"-"},{"$f":"'Personas transgénero'!O365","v":"-"},null,{"$f":"'PID '!O388","v":"-"}]
[null,null,null,null,"Uso de preservativo en la última relación sexual con penetración anal entre HSH ",null,{"$f":"'HSH '!O366","v":"-"}]
[null,null,null,null,"Atención sanitaria para la reasignación de género en los centros de salud",null,null,{"$f":"'Personas transgénero'!O367","v":"-"}]
[null,null,null,null,"Uso del preservativo entre personas transgénero (objetivo del 80 %)",null,null,{"$f":"'Personas transgénero'!O368","v":"-"}]
[null,null,null,null,"Prevalencia del VIH entre las personas transgénero",null,null,{"$f":"'Personas transgénero'!O360","v":"-"}]
[null,null,null,null,"Número de agujas/jeringuillas por PID",null,null,null,null,{"$f":"'PID '!O383","v":"-"}]
[null,null,null,null,"Prácticas seguras para inyectarse (PID) (objetivo del 90 %)",null,null,null,null,{"$f":"'PID '!O386","v":"-"}]
[null,null,null,null,"% de usuarios de opioides que reciben tratamiento farmacológicamente asistido (PID) (objetivo del 25 %)",null,null,null,null,{"$f":"'PID '!O387","v":"-"}]
[null,null,null,"Sostenibilidad",null,{"$f":"IFERROR(ROUND(AVERAGE('TS '!P6:P377),0),\"-\")","v":"-"},{"$f":"IFERROR(ROUND(AVERAGE('HSH '!P6:P377),0),\"-\")","v":"-"},{"$f":"IFERROR(ROUND(AVERAGE('Personas transgénero'!P6:P378),0),\"-\")","v":"-"},{"$f":"IFERROR(ROUND(AVERAGE('Reclusos '!P6:P354),0),\"-\")","v":"-"},{"$f":"IFERROR(ROUND(AVERAGE('PID '!P6:P382),0),\"-\")","v":"-"}]
[null,null,null,"Indicadores de la COVID-19 (y otras pandemias)",null,{"$f":"IF((SUM('TS '!L58:N58)+SUM('TS '!L239:N239)+SUM('TS '!L240:N240))/3=0,\"-\",ROUND((SUM('TS '!L58:N58)+SUM('TS '!L239:N239)+SUM('TS '!L240:N240))/3,0))","v":"-"},{"$f":"IF((SUM('HSH '!L59:N59)+SUM('HSH '!L237:N237)+SUM('HSH '!L238:N238))/3=0,\"-\",ROUND((SUM('HSH '!L59:N59)+SUM('HSH '!L237:N237)+SUM('HSH '!L238:N238))/3,0))","v":"-"},{"$f":"IF((SUM('Personas transgénero'!L58:N58)+SUM('Personas transgénero'!L237:N237)+SUM('Personas transgénero'!L238:N238))/3=0,\"-\",ROUND((SUM('Personas transgénero'!L58:N58)+SUM('Personas transgénero'!L237:N237)+SUM('Personas transgénero'!L238:N238))/3,0))","v":"-"},{"$f":"IF((SUM('Reclusos '!L57:N57)+SUM('Reclusos '!L217:N217)+SUM('Reclusos '!L218:N218))/3=0,\"-\",ROUND((SUM('Reclusos '!L57:N57)+SUM('Reclusos '!L217:N217)+SUM('Reclusos '!L218:N218))/3,0))","v":"-"},{"$f":"IF((SUM('PID '!L57:N57)+SUM('PID '!L251:N251)+SUM('PID '!L252:N252))/3=0,\"-\",ROUND((SUM('PID '!L57:N57)+SUM('PID '!L251:N251)+SUM('PID '!L252:N252))/3,0))","v":"-"}]
[]
[null,null,null,null,null,null,null,null,null,null,null,null,{"$f":"COUNTIF(F4:J80,\"-\")","v":329}]
[null,null,null,null,null,null,null,null,null,null,null,null,{"$f":"COUNTIF(F4:J80,\">0\")","v":0}]
[null,null,null,null,null,null,null,null,null,null,null,"PSAT Completion",{"$f":"M83/(M82+M83)","v":0},{"$f":"1-M84","v":1}]

{"sheet":"Siguientes pasos","index":10,"n_rows":92,"n_cols":8,"rows_kept":92,"cut":false,"hidden":false,"merged":[[60,4,60,5],[76,2,76,8],[78,4,78,5],[4,2,4,8],[6,4,6,5],[22,2,22,8],[24,4,24,5],[40,2,40,8],[42,4,42,5],[58,2,58,8]]}
[]
[]
[]
[]
[null,null,"Siguientes pasos - Trabajadores sexuales"]
[]
[null,null,null,null,"Elemento que debe abordarse",null,"Motivo del bajo rendimiento","Acciones propuestas (e.j.: apoyo necesario o mejoras)"]
[null,null,null,null,1]
[null,null,null,null,2]
[null,null,null,null,3]
[null,null,null,null,4]
[null,null,null,null,5]
[null,null,null,null,6]
[null,null,null,null,7]
[null,null,null,null,8]
[null,null,null,null,9]
[null,null,null,null,10]
[null,null,null,null,11]
[null,null,null,null,12]
[null,null,null,null,13]
[]
[]
[null,null,"Siguientes pasos - Hombres que tienen sexo con hombres"]
[]
[null,null,null,null,"Elemento que debe abordarse",null,"Motivo del bajo rendimiento","Acciones propuestas (e.j.: apoyo necesario o mejoras)"]
[null,null,null,null,1]
[null,null,null,null,2]
[null,null,null,null,3]
[null,null,null,null,4]
[null,null,null,null,5]
[null,null,null,null,6]
[null,null,null,null,7]
[null,null,null,null,8]
[null,null,null,null,9]
[null,null,null,null,10]
[null,null,null,null,11]
[null,null,null,null,12]
[null,null,null,null,13]
[]
[]
[null,null,"Siguientes pasos - Personas transgénero"]
[]
[null,null,null,null,"Elemento que debe abordarse",null,"Motivo del bajo rendimiento","Acciones propuestas (e.j.: apoyo necesario o mejoras)"]
[null,null,null,null,1]
[null,null,null,null,2]
[null,null,null,null,3]
[null,null,null,null,4]
[null,null,null,null,5]
[null,null,null,null,6]
[null,null,null,null,7]
[null,null,null,null,8]
[null,null,null,null,9]
[null,null,null,null,10]
[null,null,null,null,11]
[null,null,null,null,12]
[null,null,null,null,13]
[]
[]
[null,null,"Siguientes pasos - Reclusos y personas en privación de libertad"]
[]
[null,null,null,null,"Elemento que debe abordarse",null,"Motivo del bajo rendimiento","Acciones propuestas (e.j.: apoyo necesario o mejoras)"]
[null,null,null,null,1]
[null,null,null,null,2]
[null,null,null,null,3]
[null,null,null,null,4]
[null,null,null,null,5]
[null,null,null,null,6]
[null,null,null,null,7]
[null,null,null,null,8]
[null,null,null,null,9]
[null,null,null,null,10]
[null,null,null,null,11]
[null,null,null,null,12]
[null,null,null,null,13]
[]
[]
[null,null,"Siguientes pasos - Personas que se inyectan drogas"]
[]
[null,null,null,null,"Elemento que debe abordarse",null,"Motivo del bajo rendimiento","Acciones propuestas (e.j.: apoyo necesario o mejoras)"]
[null,null,null,null,1]
[null,null,null,null,2]
[null,null,null,null,3]
[null,null,null,null,4]
[null,null,null,null,5]
[null,null,null,null,6]
[null,null,null,null,7]
[null,null,null,null,8]
[null,null,null,null,9]
[null,null,null,null,10]
[null,null,null,null,11]
[null,null,null,null,12]
[null,null,null,null,13]

{"sheet":"Bibliografía","index":11,"n_rows":39,"n_cols":4,"rows_kept":39,"cut":false,"hidden":false,"merged":[[1,2,1,3]]}
[]
[null,null,"Bibliografía"]
[null,null,1,"Bridging the Gaps. (2015). Reaching Key Populations and Improving Their Access to HIV Services in Kenya."]
[null,null,2,"Programa Conjunto de las Naciones Unidas sobre el VIH/Sida. (2008). A framework for monitoring and evaluating HIV prevention programmes for most-at-risk populations."]
[null,null,3,"Programa Conjunto de las Naciones Unidas sobre el VIH/Sida. (2012). Programas clave para reducir el estigma y la discriminación y aumentar el acceso a la justicia en las respuestas nacionales contra el VIH. Guidance note [nota orientativa]."]
[null,null,4,"Programa Conjunto de las Naciones Unidas sobre el VIH/Sida. (2017). Hoja de ruta de prevención del VIH para 2020. Acelerar la prevención del VIH para reducir el número de nuevas infecciones en un 75 %. Ginebra: ONUSIDA."]
[null,null,5,"Programa Conjunto de las Naciones Unidas sobre el VIH/Sida. (2018). Monitoreo global del Sida 2019: Indicadores para el seguimiento de la Declaración Política de las Naciones Unidas para poner fin al sida de 2016. Ginebra: ONUSIDA."]
[null,null,6,"Programa Conjunto de las Naciones Unidas sobre el VIH/Sida. (2018). Ficha de puntuación sobre prevención del VIH para poblaciones clave. Ginebra: ONUSIDA."]
[null,null,7,"Programa Conjunto de las Naciones Unidas sobre el VIH/Sida. (2018). Implementación de la hoja de ruta de prevención del VIH para 2020 - Primer informe de progreso, marzo de 2018 Ginebra: ONUSIDA."]
[null,null,8,"Programa Conjunto de las Naciones Unidas sobre el VIH/Sida. (2020). Mantener y priorizar los servicios de prevención del VIH en el contexto de la COVID-19."]
[null,null,9,"Programa Conjunto de las Naciones Unidas sobre el VIH/Sida. (2020). Condones y lubricantes en el contexto de la COVID-19. Mantenimiento de suministros y enfoques centrados en las personas para satisfacer la necesidad en países de ingresos bajos y medios."]
[null,null,10,"Programa Conjunto de las Naciones Unidas sobre el VIH/Sida. (2020). ONUSIDA destaca seis acciones fundamentales para poner la igualdad de género en el centro de las respuestas a la COVID-19. "]
[null,null,11,"Programa Conjunto de las Naciones Unidas sobre el VIH/Sida. (2020). Strategic Considerations for Mitigating the Impact of COVID-19 on Key-Population-Focused HIV Programs."]
[null,null,12,"Programa Conjunto de las Naciones Unidas sobre el VIH/Sida. (2020). Preventing HIV and other STIs among women and girls using contraceptive services in contexts with high HIV incidence. "]
[null,null,13,"Programa Conjunto de las Naciones Unidas sobre el VIH/Sida. (2021). Going Online: A Budgeting and Programming Aid for Virtual HIV Interventions. "]
[null,null,14,"Ministerio de Sanidad de Kenia. (2018). National implementation guidelines for HIV and STI programme among young key populations. "]
[null,null,15,"CONEXIONES. (2015). HIV cascade framework for Key Populations. "]
[null,null,16,"CONEXIONES. (2016). Annex 2: Acceleration Technical Assistance Checklist of Accelerating the Implementation and Scale-up of Comprehensive Programs for HIV Prevention, Diagnosis, Treatment and Care for Key Populations."]
[null,null,17,"CONEXIONES. (2017). Key Population Programme Implementation Guide. "]
[null,null,18,"NASCOP. (2014). Ministry of Health National Guidelines of HIV and STI Programming with Key Populations. Kenia."]
[null,null,19,"Kageni, A., Mwangi, L., Mugyenyi, C., & Macintyre, K. (2015). Representation and participation of key populations on country coordinating mechanisms (CCMs) in sex countries in Southern Africa. Final report."]
[null,null,20,"SANAC. (2016). South African National Strategic Plan 2017-2020."]
[null,null,21,"United Nations Office on Drugs and Crime, International Network of People Who Use Drugs, Joint United Nations Programme on HIV/AIDS, United Nations Development Programme, United Nations Population Fund, World Health Organization, United States Agency for International Development. (2017). Implementing comprehensive HIV and HCV programmes with people who inject drugs: practical guidance for collaborative interventions. Viena: Oficina de las Naciones Unidas contra la Droga y el Delito."]
[null,null,22,"Sociedad Internacional del Sida. (2018). Differentiated service delivery: A decision framework for differentiated antiretroviral therapy for key populations. "]
[null,null,23,"Sociedad Internacional del Sida. (2018). Differentiated service delivery for HIV: A decision framework for HIV testing services. "]
[null,null,24,"Organización Mundial de la Salud. (2007). Guía para comenzar y gestionar programas de intercambio de agujas y jeringas."]
[null,null,25,"Organización Mundial de la Salud. (2009). Toolkit for Monitoring and Evaluation of interventions for sex workers. "]
[null,null,26,"Organización Mundial de la Salud. (2010). Delivering HIV test results and messages for re-testing and counselling in adults. "]
[null,null,27,"Organización Mundial de la Salud. (2011). Guidelines on surveillance among populations most at risk for HIV."]
[null,null,28,"Organización Mundial de la Salud. (2011). Preventing HIV in Sex Work in Sub-Saharan Africa."]
[null,null,29,"Organización Mundial de la Salud. (2012). Guidance on Pre-Exposure Prophylaxis (PrEP) for serodiscordant couples, men and transgender women who have sex with men at high risk of HIV."]
[null,null,30,"Organización Mundial de la Salud. (2012). Prevention and treatment of HIV and other sexually transmitted infections for sex workers in low-and middle-income countries: recommendations for a public health approach. Organización Mundial de la Salud."]
[null,null,31,"Organización Mundial de la Salud. (2012). Responding to intimate partner violence and sexual violence against women. "]
[null,null,32,"Organización Mundial de la Salud. (2012). Service delivery approaches to HIV testing and counselling (HTC): A strategic HTC programme framework."]
[null,null,33,"Organización Mundial de la Salud. (2015). Tool to set and monitor targets for HIV prevention, diagnosis, treatment and care for key populations: supplement to the 2014 consolidated guidelines for HIV prevention, diagnosis, treatment and care for key populations. Organización Mundial de la Salud."]
[null,null,34,"Organización Mundial de la Salud. (2016). Consolidated guideline on HIV prevention diagnosis, treatment and care for Key Populations - 2016 update. "]
[null,null,35,"Organización Mundial de la Salud. (2017). Consolidated guidelines on person-centred HIV patient monitoring and case surveillance."]
[null,null,36,"Organización Mundial de la Salud. (2018). Manual operativo del mhGAP."]
[null,null,37," Oficina de las Naciones Unidas contra la Droga y el Delito. (2020). Normas internacionales para el tratamiento de trastornos por el uso de drogas."]

{"sheet":"Acrónimos","index":12,"n_rows":37,"n_cols":4,"rows_kept":37,"cut":false,"hidden":false,"merged":[[1,2,1,3]]}
[]
[null,null,"Acrónimos"]
[null,null,"CCCS","Comunicación para el cambio conductual y social"]
[null,null,"CIU","Código de identificación único"]
[null,null,"CONEXIONES","Continuo de servicios relacionados con el VIH para las poblaciones clave a las que se dirige el proyecto de VIH"]
[null,null,"ETP","Estimación del tamaño de la población"]
[null,null,"GNC","Identidades de género no conformes"]
[null,null,"GTT","Grupo técnico de trabajo "]
[null,null,"HSH","Hombres que tienen sexo con hombres "]
[null,null,"MTE","Muestreo temporal y espacial "]
[null,null,"OC","Organización comunitaria"]
[null,null,"OMS","Organización Mundial de la Salud "]
[null,null,"ONG","Organización no gubernamental"]
[null,null,"ONUSIDA","Programa Conjunto de las Naciones Unidas sobre el VIH/Sida "]
[null,null,"OSC","Organizaciones de la sociedad civil "]
[null,null,"PAT","Plan de asistencia técnica"]
[null,null,"PC","Poblaciones clave "]
[null,null,"PF","Planificación familiar"]
[null,null,"PID","Personas que se inyectan drogas"]
[null,null,"PIJ","Programa de intercambio de jeringuillas "]
[null,null,"PO","Planes operativos"]
[null,null,"PrEP","Profilaxis preexposición"]
[null,null,"PSAT","Herramienta de autoevaluación de los programas de prevención"]
[null,null,"PTP","Prevención de la transmisión perinatal"]
[null,null,"PVVIH","Personas que viven con el VIH"]
[null,null,"SPD","Servicios de pruebas de detección del VIH "]
[null,null,"SSR","Salud sexual y reproductiva "]
[null,null,"SyE","Seguimiento y evaluación"]
[null,null,"TAR","Terapia antirretroviral"]
[null,null,"TASEI","Trabajadores de asistencia social entre iguales"]
[null,null,"TB","Tuberculosis"]
[null,null,"TC","Teoría del cambio"]
[null,null,"TR","Términos de referencia"]
[null,null,"TS","Trabajadores sexuales"]
[null,null,"TSO","Tratamiento de sustitución de opioides"]
[null,null,"USAID","Agencia de EE. UU. para el Desarrollo Internacional"]
[null,null,"VHB","Virus de la hepatitis B "]